Workbook

Sheet Cover
A1: Português | B1: 1
A2: English
D9: =CHOOSE($B$1,"Planilha de Fundamentos","Spreadsheet") -> Planilha de Fundamentos
D10: =CHOOSE($B$1,Trans!A1,Trans!B1) -> julho - 2026
D13: Selecione o idioma
D14: Please select your language
D23: =IF(Cover!$B$1=1,Trans!A3,Trans!B3) -> Dados de mercado: julho/2026
D24: =IF(Cover!$B$1=1,Trans!A4,Trans!B4) -> Dados operacionais e financeiros: junho/2026
D26: Disclaimer
D27: =CHOOSE($B$1,D30,D29) -> Esta apresentação foi elaborada pelo BTG Pactual Gestora de Recursos Ltda. (“BTG Pactual”) para uso exclusivo de quem o BTG Pactual enviou esta apresentação. Esta apresentação foi preparada com base em informações pertencentes ao BTG Pactual e outras informações disponíveis ao público. O BTG Pactual não faz qualquer representação ou garantia, expressa ou implícita, quanto à exatidão, plenitude e confiabilidade das informações, estimativas ou projeções quanto a eventos que possam ocorrer no futuro (incluindo projeções de receita, despesa, lucro líquido e desempenho de ações) contidas nesta apresentação. Caso qualquer estimativa ou projeção seja apresentada, não há garantia de que quaisquer dessas serão alcançadas. Os resultados reais podem variar das projeções e tais variações podem ser significativas. Nada aqui contido é, ou deve ser entendido como, uma promessa ou representação do passado ou do futuro. O BTG Pactual se exonera, expressamente, de toda e qualquer responsabilidade relacionada ou resultante da utilização desta apresentação. Esta apresentação foi preparada exclusivamente para fins informativos e não deve ser interpretada como uma solicitação ou uma oferta de compra ou venda de quaisquer valores mobiliários ou instrumentos financeiros relacionados. O BTG Pactual não interpreta o conteúdo desta apresentação como consultoria jurídica, contábil, fiscal ou de investimento ou como uma recomendação. Esta apresentação não pretende ser exaustiva ou conter todas as informações que o BTG Pactual possa exigir. Nenhum investimento, desinvestimento ou outras ações ou decisões financeiras devem se basear apenas nas informações contidas nesta apresentação. Este material não pode ser copiado, reproduzido, distribuído ou transmitido a outras partes, a qualquer tempo, sem o consentimento prévio e por escrito do BTG Pactual.
D29: This presentation has been prepared by BTG Pactual Gestora de Recursos Ltda. (“BTG Pactual”) for the exclusive use of the party to whom BTG Pactual delivers this presentation. This presentation was prepared based on BTG Pactual own information and other publicly available information. BTG Pactual does not make any representation or warranty, either express or implied, as to the accuracy, completeness or reliability of the information, estimates or projections as to events that may occur in the future (including projections of revenue, expense, net income and stock performance) contained in this presentation. In case any estimate or projection is presented, there is no guarantee that any of these will be achieved. Actual results will vary from the projections and such variations may be material. Nothing contained herein is, or shall be relied upon as, a promise or representation as to the past or future. BTG Pactual expressly disclaims any and all liability relating or resulting from the use of this presentation. ‪This presentation has been prepared solely for informational purposes and is not to be construed as a solicitation or an offer to buy or sell any securities or related financial instruments. BTG Pactual should not construe the contents of this presentation as legal, tax, accounting or investment advice or a recommendation. This presentation does not purport to be all-inclusive or to contain all of the information that BTG Pactual may require. No investment, divestment or other financial decisions or actions should be based solely on the information in this presentation. This material must not be copied, reproduced, distributed or passed to others at any time without the prior written consent of BTG Pactual.
D30: Esta apresentação foi elaborada pelo BTG Pactual Gestora de Recursos Ltda. (“BTG Pactual”) para uso exclusivo de quem o BTG Pactual enviou esta apresentação. Esta apresentação foi preparada com base em informações pertencentes ao BTG Pactual e outras informações disponíveis ao público. O BTG Pactual não faz qualquer representação ou garantia, expressa ou implícita, quanto à exatidão, plenitude e confiabilidade das informações, estimativas ou projeções quanto a eventos que possam ocorrer no futuro (incluindo projeções de receita, despesa, lucro líquido e desempenho de ações) contidas nesta apresentação. Caso qualquer estimativa ou projeção seja apresentada, não há garantia de que quaisquer dessas serão alcançadas. Os resultados reais podem variar das projeções e tais variações podem ser significativas. Nada aqui contido é, ou deve ser entendido como, uma promessa ou representação do passado ou do futuro. O BTG Pactual se exonera, expressamente, de toda e qualquer responsabilidade relacionada ou resultante da utilização desta apresentação. Esta apresentação foi preparada exclusivamente para fins informativos e não deve ser interpretada como uma solicitação ou uma oferta de compra ou venda de quaisquer valores mobiliários ou instrumentos financeiros relacionados. O BTG Pactual não interpreta o conteúdo desta apresentação como consultoria jurídica, contábil, fiscal ou de investimento ou como uma recomendação. Esta apresentação não pretende ser exaustiva ou conter todas as informações que o BTG Pactual possa exigir. Nenhum investimento, desinvestimento ou outras ações ou decisões financeiras devem se basear apenas nas informações contidas nesta apresentação. Este material não pode ser copiado, reproduzido, distribuído ou transmitido a outras partes, a qualquer tempo, sem o consentimento prévio e por escrito do BTG Pactual.

Sheet Highlights
B1: Fundo Imobiliário BTG Pactual Corporate Office Fund – BRCR11 INFORMATIVO ao MERCADO
B18: =IF(Cover!$B$1=1,Trans!A153,Trans!B153) -> * Medida não contábil que corresponde ao valor total dos contratos de locação vigentes no mês de referência, desconsiderando descontos, carências, multas e outros ajustes que impactam a receita contábil de locação.
B20: ='Desempenho - Performance'!B2 -> Análise de Desempenho da Cota
B35: =IF(Cover!$B$1=1,Trans!A232,Trans!B232) -> * Valor no Fechamento do mês
B37: =Trans!C11 -> Rentabilidade do Cotista
B59: =Graficos!A31 -> Vacância
B77: =Trans!C446 -> Indicadores de Resultados
B91: =IF(Cover!$B$1=1,Trans!A435,Trans!B435) -> * FFO Ajustado é uma medida não contábil e correspondente ao lucro líquido, excluindo (adicionando) os efeitos do ganho (perda) na venda de propriedade para investimento, o ganho com valor justo de propriedade para investimento, receitas e despesas não recorrentes e despesas financeiras não caixa (relacionadas à correção monetária sobre o saldo do endividamento)
B92: =IF(Cover!$B$1=1,Trans!A13,Trans!B13) -> * Em Fevereiro/13, foi considerado o total de cotas no fechamento do mês, sendo que os novos recursos somente passaram a gerar resultado para o fundo após a conclusão da oferta primária encerrada em 22/02/2013
B106: =B91 -> * FFO Ajustado é uma medida não contábil e correspondente ao lucro líquido, excluindo (adicionando) os efeitos do ganho (perda) na venda de propriedade para investimento, o ganho com valor justo de propriedade para investimento, receitas e despesas não recorrentes e despesas financeiras não caixa (relacionadas à correção monetária sobre o saldo do endividamento)

Sheet Portfolio Imoveis-Real Estate
B1: =IF(Cover!$B$1=1,Trans!A16,Trans!B16) -> Fundo Imobiliário BTG Pactual Corporate Office Fund – BRCR11
B2: =IF(Cover!$B$1=1,Trans!A17,Trans!B17) -> Portfólio de Ativos do Fundo
B4: =IF(Cover!$B$1=1,Trans!A2,Trans!B2) -> Data base: junho/2026
B5: =IF(Cover!$B$1=1,Trans!A18,Trans!B18) -> Imóveis | C5: =IF(Cover!$B$1=1,Trans!C18,Trans!D18) -> Classif. | D5: =IF(Cover!$B$1=1,Trans!E18,Trans!F18) -> Participação | E5: =IF(Cover!$B$1=1,Trans!M18,Trans!N18) -> Vacância (m²) | F5: =IF(Cover!$B$1=1,Trans!G18,Trans!L18) -> Vacância (R$) | G5: =IF(Cover!$B$1=1,Trans!O18,Trans!P18) -> Cidade | H5: =IF(Cover!$B$1=1,Trans!Q18,Trans!R18) -> UF | I5: =IF(Cover!$B$1=1,Trans!S18,Trans!T18) -> Data de Aquisição | J5: =IF(Cover!$B$1=1,Trans!U18,Trans!V18) -> ABL (m²) | K5: =IF(Cover!$B$1=1,Trans!W18,Trans!X18) -> Receita Contratada de Locação | L5: =Trans!Y18 -> R$/m² | M5: =IF(Cover!$B$1=1,Trans!Z18,Trans!AA18) -> Receita Potencial a Mercado em mai/26* | N5: =IF(Cover!$B$1=1,Trans!AC18,Trans!AD18) -> Área vaga (m²)
B6: =IF(Cover!$B$1=1,Trans!A23,Trans!B23) -> CEO Office | C6: =IF(Cover!$B$1=1,Trans!C23,Trans!D23) -> AAA | D6: 0.273 | E6: 0 | F6: =1-(K6/M6) -> 0 | G6: =IF(Cover!$B$1=1,Trans!O23,Trans!P23) -> Rio de Janeiro | H6: =IF(Cover!$B$1=1,Trans!Q23,Trans!R23) -> RJ | I6: =IF(Cover!$B$1=1,Trans!S23,Trans!T23) -> fev-19 | J6: 4781.898 | K6: 402541.0153 | L6: =K6/(J6*(1-E6)) -> 84.180176 | M6: 402541.0153 | N6: =+E6*J6 -> 0
B7: =IF(Cover!$B$1=1,Trans!A25,Trans!B25) -> Diamond Tower | C7: =IF(Cover!$B$1=1,Trans!C25,Trans!D25) -> AAA | D7: 1 | E7: 0 | F7: =1-(K7/M7) -> 0 | G7: =IF(Cover!$B$1=1,Trans!O25,Trans!P25) -> São Paulo | H7: =IF(Cover!$B$1=1,Trans!Q25,Trans!R25) -> SP | I7: =IF(Cover!$B$1=1,Trans!S25,Trans!T25) -> jul-20 | J7: 36918.18 | K7: 4911872.066 | L7: =K7/(J7*(1-E7)) -> 133.0475139 | M7: 4911872.066 | N7: 0
B8: =IF(Cover!$B$1=1,Trans!A28,Trans!B28) -> Eldorado Business Tower | C8: =IF(Cover!$B$1=1,Trans!C28,Trans!D28) -> AAA | D8: =0.49*69% -> 0.3381 | E8: 0 | F8: =1-(K8/M8) -> 0 | G8: =IF(Cover!$B$1=1,Trans!O28,Trans!P28) -> São Paulo | H8: =IF(Cover!$B$1=1,Trans!Q28,Trans!R28) -> SP | I8: =IF(Cover!$B$1=1,Trans!S28,Trans!T28) -> abr-09 | J8: =0.49*45400.27 -> 22246.1323 | K8: 4558873.05 | L8: 204.9287934 | M8: 4558873.05 | N8: =+E8*J8 -> 0
B9: =IF(Cover!$B$1=1,Trans!A29,Trans!B29) -> EZ Towers | C9: =IF(Cover!$B$1=1,Trans!C29,Trans!D29) -> AAA | D9: 0.16 | E9: 0.186 | F9: =1-(K9/M9) -> 0.186 | G9: =IF(Cover!$B$1=1,Trans!O29,Trans!P29) -> São Paulo | H9: =IF(Cover!$B$1=1,Trans!Q29,Trans!R29) -> SP | I9: =IF(Cover!$B$1=1,Trans!S29,Trans!T29) -> out-20 | J9: =16%*47001.51 -> 7520.2416 | K9: 666745.2003 | L9: 108.9190137 | M9: 819097.2977 | N9: 1398.764938
B10: =IF(Cover!$B$1=1,Trans!A31,Trans!B31) -> Montreal | C10: =IF(Cover!$B$1=1,Trans!C31,Trans!D31) -> A | D10: 1 | E10: 0 | F10: =1-(K10/M10) -> 0 | G10: =IF(Cover!$B$1=1,Trans!O31,Trans!P31) -> Rio de Janeiro | H10: =IF(Cover!$B$1=1,Trans!Q31,Trans!R31) -> RJ | I10: =IF(Cover!$B$1=1,Trans!S31,Trans!T31) -> dez-07 | J10: 6439 | K10: 382303.3225 | L10: 59.37308938 | M10: 382303.3225 | N10: 0
B11: =IF(Cover!$B$1=1,Trans!A32,Trans!B32) -> MV9 | C11: =IF(Cover!$B$1=1,Trans!C32,Trans!D32) -> B | D11: 1 | E11: 0.1817790606 | F11: =1-(K11/M11) -> 0.1817790606 | G11: =IF(Cover!$B$1=1,Trans!O32,Trans!P32) -> Rio de Janeiro | H11: =IF(Cover!$B$1=1,Trans!Q32,Trans!R32) -> RJ | I11: =IF(Cover!$B$1=1,Trans!S32,Trans!T32) -> fev-19 | J11: 15174.3 | K11: 782201.7 | L11: 62.99984778 | M11: 955978.5901 | N11: 2758.37
B12: =IF(Cover!$B$1=1,Trans!A33,Trans!B33) -> Senado | C12: =IF(Cover!$B$1=1,Trans!C33,Trans!D33) -> AAA | D12: 0.2 | E12: 0 | F12: =1-(K12/M12) -> 0 | G12: =IF(Cover!$B$1=1,Trans!O33,Trans!P33) -> Rio de Janeiro | H12: =IF(Cover!$B$1=1,Trans!Q33,Trans!R33) -> RJ | I12: =IF(Cover!$B$1=1,Trans!S33,Trans!T33) -> fev-19 | J12: =95173.63*0.2 -> 19034.726 | K12: 3690713.44 | L12: 193.8936993 | M12: 3690713.44 | N12: 0
B13: =IF(Cover!$B$1=1,Trans!A34,Trans!B34) -> Sucupira | C13: =IF(Cover!$B$1=1,Trans!C34,Trans!D34) -> AAA | D13: 0.2058 | E13: 0.1 | F13: 0.1 | G13: =IF(Cover!$B$1=1,Trans!O37,Trans!P37) -> São Paulo | H13: =IF(Cover!$B$1=1,Trans!Q37,Trans!R37) -> SP | I13: =IF(Cover!$B$1=1,Trans!S34,Trans!T34) -> nov-19 | J13: 7533.8 | K13: 780422.3712 | L13: =(K13)/(J13*(1-E13)) -> 115.0994144 | M13: 867135.968 | N13: 753.38
B14: =IF(Cover!$B$1=1,Trans!A35,Trans!B35) -> Torre Almirante | C14: =IF(Cover!$B$1=1,Trans!C35,Trans!D35) -> AAA | D14: 0.6 | E14: 0.406 | F14: 0.406 | G14: =IF(Cover!$B$1=1,Trans!O38,Trans!P38) -> Rio de Janeiro | H14: =IF(Cover!$B$1=1,Trans!Q38,Trans!R38) -> RJ | I14: =IF(Cover!$B$1=1,Trans!S35,Trans!T35) -> dez-21 | J14: 25087.218 | K14: 1579530.555 | L14: =K14/(J14*(1-E14)) -> 105.9959039 | M14: 2659142.348 | N14: =+E14*J14 -> 10185.41051
B15: =IF(Cover!$B$1=1,Trans!A41,Trans!B41) -> TOTAL | E15: =+N15/J15 -> 0.1043000914 | F15: =(SUMPRODUCT(L6:L14,N6:N14))/((K15)+(SUMPRODUCT(L6:L14,N6:N14))) -> 0.07753953482 | J15: =SUM(J6:J14) -> 144735.4959 | K15: =SUM(K6:K14) -> 17755202.72 | L15: =(K15)/(J15*(1-E15)) -> 136.9582039 | M15: =SUM(M6:M14) -> 19247657.1 | N15: =SUM(N6:N14) -> 15095.92545
B17: =IF(Cover!$B$1=1,Trans!A43,Trans!B43) -> * De acordo com Laudo de Avaliação Semestral desenvolvido pela Cushman
B19: =C5 -> Classif. | C19: =K5 -> Receita Contratada de Locação | D19: =J5 -> ABL (m²)
B20: AAA | C20: =SUMIF($C$6:$C$14,B20,$K$6:$K$14)/$K$15 -> 0.9344133074 | D20: =SUMIF($C$6:$C$14,B20,$J$6:$J$14)/$J$15 -> 0.8506703565
B21: A | C21: =SUMIF($C$6:$C$14,B21,$K$6:$K$14)/$K$15 -> 0.02153190411 | D21: =SUMIF($C$6:$C$14,B21,$J$6:$J$14)/$J$15 -> 0.04448805015
B22: B | C22: =SUMIF($C$6:$C$14,B22,$K$6:$K$14)/$K$15 -> 0.04405478847 | D22: =SUMIF($C$6:$C$14,B22,$J$6:$J$14)/$J$15 -> 0.1048415933
B24: =D5&" > 50%" -> Participação > 50% | C24: =(+K7+K10+K11+K14)/K15 -> 0.4311923532 | D24: =(+J7+J10+J11+J14)/J15 -> 0.5777345597
B26: =G5 -> Cidade | C26: =C19 -> Receita Contratada de Locação | D26: =D19 -> ABL (m²)
B27: =IF(Cover!$B$1=1,Trans!O19,Trans!P19) -> São Paulo | C27: =SUMIF($G$6:$G$14,B27,$K$6:$K$14)/$K$15 -> 0.6149134346 | D27: =SUMIF($G$6:$G$14,B27,$J$6:$J$14)/$J$15 -> 0.5127861237
B28: =IF(Cover!$B$1=1,Trans!O30,Trans!P30) -> Rio de Janeiro | C28: =SUMIF($G$6:$G$14,B28,$K$6:$K$14)/$K$15 -> 0.3850865654 | D28: =SUMIF($G$6:$G$14,B28,$J$6:$J$14)/$J$15 -> 0.4872138763
B30: =IF(Cover!$B$1=1,Trans!A103,Trans!B103) -> Setor | C30: =C26 -> Receita Contratada de Locação | D30: %
B31: =IF(Cover!$B$1=1,Trans!A104,Trans!B104) -> Financeiro | C31: 1453309.577 | D31: =+C31/$C$37 -> 0.08185260399
B32: =IF(Cover!$B$1=1,Trans!A105,Trans!B105) -> Construção | C32: 657970.03 | D32: 0.03705787202
B33: =IF(Cover!$B$1=1,Trans!A106,Trans!B106) -> Seguros | C33: 1482674.308 | D33: 0.08350647025
B34: =IF(Cover!$B$1=1,Trans!A107,Trans!B107) -> Serviços | C34: 77306.31039 | D34: 0.004354008885
B35: =IF(Cover!$B$1=1,Trans!A108,Trans!B108) -> Saúde | C35: 2285378.45 | D35: 0.1287159874
B36: =IF(Cover!$B$1=1,Trans!A109,Trans!B109) -> Outros | C36: 11798564.05 | D36: 0.6645130575
B37: Total | C37: =+SUM(C31:C36) -> 17755202.72 | D37: =SUM(D31:D36) -> 1
B39: =IF(Cover!$B$1=1,Trans!A50,Trans!B50) -> Timeline | C39: =IF(Cover!$B$1=1,Trans!C50,Trans!C50) -> Data | D39: ABL
B40: =IF(Cover!$B$1=1,Trans!A51,Trans!B51) -> Erico Verissimo | C40: =IF(Cover!$B$1=1,Trans!C51,Trans!D51) -> dez-07 | D40: 6104 | E40: =D40/1000 -> 6.104 | F40: =E40+F39 -> 6.104
B41: =IF(Cover!$B$1=1,Trans!A52,Trans!B52) -> Ed. Montreal | C41: =IF(Cover!$B$1=1,Trans!C52,Trans!D52) -> dez-07 | D41: 6439 | E41: 6.439 | F41: 12.543
B42: =IF(Cover!$B$1=1,Trans!A53,Trans!B53) -> Volkswagen | C42: =IF(Cover!$B$1=1,Trans!C53,Trans!D53) -> jan-08 | D42: 12560 | E42: 12.56 | F42: 25.103
B43: =IF(Cover!$B$1=1,Trans!A54,Trans!B54) -> Transatlântico | C43: =IF(Cover!$B$1=1,Trans!C54,Trans!D54) -> mar-08 | D43: 4734 | E43: 4.734 | F43: 29.837
B44: =IF(Cover!$B$1=1,Trans!A55,Trans!B55) -> Alana II | C44: =IF(Cover!$B$1=1,Trans!C55,Trans!D55) -> mar-08 | D44: 3809 | E44: 3.809 | F44: 33.646
B45: =IF(Cover!$B$1=1,Trans!A56,Trans!B56) -> CENESP | C45: =IF(Cover!$B$1=1,Trans!C56,Trans!D56) -> jul-08 | D45: =0.780381973898145*49129 -> 38339.386 | E45: 38.339386 | F45: 71.985386
B46: =IF(Cover!$B$1=1,Trans!A57,Trans!B57) -> Shopping Leblon | C46: =IF(Cover!$B$1=1,Trans!C57,Trans!D57) -> jul-08 | D46: 1248.12 | E46: 1.24812 | F46: 73.233506
B47: =IF(Cover!$B$1=1,Trans!A58,Trans!B58) -> Ed. Hicham | C47: =IF(Cover!$B$1=1,Trans!C58,Trans!D58) -> set-08 | D47: 9038.55 | E47: 9.03855 | F47: 82.272056
B48: =IF(Cover!$B$1=1,Trans!A59,Trans!B59) -> Flamengo | C48: =IF(Cover!$B$1=1,Trans!C59,Trans!D59) -> out-08 | D48: 7670 | E48: 7.67 | F48: 89.942056
B49: =IF(Cover!$B$1=1,Trans!A60,Trans!B60) -> Ed. Morumbi | C49: =IF(Cover!$B$1=1,Trans!C60,Trans!D60) -> dez-08 | D49: 10626 | E49: 10.626 | F49: 100.568056
B50: =IF(Cover!$B$1=1,Trans!A61,Trans!B61) -> Torre Almirante | C50: =IF(Cover!$B$1=1,Trans!C61,Trans!D61) -> fev-09 | D50: 24881.16 | E50: 24.88116 | F50: 125.449216
B51: =IF(Cover!$B$1=1,Trans!A62,Trans!B62) -> Eldorado Business Tower | C51: =IF(Cover!$B$1=1,Trans!C62,Trans!D62) -> abr-09 | D51: 37124.39 | E51: 37.12439 | F51: 162.573606
B52: =IF(Cover!$B$1=1,Trans!A63,Trans!B63) -> Erico Verissimo | C52: =IF(Cover!$B$1=1,Trans!C63,Trans!D63) -> set-09 | D52: -6104 | E52: -6.104 | F52: 156.469606
B53: =IF(Cover!$B$1=1,Trans!A64,Trans!B64) -> Alana II | C53: =IF(Cover!$B$1=1,Trans!C64,Trans!D64) -> out-09 | D53: -3809 | E53: -3.809 | F53: 152.660606
B54: =IF(Cover!$B$1=1,Trans!A65,Trans!B65) -> Ed. Hicham II | C54: =IF(Cover!$B$1=1,Trans!C65,Trans!D65) -> dez-09 | D54: 4080 | E54: 4.08 | F54: 156.740606
B55: =IF(Cover!$B$1=1,Trans!A66,Trans!B66) -> Brazilian Financial Center | C55: =IF(Cover!$B$1=1,Trans!C66,Trans!D66) -> mar-10 | D55: 25567.224 | E55: 25.567224 | F55: 182.30783
B56: =IF(Cover!$B$1=1,Trans!A67,Trans!B67) -> Burity | C56: =IF(Cover!$B$1=1,Trans!C67,Trans!D67) -> abr-11 | D56: 10549.54 | E56: 10.54954 | F56: 192.85737
B57: =IF(Cover!$B$1=1,Trans!A68,Trans!B68) -> Shopping Leblon | C57: =IF(Cover!$B$1=1,Trans!C68,Trans!D68) -> mai-12 | D57: -1248.12 | E57: -1.24812 | F57: 191.60925
B58: =IF(Cover!$B$1=1,Trans!A69,Trans!B69) -> Polidoro | C58: =IF(Cover!$B$1=1,Trans!C69,Trans!D69) -> dez-12 | D58: 10660 | E58: 10.66 | F58: 202.26925
B59: =IF(Cover!$B$1=1,Trans!A70,Trans!B70) -> Beneditinos | C59: =IF(Cover!$B$1=1,Trans!C70,Trans!D70) -> dez-12 | D59: 6970.93 | E59: 6.97093 | F59: 209.24018
B60: =IF(Cover!$B$1=1,Trans!A71,Trans!B71) -> SIA Sul | C60: =IF(Cover!$B$1=1,Trans!C71,Trans!D71) -> dez-12 | D60: 23637 | E60: 23.637 | F60: 232.87718
B61: =IF(Cover!$B$1=1,Trans!A72,Trans!B72) -> Eldorado Business Tower | C61: =IF(Cover!$B$1=1,Trans!C72,Trans!D72) -> jun-13 | D61: 8275.88 | E61: 8.27588 | F61: 241.15306
B62: =IF(Cover!$B$1=1,Trans!A73,Trans!B73) -> CENESP | C62: =IF(Cover!$B$1=1,Trans!C73,Trans!D73) -> jul-13 | D62: =0.780381973898145*3070.48 -> 2396.147243 | E62: 2.396147243 | F62: 243.5492072
B63: =IF(Cover!$B$1=1,Trans!A74,Trans!B74) -> Brazilian Financial Center | C63: =IF(Cover!$B$1=1,Trans!C74,Trans!D74) -> out-13 | D63: 17044.816 | E63: 17.044816 | F63: 260.5940232
B64: =IF(Cover!$B$1=1,Trans!A75,Trans!B75) -> Hicham I e II | C64: =IF(Cover!$B$1=1,Trans!C75,Trans!D75) -> set-14 | D64: -13118.55 | E64: -13.11855 | F64: 247.4754732
B65: =IF(Cover!$B$1=1,Trans!A76,Trans!B76) -> CENESP | C65: =IF(Cover!$B$1=1,Trans!C76,Trans!D76) -> dez-14 | D65: =0.780381973898145*9210.016 -> 7187.330466 | E65: 7.187330466 | F65: 254.6628037
B66: =IF(Cover!$B$1=1,Trans!A77,Trans!B77) -> CENESP | C66: =IF(Cover!$B$1=1,Trans!C77,Trans!D77) -> mar-15 | D66: =0.780381973898145*3070 -> 2395.77266 | E66: 2.39577266 | F66: 257.0585764
B67: =IF(Cover!$B$1=1,Trans!A78,Trans!B78) -> Polidoro | C67: =IF(Cover!$B$1=1,Trans!C78,Trans!D78) -> dez-15 | D67: -10660 | E67: -10.66 | F67: 246.3985764
B68: =IF(Cover!$B$1=1,Trans!A79,Trans!B79) -> Beneditinos | C68: =IF(Cover!$B$1=1,Trans!C79,Trans!D79) -> dez-15 | D68: -6970.93 | E68: -6.97093 | F68: 239.4276464
B69: =IF(Cover!$B$1=1,Trans!A80,Trans!B80) -> SIA Sul | C69: =IF(Cover!$B$1=1,Trans!C80,Trans!D80) -> dez-15 | D69: -23637 | E69: -23.637 | F69: 215.7906464
B70: =IF(Cover!$B$1=1,Trans!A81,Trans!B81) -> Transatlântico | C70: =IF(Cover!$B$1=1,Trans!C81,Trans!D81) -> set-16 | D70: -526 | E70: -0.526 | F70: 215.2646464
B71: =IF(Cover!$B$1=1,Trans!A82,Trans!B82) -> Flamengo | C71: =IF(Cover!$B$1=1,Trans!C82,Trans!D82) -> fev-19 | D71: -7670 | E71: -7.67 | F71: 207.5946464
B72: =IF(Cover!$B$1=1,Trans!A83,Trans!B83) -> Ed. Morumbi | C72: =IF(Cover!$B$1=1,Trans!C83,Trans!D83) -> fev-19 | D72: -10626 | E72: -10.626 | F72: 196.9686464
B73: =IF(Cover!$B$1=1,Trans!A84,Trans!B84) -> Torre Almirante | C73: =IF(Cover!$B$1=1,Trans!C84,Trans!D84) -> fev-19 | D73: -24881.4 | E73: -24.8814 | F73: 172.0872464
B74: =IF(Cover!$B$1=1,Trans!A85,Trans!B85) -> Eldorado Business Tower | C74: =IF(Cover!$B$1=1,Trans!C85,Trans!D85) -> fev-19 | D74: =-45400.27*0.51 -> -23154.1377 | E74: -23.1541377 | F74: 148.9331087
B75: =IF(Cover!$B$1=1,Trans!A86,Trans!B86) -> Brazilian Financial Center | C75: =IF(Cover!$B$1=1,Trans!C86,Trans!D86) -> fev-19 | D75: =-42612.04*0.75 -> -31959.03 | E75: -31.95903 | F75: 116.9740787
B76: =IF(Cover!$B$1=1,Trans!A87,Trans!B87) -> Cidade jardim | C76: =IF(Cover!$B$1=1,Trans!C87,Trans!D87) -> fev-19 | D76: 7458.17 | E76: 7.45817 | F76: 124.4322487
B77: =IF(Cover!$B$1=1,Trans!A88,Trans!B88) -> MV9 | C77: =IF(Cover!$B$1=1,Trans!C88,Trans!D88) -> fev-19 | D77: 15174.3 | E77: 15.1743 | F77: 139.6065487
B78: =IF(Cover!$B$1=1,Trans!A89,Trans!B89) -> Senado | C78: =IF(Cover!$B$1=1,Trans!C89,Trans!D89) -> fev-19 | D78: 19034.726 | E78: 19.034726 | F78: 158.6412747
B79: =IF(Cover!$B$1=1,Trans!A90,Trans!B90) -> CEO Office | C79: =IF(Cover!$B$1=1,Trans!C90,Trans!D90) -> fev-19 | D79: 4781.898 | E79: 4.781898 | F79: 163.4231727
B80: =IF(Cover!$B$1=1,Trans!A91,Trans!B91) -> Brazilian Financial Center | C80: =IF(Cover!$B$1=1,Trans!C91,Trans!D91) -> abr-19 | D80: -668.9575 | E80: -0.6689575 | F80: 162.7542152
B81: =IF(Cover!$B$1=1,Trans!A92,Trans!B92) -> Sucupira | C81: =IF(Cover!$B$1=1,Trans!C92,Trans!D92) -> nov-19 | D81: 7533.8 | E81: 7.5338 | F81: 170.2880152
B82: =IF(Cover!$B$1=1,Trans!A93,Trans!B93) -> Diamond Tower | C82: =IF(Cover!$B$1=1,Trans!C93,Trans!D93) -> jul-20 | D82: 36918.18 | E82: 36.91818 | F82: 207.2061952
B83: =IF(Cover!$B$1=1,Trans!A94,Trans!B94) -> EZ Towers | C83: =IF(Cover!$B$1=1,Trans!C94,Trans!D94) -> out-20 | D83: =16%*47001.51 -> 7520.2416 | E83: 7.5202416 | F83: 214.7264368
B84: =IF(Cover!$B$1=1,Trans!A95,Trans!B95) -> Torre Almirante | C84: =IF(Cover!$B$1=1,Trans!C95,Trans!D95) -> dez-21 | D84: =J14 -> 25087.218 | E84: 25.087218 | F84: 239.8136548
B85: Burity | C85: =IF(Cover!$B$1=1,Trans!C96,Trans!D96) -> mar-24 | D85: =-D56 -> -10549.54 | E85: =D85/1000 -> -10.54954 | F85: =E85+F84 -> 229.2641148
B86: Brazilian Financial Center | C86: =IF(Cover!$B$1=1,Trans!C97,Trans!D97) -> mar-24 | D86: =-(D55+D63+D75+D80) -> -9984.0525 | E86: -9.9840525 | F86: 219.2800623
B87: Cidade jardim | C87: =IF(Cover!$B$1=1,Trans!C98,Trans!D98) -> mar-24 | D87: =-D76 -> -7458.17 | E87: -7.45817 | F87: 211.8218923
B88: Transatlântico | C88: =IF(Cover!$B$1=1,Trans!C99,Trans!D99) -> mar-24 | D88: =-(D43+D70) -> -4208 | E88: -4.208 | F88: 207.6138923
B89: Volkswagen | C89: =IF(Cover!$B$1=1,Trans!C100,Trans!D100) -> mar-24 | D89: =-D42 -> -12560 | E89: -12.56 | F89: 195.0538923
B90: Cenesp | C90: =IF(Cover!$B$1=1,Trans!C101,Trans!D101) -> abr-24 | D90: =-(D45+D62+D65+D66) -> -50318.63636 | E90: -50.31863636 | F90: 144.7352559

Sheet Receita Locação - Lease Revenue
B1: ='Portfolio Imoveis-Real Estate'!B1 -> Fundo Imobiliário BTG Pactual Corporate Office Fund – BRCR11
B2: =IF(Cover!$B$1=1,Trans!A122,Trans!B122) -> Receita Contratada de Locação Consolidada do Fundo*
B3: =IF(Cover!$B$1=1,Trans!A123,Trans!B123) -> Portfólio do Fundo | D3: =IF(Cover!$B$1=1,Trans!D123,Trans!D124) -> dez-10 | E3: =IF(Cover!$B$1=1,Trans!E123,Trans!E124) -> jan-11 | F3: =IF(Cover!$B$1=1,Trans!F123,Trans!F124) -> fev-11 | G3: =IF(Cover!$B$1=1,Trans!G123,Trans!G124) -> mar-11 | H3: =IF(Cover!$B$1=1,Trans!H123,Trans!H124) -> abr-11 | I3: =IF(Cover!$B$1=1,Trans!I123,Trans!I124) -> mai-11 | J3: =IF(Cover!$B$1=1,Trans!J123,Trans!J124) -> jun-11 | K3: =IF(Cover!$B$1=1,Trans!K123,Trans!K124) -> jul-11 | L3: =IF(Cover!$B$1=1,Trans!L123,Trans!L124) -> ago-11 | M3: =IF(Cover!$B$1=1,Trans!M123,Trans!M124) -> set-11 | N3: =IF(Cover!$B$1=1,Trans!N123,Trans!N124) -> out-11 | O3: =IF(Cover!$B$1=1,Trans!O123,Trans!O124) -> nov-11 | P3: =IF(Cover!$B$1=1,Trans!P123,Trans!P124) -> dez-11 | Q3: =IF(Cover!$B$1=1,Trans!Q123,Trans!Q124) -> jan-12 | R3: =IF(Cover!$B$1=1,Trans!R123,Trans!R124) -> fev-12 | S3: =IF(Cover!$B$1=1,Trans!S123,Trans!S124) -> mar-12 | T3: =IF(Cover!$B$1=1,Trans!T123,Trans!T124) -> abr-12 | U3: =IF(Cover!$B$1=1,Trans!U123,Trans!U124) -> mai-12 | V3: =IF(Cover!$B$1=1,Trans!V123,Trans!V124) -> jun-12 | W3: =IF(Cover!$B$1=1,Trans!W123,Trans!W124) -> jul-12 | X3: =IF(Cover!$B$1=1,Trans!X123,Trans!X124) -> ago-12 | Y3: =IF(Cover!$B$1=1,Trans!Y123,Trans!Y124) -> set-12 | Z3: =IF(Cover!$B$1=1,Trans!Z123,Trans!Z124) -> out-12 | AA3: =IF(Cover!$B$1=1,Trans!AA123,Trans!AA124) -> nov-12 | AB3: =IF(Cover!$B$1=1,Trans!AB123,Trans!AB124) -> dez-12 | AC3: =IF(Cover!$B$1=1,Trans!AC123,Trans!AC124) -> jan-13 | AD3: =IF(Cover!$B$1=1,Trans!AD123,Trans!AD124) -> fev-13 | AE3: =IF(Cover!$B$1=1,Trans!AE123,Trans!AE124) -> mar-13 | AF3: =IF(Cover!$B$1=1,Trans!AF123,Trans!AF124) -> abr-13 | AG3: =IF(Cover!$B$1=1,Trans!AG123,Trans!AG124) -> mai-13 | AH3: =IF(Cover!$B$1=1,Trans!AH123,Trans!AH124) -> jun-13 | AI3: =IF(Cover!$B$1=1,Trans!AI123,Trans!AI124) -> jul-13 | AJ3: =IF(Cover!$B$1=1,Trans!AJ123,Trans!AJ124) -> ago-13 | AK3: =IF(Cover!$B$1=1,Trans!AK123,Trans!AK124) -> set-13 | AL3: =IF(Cover!$B$1=1,Trans!AL123,Trans!AL124) -> out-13 | AM3: =IF(Cover!$B$1=1,Trans!AM123,Trans!AM124) -> nov-13 | AN3: =IF(Cover!$B$1=1,Trans!AN123,Trans!AN124) -> dez-13 | AO3: =IF(Cover!$B$1=1,Trans!AO123,Trans!AO124) -> jan-14 | AP3: =IF(Cover!$B$1=1,Trans!AP123,Trans!AP124) -> fev-14 | AQ3: =IF(Cover!$B$1=1,Trans!AQ123,Trans!AQ124) -> mar-14 | AR3: =IF(Cover!$B$1=1,Trans!AR123,Trans!AR124) -> abr-14 | AS3: =IF(Cover!$B$1=1,Trans!AS123,Trans!AS124) -> mai-14 | AT3: =IF(Cover!$B$1=1,Trans!AT123,Trans!AT124) -> jun-14 | AU3: =IF(Cover!$B$1=1,Trans!AU123,Trans!AU124) -> jul-14 | AV3: =IF(Cover!$B$1=1,Trans!AV123,Trans!AV124) -> ago-14 | AW3: =IF(Cover!$B$1=1,Trans!AW123,Trans!AW124) -> set-14 | AX3: =IF(Cover!$B$1=1,Trans!AX123,Trans!AX124) -> out-14 | AY3: =IF(Cover!$B$1=1,Trans!AY123,Trans!AY124) -> nov-14 | AZ3: =IF(Cover!$B$1=1,Trans!AZ123,Trans!AZ124) -> dez-14 | BA3: =IF(Cover!$B$1=1,Trans!BA123,Trans!BA124) -> jan-15 | BB3: =IF(Cover!$B$1=1,Trans!BB123,Trans!BB124) -> fev-15 | BC3: =IF(Cover!$B$1=1,Trans!BC123,Trans!BC124) -> mar-15 | BD3: =IF(Cover!$B$1=1,Trans!BD123,Trans!BD124) -> abr-15 | BE3: =IF(Cover!$B$1=1,Trans!BE123,Trans!BE124) -> mai-15 | BF3: =IF(Cover!$B$1=1,Trans!BF123,Trans!BF124) -> jun-15 | BG3: =IF(Cover!$B$1=1,Trans!BG123,Trans!BG124) -> jul-15 | BH3: =IF(Cover!$B$1=1,Trans!BH123,Trans!BH124) -> ago-15 | BI3: =IF(Cover!$B$1=1,Trans!BI123,Trans!BI124) -> set-15 | BJ3: =IF(Cover!$B$1=1,Trans!BJ123,Trans!BJ124) -> out-15 | BK3: =IF(Cover!$B$1=1,Trans!BK123,Trans!BK124) -> nov-15 | BL3: =IF(Cover!$B$1=1,Trans!BL123,Trans!BL124) -> dez-15 | BM3: =IF(Cover!$B$1=1,Trans!BM123,Trans!BM124) -> jan-16 | BN3: =IF(Cover!$B$1=1,Trans!BN123,Trans!BN124) -> fev-16 | BO3: mar-16 | BP3: abr-16 | BQ3: =IF(Cover!$B$1=1,Trans!BQ123,Trans!BQ124) -> mai-16 | BR3: =IF(Cover!$B$1=1,Trans!BR123,Trans!BR124) -> jun-16 | BS3: =IF(Cover!$B$1=1,Trans!BS123,Trans!BS124) -> jul-16 | BT3: ago-16 | BU3: set-16 | BV3: out-16 | BW3: nov-16 | BX3: dez-16 | BY3: jan-17 | BZ3: fev-17 | CA3: mar-17 | CB3: abr-17 | CC3: mai-17 | CD3: jun-17 | CE3: jul-17 | CF3: ago-17 | CG3: =IF(Cover!$B$1=1,Trans!CG123,Trans!CG124) -> set-17 | CH3: out-17 | CI3: nov-17 | CJ3: dez-17 | CK3: jan-18 | CL3: fev-18 | CM3: mar-18 | CN3: abr-18 | CO3: mai-18 | CP3: jun-18 | CQ3: jul-18 | CR3: ago-18 | CS3: set-18 | CT3: out-18 | CU3: nov-18 | CV3: dez-18 | CW3: jan-19 | CX3: fev-19 | CY3: mar-19 | CZ3: abr-19 | DA3: mai-19 | DB3: =IF(Cover!$B$1=1,Trans!DB123,Trans!DB124) -> jun-19 | DC3: jul-19 | DD3: ago-19 | DE3: set-19 | DF3: out-19 | DG3: nov-19 | DH3: =IF(Cover!$B$1=1,Trans!DH123,Trans!DH124) -> dez-19 | DI3: jan-20 | DJ3: fev-20 | DK3: mar-20 | DL3: abr-20 | DM3: mai-20 | DN3: jun-20 | DO3: jul-20 | DP3: ago-20 | DQ3: set-20 | DR3: out-20 | DS3: nov-20 | DT3: dez-20 | DU3: jan-21 | DV3: fev-21 | DW3: mar-21 | DX3: abr-21 | DY3: mai-21 | DZ3: jun-21 | EA3: jul-21 | EB3: ago-21 | EC3: =IF(Cover!$B$1=1,Trans!EC123,Trans!EC124) -> set-21 | ED3: out-21 | EE3: nov-21 | EF3: dez-21 | EG3: jan-22 | EH3: fev-22 | EI3: mar-22 | EJ3: abr-22 | EK3: mai-22 | EL3: jun-22 | EM3: jul-22 | EN3: ago-22 | EO3: set-22 | EP3: out-22 | EQ3: =IF(Cover!$B$1=1,Trans!EQ123,Trans!EQ124) -> nov-22 | ER3: dez-22 | ES3: jan-23 | ET3: fev-23 | EU3: mar-23 | EV3: =IF(Cover!$B$1=1,Trans!EV123,Trans!EV124) -> abr-23 | EW3: mai-23 | EX3: jun-23 | EY3: jul-23 | EZ3: ago-23 | FA3: set-23 | FB3: out-23 | FC3: nov-23 | FD3: dez-23 | FE3: jan-24 | FF3: fev-24 | FG3: mar-24 | FH3: abr-24 | FI3: mai-24 | FJ3: jun-24 | FK3: jul-24 | FL3: ago-24 | FM3: set-24 | FN3: out-24 | FO3: =IF(Cover!$B$1=1,Trans!FO123,Trans!FO124) -> nov-24 | FP3: dez-24 | FQ3: jan-25 | FR3: fev-25 | FS3: mar-25 | FT3: abr-25 | FU3: mai-25 | FV3: jun-25 | FW3: jul-25 | FX3: ago-25 | FY3: set-25 | FZ3: out-25 | GA3: =IF(Cover!$B$1=1,Trans!GA123,Trans!GA124) -> nov-25 | GB3: =IF(Cover!$B$1=1,Trans!GB123,Trans!GB124) -> dez-25 | GC3: jan-26 | GD3: fev-26 | GE3: mar-26 | GF3: abr-26 | GG3: mai-26 | GH3: =IF(Cover!$B$1=1,Trans!GH123,Trans!GH124) -> jun-26
B4: =IF(Cover!$B$1=1,Trans!A145,Trans!B145) -> Beneditinos | C4: =Trans!C145 -> B | D4: 0 | E4: 0 | F4: 0 | G4: 0 | H4: 0 | I4: 0 | J4: 0 | K4: 0 | L4: 0 | M4: 0 | N4: 0 | O4: 0 | P4: 0 | Q4: 0 | R4: 0 | S4: 0 | T4: 0 | U4: 0 | V4: 0 | W4: 0 | X4: 0 | Y4: 0 | Z4: 0 | AA4: 0 | AB4: 112199.12 | AC4: 112199.12 | AD4: 112199.12 | AE4: 350000 | AF4: 350000 | AG4: 350000 | AH4: 350000 | AI4: 350000 | AJ4: 350000 | AK4: 350000 | AL4: 350000 | AM4: 350000 | AN4: 350000 | AO4: 350000 | AP4: 350000 | AQ4: 370156.8 | AR4: 370159.8 | AS4: 370159.8 | AT4: 370159.8 | AU4: 370186.95 | AV4: 370186.95 | AW4: 370186.95 | AX4: 370186.95 | AY4: 370186.95 | AZ4: 370186.95 | BA4: 370186.95 | BB4: 370186.95 | BC4: 384479.39 | BD4: 384479.39 | BE4: 384479.39 | BF4: 384479.39 | BG4: 384479 | BH4: 384479.39 | BI4: 384479.39 | BJ4: 384479.39 | BK4: 384479 | BL4: 384479.39 | BM4: 0 | BN4: 0 | BO4: 0 | BP4: 0 | BQ4: 0 | BR4: 0 | BS4: 0 | BT4: 0 | BU4: 0 | BV4: 0 | BW4: 0 | BX4: 0 | BY4: 0 | BZ4: 0 | CA4: 0 | CB4: 0 | CC4: 0 | CD4: 0 | CE4: 0 | CF4: 0 | CG4: 0 | CH4: 0 | CI4: 0 | CJ4: 0 | CK4: 0 | CL4: 0 | CM4: 0 | CN4: 0 | CO4: 0 | CP4: 0 | CQ4: 0 | CR4: 0 | CS4: 0 | CT4: 0 | CU4: 0 | CV4: 0 | CW4: 0 | CX4: 0 | CY4: 0 | CZ4: 0 | DA4: 0 | DB4: 0 | DC4: 0 | DD4: 0 | DE4: 0 | DF4: 0 | DG4: 0 | DH4: 0 | DI4: 0 | DJ4: 0 | DK4: 0 | DL4: 0 | DM4: 0 | DN4: 0 | DO4: 0 | DP4: 0 | DQ4: 0 | DR4: 0 | DS4: 0 | DT4: 0 | DU4: 0 | DV4: 0 | DW4: 0 | DX4: 0 | DY4: 0 | DZ4: 0 | EA4: 0 | EB4: 0 | EC4: 0 | ED4: 0 | EE4: 0 | EF4: 0 | EG4: 0 | EH4: 0 | EI4: 0 | EJ4: 0 | EK4: 0 | EL4: 0 | EM4: 0 | EN4: 0 | EO4: 0 | EP4: 0 | EQ4: 0 | ER4: 0 | ES4: 0 | ET4: 0 | EU4: 0 | EV4: 0 | EW4: 0 | EX4: 0 | EY4: 0 | EZ4: 0 | FA4: 0 | FB4: 0 | FC4: 0 | FD4: 0 | FE4: 0 | FF4: 0 | FG4: 0 | FH4: 0 | FI4: 0 | FJ4: 0 | FK4: 0 | FL4: 0 | FM4: 0 | FN4: 0 | FO4: 0 | FP4: 0 | FQ4: 0 | FR4: 0 | FS4: 0 | FT4: 0 | FU4: 0 | FV4: 0 | FW4: 0 | FX4: 0 | FY4: 0 | FZ4: 0 | GA4: 0 | GB4: 0 | GC4: 0 | GD4: 0 | GE4: 0 | GF4: 0 | GG4: 0 | GH4: 0
B5: =IF(Cover!$B$1=1,Trans!A124,Trans!B124) -> Brazilian Financial Center | C5: =Trans!C124 -> A | D5: 2020682 | E5: 2020682.267 | F5: 2020682.267 | G5: 2069911.989 | H5: 2069911.989 | I5: 2069911.99 | J5: 2224829.342 | K5: 2224829.342 | L5: 2224829.342 | M5: 2224828.94 | N5: 2224828.94 | O5: 2224828.94 | P5: 2224828.94 | Q5: 2224829.342 | R5: 2224829.342 | S5: 2224828.94 | T5: 2224828.94 | U5: 2224828.94 | V5: 2414815.54 | W5: 2414815.54 | X5: 2414815.54 | Y5: 2414815.54 | Z5: 2414815.54 | AA5: 2590065.883 | AB5: 2541743.508 | AC5: 2541743.508 | AD5: 2541743.508 | AE5: 2583333.058 | AF5: 2583333.058 | AG5: 2590571.738 | AH5: 2847196.634 | AI5: 2847196.634 | AJ5: 2847196.634 | AK5: 2847196.634 | AL5: 2868291.374 | AM5: 4780485.657 | AN5: 4780485.657 | AO5: 4780485.657 | AP5: 4780485.657 | AQ5: 4832592.477 | AR5: 4181049.72 | AS5: 4181049.827 | AT5: 4433687.95 | AU5: 4433687.95 | AV5: 4433687.95 | AW5: 4433687.95 | AX5: 4433687.95 | AY5: 4433687.95 | AZ5: 4428953 | BA5: 4428953 | BB5: 4199855.73 | BC5: 3522594.76 | BD5: 3522594.76 | BE5: 3522594.76 | BF5: 3339622.2 | BG5: 4795858 | BH5: 4795857.85 | BI5: 4795857.85 | BJ5: 4795857.85 | BK5: 4795858 | BL5: 4895468.29 | BM5: 4895468.29 | BN5: 4895468 | BO5: 4635570.88 | BP5: 4635570.88 | BQ5: 4635571 | BR5: 4798352 | BS5: 4798352.47 | BT5: 4999771.68 | BU5: 5063560.5 | BV5: 5063560.5 | BW5: 5063560.5 | BX5: 5137200.65 | BY5: 5176603.727 | BZ5: 5148929.857 | CA5: 4953345.92 | CB5: 4953345.92 | CC5: 4953345.92 | CD5: 4855679.7 | CE5: 4855679.7 | CF5: 4811675.57 | CG5: 4590609 | CH5: 4590609.26 | CI5: 4590609.26 | CJ5: 4379781.46 | CK5: 4475356.853 | CL5: 4431471.95 | CM5: 4431471.95 | CN5: 4431471.95 | CO5: 4431471.95 | CP5: 4431471.95 | CQ5: 4431471.95 | CR5: 4431471.95 | CS5: 4431470.65 | CT5: 4431470.65 | CU5: 4517533.369 | CV5: 4538923.299 | CW5: 4650934.01 | CX5: 1179893.051 | CY5: 711626.3332 | CZ5: 711626.3332 | DA5: 553299.8232 | DB5: 789916.3695 | DC5: 833040.5607 | DD5: 833040.5607 | DE5: 833040.5607 | DF5: 833040.5607 | DG5: 840000.9907 | DH5: 843189.2307 | DI5: 843189.2307 | DJ5: 859236.6618 | DK5: 859812.0263 | DL5: 987416.65 | DM5: 987416.65 | DN5: 1005625.124 | DO5: 1005625.124 | DP5: 1005625.054 | DQ5: 1005625.054 | DR5: 1005625.054 | DS5: 1053311.634 | DT5: 1068956.691 | DU5: 1068956.691 | DV5: 1143121.136 | DW5: 1143121.136 | DX5: 1182802.331 | DY5: 1182802.331 | DZ5: 1287638.246 | EA5: 1293160.1 | EB5: 1209568.05 | EC5: 1264000.08 | ED5: 1029546.82 | EE5: 1268643.831 | EF5: 1203794.877 | EG5: 1201232.06 | EH5: 1238869.03 | EI5: 1238869.03 | EJ5: 1238869.03 | EK5: 1238869.03 | EL5: 1251482.75 | EM5: 1248794.218 | EN5: 1248794.218 | EO5: 1276189.328 | EP5: 1276189.328 | EQ5: 1301782.648 | ER5: 1301782.648 | ES5: 1301782.648 | ET5: 1316944.368 | EU5: 1316944.368 | EV5: 1316944.368 | EW5: 1316944.368 | EX5: 1321514.8 | EY5: 1322217.95 | EZ5: 1322217.95 | FA5: 1322217.95 | FB5: 1322217.95 | FC5: 1322217.95 | FD5: 1322217.95 | FE5: 1342513.24 | FF5: 1342513.24 | FG5: 0 | FH5: 0 | FI5: 0 | FJ5: 0 | FK5: 0 | FL5: 0 | FM5: 0 | FN5: 0 | FO5: 0 | FP5: 0 | FQ5: 0 | FR5: 0 | FS5: 0 | FT5: 0 | FU5: 0 | FV5: 0 | FW5: 0 | FX5: 0 | FY5: 0 | FZ5: 0 | GA5: 0 | GB5: 0 | GC5: 0 | GD5: 0 | GE5: 0 | GF5: 0 | GG5: 0 | GH5: 0
B6: =IF(Cover!$B$1=1,Trans!A125,Trans!B125) -> Burity | C6: =Trans!C125 -> B | D6: 0 | E6: 0 | F6: 0 | G6: 0 | H6: 0 | I6: 481456.16 | J6: 481456.16 | K6: 481456.16 | L6: 481456.16 | M6: 481456.16 | N6: 517367.12 | O6: 517367.12 | P6: 517367.12 | Q6: 481456.16 | R6: 481456.16 | S6: 481456.16 | T6: 517367.12 | U6: 517367.12 | V6: 517367.12 | W6: 517367.12 | X6: 517367.12 | Y6: 517367.12 | Z6: 559099.58 | AA6: 559099.58 | AB6: 559099.58 | AC6: 559099.58 | AD6: 559099.58 | AE6: 559099.58 | AF6: 559099.58 | AG6: 559099.58 | AH6: 559099.58 | AI6: 559099.58 | AJ6: 559099.58 | AK6: 559099.58 | AL6: 583679.65 | AM6: 583679.65 | AN6: 583679.65 | AO6: 583679.65 | AP6: 583679.65 | AQ6: 583679.65 | AR6: 583679.65 | AS6: 583679.65 | AT6: 583679.65 | AU6: 583679.65 | AV6: 583679.65 | AW6: 583679.65 | AX6: 604368.86 | AY6: 604368.86 | AZ6: 604368.86 | BA6: 604368.86 | BB6: 604368.86 | BC6: 604368.86 | BD6: 604368.86 | BE6: 575211.31 | BF6: 553850.86 | BG6: 553851 | BH6: 553850.86 | BI6: 381762.98 | BJ6: 381762.98 | BK6: 381763 | BL6: 381762.98 | BM6: 381762.98 | BN6: 381763 | BO6: 420355.53 | BP6: 420355.53 | BQ6: 420356 | BR6: 427250 | BS6: 427249.61 | BT6: 427249.61 | BU6: 427249.61 | BV6: 427249.61 | BW6: 427249.61 | BX6: 553116.18 | BY6: 553116.18 | BZ6: 553116.18 | CA6: 572372.79 | CB6: 572372.79 | CC6: 572372.79 | CD6: 572372.79 | CE6: 572372.79 | CF6: 572372.79 | CG6: 572373 | CH6: 572372.79 | CI6: 572372.79 | CJ6: 592371.33 | CK6: 592371.33 | CL6: 592371.33 | CM6: 592371.33 | CN6: 592371.33 | CO6: 592371.33 | CP6: 592371.33 | CQ6: 592371.33 | CR6: 592371.33 | CS6: 592371.33 | CT6: 592371.33 | CU6: 608626.18 | CV6: 612916.74 | CW6: 612916.74 | CX6: 612916.74 | CY6: 643135.5716 | CZ6: 643548.41 | DA6: 643548.41 | DB6: 643548.41 | DC6: 643548.41 | DD6: 643548.41 | DE6: 643548.41 | DF6: 643548.41 | DG6: 648806.97 | DH6: 650737.65 | DI6: 650737.65 | DJ6: 650737.65 | DK6: 679304.92 | DL6: 679304.92 | DM6: 679304.92 | DN6: 679304.92 | DO6: 679304.92 | DP6: 679304.92 | DQ6: 679304.92 | DR6: 679304.92 | DS6: 715331.6862 | DT6: 733322.5062 | DU6: 733322.5062 | DV6: 733322.5062 | DW6: 858866.5762 | DX6: 794073.7453 | DY6: 794073.7453 | DZ6: 794073.7453 | EA6: 794073.7453 | EB6: 794073.7453 | EC6: 794073.7453 | ED6: 794073.7453 | EE6: 839295.9491 | EF6: 855635.6856 | EG6: 855635.6856 | EH6: 855635.6856 | EI6: 855635.6856 | EJ6: 909649.0356 | EK6: 909649.0356 | EL6: 909649.0356 | EM6: 909649.0356 | EN6: 838622.7853 | EO6: 817906.7956 | EP6: 817906.7956 | EQ6: 834416.3856 | ER6: 838792.14 | ES6: 807187.35 | ET6: 807187.35 | EU6: 807187.35 | EV6: 828521.09 | EW6: 828521.09 | EX6: 828521.09 | EY6: 828521.09 | EZ6: 828521.09 | FA6: 828521.09 | FB6: 828521.09 | FC6: 828521.09 | FD6: 828521.09 | FE6: 828521.09 | FF6: 828521.09 | FG6: 0 | FH6: 0 | FI6: 0 | FJ6: 0 | FK6: 0 | FL6: 0 | FM6: 0 | FN6: 0 | FO6: 0 | FP6: 0 | FQ6: 0 | FR6: 0 | FS6: 0 | FT6: 0 | FU6: 0 | FV6: 0 | FW6: 0 | FX6: 0 | FY6: 0 | FZ6: 0 | GA6: 0 | GB6: 0 | GC6: 0 | GD6: 0 | GE6: 0 | GF6: 0 | GG6: 0 | GH6: 0
B7: =IF(Cover!$B$1=1,Trans!A126,Trans!B126) -> Ed. Morumbi | C7: =Trans!C126 -> A | D7: 655255 | E7: 655224.77 | F7: 655224.77 | G7: 724381.7767 | H7: 724381.7767 | I7: 724381.78 | J7: 724381.77 | K7: 724381.77 | L7: 743441.3867 | M7: 743441.39 | N7: 743441.39 | O7: 743441.39 | P7: 743441.39 | Q7: 724381.77 | R7: 743441.3867 | S7: 743441.39 | T7: 743441.39 | U7: 743441.39 | V7: 772181.47 | W7: 772181.47 | X7: 772181.47 | Y7: 772181.47 | Z7: 772181.47 | AA7: 772181.47 | AB7: 772181.47 | AC7: 772181.47 | AD7: 772181.47 | AE7: 836232.71 | AF7: 836232.71 | AG7: 836232.71 | AH7: 836232.71 | AI7: 836232.71 | AJ7: 836232.71 | AK7: 836232.71 | AL7: 836232.71 | AM7: 836232.71 | AN7: 836232.71 | AO7: 836232.71 | AP7: 836232.71 | AQ7: 884392.06 | AR7: 884392.06 | AS7: 884392.06 | AT7: 884392.06 | AU7: 884392.06 | AV7: 884392.06 | AW7: 884392.06 | AX7: 884392.06 | AY7: 884392.06 | AZ7: 884392.06 | BA7: 884392.06 | BB7: 884392.06 | BC7: 884392.06 | BD7: 884392.06 | BE7: 884392.06 | BF7: 884392.06 | BG7: 884392 | BH7: 884392.06 | BI7: 884392.06 | BJ7: 884392.06 | BK7: 884392 | BL7: 884392.06 | BM7: 884392.06 | BN7: 884392 | BO7: 0 | BP7: 0 | BQ7: 0 | BR7: 0 | BS7: 0 | BT7: 0 | BU7: 164838.1 | BV7: 164838.1 | BW7: 164838.1 | BX7: 164838.1 | BY7: 164838.1 | BZ7: 164838.1 | CA7: 164838.1 | CB7: 164838.1 | CC7: 164838.1 | CD7: 164838.1 | CE7: 164838.1 | CF7: 164838.1 | CG7: 164838 | CH7: 164838.1 | CI7: 164838.1 | CJ7: 317902.05 | CK7: 317902.05 | CL7: 317902.05 | CM7: 317902.05 | CN7: 317902.05 | CO7: 317902.05 | CP7: 317902.05 | CQ7: 400321.1 | CR7: 418761.1 | CS7: 515836.3934 | CT7: 515836.3934 | CU7: 539972.9434 | CV7: 539972.9434 | CW7: 539972.9434 | CX7: 0 | CY7: 0 | CZ7: 0 | DA7: 0 | DB7: 0 | DC7: 0 | DD7: 0 | DE7: 0 | DF7: 0 | DG7: 0 | DH7: 0 | DI7: 0 | DJ7: 0 | DK7: 0 | DL7: 0 | DM7: 0 | DN7: 0 | DO7: 0 | DP7: 0 | DQ7: 0 | DR7: 0 | DS7: 0 | DT7: 0 | DU7: 0 | DV7: 0 | DW7: 0 | DX7: 0 | DY7: 0 | DZ7: 0 | EA7: 0 | EB7: 0 | EC7: 0 | ED7: 0 | EE7: 0 | EF7: 0 | EG7: 0 | EH7: 0 | EI7: 0 | EJ7: 0 | EK7: 0 | EL7: 0 | EM7: 0 | EN7: 0 | EO7: 0 | EP7: 0 | EQ7: 0 | ER7: 0 | ES7: 0 | ET7: 0 | EU7: 0 | EV7: 0 | EW7: 0 | EX7: 0 | EY7: 0 | EZ7: 0 | FA7: 0 | FB7: 0 | FC7: 0 | FD7: 0 | FE7: 0 | FF7: 0 | FG7: 0 | FH7: 0 | FI7: 0 | FJ7: 0 | FK7: 0 | FL7: 0 | FM7: 0 | FN7: 0 | FO7: 0 | FP7: 0 | FQ7: 0 | FR7: 0 | FS7: 0 | FT7: 0 | FU7: 0 | FV7: 0 | FW7: 0 | FX7: 0 | FY7: 0 | FZ7: 0 | GA7: 0 | GB7: 0 | GC7: 0 | GD7: 0 | GE7: 0 | GF7: 0 | GG7: 0 | GH7: 0
B8: =IF(Cover!$B$1=1,Trans!A127,Trans!B127) -> CENESP | C8: =Trans!C127 -> B | D8: 1122260 | E8: =1283014.57+25884.17 -> 1308898.74 | F8: =1300318.77+27157.43 -> 1327476.2 | G8: =1519727.01+28907.43 -> 1548634.44 | H8: =1564343.12+30307.43 -> 1594650.55 | I8: =1564343.12+30307.43 -> 1594650.55 | J8: =1578922.45+32107.43 -> 1611029.88 | K8: =1692445.04+32107.43 -> 1724552.47 | L8: =1731136.07 -> 1731136.07 | M8: =(1699028.64+32107.43) -> 1731136.07 | N8: =(1702114.96+32107.43) -> 1734222.39 | O8: =(1713425.39+33134.98) -> 1746560.37 | P8: =(1750702.56+33134.98) -> 1783837.54 | Q8: 1724552.47 | R8: 1731136.07 | S8: 1731136.07 | T8: 1734222.39 | U8: 1746560.37 | V8: =(1688356.68+43529.86) -> 1731886.54 | W8: 1747731.85 | X8: 1754000.61 | Y8: 1753907.75 | Z8: 1780544.77 | AA8: 1836719.23 | AB8: 1848484.68 | AC8: =(1937581.39+44719.17) -> 1982300.56 | AD8: =(1945129.39+46506.41) -> 1991635.8 | AE8: 2027145.2 | AF8: =1980368.53+46776.67 -> 2027145.2 | AG8: =1980368.53+46776.67 -> 2027145.2 | AH8: =1984516.03+46897.33 -> 2031413.36 | AI8: =2122595.8+46893.33 -> 2169489.13 | AJ8: 2251437.42 | AK8: 2278345.55 | AL8: 2215056.82 | AM8: 2237147.31 | AN8: 2237147.31 | AO8: =2210205.67+47788.68 -> 2257994.35 | AP8: =2218214.81+49168.18 -> 2267382.99 | AQ8: =2236810.74+49039.16 -> 2285849.9 | AR8: 2270058.15 | AS8: 2278109.67 | AT8: 2283792.44 | AU8: 2299644.96 | AV8: 2222879.82 | AW8: 2222879.82 | AX8: 2190701.86 | AY8: 2200076.86 | AZ8: 2358830.83 | BA8: 2682609.8 | BB8: 2463683.55 | BC8: 2447501.25 | BD8: 2585831.29 | BE8: 2585921.29 | BF8: 2717172.89 | BG8: 2703883 | BH8: 2645296.25 | BI8: 2646783.65 | BJ8: 2640331 | BK8: 2380432 | BL8: 2424170.23 | BM8: 2398353.675 | BN8: 2398354 | BO8: 2237435.46 | BP8: 2168131.14 | BQ8: 1956837 | BR8: 1983414 | BS8: 1976162.45 | BT8: 1938846.21 | BU8: 1952387.249 | BV8: 1941776.858 | BW8: 1957338.762 | BX8: 1816651.025 | BY8: 1835489.495 | BZ8: 1835489.495 | CA8: 1832957.894 | CB8: 1843389.382 | CC8: 1847820.345 | CD8: 1846820.345 | CE8: 1846820.345 | CF8: 1849474 | CG8: 1782914 | CH8: 1684279.12 | CI8: 1684279.12 | CJ8: 1684279.12 | CK8: 1665365.549 | CL8: 1665365.549 | CM8: 1668967.921 | CN8: 1532275.537 | CO8: 1360428.036 | CP8: 1360428.036 | CQ8: 1237654.286 | CR8: 1242163.01 | CS8: 1254117.09 | CT8: 1252725.066 | CU8: 1262734.198 | CV8: 1262729.266 | CW8: 1282306.946 | CX8: 1243127.336 | CY8: 1243463.556 | CZ8: 1146616.669 | DA8: 1146670.546 | DB8: 1382770.276 | DC8: 1663842.116 | DD8: 1667226.111 | DE8: 1667420.195 | DF8: 1668557.745 | DG8: 1638505.293 | DH8: 1638505.273 | DI8: 1655325.133 | DJ8: 1657341.661 | DK8: 1671136.39 | DL8: 1588767.786 | DM8: 1588813.061 | DN8: 1621738.201 | DO8: 1607845.474 | DP8: 1612807.613 | DQ8: 1557313.074 | DR8: 1454881.998 | DS8: 1391242.489 | DT8: 1391242.189 | DU8: 1091451.359 | DV8: 1057421.382 | DW8: 1064732.011 | DX8: 994010.3253 | DY8: 959745.81 | DZ8: 978612.71 | EA8: 1000165.88 | EB8: 1018229.992 | EC8: 1015375.481 | ED8: 957015.38 | EE8: 978596.21 | EF8: 978596.21 | EG8: 763678.842 | EH8: 783968.7733 | EI8: 783968.7733 | EJ8: 794798.7954 | EK8: 805568.8022 | EL8: 854044.9286 | EM8: 854044.9286 | EN8: 866837.1435 | EO8: 866837.1435 | EP8: 866837.1435 | EQ8: 866837.1435 | ER8: 866837.1435 | ES8: 830585.7553 | ET8: 831757.3974 | EU8: 831757.3974 | EV8: 836718.6592 | EW8: 840884.4592 | EX8: 840884.4592 | EY8: 840884.4592 | EZ8: 836718.6338 | FA8: 836718.6338 | FB8: 836718.6338 | FC8: 836718.6338 | FD8: 836718.6338 | FE8: 838550.4595 | FF8: 839517.6878 | FG8: 839517.6878 | FH8: 0 | FI8: 0 | FJ8: 0 | FK8: 0 | FL8: 0 | FM8: 0 | FN8: 0 | FO8: 0 | FP8: 0 | FQ8: 0 | FR8: 0 | FS8: 0 | FT8: 0 | FU8: 0 | FV8: 0 | FW8: 0 | FX8: 0 | FY8: 0 | FZ8: 0 | GA8: 0 | GB8: 0 | GC8: 0 | GD8: 0 | GE8: 0 | GF8: 0 | GG8: 0 | GH8: 0
B9: =IF(Cover!$B$1=1,Trans!A128,Trans!B128) -> CEO Office | C9: =Trans!C128 -> AAA | D9: 0 | E9: 0 | F9: 0 | G9: 0 | H9: 0 | I9: 0 | J9: 0 | K9: 0 | L9: 0 | M9: 0 | N9: 0 | O9: 0 | P9: 0 | Q9: 0 | R9: 0 | S9: 0 | T9: 0 | U9: 0 | V9: 0 | W9: 0 | X9: 0 | Y9: 0 | Z9: 0 | AA9: 0 | AB9: 0 | AC9: 0 | AD9: 0 | AE9: 0 | AF9: 0 | AG9: 0 | AH9: 0 | AI9: 0 | AJ9: 0 | AK9: 0 | AL9: 0 | AM9: 0 | AN9: 0 | AO9: 0 | AP9: 0 | AQ9: 0 | AR9: 0 | AS9: 0 | AT9: 0 | AU9: 0 | AV9: 0 | AW9: 0 | AX9: 0 | AY9: 0 | AZ9: 0 | BA9: 0 | BB9: 0 | BC9: 0 | BD9: 0 | BE9: 0 | BF9: 0 | BG9: 0 | BH9: 0 | BI9: 0 | BJ9: 0 | BK9: 0 | BL9: 0 | BM9: 0 | BN9: 0 | BO9: 0 | BP9: 0 | BQ9: 0 | BR9: 0 | BS9: 0 | BT9: 0 | BU9: 0 | BV9: 0 | BW9: 0 | BX9: 0 | BY9: 0 | BZ9: 0 | CA9: 0 | CB9: 0 | CC9: 0 | CD9: 0 | CE9: 0 | CF9: 0 | CG9: 0 | CH9: 0 | CI9: 0 | CJ9: 0 | CK9: 0 | CL9: 0 | CM9: 0 | CN9: 0 | CO9: 0 | CP9: 0 | CQ9: 0 | CR9: 0 | CS9: 0 | CT9: 0 | CU9: 0 | CV9: 0 | CW9: 0 | CX9: 443489.44 | CY9: 443489.44 | CZ9: 443489.44 | DA9: 443489.44 | DB9: 443489.44 | DC9: 443489.44 | DD9: 457778.7605 | DE9: 457778.7605 | DF9: 457778.7605 | DG9: 457778.7605 | DH9: 457778.7605 | DI9: 457778.7605 | DJ9: 457778.67 | DK9: 457782.58 | DL9: 457782.58 | DM9: 457782.58 | DN9: 457782.58 | DO9: 457782.58 | DP9: 468333.27 | DQ9: 406461.33 | DR9: 406461.33 | DS9: 406461.33 | DT9: 406461.33 | DU9: 406461.33 | DV9: 406461.33 | DW9: 406461.33 | DX9: 406461.33 | DY9: 406461.33 | DZ9: 406461.33 | EA9: 406461.33 | EB9: 443021.8066 | EC9: 443021.8066 | ED9: 443021.8066 | EE9: 443021.8066 | EF9: 443021.8066 | EG9: 443021.8066 | EH9: 443021.8066 | EI9: 443021.8066 | EJ9: 443021.8066 | EK9: 443021.8066 | EL9: 443021.8066 | EM9: 443021.8066 | EN9: 487631.459 | EO9: 487631.459 | EP9: 487631.459 | EQ9: 487631.459 | ER9: 487631.459 | ES9: 492355.59 | ET9: 492355.59 | EU9: 492355.59 | EV9: 492355.59 | EW9: 492355.59 | EX9: 492355.59 | EY9: 492355.59 | EZ9: 382551.84 | FA9: 382551.84 | FB9: 382551.84 | FC9: 382551.84 | FD9: 382551.84 | FE9: 382551.84 | FF9: 382551.84 | FG9: 382551.84 | FH9: 382551.84 | FI9: 382551.84 | FJ9: 382551.84 | FK9: 382551.84 | FL9: 382551.84 | FM9: 382551.84 | FN9: 382551.84 | FO9: 382551.84 | FP9: 382551.84 | FQ9: 382551.84 | FR9: 382551.84 | FS9: 382551.84 | FT9: 382551.84 | FU9: 382551.84 | FV9: 382551.84 | FW9: 382551.84 | FX9: 402541.0153 | FY9: 402541.0153 | FZ9: 402541.0153 | GA9: 402541 | GB9: 402541 | GC9: 402541 | GD9: 402541 | GE9: 402541 | GF9: 402541.0153 | GG9: 402541.0154 | GH9: =+'Portfolio Imoveis-Real Estate'!$K$6 -> 402541.0153
B10: =IF(Cover!$B$1=1,Trans!A129,Trans!B129) -> Cidade jardim | C10: =Trans!C129 -> AAA | D10: 0 | E10: 0 | F10: 0 | G10: 0 | H10: 0 | I10: 0 | J10: 0 | K10: 0 | L10: 0 | M10: 0 | N10: 0 | O10: 0 | P10: 0 | Q10: 0 | R10: 0 | S10: 0 | T10: 0 | U10: 0 | V10: 0 | W10: 0 | X10: 0 | Y10: 0 | Z10: 0 | AA10: 0 | AB10: 0 | AC10: 0 | AD10: 0 | AE10: 0 | AF10: 0 | AG10: 0 | AH10: 0 | AI10: 0 | AJ10: 0 | AK10: 0 | AL10: 0 | AM10: 0 | AN10: 0 | AO10: 0 | AP10: 0 | AQ10: 0 | AR10: 0 | AS10: 0 | AT10: 0 | AU10: 0 | AV10: 0 | AW10: 0 | AX10: 0 | AY10: 0 | AZ10: 0 | BA10: 0 | BB10: 0 | BC10: 0 | BD10: 0 | BE10: 0 | BF10: 0 | BG10: 0 | BH10: 0 | BI10: 0 | BJ10: 0 | BK10: 0 | BL10: 0 | BM10: 0 | BN10: 0 | BO10: 0 | BP10: 0 | BQ10: 0 | BR10: 0 | BS10: 0 | BT10: 0 | BU10: 0 | BV10: 0 | BW10: 0 | BX10: 0 | BY10: 0 | BZ10: 0 | CA10: 0 | CB10: 0 | CC10: 0 | CD10: 0 | CE10: 0 | CF10: 0 | CG10: 0 | CH10: 0 | CI10: 0 | CJ10: 0 | CK10: 0 | CL10: 0 | CM10: 0 | CN10: 0 | CO10: 0 | CP10: 0 | CQ10: 0 | CR10: 0 | CS10: 0 | CT10: 0 | CU10: 0 | CV10: 0 | CW10: 0 | CX10: 1111206.58 | CY10: 1125017.73 | CZ10: 1125017.73 | DA10: 1125017.73 | DB10: 1125017.73 | DC10: 1125017.73 | DD10: 1140364.39 | DE10: 1140364.39 | DF10: 1140364.39 | DG10: 1140364.39 | DH10: 1153230.29 | DI10: 1174833.93 | DJ10: 1193577.317 | DK10: 1193577.317 | DL10: 1193577.317 | DM10: 1193577.317 | DN10: 1203865.657 | DO10: 1203865.657 | DP10: 1227546.657 | DQ10: 1227546.657 | DR10: 1227546.657 | DS10: 1227546.657 | DT10: 1312692.22 | DU10: 1341634.61 | DV10: 1371259.15 | DW10: 1371258.67 | DX10: 1371258.67 | DY10: 1371258.67 | DZ10: 1371258.67 | EA10: 1371258.67 | EB10: 1430550.81 | EC10: 1430550.81 | ED10: 1430550.81 | EE10: 1430550.81 | EF10: 1476981.72 | EG10: 1492478.29 | EH10: 1541013.15 | EI10: 1541013.15 | EJ10: 1541013.15 | EK10: 1541013.15 | EL10: 1541013.15 | EM10: 1541013.15 | EN10: 1575085.77 | EO10: 1654878.66 | EP10: 1654878.66 | EQ10: 1654878.66 | ER10: 1701505.615 | ES10: 1711312.685 | ET10: 1711312.57 | EU10: 1732922.68 | EV10: 1732922.68 | EW10: 1732922.68 | EX10: 1732922.68 | EY10: 1732922.68 | EZ10: 1747792.349 | FA10: 1747792.349 | FB10: 1747792.349 | FC10: 1747792.349 | FD10: 1812654.099 | FE10: 1812654.099 | FF10: 1812654.099 | FG10: 0 | FH10: 0 | FI10: 0 | FJ10: 0 | FK10: 0 | FL10: 0 | FM10: 0 | FN10: 0 | FO10: 0 | FP10: 0 | FQ10: 0 | FR10: 0 | FS10: 0 | FT10: 0 | FU10: 0 | FV10: 0 | FW10: 0 | FX10: 0 | FY10: 0 | FZ10: 0 | GA10: 0 | GB10: 0 | GC10: 0 | GD10: 0 | GE10: 0 | GF10: 0 | GG10: 0 | GH10: 0
B11: =IF(Cover!$B$1=1,Trans!A130,Trans!B130) -> Diamond Tower | C11: =Trans!C130 -> AAA | D11: 0 | E11: 0 | F11: 0 | G11: 0 | H11: 0 | I11: 0 | J11: 0 | K11: 0 | L11: 0 | M11: 0 | N11: 0 | O11: 0 | P11: 0 | Q11: 0 | R11: 0 | S11: 0 | T11: 0 | U11: 0 | V11: 0 | W11: 0 | X11: 0 | Y11: 0 | Z11: 0 | AA11: 0 | AB11: 0 | AC11: 0 | AD11: 0 | AE11: 0 | AF11: 0 | AG11: 0 | AH11: 0 | AI11: 0 | AJ11: 0 | AK11: 0 | AL11: 0 | AM11: 0 | AN11: 0 | AO11: 0 | AP11: 0 | AQ11: 0 | AR11: 0 | AS11: 0 | AT11: 0 | AU11: 0 | AV11: 0 | AW11: 0 | AX11: 0 | AY11: 0 | AZ11: 0 | BA11: 0 | BB11: 0 | BC11: 0 | BD11: 0 | BE11: 0 | BF11: 0 | BG11: 0 | BH11: 0 | BI11: 0 | BJ11: 0 | BK11: 0 | BL11: 0 | BM11: 0 | BN11: 0 | BO11: 0 | BP11: 0 | BQ11: 0 | BR11: 0 | BS11: 0 | BT11: 0 | BU11: 0 | BV11: 0 | BW11: 0 | BX11: 0 | BY11: 0 | BZ11: 0 | CA11: 0 | CB11: 0 | CC11: 0 | CD11: 0 | CE11: 0 | CF11: 0 | CG11: 0 | CH11: 0 | CI11: 0 | CJ11: 0 | CK11: 0 | CL11: 0 | CM11: 0 | CN11: 0 | CO11: 0 | CP11: 0 | CQ11: 0 | CR11: 0 | CS11: 0 | CT11: 0 | CU11: 0 | CV11: 0 | CW11: 0 | CX11: 0 | CY11: 0 | CZ11: 0 | DA11: 0 | DB11: 0 | DC11: 0 | DD11: 0 | DE11: 0 | DF11: 0 | DG11: 0 | DH11: 0 | DI11: 0 | DJ11: 0 | DK11: 0 | DL11: 0 | DM11: 0 | DN11: 0 | DO11: 1105040.323 | DP11: 4893750 | DQ11: 4893750 | DR11: 4893750 | DS11: 4893750 | DT11: 4893750 | DU11: 4893750 | DV11: 4893750 | DW11: 4893750 | DX11: 4893750 | DY11: 4893750 | DZ11: 4893750 | EA11: 4893750 | EB11: 2941406.136 | EC11: 2941406.136 | ED11: 2934454.64 | EE11: 2934454.64 | EF11: 2934454.64 | EG11: 3093507.62 | EH11: 3035782.1 | EI11: 3035782.1 | EJ11: 3035782.1 | EK11: 3254975.165 | EL11: 3254975.165 | EM11: 3124195.695 | EN11: 3068147.355 | EO11: 3068147.355 | EP11: 3280636.267 | EQ11: 3280636.267 | ER11: 3280636.267 | ES11: 3362907.977 | ET11: 3370685.825 | EU11: 3821905.825 | EV11: 4068025.825 | EW11: 4117109.36 | EX11: 4120971.71 | EY11: 4120971.71 | EZ11: 4131226.71 | FA11: 4131226.71 | FB11: 4012535.92 | FC11: 4120213.42 | FD11: 4120213.42 | FE11: 4189734.89 | FF11: 4199989.89 | FG11: 4220278.692 | FH11: 4220278.692 | FI11: 4268892.001 | FJ11: 4268892.001 | FK11: 4151554.791 | FL11: 4127412.392 | FM11: 4245344.892 | FN11: 4266689.618 | FO11: 4266689.618 | FP11: 4497910.978 | FQ11: 4497910.978 | FR11: 4497910.978 | FS11: 4521757.8 | FT11: 4521757.8 | FU11: 4590849.814 | FV11: 4590849.814 | FW11: 4673165.959 | FX11: 4693215.201 | FY11: 4693215.201 | FZ11: 4773528.99 | GA11: 4788533 | GB11: 4789872.2 | GC11: 4789872.2 | GD11: 4800300.458 | GE11: 4800300.458 | GF11: 4819184.954 | GG11: 4872342.186 | GH11: =+'Portfolio Imoveis-Real Estate'!$K$7 -> 4911872.066
B12: =IF(Cover!$B$1=1,Trans!A131,Trans!B131) -> Ed. Hicham | C12: =Trans!C131 -> B | D12: 381658 | E12: 381659.46 | F12: 381659.46 | G12: 381659.46 | H12: 381659.46 | I12: 381659.46 | J12: 381659.46 | K12: 381659.46 | L12: 381659.46 | M12: 409235.22 | N12: 409235.22 | O12: 409235.22 | P12: 409235.22 | Q12: 381659.46 | R12: 381659.46 | S12: 409235.22 | T12: 409235.22 | U12: 409235.22 | V12: 409235.22 | W12: 409235.22 | X12: 409235.22 | Y12: 430680.72 | Z12: 430680.72 | AA12: 430680.72 | AB12: 430680.72 | AC12: 430680.72 | AD12: 430680.72 | AE12: 430680.72 | AF12: 430680.72 | AG12: 430680.72 | AH12: 430680.72 | AI12: 430680.72 | AJ12: 430680.72 | AK12: 456912.46 | AL12: 456912.46 | AM12: 456912.46 | AN12: 456912.46 | AO12: 456912.46 | AP12: 456912.46 | AQ12: 456912.46 | AR12: 456912.46 | AS12: 456912.46 | AT12: 456912.46 | AU12: 456912.46 | AV12: 456912.46 | AW12: 0 | AX12: 0 | AY12: 0 | AZ12: 0 | BA12: 0 | BB12: 0 | BC12: 0 | BD12: 0 | BE12: 0 | BF12: 0 | BG12: 0 | BH12: 0 | BI12: 0 | BJ12: 0 | BK12: 0 | BL12: 0 | BM12: 0 | BN12: 0 | BO12: 0 | BP12: 0 | BQ12: 0 | BR12: 0 | BS12: 0 | BT12: 0 | BU12: 0 | BV12: 0 | BW12: 0 | BX12: 0 | BY12: 0 | BZ12: 0 | CA12: 0 | CB12: 0 | CC12: 0 | CD12: 0 | CE12: 0 | CF12: 0 | CG12: 0 | CH12: 0 | CI12: 0 | CJ12: 0 | CK12: 0 | CL12: 0 | CM12: 0 | CN12: 0 | CO12: 0 | CP12: 0 | CQ12: 0 | CR12: 0 | CS12: 0 | CT12: 0 | CU12: 0 | CV12: 0 | CW12: 0 | CX12: 0 | CY12: 0 | CZ12: 0 | DA12: 0 | DB12: 0 | DC12: 0 | DD12: 0 | DE12: 0 | DF12: 0 | DG12: 0 | DH12: 0 | DI12: 0 | DJ12: 0 | DK12: 0 | DL12: 0 | DM12: 0 | DN12: 0 | DO12: 0 | DP12: 0 | DQ12: 0 | DR12: 0 | DS12: 0 | DT12: 0 | DU12: 0 | DV12: 0 | DW12: 0 | DX12: 0 | DY12: 0 | DZ12: 0 | EA12: 0 | EB12: 0 | EC12: 0 | ED12: 0 | EE12: 0 | EF12: 0 | EG12: 0 | EH12: 0 | EI12: 0 | EJ12: 0 | EK12: 0 | EL12: 0 | EM12: 0 | EN12: 0 | EO12: 0 | EP12: 0 | EQ12: 0 | ER12: 0 | ES12: 0 | ET12: 0 | EU12: 0 | EV12: 0 | EW12: 0 | EX12: 0 | EY12: 0 | EZ12: 0 | FA12: 0 | FB12: 0 | FC12: 0 | FD12: 0 | FE12: 0 | FF12: 0 | FG12: 0 | FH12: 0 | FI12: 0 | FJ12: 0 | FK12: 0 | FL12: 0 | FM12: 0 | FN12: 0 | FO12: 0 | FP12: 0 | FQ12: 0 | FR12: 0 | FS12: 0 | FT12: 0 | FU12: 0 | FV12: 0 | FW12: 0 | FX12: 0 | FY12: 0 | FZ12: 0 | GA12: 0 | GB12: 0 | GC12: 0 | GD12: 0 | GE12: 0 | GF12: 0 | GG12: 0 | GH12: 0
B13: =IF(Cover!$B$1=1,Trans!A132,Trans!B132) -> Ed. Hicham II | C13: =Trans!C132 -> B | D13: 173611 | E13: 173610.855 | F13: 173610.855 | G13: 173610.855 | H13: 173610.855 | I13: 173610.86 | J13: 184987.23 | K13: 184987.23 | L13: 184987.23 | M13: 184987.23 | N13: 184987.23 | O13: 184987.23 | P13: 184987.23 | Q13: 184987.23 | R13: 184987.23 | S13: 184987.23 | T13: 184987.23 | U13: 184987.23 | V13: 194216 | W13: 194216 | X13: 194216 | Y13: 194216 | Z13: 194216 | AA13: 194216 | AB13: 194216 | AC13: 194216 | AD13: 194216 | AE13: 194216 | AF13: 194216 | AG13: 194216 | AH13: 206848.07 | AI13: 206848.07 | AJ13: 206848.07 | AK13: 206848.07 | AL13: 206848.07 | AM13: 206848.07 | AN13: 206848.07 | AO13: 206848.07 | AP13: 206848.07 | AQ13: 206848.07 | AR13: 206848.07 | AS13: 206848.07 | AT13: 220034.33 | AU13: 220034.33 | AV13: 220034.33 | AW13: 0 | AX13: 0 | AY13: 0 | AZ13: 0 | BA13: 0 | BB13: 0 | BC13: 0 | BD13: 0 | BE13: 0 | BF13: 0 | BG13: 0 | BH13: 0 | BI13: 0 | BJ13: 0 | BK13: 0 | BL13: 0 | BM13: 0 | BN13: 0 | BO13: 0 | BP13: 0 | BQ13: 0 | BR13: 0 | BS13: 0 | BT13: 0 | BU13: 0 | BV13: 0 | BW13: 0 | BX13: 0 | BY13: 0 | BZ13: 0 | CA13: 0 | CB13: 0 | CC13: 0 | CD13: 0 | CE13: 0 | CF13: 0 | CG13: 0 | CH13: 0 | CI13: 0 | CJ13: 0 | CK13: 0 | CL13: 0 | CM13: 0 | CN13: 0 | CO13: 0 | CP13: 0 | CQ13: 0 | CR13: 0 | CS13: 0 | CT13: 0 | CU13: 0 | CV13: 0 | CW13: 0 | CX13: 0 | CY13: 0 | CZ13: 0 | DA13: 0 | DB13: 0 | DC13: 0 | DD13: 0 | DE13: 0 | DF13: 0 | DG13: 0 | DH13: 0 | DI13: 0 | DJ13: 0 | DK13: 0 | DL13: 0 | DM13: 0 | DN13: 0 | DO13: 0 | DP13: 0 | DQ13: 0 | DR13: 0 | DS13: 0 | DT13: 0 | DU13: 0 | DV13: 0 | DW13: 0 | DX13: 0 | DY13: 0 | DZ13: 0 | EA13: 0 | EB13: 0 | EC13: 0 | ED13: 0 | EE13: 0 | EF13: 0 | EG13: 0 | EH13: 0 | EI13: 0 | EJ13: 0 | EK13: 0 | EL13: 0 | EM13: 0 | EN13: 0 | EO13: 0 | EP13: 0 | EQ13: 0 | ER13: 0 | ES13: 0 | ET13: 0 | EU13: 0 | EV13: 0 | EW13: 0 | EX13: 0 | EY13: 0 | EZ13: 0 | FA13: 0 | FB13: 0 | FC13: 0 | FD13: 0 | FE13: 0 | FF13: 0 | FG13: 0 | FH13: 0 | FI13: 0 | FJ13: 0 | FK13: 0 | FL13: 0 | FM13: 0 | FN13: 0 | FO13: 0 | FP13: 0 | FQ13: 0 | FR13: 0 | FS13: 0 | FT13: 0 | FU13: 0 | FV13: 0 | FW13: 0 | FX13: 0 | FY13: 0 | FZ13: 0 | GA13: 0 | GB13: 0 | GC13: 0 | GD13: 0 | GE13: 0 | GF13: 0 | GG13: 0 | GH13: 0
B14: =IF(Cover!$B$1=1,Trans!A133,Trans!B133) -> Eldorado Business Tower | C14: =Trans!C133 -> AAA | D14: 2832159 | E14: =2832158.68606048+150497.1 -> 2982655.786 | F14: =2832158.68606048+138831.63 -> 2970990.316 | G14: =3455665.58+120000 -> 3575665.58 | H14: =3453744.28+169887.55 -> 3623631.83 | I14: =4063002.2+160029.29 -> 4223031.49 | J14: =4062984+181922.21 -> 4244906.21 | K14: =4062984.09555482+187406.04 -> 4250390.136 | L14: =4062984.09555482+166100.5 -> 4229084.596 | M14: 4223543.995 | N14: 4213102.07 | O14: 4220774.06 | P14: 4194578.74 | Q14: 4250390.136 | R14: 4229084.596 | S14: 4223543.995 | T14: 4213102.07 | U14: 4220774.06 | V14: 4356792.92 | W14: 4377578.26 | X14: 4352661.44 | Y14: 4359984.43 | Z14: 4356254.83 | AA14: 4412778.813 | AB14: 4424045.54 | AC14: 4412485.48 | AD14: 4412485.48 | AE14: 4713937.42 | AF14: 4592942.372 | AG14: 4588044.54 | AH14: 5574625.92 | AI14: 5593312.91 | AJ14: 5355710.3 | AK14: 5461208.9 | AL14: 5371822.13 | AM14: 5344003.98 | AN14: 5597896.48 | AO14: 5597896.48 | AP14: 4832867.743 | AQ14: 3527066.386 | AR14: 3565152.31 | AS14: 3560432.327 | AT14: 3600220.313 | AU14: 3626987.553 | AV14: 3763591.553 | AW14: 3771241.262 | AX14: 3781236.426 | AY14: 4637480.116 | AZ14: 5002283.316 | BA14: 5216099.316 | BB14: 5209678.336 | BC14: 5227128.159 | BD14: 5232622 | BE14: 4482372.781 | BF14: 4343257.261 | BG14: 4451538 | BH14: 4754965.566 | BI14: 4764712.794 | BJ14: 4764712.716 | BK14: 4764531 | BL14: 5155739.83 | BM14: 5179003.315 | BN14: 5179003 | BO14: 5304947.256 | BP14: 5386256.64 | BQ14: 5386257 | BR14: 5422090 | BS14: 5422090.236 | BT14: 5517238.284 | BU14: 5496917.724 | BV14: 5472131.664 | BW14: 5542203.368 | BX14: 5579717.567 | BY14: 5488578.052 | BZ14: 5343628.348 | CA14: 5257716.178 | CB14: 5373971.248 | CC14: 5316133.22 | CD14: 5263527.015 | CE14: 5489623.115 | CF14: 5489623.115 | CG14: 5489623 | CH14: 5526147.125 | CI14: 5371253.255 | CJ14: 5371253.255 | CK14: 5371253.255 | CL14: 5371253.255 | CM14: 5100116.69 | CN14: 5105595.615 | CO14: 5103869.735 | CP14: 5012193.615 | CQ14: 5245977.163 | CR14: 5399405.85 | CS14: 5399405.855 | CT14: 5458241.715 | CU14: 5550897.717 | CV14: 5550897.717 | CW14: 5632642.457 | CX14: 2776774.229 | CY14: 2779980.782 | CZ14: 2813199.143 | DA14: 2620906.191 | DB14: 2610218.874 | DC14: 2795786.362 | DD14: 2835091.121 | DE14: 2660531.897 | DF14: 2669106.108 | DG14: 2904670.444 | DH14: 2887729.28 | DI14: 2907076.625 | DJ14: 2959446.683 | DK14: 2981750.897 | DL14: 2984718.955 | DM14: 2984718.955 | DN14: 2989281.715 | DO14: 3020222.51 | DP14: 3055304.365 | DQ14: 3039071.328 | DR14: 2917310.201 | DS14: 2865414.262 | DT14: 2839041.644 | DU14: 2877042.579 | DV14: 2948577.713 | DW14: 2808213.215 | DX14: 2880455.404 | DY14: 2811138.938 | DZ14: 2794425.295 | EA14: 2667727.135 | EB14: 2535620.009 | EC14: 3137004.778 | ED14: 3316864.62 | EE14: 3053919.347 | EF14: 3153964.821 | EG14: 3094994.271 | EH14: 3169189.748 | EI14: 3182490.161 | EJ14: 3216919.56 | EK14: 3218149.839 | EL14: 3255149.803 | EM14: 3296308.673 | EN14: 3313715.395 | EO14: 3386371.22 | EP14: 3530577.808 | EQ14: 3550567.065 | ER14: 3499193.939 | ES14: 3464941.029 | ET14: 3464941.029 | EU14: 3469145.499 | EV14: 3316284.139 | EW14: 3336354.796 | EX14: 3419764.794 | EY14: 3584332.209 | EZ14: 3668282.833 | FA14: 3766482.753 | FB14: 3769952.737 | FC14: 3800661.652 | FD14: 3805745.587 | FE14: 3815504.902 | FF14: 3815504.902 | FG14: 3819027.632 | FH14: 3825567.492 | FI14: 3619546.768 | FJ14: 3822202.109 | FK14: 3926336.588 | FL14: 3926336.588 | FM14: 3881061.959 | FN14: 3991270.079 | FO14: 3991270.079 | FP14: 4009176.865 | FQ14: 4019851.153 | FR14: 4019851.153 | FS14: 4019851.153 | FT14: 4077815.51 | FU14: 4096889.07 | FV14: 4151139.175 | FW14: 4158899.239 | FX14: 3836859.317 | FY14: 3836859.317 | FZ14: 3850993.049 | GA14: 3855189 | GB14: 3884345.2 | GC14: 3919319.4 | GD14: 4225353.599 | GE14: 4225353.599 | GF14: 4250772.438 | GG14: 4510151.787 | GH14: =+'Portfolio Imoveis-Real Estate'!$K$8 -> 4558873.05
B15: =IF(Cover!$B$1=1,Trans!A134,Trans!B134) -> EZ Towers | C15: =Trans!C134 -> AAA | D15: 0 | E15: 0 | F15: 0 | G15: 0 | H15: 0 | I15: 0 | J15: 0 | K15: 0 | L15: 0 | M15: 0 | N15: 0 | O15: 0 | P15: 0 | Q15: 0 | R15: 0 | S15: 0 | T15: 0 | U15: 0 | V15: 0 | W15: 0 | X15: 0 | Y15: 0 | Z15: 0 | AA15: 0 | AB15: 0 | AC15: 0 | AD15: 0 | AE15: 0 | AF15: 0 | AG15: 0 | AH15: 0 | AI15: 0 | AJ15: 0 | AK15: 0 | AL15: 0 | AM15: 0 | AN15: 0 | AO15: 0 | AP15: 0 | AQ15: 0 | AR15: 0 | AS15: 0 | AT15: 0 | AU15: 0 | AV15: 0 | AW15: 0 | AX15: 0 | AY15: 0 | AZ15: 0 | BA15: 0 | BB15: 0 | BC15: 0 | BD15: 0 | BE15: 0 | BF15: 0 | BG15: 0 | BH15: 0 | BI15: 0 | BJ15: 0 | BK15: 0 | BL15: 0 | BM15: 0 | BN15: 0 | BO15: 0 | BP15: 0 | BQ15: 0 | BR15: 0 | BS15: 0 | BT15: 0 | BU15: 0 | BV15: 0 | BW15: 0 | BX15: 0 | BY15: 0 | BZ15: 0 | CA15: 0 | CB15: 0 | CC15: 0 | CD15: 0 | CE15: 0 | CF15: 0 | CG15: 0 | CH15: 0 | CI15: 0 | CJ15: 0 | CK15: 0 | CL15: 0 | CM15: 0 | CN15: 0 | CO15: 0 | CP15: 0 | CQ15: 0 | CR15: 0 | CS15: 0 | CT15: 0 | CU15: 0 | CV15: 0 | CW15: 0 | CX15: 0 | CY15: 0 | CZ15: 0 | DA15: 0 | DB15: 0 | DC15: 0 | DD15: 0 | DE15: 0 | DF15: 0 | DG15: 0 | DH15: 0 | DI15: 0 | DJ15: 0 | DK15: 0 | DL15: 0 | DM15: 0 | DN15: 0 | DO15: 0 | DP15: 0 | DQ15: 0 | DR15: 92335.21827 | DS15: 954130.5888 | DT15: 954130.5888 | DU15: 954130.5888 | DV15: 954130.5888 | DW15: 954130.5888 | DX15: 954130.5888 | DY15: 954130.5888 | DZ15: 954130.5888 | EA15: 954130.5888 | EB15: 954130.5888 | EC15: 954130.5888 | ED15: 954130.5888 | EE15: 954130.5888 | EF15: 954130.5888 | EG15: 954130.5888 | EH15: 954130.5888 | EI15: 954130.5888 | EJ15: 954130.5888 | EK15: 954130.5888 | EL15: 954130.5888 | EM15: 954130.5888 | EN15: 954130.5888 | EO15: 954130.5888 | EP15: 954130.5888 | EQ15: 901352.933 | ER15: 897003.845 | ES15: 897003.845 | ET15: 897003.845 | EU15: 898013.4962 | EV15: 898052.8808 | EW15: 898052.8808 | EX15: 598437.5128 | EY15: 595462.765 | EZ15: 559520.4349 | FA15: 559520.2923 | FB15: 559520.2923 | FC15: 529376.2539 | FD15: 558404.5383 | FE15: 492650.1223 | FF15: 462506.0839 | FG15: 463362.6535 | FH15: 493506.6919 | FI15: 493506.6919 | FJ15: 475872.8999 | FK15: 498671.4389 | FL15: 504529.9257 | FM15: 489897.7259 | FN15: 489897.7259 | FO15: 484398.3359 | FP15: 484398.3359 | FQ15: 484398.3359 | FR15: 484398.3359 | FS15: 484398.3359 | FT15: 484398.3359 | FU15: 484398.3359 | FV15: 488947.4733 | FW15: 499977.2151 | FX15: 643735.5873 | FY15: 643735.5873 | FZ15: 668695.6673 | GA15: =+'Portfolio Imoveis-Real Estate'!$K$9 -> 666745.2003 | GB15: 668696 | GC15: 668772 | GD15: 668772.7073 | GE15: 668772.7073 | GF15: 668772.7073 | GG15: 668772.7073 | GH15: =+'Portfolio Imoveis-Real Estate'!$K$9 -> 666745.2003
B16: =IF(Cover!$B$1=1,Trans!A135,Trans!B135) -> Flamengo | C16: =Trans!C135 -> A | D16: 700457 | E16: 700456.59 | F16: 700456.59 | G16: 733917.0599 | H16: 733917.0599 | I16: 733917.06 | J16: 746845.79 | K16: 746845.79 | L16: 913950.81 | M16: 913950.81 | N16: 913950.81 | O16: 913950.81 | P16: 913950.81 | Q16: 746845.79 | R16: 913950.81 | S16: 913950.81 | T16: 913950.81 | U16: 913950.81 | V16: 945335.17 | W16: 945335.17 | X16: 945335.17 | Y16: 945335.17 | Z16: 945335.17 | AA16: 945335.17 | AB16: 945335.18 | AC16: 945335.18 | AD16: 945335.18 | AE16: 1023749.25 | AF16: 1023749.25 | AG16: 1023749.25 | AH16: 1023749.25 | AI16: 1023749.25 | AJ16: 1023749.25 | AK16: 1023749.25 | AL16: 1023749.25 | AM16: 1023749.25 | AN16: 1023749.25 | AO16: 1023749.25 | AP16: 1023749.25 | AQ16: 1082707.8 | AR16: 1082707.8 | AS16: 968233.41 | AT16: 968233.41 | AU16: 916137.22 | AV16: 916137.22 | AW16: 832852.01 | AX16: 832852.01 | AY16: 832852.01 | AZ16: 832852.01 | BA16: 832852.01 | BB16: 582996.6 | BC16: 592643.2 | BD16: 592643.01 | BE16: 592643.01 | BF16: 606334.1 | BG16: 606334 | BH16: 330923.93 | BI16: 330923.93 | BJ16: 330923.93 | BK16: 330924 | BL16: 330923.93 | BM16: 330923.93 | BN16: 330924 | BO16: 324123.93 | BP16: 324123.93 | BQ16: 324124 | BR16: 352962 | BS16: 352961.53 | BT16: 352961.53 | BU16: 352961.53 | BV16: 352961.53 | BW16: 352961.53 | BX16: 352961.53 | BY16: 352961.53 | BZ16: 352961.53 | CA16: 330961.53 | CB16: 42000 | CC16: 42000 | CD16: 42000 | CE16: 42000 | CF16: 42000 | CG16: 42000 | CH16: 42000 | CI16: 42000 | CJ16: 42000 | CK16: 42000 | CL16: 42000 | CM16: 42000 | CN16: 144729.6 | CO16: 144729.6 | CP16: 144729.6 | CQ16: 144729.6 | CR16: 144729.6 | CS16: 144729.6 | CT16: 144729.6 | CU16: 144729.6 | CV16: 144729.6 | CW16: 144729.6 | CX16: 0 | CY16: 0 | CZ16: 0 | DA16: 0 | DB16: 0 | DC16: 0 | DD16: 0 | DE16: 0 | DF16: 0 | DG16: 0 | DH16: 0 | DI16: 0 | DJ16: 0 | DK16: 0 | DL16: 0 | DM16: 0 | DN16: 0 | DO16: 0 | DP16: 0 | DQ16: 0 | DR16: 0 | DS16: 0 | DT16: 0 | DU16: 0 | DV16: 0 | DW16: 0 | DX16: 0 | DY16: 0 | DZ16: 0 | EA16: 0 | EB16: 0 | EC16: 0 | ED16: 0 | EE16: 0 | EF16: 0 | EG16: 0 | EH16: 0 | EI16: 0 | EJ16: 0 | EK16: 0 | EL16: 0 | EM16: 0 | EN16: 0 | EO16: 0 | EP16: 0 | EQ16: 0 | ER16: 0 | ES16: 0 | ET16: 0 | EU16: 0 | EV16: 0 | EW16: 0 | EX16: 0 | EY16: 0 | EZ16: 0 | FA16: 0 | FB16: 0 | FC16: 0 | FD16: 0 | FE16: 0 | FF16: 0 | FG16: 0 | FH16: 0 | FI16: 0 | FJ16: 0 | FK16: 0 | FL16: 0 | FM16: 0 | FN16: 0 | FO16: 0 | FP16: 0 | FQ16: 0 | FR16: 0 | FS16: 0 | FT16: 0 | FU16: 0 | FV16: 0 | FW16: 0 | FX16: 0 | FY16: 0 | FZ16: 0 | GA16: 0 | GB16: 0 | GC16: 0 | GD16: 0 | GE16: 0 | GF16: 0 | GG16: 0 | GH16: 0
B17: =IF(Cover!$B$1=1,Trans!A136,Trans!B136) -> Montreal | C17: =Trans!C136 -> A | D17: 319322 | E17: 352122.78 | F17: 352122.78 | G17: 352122.78 | H17: 352122.78 | I17: 352122.78 | J17: 352122.78 | K17: 352122.78 | L17: 352122.78 | M17: 352122.78 | N17: 352122.78 | O17: 352122.78 | P17: 373068.77 | Q17: 352122.78 | R17: 352122.78 | S17: 352122.78 | T17: 352122.78 | U17: 352122.78 | V17: 373068.75 | W17: 373068.75 | X17: 373068.75 | Y17: 373068.75 | Z17: 373068.75 | AA17: 373068.75 | AB17: 373068.75 | AC17: 645645.78 | AD17: 645645.78 | AE17: 645645.78 | AF17: 645645.78 | AG17: 645645.78 | AH17: 645645.78 | AI17: 645645.78 | AJ17: 645645.78 | AK17: 645645.78 | AL17: 645645.78 | AM17: 645645.78 | AN17: 645645.78 | AO17: 681621.61 | AP17: 681621.61 | AQ17: 681621.61 | AR17: 681621.61 | AS17: 681621.61 | AT17: 681621.61 | AU17: 681621.61 | AV17: 681621.61 | AW17: 681621.61 | AX17: 681621.61 | AY17: 681621.61 | AZ17: 699080.3 | BA17: 706634.08 | BB17: 706634.08 | BC17: 706634.08 | BD17: 706634.08 | BE17: 706634.08 | BF17: 494134.95 | BG17: 494135 | BH17: 494134.95 | BI17: 494134.95 | BJ17: 494134.95 | BK17: 494135 | BL17: 422230 | BM17: 422230 | BN17: 422230 | BO17: 422230 | BP17: 422230 | BQ17: 422230 | BR17: 422230 | BS17: 422230 | BT17: 422230 | BU17: 470739.9003 | BV17: 470739.9003 | BW17: 470739.9003 | BX17: 470739.9003 | BY17: 470739.9003 | BZ17: 470739.9003 | CA17: 470739.9003 | CB17: 0 | CC17: 0 | CD17: 0 | CE17: 0 | CF17: 0 | CG17: 0 | CH17: 0 | CI17: 0 | CJ17: 58569.38 | CK17: 58569.38 | CL17: 185079.23 | CM17: 185079.23 | CN17: 185079.23 | CO17: 185079.23 | CP17: 185079.23 | CQ17: 217878.08 | CR17: 217878.08 | CS17: 217878.08 | CT17: 217878.08 | CU17: 224215.8 | CV17: 224215.8 | CW17: 224215.8 | CX17: 224215.8 | CY17: 224215.8 | CZ17: 224215.8 | DA17: 224199.5482 | DB17: 224199.5482 | DC17: 224199.5482 | DD17: 224199.5482 | DE17: 224199.5482 | DF17: 224199.5482 | DG17: 226244.56 | DH17: 226244.56 | DI17: 226244.56 | DJ17: 238684.34 | DK17: 241926.8 | DL17: 241926.8 | DM17: 241926.8 | DN17: 241926.8 | DO17: 241926.8 | DP17: 241926.8 | DQ17: 241926.8 | DR17: 241926.8 | DS17: 255937.45 | DT17: 265846.0435 | DU17: 275135.35 | DV17: 289134.6252 | DW17: 289134.6252 | DX17: 329430.3552 | DY17: 329430.3552 | DZ17: 332301.8031 | EA17: 329053.5467 | EB17: 325928.4984 | EC17: 325928.4984 | ED17: 325928.4984 | EE17: 325928.4984 | EF17: 329362.0658 | EG17: 329362.0584 | EH17: 348614.64 | EI17: 329362.1 | EJ17: 333915.28 | EK17: 332543.57 | EL17: 332543.57 | EM17: 332543.57 | EN17: 332543.57 | EO17: 332543.57 | EP17: 332543.57 | EQ17: 308597.06 | ER17: 309850.3822 | ES17: 309850.3822 | ET17: 320561.4044 | EU17: 320561.4044 | EV17: 322647.2344 | EW17: 322647.2344 | EX17: 322647.2344 | EY17: 322647.2344 | EZ17: 322647.2344 | FA17: 322647.2344 | FB17: 322647.2344 | FC17: 322647.2344 | FD17: 322647.2344 | FE17: 322647.2344 | FF17: 331489.5327 | FG17: 331489.5327 | FH17: 333331.9822 | FI17: 333331.9822 | FJ17: 333331.9822 | FK17: 333331.9822 | FL17: 333331.9822 | FM17: 333331.9822 | FN17: 333331.9822 | FO17: 333331.9822 | FP17: 314006.75 | FQ17: 334931.75 | FR17: 344281.04 | FS17: 344281.04 | FT17: 348748.5769 | FU17: 348748.5769 | FV17: 348748.5769 | FW17: 348748.5769 | FX17: 370098.5769 | FY17: 370098.5769 | FZ17: 370098.5769 | GA17: =+'Portfolio Imoveis-Real Estate'!$K$10 -> 382303.3225 | GB17: 370650 | GC17: 370650 | GD17: 380171.9624 | GE17: 380171.9624 | GF17: 380729.5976 | GG17: 380729.5976 | GH17: =+'Portfolio Imoveis-Real Estate'!$K$10 -> 382303.3225
B18: =IF(Cover!$B$1=1,Trans!A137,Trans!B137) -> MV9 | C18: =Trans!C137 -> B | D18: 0 | E18: 0 | F18: 0 | G18: 0 | H18: 0 | I18: 0 | J18: 0 | K18: 0 | L18: 0 | M18: 0 | N18: 0 | O18: 0 | P18: 0 | Q18: 0 | R18: 0 | S18: 0 | T18: 0 | U18: 0 | V18: 0 | W18: 0 | X18: 0 | Y18: 0 | Z18: 0 | AA18: 0 | AB18: 0 | AC18: 0 | AD18: 0 | AE18: 0 | AF18: 0 | AG18: 0 | AH18: 0 | AI18: 0 | AJ18: 0 | AK18: 0 | AL18: 0 | AM18: 0 | AN18: 0 | AO18: 0 | AP18: 0 | AQ18: 0 | AR18: 0 | AS18: 0 | AT18: 0 | AU18: 0 | AV18: 0 | AW18: 0 | AX18: 0 | AY18: 0 | AZ18: 0 | BA18: 0 | BB18: 0 | BC18: 0 | BD18: 0 | BE18: 0 | BF18: 0 | BG18: 0 | BH18: 0 | BI18: 0 | BJ18: 0 | BK18: 0 | BL18: 0 | BM18: 0 | BN18: 0 | BO18: 0 | BP18: 0 | BQ18: 0 | BR18: 0 | BS18: 0 | BT18: 0 | BU18: 0 | BV18: 0 | BW18: 0 | BX18: 0 | BY18: 0 | BZ18: 0 | CA18: 0 | CB18: 0 | CC18: 0 | CD18: 0 | CE18: 0 | CF18: 0 | CG18: 0 | CH18: 0 | CI18: 0 | CJ18: 0 | CK18: 0 | CL18: 0 | CM18: 0 | CN18: 0 | CO18: 0 | CP18: 0 | CQ18: 0 | CR18: 0 | CS18: 0 | CT18: 0 | CU18: 0 | CV18: 0 | CW18: 0 | CX18: 682843.5 | CY18: 682843.5 | CZ18: 682843.5 | DA18: 682843.5 | DB18: 682843.5 | DC18: 682843.5 | DD18: 682843.5 | DE18: 682843.5 | DF18: 682843.5 | DG18: 682843.5 | DH18: 709952.39 | DI18: 709952.39 | DJ18: 709952.39 | DK18: 709952.39 | DL18: 709952.39 | DM18: 709952.39 | DN18: 709952.39 | DO18: 709952.39 | DP18: 709952.39 | DQ18: 709952.39 | DR18: 709952.39 | DS18: 709952.39 | DT18: 884040.61 | DU18: 827441.9474 | DV18: 758715 | DW18: 758715 | DX18: 758715 | DY18: 758715 | DZ18: 758715 | EA18: 758715 | EB18: 758715 | EC18: 758715 | ED18: 758715 | EE18: 758715 | EF18: 758715 | EG18: 835049.1852 | EH18: 835049.1852 | EI18: 835049.1852 | EJ18: 835049.1852 | EK18: 835049.1852 | EL18: 835049.1852 | EM18: 835049.1852 | EN18: 835049.1852 | EO18: 835049.1852 | EP18: 835049.1852 | EQ18: 835049.1852 | ER18: 835049.1852 | ES18: 856865.8689 | ET18: 883447.75 | EU18: 883447.75 | EV18: 883447.75 | EW18: 883447.75 | EX18: 883447.75 | EY18: 883447.75 | EZ18: 883447.75 | FA18: 883447.75 | FB18: 883447.75 | FC18: 883447.75 | FD18: 883447.75 | FE18: 924273.5491 | FF18: 924266.61 | FG18: 924273.5491 | FH18: 924273.5491 | FI18: 924273.5491 | FJ18: 924273.5491 | FK18: 924273.5491 | FL18: 924273.5491 | FM18: 924273.5491 | FN18: 862449.4352 | FO18: 862449.4352 | FP18: 862449.4352 | FQ18: 880401.9793 | FR18: 904010.3051 | FS18: 904010.3051 | FT18: 903972.34 | FU18: 903972.34 | FV18: 903972.34 | FW18: 903972.34 | FX18: 903972.34 | FY18: 903972.34 | FZ18: 903972.34 | GA18: =+'Portfolio Imoveis-Real Estate'!$K$11 -> 782201.7 | GB18: 903972 | GC18: 932414.91 | GD18: 782201.7 | GE18: 782201.7 | GF18: 782201.7 | GG18: 782201.7 | GH18: =+'Portfolio Imoveis-Real Estate'!$K$11 -> 782201.7
B19: =IF(Cover!$B$1=1,Trans!A138,Trans!B138) -> Senado | C19: =Trans!C138 -> AAA | D19: 0 | E19: 0 | F19: 0 | G19: 0 | H19: 0 | I19: 0 | J19: 0 | K19: 0 | L19: 0 | M19: 0 | N19: 0 | O19: 0 | P19: 0 | Q19: 0 | R19: 0 | S19: 0 | T19: 0 | U19: 0 | V19: 0 | W19: 0 | X19: 0 | Y19: 0 | Z19: 0 | AA19: 0 | AB19: 0 | AC19: 0 | AD19: 0 | AE19: 0 | AF19: 0 | AG19: 0 | AH19: 0 | AI19: 0 | AJ19: 0 | AK19: 0 | AL19: 0 | AM19: 0 | AN19: 0 | AO19: 0 | AP19: 0 | AQ19: 0 | AR19: 0 | AS19: 0 | AT19: 0 | AU19: 0 | AV19: 0 | AW19: 0 | AX19: 0 | AY19: 0 | AZ19: 0 | BA19: 0 | BB19: 0 | BC19: 0 | BD19: 0 | BE19: 0 | BF19: 0 | BG19: 0 | BH19: 0 | BI19: 0 | BJ19: 0 | BK19: 0 | BL19: 0 | BM19: 0 | BN19: 0 | BO19: 0 | BP19: 0 | BQ19: 0 | BR19: 0 | BS19: 0 | BT19: 0 | BU19: 0 | BV19: 0 | BW19: 0 | BX19: 0 | BY19: 0 | BZ19: 0 | CA19: 0 | CB19: 0 | CC19: 0 | CD19: 0 | CE19: 0 | CF19: 0 | CG19: 0 | CH19: 0 | CI19: 0 | CJ19: 0 | CK19: 0 | CL19: 0 | CM19: 0 | CN19: 0 | CO19: 0 | CP19: 0 | CQ19: 0 | CR19: 0 | CS19: 0 | CT19: 0 | CU19: 0 | CV19: 0 | CW19: 0 | CX19: 2557204.569 | CY19: 2557204.569 | CZ19: 2557204.569 | DA19: 2557204.569 | DB19: 2557204.569 | DC19: 2557204.569 | DD19: 2557204.569 | DE19: 2557204.569 | DF19: 2557204.569 | DG19: 2622030.435 | DH19: 2622157.57 | DI19: 2622157.57 | DJ19: 2622157.57 | DK19: 2622157.57 | DL19: 2630357.57 | DM19: 2630357.57 | DN19: 2630357.57 | DO19: 2630357.57 | DP19: 2630357.57 | DQ19: 2630357.57 | DR19: 2631021.81 | DS19: 2734578.45 | DT19: 2734578.45 | DU19: 2734578.45 | DV19: 2734578.45 | DW19: 2734578.45 | DX19: 2734578.45 | DY19: 2734578.45 | DZ19: 2734578.45 | EA19: 2734578.45 | EB19: 2734578.45 | EC19: 2734578.45 | ED19: 2736982.34 | EE19: 3027703.238 | EF19: 3027703.238 | EG19: 3027703.238 | EH19: 3027703.238 | EI19: 3027703.238 | EJ19: 3027703.238 | EK19: 3027703.238 | EL19: 3027703.238 | EM19: 3027703.238 | EN19: 3027703.238 | EO19: 3027703.238 | EP19: 3028699.678 | EQ19: 3223819.158 | ER19: 3223819.158 | ES19: 3223819.158 | ET19: 3223819.158 | EU19: 3223819.158 | EV19: 3223819.158 | EW19: 3223819.158 | EX19: 3223819.158 | EY19: 3222174.408 | EZ19: 3222174.408 | FA19: 3222174.408 | FB19: 3222174.408 | FC19: 3376908.38 | FD19: 3376881.37 | FE19: 3376881.37 | FF19: 3376881.37 | FG19: 3376881.37 | FH19: 3376881.37 | FI19: 3376881.37 | FJ19: 3376881.37 | FK19: 3376881.37 | FL19: 3376881.37 | FM19: 3376881.37 | FN19: 3377398.83 | FO19: 3377398.83 | FP19: 3525680.818 | FQ19: 3525680.818 | FR19: 3525680.818 | FS19: 3525680.818 | FT19: 3525680.818 | FU19: 3525680.818 | FV19: 3525680.818 | FW19: 3525680.818 | FX19: 3525680.818 | FY19: 3525680.818 | FZ19: 3525680.818 | GA19: 3690713 | GB19: 3690713 | GC19: 3690713 | GD19: 3690713.44 | GE19: 3690713.44 | GF19: 3690713.44 | GG19: 3690713.44 | GH19: =+'Portfolio Imoveis-Real Estate'!$K$12 -> 3690713.44
B20: =IF(Cover!$B$1=1,Trans!A144,Trans!B144) -> Polidoro | C20: =Trans!C144 -> A | D20: 0 | E20: 0 | F20: 0 | G20: 0 | H20: 0 | I20: 0 | J20: 0 | K20: 0 | L20: 0 | M20: 0 | N20: 0 | O20: 0 | P20: 0 | Q20: 0 | R20: 0 | S20: 0 | T20: 0 | U20: 0 | V20: 0 | W20: 0 | X20: 0 | Y20: 0 | Z20: 0 | AA20: 0 | AB20: 1066000 | AC20: 1066000 | AD20: 1066000 | AE20: 1066000 | AF20: 1066000 | AG20: 1066000 | AH20: 1066000 | AI20: 1066000 | AJ20: 1066000 | AK20: 1066000 | AL20: 1066000 | AM20: 1066000 | AN20: 1066000 | AO20: 1125680.18 | AP20: 1125680.18 | AQ20: 1125680.18 | AR20: 1125680.18 | AS20: 1125680.18 | AT20: 1125680.18 | AU20: 1125680.18 | AV20: 1125680.18 | AW20: 1125680.18 | AX20: 1125680.18 | AY20: 1125680.18 | AZ20: 1166909.21 | BA20: 1166909.21 | BB20: 1166909.21 | BC20: 1166909.21 | BD20: 1166909.21 | BE20: 1166909.21 | BF20: 1166909.21 | BG20: 1166909 | BH20: 1166909.21 | BI20: 1166909.21 | BJ20: 1166909.21 | BK20: 1166909 | BL20: 1291615.47 | BM20: 0 | BN20: 0 | BO20: 0 | BP20: 0 | BQ20: 0 | BR20: 0 | BS20: 0 | BT20: 0 | BU20: 0 | BV20: 0 | BW20: 0 | BX20: 0 | BY20: 0 | BZ20: 0 | CA20: 0 | CB20: 0 | CC20: 0 | CD20: 0 | CE20: 0 | CF20: 0 | CG20: 0 | CH20: 0 | CI20: 0 | CJ20: 0 | CK20: 0 | CL20: 0 | CM20: 0 | CN20: 0 | CO20: 0 | CP20: 0 | CQ20: 0 | CR20: 0 | CS20: 0 | CT20: 0 | CU20: 0 | CV20: 0 | CW20: 0 | CX20: 0 | CY20: 0 | CZ20: 0 | DA20: 0 | DB20: 0 | DC20: 0 | DD20: 0 | DE20: 0 | DF20: 0 | DG20: 0 | DH20: 0 | DI20: 0 | DJ20: 0 | DK20: 0 | DL20: 0 | DM20: 0 | DN20: 0 | DO20: 0 | DP20: 0 | DQ20: 0 | DR20: 0 | DS20: 0 | DT20: 0 | DU20: 0 | DV20: 0 | DW20: 0 | DX20: 0 | DY20: 0 | DZ20: 0 | EA20: 0 | EB20: 0 | EC20: 0 | ED20: 0 | EE20: 0 | EF20: 0 | EG20: 0 | EH20: 0 | EI20: 0 | EJ20: 0 | EK20: 0 | EL20: 0 | EM20: 0 | EN20: 0 | EO20: 0 | EP20: 0 | EQ20: 0 | ER20: 0 | ES20: 0 | ET20: 0 | EU20: 0 | EV20: 0 | EW20: 0 | EX20: 0 | EY20: 0 | EZ20: 0 | FA20: 0 | FB20: 0 | FC20: 0 | FD20: 0 | FE20: 0 | FF20: 0 | FG20: 0 | FH20: 0 | FI20: 0 | FJ20: 0 | FK20: 0 | FL20: 0 | FM20: 0 | FN20: 0 | FO20: 0 | FP20: 0 | FQ20: 0 | FR20: 0 | FS20: 0 | FT20: 0 | FU20: 0 | FV20: 0 | FW20: 0 | FX20: 0 | FY20: 0 | FZ20: 0 | GA20: 0 | GB20: 0 | GC20: 0 | GD20: 0 | GE20: 0 | GF20: 0 | GG20: 0 | GH20: 0
B21: =IF(Cover!$B$1=1,Trans!A139,Trans!B139) -> Shopping Leblon | C21: =Trans!C139 -> A | D21: 200758 | E21: 200758.3912 | F21: 200758.3912 | G21: 205036.3234 | H21: 205036.3234 | I21: 205036.32 | J21: 210066.27 | K21: 248121.3422 | L21: 248121.3422 | M21: 277269 | N21: 277269 | O21: 277269 | P21: 277269 | Q21: 248121.3422 | R21: 248121.3422 | S21: 277269 | T21: 277269 | U21: 277269 | V21: 0 | W21: 0 | X21: 0 | Y21: 0 | Z21: 0 | AA21: 0 | AB21: 0 | AC21: 0 | AD21: 0 | AE21: 0 | AF21: 0 | AG21: 0 | AH21: 0 | AI21: 0 | AJ21: 0 | AK21: 0 | AL21: 0 | AM21: 0 | AN21: 0 | AO21: 0 | AP21: 0 | AQ21: 0 | AR21: 0 | AS21: 0 | AT21: 0 | AU21: 0 | AV21: 0 | AW21: 0 | AX21: 0 | AY21: 0 | AZ21: 0 | BA21: 0 | BB21: 0 | BC21: 0 | BD21: 0 | BE21: 0 | BF21: 0 | BG21: 0 | BH21: 0 | BI21: 0 | BJ21: 0 | BK21: 0 | BL21: 0 | BM21: 0 | BN21: 0 | BO21: 0 | BP21: 0 | BQ21: 0 | BR21: 0 | BS21: 0 | BT21: 0 | BU21: 0 | BV21: 0 | BW21: 0 | BX21: 0 | BY21: 0 | BZ21: 0 | CA21: 0 | CB21: 0 | CC21: 0 | CD21: 0 | CE21: 0 | CF21: 0 | CG21: 0 | CH21: 0 | CI21: 0 | CJ21: 0 | CK21: 0 | CL21: 0 | CM21: 0 | CN21: 0 | CO21: 0 | CP21: 0 | CQ21: 0 | CR21: 0 | CS21: 0 | CT21: 0 | CU21: 0 | CV21: 0 | CW21: 0 | CX21: 0 | CY21: 0 | CZ21: 0 | DA21: 0 | DB21: 0 | DC21: 0 | DD21: 0 | DE21: 0 | DF21: 0 | DG21: 0 | DH21: 0 | DI21: 0 | DJ21: 0 | DK21: 0 | DL21: 0 | DM21: 0 | DN21: 0 | DO21: 0 | DP21: 0 | DQ21: 0 | DR21: 0 | DS21: 0 | DT21: 0 | DU21: 0 | DV21: 0 | DW21: 0 | DX21: 0 | DY21: 0 | DZ21: 0 | EA21: 0 | EB21: 0 | EC21: 0 | ED21: 0 | EE21: 0 | EF21: 0 | EG21: 0 | EH21: 0 | EI21: 0 | EJ21: 0 | EK21: 0 | EL21: 0 | EM21: 0 | EN21: 0 | EO21: 0 | EP21: 0 | EQ21: 0 | ER21: 0 | ES21: 0 | ET21: 0 | EU21: 0 | EV21: 0 | EW21: 0 | EX21: 0 | EY21: 0 | EZ21: 0 | FA21: 0 | FB21: 0 | FC21: 0 | FD21: 0 | FE21: 0 | FF21: 0 | FG21: 0 | FH21: 0 | FI21: 0 | FJ21: 0 | FK21: 0 | FL21: 0 | FM21: 0 | FN21: 0 | FO21: 0 | FP21: 0 | FQ21: 0 | FR21: 0 | FS21: 0 | FT21: 0 | FU21: 0 | FV21: 0 | FW21: 0 | FX21: 0 | FY21: 0 | FZ21: 0 | GA21: 0 | GB21: 0 | GC21: 0 | GD21: 0 | GE21: 0 | GF21: 0 | GG21: 0 | GH21: 0
B22: =IF(Cover!$B$1=1,Trans!A146,Trans!B146) -> SIA Sul | C22: =Trans!C146 -> B | D22: 0 | E22: 0 | F22: 0 | G22: 0 | H22: 0 | I22: 0 | J22: 0 | K22: 0 | L22: 0 | M22: 0 | N22: 0 | O22: 0 | P22: 0 | Q22: 0 | R22: 0 | S22: 0 | T22: 0 | U22: 0 | V22: 0 | W22: 0 | X22: 0 | Y22: 0 | Z22: 0 | AA22: 0 | AB22: 1340395 | AC22: 1340395 | AD22: 1340395 | AE22: 1368989.25 | AF22: 1368989.25 | AG22: 1452321.8 | AH22: 1452344.93 | AI22: 1452344.93 | AJ22: 1452344.93 | AK22: 1452792.57 | AL22: 1452792.57 | AM22: 1452792.57 | AN22: 1452792.57 | AO22: 1463256.31 | AP22: 1463256.31 | AQ22: 1463256.31 | AR22: 1478148.94 | AS22: 1575980.44 | AT22: 1575980.44 | AU22: 1575980.44 | AV22: 1575980.44 | AW22: 1576570.91 | AX22: 1576570.91 | AY22: 1576570.91 | AZ22: 1583799.6 | BA22: 1583799.6 | BB22: 1540313.04 | BC22: 1540313.04 | BD22: 1540313.04 | BE22: 1587286.13 | BF22: 1587286.13 | BG22: 1587286 | BH22: 1078224.33 | BI22: 1078224.33 | BJ22: 1078224.33 | BK22: 1078224 | BL22: 1100089.1 | BM22: 0 | BN22: 0 | BO22: 0 | BP22: 0 | BQ22: 0 | BR22: 0 | BS22: 0 | BT22: 0 | BU22: 0 | BV22: 0 | BW22: 0 | BX22: 0 | BY22: 0 | BZ22: 0 | CA22: 0 | CB22: 0 | CC22: 0 | CD22: 0 | CE22: 0 | CF22: 0 | CG22: 0 | CH22: 0 | CI22: 0 | CJ22: 0 | CK22: 0 | CL22: 0 | CM22: 0 | CN22: 0 | CO22: 0 | CP22: 0 | CQ22: 0 | CR22: 0 | CS22: 0 | CT22: 0 | CU22: 0 | CV22: 0 | CW22: 0 | CX22: 0 | CY22: 0 | CZ22: 0 | DA22: 0 | DB22: 0 | DC22: 0 | DD22: 0 | DE22: 0 | DF22: 0 | DG22: 0 | DH22: 0 | DI22: 0 | DJ22: 0 | DK22: 0 | DL22: 0 | DM22: 0 | DN22: 0 | DO22: 0 | DP22: 0 | DQ22: 0 | DR22: 0 | DS22: 0 | DT22: 0 | DU22: 0 | DV22: 0 | DW22: 0 | DX22: 0 | DY22: 0 | DZ22: 0 | EA22: 0 | EB22: 0 | EC22: 0 | ED22: 0 | EE22: 0 | EF22: 0 | EG22: 0 | EH22: 0 | EI22: 0 | EJ22: 0 | EK22: 0 | EL22: 0 | EM22: 0 | EN22: 0 | EO22: 0 | EP22: 0 | EQ22: 0 | ER22: 0 | ES22: 0 | ET22: 0 | EU22: 0 | EV22: 0 | EW22: 0 | EX22: 0 | EY22: 0 | EZ22: 0 | FA22: 0 | FB22: 0 | FC22: 0 | FD22: 0 | FE22: 0 | FF22: 0 | FG22: 0 | FH22: 0 | FI22: 0 | FJ22: 0 | FK22: 0 | FL22: 0 | FM22: 0 | FN22: 0 | FO22: 0 | FP22: 0 | FQ22: 0 | FR22: 0 | FS22: 0 | FT22: 0 | FU22: 0 | FV22: 0 | FW22: 0 | FX22: 0 | FY22: 0 | FZ22: 0 | GA22: 0 | GB22: 0 | GC22: 0 | GD22: 0 | GE22: 0 | GF22: 0 | GG22: 0 | GH22: 0
B23: =IF(Cover!$B$1=1,Trans!A140,Trans!B140) -> Sucupira | C23: =Trans!C140 -> AAA | D23: 0 | E23: 0 | F23: 0 | G23: 0 | H23: 0 | I23: 0 | J23: 0 | K23: 0 | L23: 0 | M23: 0 | N23: 0 | O23: 0 | P23: 0 | Q23: 0 | R23: 0 | S23: 0 | T23: 0 | U23: 0 | V23: 0 | W23: 0 | X23: 0 | Y23: 0 | Z23: 0 | AA23: 0 | AB23: 0 | AC23: 0 | AD23: 0 | AE23: 0 | AF23: 0 | AG23: 0 | AH23: 0 | AI23: 0 | AJ23: 0 | AK23: 0 | AL23: 0 | AM23: 0 | AN23: 0 | AO23: 0 | AP23: 0 | AQ23: 0 | AR23: 0 | AS23: 0 | AT23: 0 | AU23: 0 | AV23: 0 | AW23: 0 | AX23: 0 | AY23: 0 | AZ23: 0 | BA23: 0 | BB23: 0 | BC23: 0 | BD23: 0 | BE23: 0 | BF23: 0 | BG23: 0 | BH23: 0 | BI23: 0 | BJ23: 0 | BK23: 0 | BL23: 0 | BM23: 0 | BN23: 0 | BO23: 0 | BP23: 0 | BQ23: 0 | BR23: 0 | BS23: 0 | BT23: 0 | BU23: 0 | BV23: 0 | BW23: 0 | BX23: 0 | BY23: 0 | BZ23: 0 | CA23: 0 | CB23: 0 | CC23: 0 | CD23: 0 | CE23: 0 | CF23: 0 | CG23: 0 | CH23: 0 | CI23: 0 | CJ23: 0 | CK23: 0 | CL23: 0 | CM23: 0 | CN23: 0 | CO23: 0 | CP23: 0 | CQ23: 0 | CR23: 0 | CS23: 0 | CT23: 0 | CU23: 0 | CV23: 0 | CW23: 0 | CX23: 0 | CY23: 0 | CZ23: 0 | DA23: 0 | DB23: 0 | DC23: 0 | DD23: 0 | DE23: 0 | DF23: 0 | DG23: 502253.3333 | DH23: 753380 | DI23: 753380 | DJ23: 753380 | DK23: 753380 | DL23: 753380 | DM23: 753380 | DN23: 753380 | DO23: 753380 | DP23: 753380 | DQ23: 753380 | DR23: 753380 | DS23: 911073.6159 | DT23: 911073.6159 | DU23: 911073.6159 | DV23: 911073.6159 | DW23: 911073.6159 | DX23: 911073.6159 | DY23: 770944.9359 | DZ23: 770944.9359 | EA23: 770944.9359 | EB23: 770944.9359 | EC23: 770944.9359 | ED23: 770944.9359 | EE23: 968888.1674 | EF23: 968888.1674 | EG23: 953548.55 | EH23: 953548.55 | EI23: 953548.55 | EJ23: 953548.55 | EK23: 953548.55 | EL23: 953548.55 | EM23: 953548.55 | EN23: 953548.55 | EO23: 953548.55 | EP23: 953548.55 | EQ23: 689319.215 | ER23: 634062.69 | ES23: 671442.46 | ET23: 671442.46 | EU23: 671442.46 | EV23: 671442.46 | EW23: 671442.46 | EX23: 671442.46 | EY23: 671442.46 | EZ23: 671442.46 | FA23: 671442.46 | FB23: 671442.46 | FC23: 671442.46 | FD23: 671442.46 | FE23: 671442.46 | FF23: 671442.46 | FG23: 671442.46 | FH23: 671442.46 | FI23: 671442.46 | FJ23: 671442.46 | FK23: 662974.4 | FL23: 662974.4 | FM23: 662974.4 | FN23: 733434 | FO23: 733434 | FP23: 733434 | FQ23: 776777.94 | FR23: 776777.94 | FS23: 776777.94 | FT23: 776777.94 | FU23: 776777.94 | FV23: 776777.94 | FW23: 776777.94 | FX23: 776777.94 | FY23: 776777.94 | FZ23: 780068.3338 | GA23: =+'Portfolio Imoveis-Real Estate'!$K$13 -> 780422.3712 | GB23: 780422 | GC23: 780422 | GD23: 780422.3712 | GE23: 780422.3712 | GF23: 780422.3712 | GG23: 780422.3712 | GH23: =+'Portfolio Imoveis-Real Estate'!$K$13 -> 780422.3712
B24: =IF(Cover!$B$1=1,Trans!A141,Trans!B141) -> Torre Almirante | C24: =Trans!C141 -> AAA | D24: 2051358 | E24: 2211456.935 | F24: 2211456.935 | G24: 2211456.935 | H24: 2211456.935 | I24: 2211456.94 | J24: 2211456.94 | K24: 2211456.94 | L24: 2211456.94 | M24: 2211456.93 | N24: 2374303.92 | O24: 2374303.92 | P24: 2375980.028 | Q24: 2211456.94 | R24: 2211456.94 | S24: 2211456.93 | T24: 2374303.92 | U24: 2374303.92 | V24: 3569390.362 | W24: 3569390.362 | X24: 3569390.362 | Y24: 3769863.67 | Z24: 3842642.72 | AA24: 3842642.72 | AB24: 3844719.01 | AC24: 3844719.01 | AD24: 3844719.007 | AE24: 3844719.007 | AF24: 3844719.007 | AG24: 3844719.007 | AH24: 3844719.007 | AI24: 3844719.007 | AJ24: 3844719.007 | AK24: 3844719.007 | AL24: 3952087.177 | AM24: 3991130.167 | AN24: 3992917.68 | AO24: 3992921.22 | AP24: 3992921.22 | AQ24: 3992921.22 | AR24: 3992921.22 | AS24: 3992921.22 | AT24: 3992921.22 | AU24: 3992921.22 | AV24: 3992921.22 | AW24: 3992921.22 | AX24: 4186135.83 | AY24: 4186135.83 | AZ24: 4186135.83 | BA24: 4186135.83 | BB24: 4187368.41 | BC24: 3660821 | BD24: 3660820.62 | BE24: 3660820.62 | BF24: 3660820.62 | BG24: 3660821 | BH24: 3660820.62 | BI24: 3660820.62 | BJ24: 3660820.62 | BK24: 3660821 | BL24: 3664555.86 | BM24: 3664555.86 | BN24: 3664556 | BO24: 4102198.39 | BP24: 4102198.39 | BQ24: 4102198 | BR24: 4102198 | BS24: 4102198.39 | BT24: 4102198.39 | BU24: 4102198.39 | BV24: 4102198.39 | BW24: 4102198.39 | BX24: 4104951.68 | BY24: 4104951.68 | BZ24: 41440.29018 | CA24: 41440.29018 | CB24: 41440.29018 | CC24: 565902.6902 | CD24: 565902.6902 | CE24: 565902.6902 | CF24: 565902.6902 | CG24: 565903 | CH24: 565902.6902 | CI24: 565902.6902 | CJ24: 565902.6902 | CK24: 565902.6902 | CL24: 565552.79 | CM24: 565552.79 | CN24: 565552.79 | CO24: 575445.889 | CP24: 575445.889 | CQ24: 575445.889 | CR24: 575445.889 | CS24: 575445.889 | CT24: 575445.889 | CU24: 575445.889 | CV24: 579422.739 | CW24: 579422.739 | CX24: 0 | CY24: 0 | CZ24: 0 | DA24: 0 | DB24: 0 | DC24: 0 | DD24: 0 | DE24: 0 | DF24: 0 | DG24: 0 | DH24: 0 | DI24: 0 | DJ24: 0 | DK24: 0 | DL24: 0 | DM24: 0 | DN24: 0 | DO24: 0 | DP24: 0 | DQ24: 0 | DR24: 0 | DS24: 0 | DT24: 0 | DU24: 0 | DV24: 0 | DW24: 0 | DX24: 0 | DY24: 0 | DZ24: 0 | EA24: 0 | EB24: 0 | EC24: 0 | ED24: 0 | EE24: 0 | EF24: 377249.8528 | EG24: 1209326.226 | EH24: 1209326.226 | EI24: 1273699.273 | EJ24: 1263385.347 | EK24: 1413287.907 | EL24: 1413287.907 | EM24: 1422396.982 | EN24: 1242486.126 | EO24: 1253192.919 | EP24: 1285160.919 | EQ24: 1292019.535 | ER24: 1295290.695 | ES24: 1300906.855 | ET24: 1300906.855 | EU24: 1305948.405 | EV24: 1330128.405 | EW24: 1332748.101 | EX24: 1360695.201 | EY24: 1363405.883 | EZ24: 1363405.883 | FA24: 1363405.883 | FB24: 1365063.513 | FC24: 1365063.513 | FD24: 1357902.363 | FE24: 1357902.363 | FF24: 1357902.363 | FG24: 1354987.953 | FH24: 1354987.953 | FI24: 1301467.017 | FJ24: 1301467.017 | FK24: 1305206.524 | FL24: 1305206.524 | FM24: 1310976.153 | FN24: 1335778.38 | FO24: 1335778.38 | FP24: 1365419.443 | FQ24: 1370087.592 | FR24: 1370087.592 | FS24: 1518588.505 | FT24: 1519964.895 | FU24: 1547912.805 | FV24: 1547912.805 | FW24: 1552846.19 | FX24: 1530306.839 | FY24: 1530306.839 | FZ24: 1535286.039 | GA24: =+'Portfolio Imoveis-Real Estate'!$K$14 -> 1579530.555 | GB24: 1538867 | GC24: 1538867 | GD24: 1544566.565 | GE24: 1549589.698 | GF24: 1676637.183 | GG24: 1573299.979 | GH24: =+'Portfolio Imoveis-Real Estate'!$K$14 -> 1579530.555
B25: =IF(Cover!$B$1=1,Trans!A142,Trans!B142) -> Transatlântico | C25: =Trans!C142 -> B | D25: 184343 | E25: 189150.483 | F25: 189150.483 | G25: 189150.483 | H25: 189150.483 | I25: 189150.48 | J25: 189150.48 | K25: 256956.61 | L25: 256956.61 | M25: 256956.61 | N25: 256956.61 | O25: 256956.61 | P25: 256956.61 | Q25: 256956.61 | R25: 256956.61 | S25: 256956.61 | T25: 256956.61 | U25: 256956.61 | V25: 269462.59 | W25: 270772.35 | X25: 270772.35 | Y25: 270772.35 | Z25: 270772.35 | AA25: 270772.35 | AB25: 270772.35 | AC25: 278099 | AD25: 278099 | AE25: 278099 | AF25: 278099 | AG25: 278099 | AH25: 296407.56 | AI25: 305913.97 | AJ25: 305913.97 | AK25: 305913.97 | AL25: 305913.97 | AM25: 305913.97 | AN25: 305913.97 | AO25: 313764.14 | AP25: 313764.14 | AQ25: 307449.98 | AR25: 313763.34 | AS25: 313763.34 | AT25: 324484.63 | AU25: 324484.63 | AV25: 326749.78 | AW25: 326749.78 | AX25: 326749.78 | AY25: 326749.78 | AZ25: 326749.78 | BA25: 326749.78 | BB25: 345619.44 | BC25: 345619.44 | BD25: 345619.44 | BE25: 345619.683 | BF25: 297441.39 | BG25: 299598 | BH25: 299597.91 | BI25: 299597.91 | BJ25: 299597.89 | BK25: 299598 | BL25: 299597.89 | BM25: 299597.89 | BN25: 299598 | BO25: 299597.9 | BP25: 299597.9 | BQ25: 299598 | BR25: 318625 | BS25: 318625.11 | BT25: 318625.11 | BU25: 287450.9195 | BV25: 287450.9195 | BW25: 287450.9195 | BX25: 243116.6195 | BY25: 243116.6195 | BZ25: 243116.6195 | CA25: 243116.6195 | CB25: 243116.6195 | CC25: 243116.6195 | CD25: 243116.6195 | CE25: 246553.075 | CF25: 246553.075 | CG25: 246553 | CH25: 246553.075 | CI25: 246553.075 | CJ25: 246553.075 | CK25: 246553.075 | CL25: 246553.075 | CM25: 246553.075 | CN25: 246553.075 | CO25: 246553.075 | CP25: 225505.875 | CQ25: 230689.1383 | CR25: 230689.1383 | CS25: 230889.1158 | CT25: 230889.1158 | CU25: 230889.1158 | CV25: 230889.1158 | CW25: 230889.1158 | CX25: 230889.1158 | CY25: 230889.1158 | CZ25: 230889.1158 | DA25: 230889.1158 | DB25: 238932.1958 | DC25: 201297.1158 | DD25: 201297.1158 | DE25: 201417.2759 | DF25: 201417.2759 | DG25: 201417.2759 | DH25: 201417.2759 | DI25: 201417.2759 | DJ25: 201417.2759 | DK25: 203587.0068 | DL25: 203587.0068 | DM25: 203587.0068 | DN25: 210960.3668 | DO25: 210960.3668 | DP25: 210960.3668 | DQ25: 211292.2508 | DR25: 211292.2508 | DS25: 214730.9842 | DT25: 214730.9842 | DU25: 214730.9842 | DV25: 214730.9842 | DW25: 214730.9842 | DX25: 214730.9842 | DY25: 214730.9842 | DZ25: 259419.6642 | EA25: 259419.6642 | EB25: 259419.6642 | EC25: 260315.811 | ED25: 260315.811 | EE25: 209943.9585 | EF25: 209943.9585 | EG25: 209943.9585 | EH25: 209943.9585 | EI25: 209943.98 | EJ25: 209943.98 | EK25: 209943.98 | EL25: 222289.43 | EM25: 222289.43 | EN25: 189829.68 | EO25: 190153.96 | EP25: 190153.96 | EQ25: 190153.96 | ER25: 190153.96 | ES25: 190153.96 | ET25: 190153.96 | EU25: 190153.96 | EV25: 190153.96 | EW25: 190153.96 | EX25: 194781.73 | EY25: 196946.4543 | EZ25: 196946.4543 | FA25: 196946.4543 | FB25: 196946.4543 | FC25: 196946.4543 | FD25: 196946.4543 | FE25: 196946.4543 | FF25: 196946.4543 | FG25: 0 | FH25: 0 | FI25: 0 | FJ25: 0 | FK25: 0 | FL25: 0 | FM25: 0 | FN25: 0 | FO25: 0 | FP25: 0 | FQ25: 0 | FR25: 0 | FS25: 0 | FT25: 0 | FU25: 0 | FV25: 0 | FW25: 0 | FX25: 0 | FY25: 0 | FZ25: 0 | GA25: 0 | GB25: 0 | GC25: 0 | GD25: 0 | GE25: 0 | GF25: 0 | GG25: 0 | GH25: 0
B26: =IF(Cover!$B$1=1,Trans!A143,Trans!B143) -> Volkswagen | C26: =Trans!C143 -> B | D26: 442567 | E26: 492678.9923 | F26: 492678.9923 | G26: 492678.9923 | H26: 492678.9923 | I26: 639057.6 | J26: 639057.6 | K26: 639057.6 | L26: 639057.6 | M26: 639057.6 | N26: 639057.6 | O26: 639057.6 | P26: 639057.6 | Q26: 639057.6 | R26: 639057.6 | S26: 639057.6 | T26: 639057.6 | U26: 639057.6 | V26: 662393.07 | W26: 662393.07 | X26: 662393.07 | Y26: 662393.07 | Z26: 662393.07 | AA26: 662393.07 | AB26: 662393.07 | AC26: 662393.07 | AD26: 662393.07 | AE26: 662393.07 | AF26: 662393.07 | AG26: 710734.36 | AH26: 710734.36 | AI26: 710734.36 | AJ26: 710734.36 | AK26: 710734.36 | AL26: 710734.36 | AM26: 710734.36 | AN26: 710734.36 | AO26: 710734.36 | AP26: 710734.36 | AQ26: 710734.36 | AR26: 710734.36 | AS26: 767485.4 | AT26: 767485.4 | AU26: 767485.4 | AV26: 767485.4 | AW26: 767485.4 | AX26: 767485.4 | AY26: 767485.4 | AZ26: 767485.4 | BA26: 816485.4 | BB26: 816485.4 | BC26: 816485.4 | BD26: 816485.4 | BE26: 816485.4 | BF26: 816485.4 | BG26: 816485 | BH26: 816485.4 | BI26: 816485.4 | BJ26: 816485.4 | BK26: 816485 | BL26: 903742.27 | BM26: 898871.67 | BN26: 898872 | BO26: 898871.67 | BP26: 898871.67 | BQ26: 898872 | BR26: 898872 | BS26: 898871.67 | BT26: 898871.67 | BU26: 898871.67 | BV26: 898871.67 | BW26: 977778.8563 | BX26: 977778.8563 | BY26: 977778.8563 | BZ26: 977778.8563 | CA26: 977778.8563 | CB26: 977778.8563 | CC26: 977778.8563 | CD26: 977778.8563 | CE26: 977778.8563 | CF26: 977778.8563 | CG26: 977779 | CH26: 977778.8563 | CI26: 977778.8563 | CJ26: 977778.8563 | CK26: 977778.8563 | CL26: 977778.8563 | CM26: 977778.8563 | CN26: 977778.8563 | CO26: 977778.8563 | CP26: 977778.8563 | CQ26: 977778.8563 | CR26: 977778.8563 | CS26: 977780 | CT26: 977780 | CU26: 1083312.77 | CV26: 1083312.77 | CW26: 1083312.77 | CX26: 1083312.77 | CY26: 1083312.77 | CZ26: 1083312.77 | DA26: 1083312.77 | DB26: 1083312.77 | DC26: 1083312.77 | DD26: 1083312.77 | DE26: 1083312.77 | DF26: 1083312.77 | DG26: 1117453.37 | DH26: 1117453.37 | DI26: 1117453.37 | DJ26: 1117453.37 | DK26: 1117453.37 | DL26: 1117453.37 | DM26: 1117453.37 | DN26: 1117453.37 | DO26: 1117453.37 | DP26: 1117453.37 | DQ26: 1117453.37 | DR26: 1117453.37 | DS26: 1351353.12 | DT26: 1351353.12 | DU26: 1351353.12 | DV26: 1117453.37 | DW26: 1117453.37 | DX26: 1117453.37 | DY26: 1117453.37 | DZ26: 1117453.37 | EA26: 1117453.37 | EB26: 1117453.37 | EC26: 1117453.37 | ED26: 1117453.37 | EE26: 1117453.37 | EF26: 1117453.37 | EG26: 1117453.37 | EH26: 1233438.33 | EI26: 1233438.33 | EJ26: 1233438.33 | EK26: 1233438.33 | EL26: 1233438.33 | EM26: 1233438.33 | EN26: 1233438.33 | EO26: 1233438.33 | EP26: 1233438.33 | EQ26: 1233438.33 | ER26: 1233438.33 | ES26: 1233438.33 | ET26: 1304663.22 | EU26: 1304663.22 | EV26: 1304663.22 | EW26: 1304663.22 | EX26: 1304663.22 | EY26: 1304663.22 | EZ26: 1304663.22 | FA26: 1130400 | FB26: 1130400 | FC26: 1130400 | FD26: 1130400 | FE26: 1130400 | FF26: 1130400 | FG26: 0 | FH26: 0 | FI26: 0 | FJ26: 0 | FK26: 0 | FL26: 0 | FM26: 0 | FN26: 0 | FO26: 0 | FP26: 0 | FQ26: 0 | FR26: 0 | FS26: 0 | FT26: 0 | FU26: 0 | FV26: 0 | FW26: 0 | FX26: 0 | FY26: 0 | FZ26: 0 | GA26: 0 | GB26: 0 | GC26: 0 | GD26: 0 | GE26: 0 | GF26: 0 | GG26: 0 | GH26: 0
B28: =IF(Cover!$B$1=1,Trans!A147,Trans!B147) -> Total Receita Contratada de Locação | D28: =SUM(D4:D27) -> 11084430 | E28: 11669356.05 | F28: 11676268.04 | G28: 12658226.67 | H28: 12752209.03 | I28: 13979443.47 | J28: 14201949.91 | K28: 14426817.63 | L28: 14598260.33 | M28: 14649442.73 | N28: 14840845.08 | O28: 14860855.05 | P28: 14894559 | Q28: 14426817.63 | R28: 14598260.33 | S28: 14649442.73 | T28: 14840845.08 | U28: 14860855.05 | V28: 16216144.75 | W28: 16254085.16 | X28: 16235437.1 | Y28: 16464586.04 | Z28: 16602004.97 | AA28: 16889953.76 | AB28: 19385333.98 | AC28: 19787493.48 | AD28: 19796828.71 | AE28: 20584240.04 | AF28: =SUM(AF4:AF27) -> 20463245 | AG28: 20597259.68 | AH28: 21875697.88 | AI28: 22041967.05 | AJ28: 21886312.73 | AK28: 22045398.84 | AL28: 22045766.32 | AM28: 23991275.93 | AN28: 24246955.95 | AO28: 24381776.45 | AP28: =SUM(AP4:AP27) -> 23626136.35 | AQ28: 22511869.26 | AR28: 21903829.67 | AS28: 21947269.46 | AT28: 22269285.89 | AU28: 22259836.61 | AV28: 22321940.62 | AW28: 21569948.8 | AX28: =SUM(AX4:AX27) -> 21761669.83 | AY28: 22627288.52 | AZ28: 23212027.15 | BA28: 23806175.9 | BB28: 23078491.67 | BC28: 21899889.85 | BD28: =SUM(BD4:BD27) -> 22043713.16 | BE28: =SUM(BE4:BE27) -> 21311369.72 | BF28: =SUM(BF4:BF27) -> 20852186.46 | BG28: =SUM(BG4:BG27) -> 22405569 | BH28: =SUM(BH4:BH27) -> 21865938.33 | BI28: 21705085.07 | BJ28: 21698632.33 | BK28: 21438551 | BL28: 22138767.3 | BM28: 19355159.67 | BN28: 19355160 | BO28: 18645331.02 | BP28: 18657336.08 | BQ28: 18446042 | BR28: =SUM(BR4:BR27) -> 18725993 | BS28: 18718741.47 | BT28: 18977992.48 | BU28: 19217175.59 | BV28: 19181779.14 | BW28: 19346319.94 | BX28: 19401072.11 | BY28: 19368174.14 | BZ28: 15132039.18 | CA28: 14845268.08 | CB28: 14212253.21 | CC28: 14683308.54 | CD28: 14532036.12 | CE28: 14761568.67 | CF28: 14720218.2 | CG28: 14432592 | CH28: 14370481.02 | CI28: 14215587.15 | CJ28: 14236391.22 | CK28: 14313053.04 | CL28: 14395328.09 | CM28: 14127793.89 | CN28: 14099310.03 | CO28: 13935629.75 | CP28: 13822906.43 | CQ28: 14054317.39 | CR28: 14230694.8 | CS28: 14339924 | CT28: 14397367.84 | CU28: 14738357.58 | CV28: 14768009.99 | CW28: 14981343.12 | CX28: 12145873.13 | CY28: 11725179.17 | CZ28: 11661963.48 | DA28: 11311381.64 | DB28: 11781453.68 | DC28: 12253582.12 | DD28: 12325906.86 | DE28: 12151661.88 | DF28: 12161373.64 | DG28: 12982369.32 | DH28: 13261775.65 | DI28: 13319546.49 | DJ28: 13421163.59 | DK28: 13491821.27 | DL28: 13548225.34 | DM28: 13548270.62 | DN28: 13621628.69 | DO28: 14743717.08 | DP28: 18606702.37 | DQ28: 18473434.74 | DR28: 18342242 | DS28: 19684814.66 | DT28: 19961219.99 | DU28: 19681063.13 | DV28: 19533729.85 | DW28: 19526219.57 | DX28: 19542924.17 | DY28: 19299214.51 | DZ28: 19453763.81 | EA28: 19350892.42 | EB28: 17293641.06 | EC28: =SUM(EC4:EC27) -> 17947499.49 | ED28: 17829998.37 | EE28: 18311245.42 | EF28: 18789896 | EG28: 19581065.75 | EH28: 19839235.01 | EI28: 19897655.95 | EJ28: 19991167.98 | EK28: 20370892.18 | EL28: 20481327.44 | EM28: 20398127.38 | EN28: 20167563.39 | EO28: 20337722.3 | EP28: 20727382.24 | EQ28: =SUM(EQ4:EQ27) -> 20650499.01 | ER28: 20595047.46 | ES28: 20654553.89 | ET28: 20787182.78 | EU28: 21270268.56 | EV28: 21416127.42 | EW28: 21492067.11 | EX28: 21316869.39 | EY28: 21482395.86 | EZ28: 21441559.25 | FA28: 21365495.81 | FB28: 21251932.63 | FC28: 21514908.98 | FD28: 21606694.79 | FE28: 21683174.07 | FF28: 21673087.62 | FG28: 16383813.37 | FH28: 15582822.03 | FI28: 15371893.68 | FJ28: 15556915.23 | FK28: 15561782.48 | FL28: 15543498.57 | FM28: 15607293.87 | FN28: 15772801.89 | FO28: =SUM(FO4:FO27) -> 15767302.5 | FP28: 16175028.46 | FQ28: 16272592.39 | FR28: 16305550 | FS28: 16477897.74 | FT28: 16541668.06 | FU28: 16657781.54 | FV28: 16716580.78 | FW28: 16822620.12 | FX28: 16683187.63 | FY28: 16683187.63 | FZ28: 16810864.83 | GA28: 16999583 | GB28: =SUM(GB4:GB27) -> 17030078.4 | GC28: 17093571.51 | GD28: 17275043.8 | GE28: 17280066.94 | GF28: 17451975.41 | GG28: 17661174.78 | GH28: =SUM(GH4:GH27) -> 17755202.72
B29: =IF(Cover!$B$1=1,Trans!A150,Trans!B150) -> % de valorização desde dez-10 | D29: - | E29: =(E28/$D$28)-1 -> 0.05277006121 | F29: 0.0533936377 | G29: 0.1419826436 | H29: 0.1504614161 | I29: 0.2611783799 | J29: 0.2812521629 | K29: 0.3015389722 | L29: 0.3170059558 | M29: 0.3216234605 | N29: 0.3388911365 | O29: 0.3406963687 | P29: 0.3437370255 | Q29: 0.3015389722 | R29: 0.3170059558 | S29: 0.3216234605 | T29: 0.3388911365 | U29: 0.3406963687 | V29: 0.4629660481 | W29: 0.4663889043 | X29: 0.464706539 | Y29: 0.4853795856 | Z29: 0.4977770594 | AA29: 0.5237548305 | AB29: 0.7488796427 | AC29: 0.7851611204 | AD29: 0.7860033141 | AE29: =(AE28/$D$28)-1 -> 0.8570409164 | AF29: =(AF28/$D$28)-1 -> 0.84612515 | AG29: 0.8582155045 | AH29: 0.9735518995 | AI29: 0.9885521449 | AJ29: 0.9745095356 | AK29: 0.9888617494 | AL29: =(AL28/$D$28)-1 -> 0.9888949022 | AM29: =(AM28/$D$28)-1 -> 1.164412237 | AN29: =(AN28/$D$28)-1 -> 1.187478828 | AO29: =(AO28/$D$28)-1 -> 1.19964188 | AP29: =(AP28/$D$28)-1 -> 1.131470572 | AQ29: 1.030945142 | AR29: 0.9760898549 | AS29: 0.980008847 | AT29: 1.009060086 | AU29: 1.008207604 | AV29: 1.013810419 | AW29: 0.9459682458 | AX29: =(AX28/$D$28)-1 -> 0.9632646718 | AY29: 1.041357879 | AZ29: 1.094111032 | BA29: 1.147713134 | BB29: 1.08206391 | BC29: 0.9757344175 | BD29: =(BD28/$D$28)-1 -> 0.9887096729 | BE29: =(BE28/$D$28)-1 -> 0.9226401108 | BF29: =(BF28/$D$28)-1 -> 0.881214141 | BG29: =(BG28/$D$28)-1 -> 1.02135509 | BH29: =(BH28/$D$28)-1 -> 0.9726714252 | BI29: 0.9581597858 | BJ29: 0.9575776405 | BK29: 0.9341139779 | BL29: 0.9972851378 | BM29: 0.7461574181 | BN29: 0.746 | BO29: 0.6821190639 | BP29: 0.6832021205 | BQ29: 0.664 | BR29: =(BR28/$D$28)-1 -> 0.6893961169 | BS29: 0.6887419079 | BT29: 0.7121306629 | BU29: 0.7337089587 | BV29: 0.7305156099 | BW29: 0.7453599271 | BX29: 0.7502994839 | BY29: 0.7473315399 | BZ29: 0.3651616886 | CA29: 0.3392901645 | CB29: 0.2821816915 | CC29: 0.3246787197 | CD29: 0.3110314302 | CE29: 0.3317390855 | CF29: 0.3280085847 | CG29: 0.3020599165 | CH29: 0.2964564724 | CI29: 0.2824824683 | CJ29: 0.2843593416 | CK29: 0.2912755133 | CL29: 0.2986980914 | CM29: 0.2745620562 | CN29: 0.2719923383 | CO29: 0.2572256536 | CP29: 0.2470561348 | CQ29: 0.2679332535 | CR29: 0.2838454304 | CS29: 0.2936997214 | CT29: 0.2988821111 | CU29: 0.3296450591 | CV29: 0.3323201996 | CW29: 0.3515663973 | CX29: 0.0957598298 | CY29: 0.05780623516 | CZ29: 0.05210312839 | DA29: 0.020474814 | DB29: 0.06288313264 | DC29: 0.1054769728 | DD29: 0.1120018672 | DE29: 0.09628207102 | DF29: 0.09715823332 | DG29: 0.1712257033 | DH29: 0.1964328026 | DI29: 0.2016446939 | DJ29: 0.2108122464 | DK29: 0.2171867445 | DL29: 0.2222753308 | DM29: 0.2222794153 | DN29: 0.2288975341 | DO29: 0.3301285753 | DP29: 0.6786341178 | DQ29: 0.6666111604 | DR29: 0.654775392 | DS29: 0.7758977825 | DT29: 0.8008341424 | DU29: 0.7755593325 | DV29: 0.7622674194 | DW29: 0.7615898673 | DX29: 0.7630968999 | DY29: 0.7411102338 | DZ29: 0.7550531518 | EA29: 0.7457724408 | EB29: 0.5601741412 | EC29: =(EC28/$D$28)-1 -> 0.6191630504 | ED29: 0.6085624941 | EE29: 0.6519789845 | EF29: 0.5943483456 | EG29: 0.766537905 | EH29: 0.7898290674 | EI29: 0.7950996083 | EJ29: 0.8035359488 | EK29: 0.8377933893 | EL29: 0.8477564871 | EM29: 0.8402504577 | EN29: 0.8194497502 | EO29: 0.8348009148 | EP29: 0.8699547241 | EQ29: =(EQ28/$D$28)-1 -> 0.863018577 | ER29: 0.8580159248 | ES29: 0.8633843954 | ET29: 0.8753497278 | EU29: 0.9189321024 | EV29: 0.932090998 | EW29: 0.9389420212 | EX29: 0.9231362723 | EY29: 0.9380695141 | EZ29: 0.9343853722 | FA29: 0.9275231842 | FB29: 0.9172778964 | FC29: 0.9410027381 | FD29: 0.9492833452 | FE29: 0.956183049 | FF29: 0.9552730833 | FG29: 0.478092547 | FH29: 0.4058298019 | FI29: 0.3868005553 | FJ29: 0.4034925773 | FK29: 0.4039316847 | FL29: 0.4022821716 | FM29: 0.408037569 | FN29: 0.4229691459 | FO29: =(FO28/FC28)-1 -> -0.2671452845 | FP29: 0.4592566749 | FQ29: 0.4680585638 | FR29: 0.4710318891 | FS29: 0.4865805222 | FT29: 0.4923336659 | FU29: 0.5028090338 | FV29: 0.5081137038 | FW29: 0.5176802161 | FX29: 0.5051010863 | FY29: 0.5051010863 | FZ29: 0.5166196935 | GA29: 0.5336452122 | GB29: =(GB28/$D$28)-1 -> 0.5363964047 | GC29: 0.5421245396 | GD29: 0.5584963597 | GE29: 0.5589495298 | GF29: 0.5744585338 | GG29: 0.5933317981 | GH29: =(GH28/$D$28)-1 -> 0.6018146824
B30: =IF(Cover!$B$1=1,Trans!A151,Trans!B151) -> % de valorização últimos 12 meses | D30: - | E30: - | F30: - | G30: - | H30: - | I30: - | J30: - | K30: - | L30: - | M30: - | N30: - | O30: - | P30: =(P28/D28)-1 -> 0.3437370255 | Q30: - | R30: - | S30: - | T30: - | U30: - | V30: =(V28/J28)-1 -> 0.1418252319 | W30: 0.1266576995 | X30: 0.1121487588 | Y30: 0.1239052801 | Z30: 0.1186697846 | AA30: 0.1365398356 | AB30: =(AB28/P28)-1 -> 0.3015043937 | AC30: =(AC28/Q28)-1 -> 0.3715771548 | AD30: =(AD28/R28)-1 -> 0.3561087604 | AE30: 0.4051210287 | AF30: 0.378846345 | AG30: 0.3860077106 | AH30: 0.3490073144 | AI30: 0.3560878285 | AJ30: 0.3480581147 | AK30: 0.3389585859 | AL30: =(AL28/Z28)-1 -> 0.3278978269 | AM30: 0.420446514 | AN30: 0.2507886619 | AO30: 0.2321811489 | AP30: 0.1934303565 | AQ30: 0.09364587734 | AR30: 0.07039864272 | AS30: 0.06554317417 | AT30: 0.01799202082 | AU30: 0.009884306646 | AV30: 0.01990412441 | AW30: =(AW28/AK28)-1 -> -0.02156686039 | AX30: -0.01288666908 | AY30: -0.05685347548 | AZ30: -0.04268283422 | BA30: -0.02360781842 | BB30: -0.02317961245 | BC30: -0.02718474452 | BD30: 0.006386257203 | BE30: =(BE28/AS28)-1 -> -0.02897397971 | BF30: -0.06363470473 | BG30: 0.006546875876 | BH30: -0.02042843428 | BI30: 0.006265025172 | BJ30: -0.002896721665 | BK30: -0.05253557072 | BL30: -0.04623723035 | BM30: -0.1869689717 | BN30: -0.187 | BO30: -0.1486107399 | BP30: -0.1536209919 | BQ30: -0.134 | BR30: -0.1019650129 | BS30: -0.1645496052 | BT30: -0.1320750932 | BU30: -0.1146233462 | BV30: -0.1159913282 | BW30: -0.09759199974 | BX30: -0.1236606878 | BY30: 0.0006724031715 | BZ30: -0.2181909539 | CA30: -0.2038077487 | CB30: -0.2382485289 | CC30: -0.2039859531 | CD30: -0.2239644586 | CE30: -0.211401648 | CF30: -0.2243532498 | CG30: -0.2489743391 | CH30: -0.2508264791 | CI30: -0.2652045871 | CJ30: -0.2662059531 | CK30: -0.2610014277 | CL30: -0.04868551306 | CM30: -0.0483301603 | CN30: -0.007946887141 | CO30: -0.05092032132 | CP30: -0.04879768247 | CQ30: -0.04791166131 | CR30: -0.0332551723 | CS30: -0.006420745291 | CT30: 0.0018709758 | CU30: 0.03677445261 | CV30: 0.03734224252 | CW30: 0.04669095272 | CX30: -0.1562628474 | CY30: -0.1700629796 | CZ30: -0.1728699169 | DA30: -0.1883121291 | DB30: -0.1476862164 | DC30: -0.1281268397 | DD30: -0.1338506639 | DE30: -0.1525992834 | DF30: -0.1553057634 | DG30: -0.1191440939 | DH30: -0.1019930472 | DI30: -0.1109244086 | DJ30: 0.1049978412 | DK30: 0.1506707978 | DL30: 0.1617447927 | DM30: 0.1977555923 | DN30: 0.1561925261 | DO30: 0.2032168992 | DP30: 0.5095605209 | DQ30: 0.5202393658 | DR30: 0.5082376833 | DS30: 0.5162728904 | DT30: 0.5051694825 | DU30: 0.4776076002 | DV30: 0.4554423485 | DW30: 0.4472634337 | DX30: 0.4424711482 | DY30: 0.4244780792 | DZ30: 0.428152554 | EA30: 0.3124839758 | EB30: -0.07056926542 | EC30: =(EC28/DQ28)-1 -> -0.0284698141 | ED30: -0.02792699128 | EE30: -0.06977811404 | EF30: -0.1146611961 | EG30: -0.005080893328 | EH30: 0.01563987833 | EI30: 0.01902244197 | EJ30: 0.02293637345 | EK30: 0.0555296004 | EL30: 0.05282081353 | EM30: 0.0541181741 | EN30: 0.1661837625 | EO30: 0.1331785976 | EP30: 0.1625005127 | EQ30: =(EQ28/EE28)-1 -> 0.1277495625 | ER30: 0.0960703271 | ES30: 0.05482276387 | ET30: 0.04778146804 | EU30: 0.06898363386 | EV30: 0.07127944927 | EW30: 0.0550380867 | EX30: 0.0407953027 | EY30: 0.05315529523 | EZ30: 0.06317053933 | FA30: 0.05053532984 | FB30: 0.02530712195 | FC30: 0.04185903572 | FD30: 0.04912090319 | FE30: 0.04980113274 | FF30: 0.04261784048 | FG30: -0.2297317111 | FH30: -0.2723790943 | FI30: -0.2847642992 | FJ30: -0.2702063824 | FK30: -0.2756030294 | FL30: -0.2750761085 | FM30: -0.2695093991 | FN30: -0.2578179988 | FO30: =(FO28/FC28)-1 -> -0.2671452845 | FP30: -0.2513881173 | FQ30: -0.2495290435 | FR30: -0.2476591113 | FS30: 0.005742519434 | FT30: 0.06153224514 | FU30: 0.08365188352 | FV30: 0.07454341275 | FW30: 0.08102141477 | FX30: 0.07332255715 | FY30: 0.06893531777 | FZ30: 0.06581347728 | GA30: 0.07815417378 | GB30: =(GB28/FP28)-1 -> 0.052862345 | GC30: 0.05045164924 | GD30: 0.05945790245 | GE30: 0.04868152555 | GF30: 0.05503117021 | GG30: 0.06023570677 | GH30: =(GH28/FV28)-1 -> 0.06213124274
B31: =IF(Cover!$B$1=1,Trans!A152,Trans!B152) -> % de valorização mês anterior | D31: - | E31: =E28/D28-1 -> 0.05277006121 | F31: 0.000592319745 | G31: 0.08409867189 | H31: 0.007424607128 | I31: 0.09623700744 | J31: 0.01591668813 | K31: 0.01583358054 | L31: 0.01188361156 | M31: 0.003506062169 | N31: 0.01306550353 | O31: 0.001348303914 | P31: 0.002267968284 | Q31: 0.01583358054 | R31: 0.01188361156 | S31: 0.003506062169 | T31: 0.01306550353 | U31: 0.001348303914 | V31: 0.09119863544 | W31: 0.002339668927 | X31: -0.001147284502 | Y31: 0.01411412188 | Z31: 0.008346333741 | AA31: 0.01734421755 | AB31: 0.1477434609 | AC31: 0.02074555437 | AD31: 0.0004717746026 | AE31: 0.03977461953 | AF31: =AF28/AE28-1 -> -0.005878043014 | AG31: 0.006549043831 | AH31: 0.06206836326 | AI31: 0.007600633859 | AJ31: -0.007061725464 | AK31: 0.007268748827 | AL31: =AL28/AK28-1 -> 1.6669238e-05 | AM31: =AM28/AL28-1 -> 0.08824867254 | AN31: =AN28/AM28-1 -> 0.0106572078 | AO31: =AO28/AN28-1 -> 0.005560306221 | AP31: =AP28/AO28-1 -> -0.03099200334 | AQ31: -0.04716247592 | AR31: -0.02700973367 | AS31: 0.001983205429 | AT31: 0.01467227756 | AU31: -0.0004243189691 | AV31: 0.002789958034 | AW31: -0.03368846075 | AX31: 0.008888339312 | AY31: 0.03977721824 | AZ31: 0.02584218739 | BA31: 0.02559659035 | BB31: -0.03056703578 | BC31: =BC28/BB28-1 -> -0.05106927411 | BD31: 0.006567307514 | BE31: =BE28/BD28-1 -> -0.03322232651 | BF31: -0.02154639842 | BG31: 0.07449494767 | BH31: -0.02408466727 | BI31: -0.007356338834 | BJ31: -0.0002972920282 | BK31: -0.01198606999 | BL31: 0.03266154975 | BM31: -0.1257345358 | BN31: -0.126 | BO31: -0.03667388874 | BP31: 0.0006438643703 | BQ31: -0.011 | BR31: 0.01517675174 | BS31: -0.000387244314 | BT31: 0.01384981028 | BU31: 0.01260318284 | BV31: -0.001841917465 | BW31: 0.008577973584 | BX31: 0.002830107823 | BY31: -0.0016956778 | BZ31: -0.2187162782 | CA31: -0.01895125271 | CB31: -0.04264085152 | CC31: 0.03314431062 | CD31: -0.0103023392 | CE31: 0.01579493428 | CF31: -0.002801225004 | CG31: -0.01953953347 | CH31: -0.004303522428 | CI31: -0.01077861415 | CJ31: 0.001463468922 | CK31: 0.005384919562 | CL31: 0.005748252805 | CM31: -0.01858479305 | CN31: -0.002016157537 | CO31: -0.01160909871 | CP31: -0.008088857284 | CQ31: 0.01674112186 | CR31: 0.01254969601 | CS31: 0.007675605493 | CT31: 0.004005867532 | CU31: 0.02368417251 | CV31: 0.002011920766 | CW31: 0.01444562476 | CX31: -0.1892667412 | CY31: -0.03463678227 | CZ31: -0.005391447484 | DA31: -0.03006199063 | DB31: 0.04155743782 | DC31: 0.04007386968 | DD31: 0.00590233406 | DE31: -0.01413648359 | DF31: 0.0007992124621 | DG31: 0.06750846664 | DH31: 0.02152198271 | DI31: 0.004356192244 | DJ31: 0.007629170639 | DK31: 0.00526464626 | DL31: 0.004180612617 | DM31: 3.34171519e-06 | DN31: 0.005414571081 | DO31: 0.08237549387 | DP31: 0.2620089132 | DQ31: -0.007162345486 | DR31: -0.007101697504 | DS31: 0.07319566816 | DT31: 0.01404155135 | DU31: -0.01403505703 | DV31: -0.007486042791 | DW31: -0.0003844774487 | DX31: 0.0008554957087 | DY31: -0.01247048083 | DZ31: 0.008008061636 | EA31: -0.005287994275 | EB31: -0.1063129966 | EC31: =EC28/EB28-1 -> 0.03780918273 | ED31: 0 | EE31: 0.02699086332 | EF31: -0.03488581844 | EG31: 0.04210612701 | EH31: 0.01318463781 | EI31: 0.002944717465 | EJ31: 0.004699650332 | EK31: 0.01899459811 | EL31: 0.005421228447 | EM31: -0.004062239503 | EN31: -0.01130319379 | EO31: 0.008437256691 | EP31: 0.01915946797 | EQ31: =EQ28/EP28-1 -> -0.003709259406 | ER31: -0.002685240083 | ES31: 0.002889356597 | ET31: 0.006421290441 | EU31: 0.02323959846 | EV31: 0.006857405487 | EW31: 0.003545911272 | EX31: -0.008151738796 | EY31: 0.007765046081 | EZ31: -0.001900933832 | FA31: -0.003547477202 | FB31: -0.005315260489 | FC31: 0.01237423214 | FD31: 0.004266149087 | FE31: 0.003539610512 | FF31: -0.000465174095 | FG31: -0.244048026 | FH31: -0.04888918848 | FI31: -0.01353595331 | FJ31: 0.0120363537 | FK31: 0.0003128676538 | FL31: -0.001174924068 | FM31: 0.004104307632 | FN31: 0.0106045302 | FO31: =FO28/FN28-1 -> -0.0003486628473 | FP31: 0 | FQ31: 0.006031761989 | FR31: 0.002025345132 | FS31: 0.01056988171 | FT31: 0.003870051848 | FU31: 0.007019454293 | FV31: 0.003529836355 | FW31: 0.006343362744 | FX31: -0.008288392812 | FY31: 0 | FZ31: 0.007653045589 | GA31: 0.01122596444 | GB31: =GB28/GA28-1 -> 0.001793891062 | GC31: 0.00372829229 | GD31: 0.01061640593 | GE31: 0.0002907739687 | GF31: 0.009948368253 | GG31: 0.01198714597 | GH31: =GH28/GG28-1 -> 0.005323991083
B32: =IF(Cover!$B$1=1,Trans!A148,Trans!B148) -> Receita Contratada de Locação Minoritários | D32: =(D8*(1-100%))*-1 -> 0 | E32: 0 | F32: 0 | G32: 0 | H32: 0 | I32: 0 | J32: 0 | K32: 0 | L32: =(L8*(1-69.36165%))*-1 -> -530391.5281 | M32: -530391.5281 | N32: -531337.1256 | O32: -535117.2791 | P32: -546538.3889 | Q32: 0 | R32: -530391.5281 | S32: -530391.5281 | T32: -531337.1256 | U32: -535117.2791 | V32: -530621.4597 | W32: -535476.2013 | X32: -537396.8459 | Y32: -537368.3951 | Z32: -640390.732 | AA32: -659676.2623 | AB32: =(AB8*(1-64.084%))*-1 -> -663901.7577 | AC32: =(AC8*(1-64.2006%))*-1 -> -709651.7067 | AD32: =(AD8*(1-64.3074%))*-1 -> -710866.5996 | AE32: =(AE8*(1-64.65596%))*-1 -> -716475.0103 | AF32: =(AF8*(1-66.2181%))*-1 -> -684808.1643 | AG32: =(AG8*(1-66.4803%))*-1 -> -679492.9896 | AH32: =(AH8*(1-66.7765%))*-1 -> -674906.6177 | AI32: =(AI8*(1-66.8407%))*-1 -> -719387.4091 | AJ32: =(AJ8*(1-66.9784%))*-1 -> -743460.6591 | AK32: =(AK8*(1-66.9784%))*-1 -> -752346.1541 | AL32: =(AL8*(1-66.9784%))*-1 -> -731447.2029 | AM32: =(AM8*(1-66.9784%))*-1 -> -738741.8361 | AN32: =(AN8*(1-66.9784%))*-1 -> -738741.8361 | AO32: =(AO8*(1-0.7098785))*-1 -> -655092.7078 | AP32: =(AP8*(1-71.6311%))*-1 -> -643231.6131 | AQ32: =(AQ8*(1-71.6311%))*-1 -> -648470.4723 | AR32: =(AR8*(1-0.7196718))*-1 -> -636361.3151 | AS32: -638618.3832 | AT32: =(AT8*(1-0.7196718))*-1 -> -640211.4239 | AU32: -644655.3323 | AV32: -623135.8988 | AW32: -623135.8988 | AX32: -614115.5092 | AY32: -616743.586 | AZ32: =(AZ8*(1-0.77332))*-1 -> -534699.7725 | BA32: -608093.9895 | BB32: -558467.7871 | BC32: -554799.5833 | BD32: -586156.2368 | BE32: -586176.638 | BF32: -615928.7507 | BG32: -612916.1984 | BH32: -599635.7539 | BI32: -585149.0766 | BJ32: -583722.5292 | BK32: -510459.8381 | BL32: -519839.0641 | BM32: -514302.962 | BN32: -514303 | BO32: -479795.66 | BP32: -464934.0417 | BQ32: -419624 | BR32: =(BR8*(1-0.78556))*-1 -> -425323.2982 | BS32: -423768.2758 | BT32: -415766.1813 | BU32: -418669.9218 | BV32: -426448.4521 | BW32: -429866.1208 | BX32: -398968.6118 | BY32: -403105.8723 | BZ32: -403105.8723 | CA32: -402549.888 | CB32: -404840.8269 | CC32: -405813.9444 | CD32: -405594.3268 | CE32: -405594.3268 | CF32: -406177.1162 | CG32: -391559.3661 | CH32: -369897.4065 | CI32: -369897.4065 | CJ32: -369897.4065 | CK32: -365743.6527 | CL32: -365743.6527 | CM32: -366534.797 | CN32: -336514.7382 | CO32: -298773.9955 | CP32: -298773.9955 | CQ32: -271810.7142 | CR32: -272800.9095 | CS32: -275426.2363 | CT32: -275120.5233 | CU32: -277318.7053 | CV32: -277317.6221 | CW32: -281617.2259 | CX32: -273012.6924 | CY32: -273086.5323 | CZ32: -251817.2475 | DA32: -251829.0798 | DB32: -303680.7454 | DC32: -365409.0798 | DD32: -366152.2649 | DE32: -366194.8892 | DF32: -366444.7151 | DG32: -359844.6666 | DH32: -359844.6622 | DI32: -363538.6002 | DJ32: -363981.4652 | DK32: -367011.031 | DL32: -348921.4327 | DM32: -348931.3757 | DN32: -356162.3174 | DO32: -353111.2295 | DP32: -354201.0026 | DQ32: -342013.423 | DR32: -319517.7517 | DS32: -305541.393 | DT32: -305541.3271 | DU32: -239701.9723 | DV32: -232228.389 | DW32: -233833.9322 | DX32: -218302.2024 | DY32: -210777.1104 | DZ32: -214920.6144 | EA32: -219654.0708 | EB32: -223621.2684 | EC32: =(EC8*(1-0.780382359402824))*-1 -> -222994.3675 | ED32: -210177.4598 | EE32: -214916.9907 | EF32: -214916.9907 | EG32: 214916.8846 | EH32: 220626.9404 | EI32: 220626.9404 | EJ32: 223674.759 | EK32: 226705.688 | EL32: 240347.9909 | EM32: 240347.9909 | EN32: 243948.0159 | EO32: 243948.0159 | EP32: 243948.0159 | EQ32: =(EQ8/0.780382359402824*(1-0.780382359402824)) -> 243948.0159 | ER32: 243948.0159 | ES32: 233746.037 | ET32: 234075.7642 | EU32: 234075.7642 | EV32: 235471.978 | EW32: 236644.3305 | EX32: 236644.3305 | EY32: 236644.3305 | EZ32: 235471.9709 | FA32: 235471.9709 | FB32: 235471.9709 | FC32: 235471.9709 | FD32: 235471.9709 | FE32: 235987.489 | FF32: 236259.6894 | FG32: 236259.6894 | FH32: 0 | FI32: 0 | FJ32: 0 | FK32: 0 | FL32: 0 | FM32: 0 | FN32: 0 | FO32: =(FO8/0.780382359402824*(1-0.780382359402824)) -> 0 | FP32: 0 | FQ32: 0 | FR32: 0 | FS32: 0 | FT32: 0 | FU32: 0 | FV32: 0 | FW32: 0 | FX32: 0 | FY32: 0 | FZ32: 0 | GA32: =(GA8/0.780382359402824*(1-0.780382359402824)) -> 0 | GB32: =(GB8/0.780382359402824*(1-0.780382359402824)) -> 0 | GC32: 0 | GD32: 0 | GE32: 0 | GF32: 0 | GG32: 0 | GH32: =(GH8/0.780382359402824*(1-0.780382359402824)) -> 0
B33: =IF(Cover!$B$1=1,Trans!A149,Trans!B149) -> Total Receita Contratada de Locação* | D33: =D28+D32 -> 11084430 | E33: =E28+E32 -> 11669356.05 | F33: 11676268.04 | G33: 12658226.67 | H33: 12752209.03 | I33: 13979443.47 | J33: 14201949.91 | K33: 14426817.63 | L33: 14067868.8 | M33: 14119051.21 | N33: 14309507.95 | O33: 14325737.77 | P33: 14348020.61 | Q33: 14426817.63 | R33: 14067868.8 | S33: 14119051.21 | T33: 14309507.95 | U33: 14325737.77 | V33: 15685523.29 | W33: 15718608.96 | X33: 15698040.26 | Y33: 15927217.64 | Z33: 15961614.24 | AA33: 16230277.49 | AB33: 18721432.22 | AC33: 19077841.77 | AD33: 19085962.12 | AE33: =AE28+AE32 -> 19867765.03 | AF33: =AF28+AF32 -> 19778436.83 | AG33: 19917766.7 | AH33: 21200791.26 | AI33: 21322579.64 | AJ33: 21142852.07 | AK33: 21293052.69 | AL33: =AL28+AL32 -> 21314319.12 | AM33: 23252534.1 | AN33: 23508214.11 | AO33: 23726683.74 | AP33: 22982904.74 | AQ33: 21863398.79 | AR33: 21267468.35 | AS33: 21308651.08 | AT33: 21629074.47 | AU33: 21615181.28 | AV33: 21698804.72 | AW33: 20946812.9 | AX33: =AX28+AX32 -> 21147554.32 | AY33: 22010544.93 | AZ33: 22677327.37 | BA33: 23198081.91 | BB33: 22520023.88 | BC33: 21345090.27 | BD33: 21457556.92 | BE33: 20725193.09 | BF33: 20236257.71 | BG33: 21792652.8 | BH33: 21266302.57 | BI33: 21119936 | BJ33: 21114909.8 | BK33: 20928091.16 | BL33: 21618928.24 | BM33: 18840856.71 | BN33: 18840857 | BO33: 18165535.36 | BP33: 18192402.04 | BQ33: 18026418 | BR33: =BR28+BR32 -> 18300669.7 | BS33: 18294973.19 | BT33: 18562226.3 | BU33: 18798505.67 | BV33: 18755330.69 | BW33: 18916453.82 | BX33: 19002103.5 | BY33: 18965068.27 | BZ33: 14728933.3 | CA33: 14442718.19 | CB33: 13807412.38 | CC33: 14277494.6 | CD33: 14126441.79 | CE33: 14355974.34 | CF33: 14314041.08 | CG33: 14041032.63 | CH33: 14000583.61 | CI33: 13845689.74 | CJ33: 13866493.81 | CK33: 13947309.39 | CL33: 14029584.43 | CM33: 13761259.1 | CN33: 13762795.3 | CO33: 13636855.76 | CP33: 13524132.44 | CQ33: 13782506.68 | CR33: 13957893.89 | CS33: 14064497.77 | CT33: 14122247.32 | CU33: 14461038.88 | CV33: 14490692.37 | CW33: 14699725.89 | CX33: 11872860.44 | CY33: 11452092.63 | CZ33: 11410146.23 | DA33: 11059552.56 | DB33: 11477772.94 | DC33: 11888173.04 | DD33: 11959754.59 | DE33: 11785466.99 | DF33: 11794928.92 | DG33: 12622524.66 | DH33: 12901930.99 | DI33: 12956007.89 | DJ33: 13057182.12 | DK33: 13124810.24 | DL33: 13199303.91 | DM33: 13199339.24 | DN33: 13265466.38 | DO33: 14390605.85 | DP33: 18252501.37 | DQ33: 18131421.32 | DR33: 18022724.25 | DS33: 19379273.26 | DT33: 19655678.67 | DU33: 19441361.16 | DV33: 19301501.46 | DW33: 19292385.64 | DX33: 19324621.97 | DY33: 19088437.4 | DZ33: 19238843.19 | EA33: 19131238.35 | EB33: 17070019.79 | EC33: =EC28+EC32 -> 17724505.12 | ED33: 17619820.91 | EE33: 18096328.42 | EF33: =EF28+EF32 -> 18574979.01 | EG33: 19581065.75 | EH33: 19839235.01 | EI33: 19897655.95 | EJ33: 19991167.98 | EK33: 20370892.18 | EL33: 20481327.44 | EM33: 20398127.38 | EN33: 20167563.39 | EO33: 20337722.3 | EP33: 20727382.24 | EQ33: =EQ28 -> 20650499.01 | ER33: 20595047.46 | ES33: 20654553.89 | ET33: 20787182.78 | EU33: 21270268.56 | EV33: 21416127.42 | EW33: 21492067.11 | EX33: 21316869.39 | EY33: 21482395.86 | EZ33: 21441559.25 | FA33: 21365495.81 | FB33: 21251932.63 | FC33: 21514908.98 | FD33: 21606694.79 | FE33: 21683174.07 | FF33: 21673087.62 | FG33: 16383813.37 | FH33: 15582822.03 | FI33: 15371893.68 | FJ33: 15556915.23 | FK33: 15561782.48 | FL33: 15543498.57 | FM33: 15607293.87 | FN33: 15772801.89 | FO33: =FO28 -> 15767302.5 | FP33: 16175028.46 | FQ33: 16272592.39 | FR33: 16305550 | FS33: 16477897.74 | FT33: 16541668.06 | FU33: 16657781.54 | FV33: 16716580.78 | FW33: 16822620.12 | FX33: 16683187.63 | FY33: 16683187.63 | FZ33: 16810864.83 | GA33: 16999583 | GB33: =GB28 -> 17030078.4 | GC33: 17093571.51 | GD33: 17275043.8 | GE33: 17280066.94 | GF33: 17451975.41 | GG33: 17661174.78 | GH33: =GH28 -> 17755202.72
B34: =IF(Cover!$B$1=1,Trans!A153,Trans!B153) -> * Medida não contábil que corresponde ao valor total dos contratos de locação vigentes no mês de referência, desconsiderando descontos, carências, multas e outros ajustes que impactam a receita contábil de locação.
AR35: =AS28/AR28-1 -> 0.001983205429
B36: =IF(Cover!$B$1=1,Trans!A2,Trans!B2) -> Data base: junho/2026 | D36: =D28/1000000 -> 11.08443 | E36: =E28/1000000 -> 11.66935605 | F36: 11.67626804 | G36: 12.65822667 | H36: 12.75220903 | I36: 13.97944347 | J36: 14.20194991 | K36: 14.42681763 | L36: 14.59826033 | M36: 14.64944273 | N36: 14.84084508 | O36: 14.86085505 | P36: 14.894559 | Q36: 14.42681763 | R36: 14.59826033 | S36: 14.64944273 | T36: 14.84084508 | U36: 14.86085505 | V36: 16.21614475 | W36: 16.25408516 | X36: 16.2354371 | Y36: 16.46458604 | Z36: 16.60200497 | AA36: 16.88995376 | AB36: 19.38533398 | AC36: 19.78749348 | AD36: 19.79682871 | AE36: 20.58424004 | AF36: 20.463245 | AG36: 20.59725968 | AH36: 21.87569788 | AI36: 22.04196705 | AJ36: 21.88631273 | AK36: 22.04539884 | AL36: 22.04576632 | AM36: 23.99127593 | AN36: 24.24695595 | AO36: 24.38177645 | AP36: 23.62613635 | AQ36: 22.51186926 | AR36: 21.90382967 | AS36: 21.94726946 | AT36: 22.26928589 | AU36: 22.25983661 | AV36: 22.32194062 | AW36: 21.5699488 | AX36: =AX28/1000000 -> 21.76166983 | AY36: 22.62728852 | AZ36: 23.21202715 | BA36: 23.8061759 | BB36: 23.07849167 | BC36: 21.89988985 | BD36: 22.04371316 | BE36: 21.31136972 | BF36: 20.85218646 | BG36: 22.405569 | BH36: 21.86593833 | BI36: 21.70508507 | BJ36: 21.69863233 | BK36: 21.438551 | BL36: 22.1387673 | BM36: 19.35515967 | BN36: 18.64533102 | BO36: 18.64533102 | BP36: 18.65733608 | BQ36: =BQ28/1000000 -> 18.446042 | BR36: =BR28/1000000 -> 18.725993 | BS36: =BS28/1000000 -> 18.71874147 | BT36: =BT28/1000000 -> 18.97799248 | BU36: 19.21717559 | BV36: 19.18177914 | BW36: 19.34631994 | BX36: 19.40107211 | BY36: 19.36817414 | BZ36: 15.13203918 | CA36: 14.84526808 | CB36: 14.21225321 | CC36: 14.68330854 | CD36: 14.53203612 | CE36: 14.76156867 | CF36: 14.7202182 | CG36: =CG28/1000000 -> 14.432592 | CH36: 14.37048102 | CI36: 14.21558715 | CJ36: 14.23639122 | CK36: =CK28/1000000 -> 14.31305304 | CL36: 14.39532809 | CM36: 14.12779389 | CN36: 14.09931003 | CO36: 13.93562975 | CP36: 13.82290643 | CQ36: =CQ28/1000000 -> 14.05431739 | CR36: 14.2306948 | CS36: 14.339924 | CT36: 14.39736784 | CU36: 14.73835758 | CV36: 14.76800999 | CW36: 14.98134312 | CX36: 12.14587313 | CY36: 11.72517917 | CZ36: 11.66196348 | DA36: 11.31138164 | DB36: 11.78145368 | DC36: 12.25358212 | DD36: 12.32590686 | DE36: 12.15166188 | DF36: 12.16137364 | DG36: =DG28/1000000 -> 12.98236932 | DH36: =DH28/1000000 -> 13.26177565 | DI36: =DI28/1000000 -> 13.31954649 | DJ36: =DJ28/1000000 -> 13.42116359 | DK36: 13.49182127 | DL36: =DL28/1000000 -> 13.54822534 | DM36: =DM28/1000000 -> 13.54827062 | DN36: 13.62162869 | DO36: 14.74371708 | DP36: =DP28/1000000 -> 18.60670237 | DQ36: 18.47343474 | DR36: =DR28/1000000 -> 18.342242 | DS36: =DS28/1000000 -> 19.68481466 | DT36: 19.96121999 | DU36: =DU28/1000000 -> 19.68106313 | DV36: =DV28/1000000 -> 19.53372985 | DW36: =DW28/1000000 -> 19.52621957 | DX36: 19.54292417 | DY36: 19.29921451 | DZ36: 19.45376381 | EA36: 19.35089242 | EB36: =EB28/10^6 -> 17.29364106 | EC36: =EC28/10^6 -> 17.94749949 | ED36: 17.82999837 | EE36: 18.31124542 | EF36: 18.789896 | EG36: =EG28/10^6 -> 19.58106575 | EH36: 19.83923501 | EI36: =EI28/10^6 -> 19.89765595 | EJ36: 19.99116798 | EK36: 20.37089218 | EL36: =EL28/10^6 -> 20.48132744 | EM36: =EM28/10^6 -> 20.39812738 | EN36: 20.16756339 | EO36: 20.3377223 | EP36: 20.72738224 | EQ36: =EQ28/10^6 -> 20.65049901 | ER36: 20.59504746 | ES36: 20.65455389 | ET36: 20.78718278 | EU36: 21.27026856 | EV36: =EV28/10^6 -> 21.41612742 | EW36: 21.49206711 | EX36: 21.31686939 | EY36: 21.48239586 | EZ36: 21.44155925 | FA36: 21.36549581 | FB36: 21.25193263 | FC36: 21.51490898 | FD36: 21.60669479 | FE36: =FE28/10^6 -> 21.68317407 | FF36: =FF28/10^6 -> 21.67308762 | FG36: 16.38381337 | FH36: 15.58282203 | FI36: 15.37189368 | FJ36: 15.55691523 | FK36: 15.56178248 | FL36: 15.54349857 | FM36: 15.60729387 | FN36: 15.77280189 | FO36: 15.7673025 | FP36: 16.17502846 | FQ36: 16.27259239 | FR36: 16.30555 | FS36: 16.47789774 | FT36: 16.54166806 | FU36: 16.65778154 | FV36: 16.71658078 | FW36: 16.82262012 | FX36: 16.68318763 | FY36: 16.68318763 | FZ36: 16.81086483 | GA36: 16.999583 | GB36: 17.0300784 | GC36: 17.09357151 | GD36: 17.2750438 | GE36: 17.28006694 | GF36: 17.45197541 | GG36: 17.66117478 | GH36: =GH28/10^6 -> 17.75520272
B37: =IF(Cover!$B$1=1,Trans!A155,Trans!B155) -> Aniversários dos Contratos de Locação - % de Contratos que sofrerão reajuste de inflação
D38: =IF(Cover!$B$1=1,Trans!E156,Trans!E157) -> jun/26 | E38: =IF(Cover!$B$1=1,Trans!F156,Trans!F157) -> jul/26 | F38: =IF(Cover!$B$1=1,Trans!G156,Trans!G157) -> aug/26 | G38: =IF(Cover!$B$1=1,Trans!H156,Trans!H157) -> set/26 | H38: =IF(Cover!$B$1=1,Trans!I156,Trans!I157) -> out/26 | I38: =IF(Cover!$B$1=1,Trans!J156,Trans!J157) -> nov/26 | J38: =IF(Cover!$B$1=1,Trans!K156,Trans!K157) -> dez/26 | K38: =IF(Cover!$B$1=1,Trans!L156,Trans!L157) -> jan/27 | L38: =IF(Cover!$B$1=1,Trans!M156,Trans!M157) -> fev/27 | M38: =IF(Cover!$B$1=1,Trans!N156,Trans!N157) -> mar/27 | N38: =IF(Cover!$B$1=1,Trans!O156,Trans!O157) -> abr/27 | O38: =IF(Cover!$B$1=1,Trans!P156,Trans!P157) -> mai/27
B39: =IF(Cover!$B$1=1,Trans!A162,Trans!B162) -> CEO Office | D39: 0 | E39: 0.01893810247 | F39: 0 | G39: 0 | H39: 0 | I39: 0 | J39: 0 | K39: 0 | L39: 0 | M39: 0 | N39: 0 | O39: 0
B40: =IF(Cover!$B$1=1,Trans!A164,Trans!B164) -> Diamond Tower | D40: 0 | E40: 0.07624179039 | F40: 0.01326264657 | G40: 0.005832954106 | H40: 0.02639665964 | I40: 0.0171953187 | J40: 0 | K40: 0 | L40: 0.006657958373 | M40: 0.02605288059 | N40: 0 | O40: 0.05944565109
B41: =IF(Cover!$B$1=1,Trans!A165,Trans!B165) -> Eldorado | D41: 0.04198400917 | E41: 0.01812857078 | F41: 0 | G41: 0.03171900481 | H41: 0.0258417283 | I41: 0 | J41: 0 | K41: 0.0125781506 | L41: 0 | M41: 0.01483311697 | N41: 0.0381824602 | O41: 0.0312114885
B42: =IF(Cover!$B$1=1,Trans!A166,Trans!B166) -> EZ Towers | D42: 0.02416800455 | E42: 0.0663822429 | F42: 0.02429171536 | G42: 0.06861664321 | H42: 0.007361913539 | I42: 0 | J42: 0.005229206489 | K42: 0 | L42: 0 | M42: 0 | N42: 0 | O42: 0
B43: =IF(Cover!$B$1=1,Trans!A170,Trans!B170) -> Montreal | D43: 0 | E43: 0 | F43: 0 | G43: 0 | H43: 0 | I43: 0.003862008753 | J43: 0 | K43: 0 | L43: 0.01053429148 | M43: 0 | N43: 0.003589691802 | O43: 0
B44: =IF(Cover!$B$1=1,Trans!A171,Trans!B171) -> MV9 | D44: 0 | E44: 0 | F44: 0 | G44: 0 | H44: 0 | I44: 0 | J44: 0 | K44: 0.03679976793 | L44: 0 | M44: 0 | N44: 0 | O44: 0
B45: =IF(Cover!$B$1=1,Trans!A172,Trans!B172) -> Senado | D45: 0 | E45: 0 | F45: 0 | G45: 0 | H45: 0 | I45: 0.1736347519 | J45: 0 | K45: 0 | L45: 0 | M45: 0 | N45: 0 | O45: 0
B46: =IF(Cover!$B$1=1,Trans!A173,Trans!B173) -> Sucupira | D46: 0 | E46: 0 | F46: 0 | G46: 0 | H46: 0.003486327313 | I46: 0 | J46: 0 | K46: 0.03322972962 | L46: 0 | M46: 0 | N46: 0 | O46: 0
B47: =IF(Cover!$B$1=1,Trans!A174,Trans!B174) -> Torre Almirante | D47: 0 | E47: 0.004326277076 | F47: 0 | G47: 0.0113431101 | H47: 0.001737408826 | I47: 0.002262496844 | J47: 0 | K47: 0.004497285356 | L47: 0 | M47: 0.02265208164 | N47: 0.001298652916 | O47: 0.02619390117
B48: =IF(Cover!$B$1=1,Trans!A180,Trans!B180) -> Total | D48: =SUM(D39:D47) -> 0.06615201372 | E48: =SUM(E39:E47) -> 0.1840169836 | F48: 0.03755436193 | G48: 0.1175117122 | H48: 0.06482403762 | I48: 0.1969545762 | J48: 0.005229206489 | K48: 0.0871049335 | L48: 0.01719224985 | M48: 0.06353807919 | N48: 0.04307080492 | O48: 0.1168510408
B51: =IF(Cover!$B$1=1,Trans!A181,Trans!B181) -> Renegociações dos Contratos de Locação - Cronograma de Vencimento de Contratos
D52: 2026 | E52: 2027 | F52: 2028 | G52: 2029 | H52: 2030 | I52: Total < 2030 | J52: > 2030
B53: SP | D53: 0.041 | E53: 0.071 | F53: 0.098 | G53: 0.215 | H53: 0.04 | I53: =SUM(D53:H53) -> 0.465 | J53: 0.199
B54: RJ | D54: 0.038 | E54: 0.007 | F54: 0.004 | G54: 0.014 | H54: 0.212 | I54: =SUM(D54:H54) -> 0.275 | J54: 0.061
B55: =IF(Cover!$B$1=1,Trans!A204,Trans!B204) -> Outros | D55: 0 | E55: 0 | F55: 0 | G55: 0 | H55: 0 | I55: =SUM(D55:H55) -> 0 | J55: 0
B56: =IF(Cover!$B$1=1,Trans!A203,Trans!B203) -> TOTAL | D56: =SUM(D53:D55) -> 0.079 | E56: 0.078 | F56: 0.102 | G56: 0.229 | H56: 0.252 | I56: 0.74 | J56: 0.26
B57: =IF(Cover!$B$1=1,Trans!A205,Trans!B205) -> Acumulado | D57: =D56 -> 0.079 | E57: =D57+E56 -> 0.157 | F57: =E57+F56 -> 0.259 | G57: =F57+G56 -> 0.488 | H57: =G57+H56 -> 0.74 | I57: =+I56 -> 0.74 | J57: =I57+J56 -> 1
B58: Suporte gráfico | E58: =+D57 -> 0.079 | F58: =+E57 -> 0.157 | G58: =+F57 -> 0.259 | H58: =+G57 -> 0.488
D71: =D57-D56 -> 0 | E71: =D57 -> 0.079 | F71: =E57 -> 0.157 | G71: =F57 -> 0.259 | H71: =J57-J56 -> 0.74 | I71: =J57 -> 1

Sheet Desempenho - Performance
B1: ='Receita Locação - Lease Revenue'!B1 -> Fundo Imobiliário BTG Pactual Corporate Office Fund – BRCR11
B2: =IF(Cover!$B$1=1,Trans!A209,Trans!B209) -> Análise de Desempenho da Cota
D3: =IF(Cover!$B$1=1,Trans!E$550,Trans!E$551) -> 2011-01-01 | E3: =IF(Cover!$B$1=1,Trans!F$550,Trans!F$551) -> 2011-02-01 | F3: =IF(Cover!$B$1=1,Trans!G$550,Trans!G$551) -> 2011-03-01 | G3: =IF(Cover!$B$1=1,Trans!H$550,Trans!H$551) -> 2011-04-01 | H3: =IF(Cover!$B$1=1,Trans!I$550,Trans!I$551) -> 2011-05-01 | I3: =IF(Cover!$B$1=1,Trans!J$550,Trans!J$551) -> 2011-06-01 | J3: =IF(Cover!$B$1=1,Trans!K$550,Trans!K$551) -> 2011-07-01 | K3: =IF(Cover!$B$1=1,Trans!L$550,Trans!L$551) -> 2011-08-01 | L3: =IF(Cover!$B$1=1,Trans!M$550,Trans!M$551) -> 2011-09-01 | M3: =IF(Cover!$B$1=1,Trans!N$550,Trans!N$551) -> 2011-10-01 | N3: =IF(Cover!$B$1=1,Trans!O$550,Trans!O$551) -> 2011-11-01 | O3: =IF(Cover!$B$1=1,Trans!P$550,Trans!P$551) -> 2011-12-01 | P3: =IF(Cover!$B$1=1,Trans!Q$550,Trans!Q$551) -> 2012-01-01 | Q3: =IF(Cover!$B$1=1,Trans!R$550,Trans!R$551) -> 2012-02-01 | R3: =IF(Cover!$B$1=1,Trans!S$550,Trans!S$551) -> 2012-03-01 | S3: =IF(Cover!$B$1=1,Trans!T$550,Trans!T$551) -> 2012-04-01 | T3: =IF(Cover!$B$1=1,Trans!U$550,Trans!U$551) -> 2012-05-01 | U3: =IF(Cover!$B$1=1,Trans!V$550,Trans!V$551) -> 2012-06-01 | V3: =IF(Cover!$B$1=1,Trans!W$550,Trans!W$551) -> 2012-07-01 | W3: 2012-08-01 | X3: 2012-09-01 | Y3: 2012-10-01 | Z3: 2012-11-01 | AA3: 2012-12-01 | AB3: =IF(Cover!$B$1=1,Trans!AC$550,Trans!AC$551) -> 2013-01-01 | AC3: =IF(Cover!$B$1=1,Trans!AD$550,Trans!AD$551) -> 2013-02-01 | AD3: =IF(Cover!$B$1=1,Trans!AE$550,Trans!AE$551) -> 2013-03-01 | AE3: =IF(Cover!$B$1=1,Trans!AF$550,Trans!AF$551) -> 2013-04-01 | AF3: =IF(Cover!$B$1=1,Trans!AG$550,Trans!AG$551) -> 2013-05-01 | AG3: =IF(Cover!$B$1=1,Trans!AH$550,Trans!AH$551) -> 2013-06-01 | AH3: =IF(Cover!$B$1=1,Trans!AI$550,Trans!AI$551) -> 2013-07-01 | AI3: =IF(Cover!$B$1=1,Trans!AJ$550,Trans!AJ$551) -> 2013-08-01 | AJ3: =IF(Cover!$B$1=1,Trans!AK$550,Trans!AK$551) -> 2013-09-01 | AK3: =IF(Cover!$B$1=1,Trans!AL$550,Trans!AL$551) -> 2013-10-01 | AL3: =IF(Cover!$B$1=1,Trans!AM$550,Trans!AM$551) -> 2013-11-01 | AM3: =IF(Cover!$B$1=1,Trans!AN$550,Trans!AN$551) -> 2013-12-01 | AN3: =IF(Cover!$B$1=1,Trans!AO$550,Trans!AO$551) -> 2014-01-01 | AO3: =IF(Cover!$B$1=1,Trans!AP$550,Trans!AP$551) -> 2014-02-01 | AP3: =IF(Cover!$B$1=1,Trans!AQ$550,Trans!AQ$551) -> 2014-03-01 | AQ3: =IF(Cover!$B$1=1,Trans!AR$550,Trans!AR$551) -> 2014-04-01 | AR3: =IF(Cover!$B$1=1,Trans!AS$550,Trans!AS$551) -> 2014-05-01 | AS3: =IF(Cover!$B$1=1,Trans!AT$550,Trans!AT$551) -> 2014-06-01 | AT3: =IF(Cover!$B$1=1,Trans!AU$550,Trans!AU$551) -> 2014-07-01 | AU3: =IF(Cover!$B$1=1,Trans!AV$550,Trans!AV$551) -> 2014-08-01 | AV3: =IF(Cover!$B$1=1,Trans!AW$550,Trans!AW$551) -> 2014-09-01 | AW3: =IF(Cover!$B$1=1,Trans!AX$550,Trans!AX$551) -> 2014-10-01 | AX3: =IF(Cover!$B$1=1,Trans!AY$550,Trans!AY$551) -> 2014-11-01 | AY3: =IF(Cover!$B$1=1,Trans!AZ$550,Trans!AZ$551) -> 2014-12-01 | AZ3: =IF(Cover!$B$1=1,Trans!BA$550,Trans!BA$551) -> 2015-01-01 | BA3: =IF(Cover!$B$1=1,Trans!BB$550,Trans!BB$551) -> 2015-02-01 | BB3: =IF(Cover!$B$1=1,Trans!BC$550,Trans!BC$551) -> 2015-03-01 | BC3: =IF(Cover!$B$1=1,Trans!BD$550,Trans!BD$551) -> 2015-04-01 | BD3: =IF(Cover!$B$1=1,Trans!BE$550,Trans!BE$551) -> 2015-05-01 | BE3: =IF(Cover!$B$1=1,Trans!BF$550,Trans!BF$551) -> 2015-06-01 | BF3: =IF(Cover!$B$1=1,Trans!BG$550,Trans!BG$551) -> 2015-07-01 | BG3: =IF(Cover!$B$1=1,Trans!BH$550,Trans!BH$551) -> 2015-08-01 | BH3: 2015-09-01 | BI3: 2015-10-01 | BJ3: =IF(Cover!$B$1=1,Trans!BK$550,Trans!BK$551) -> 2015-11-01 | BK3: =IF(Cover!$B$1=1,Trans!BL$550,Trans!BL$551) -> 2015-12-01 | BL3: 2016-01-01 | BM3: 2016-02-01 | BN3: 2016-03-01 | BO3: 2016-04-01 | BP3: 2016-05-01 | BQ3: =IF(Cover!$B$1=1,Trans!BR$550,Trans!BR$551) -> 2016-06-01 | BR3: =IF(Cover!$B$1=1,Trans!BS$550,Trans!BS$551) -> 2016-07-01 | BS3: =IF(Cover!$B$1=1,Trans!BT$550,Trans!BT$551) -> 2016-08-01 | BT3: 2016-09-01 | BU3: 2016-10-01 | BV3: 2016-11-01 | BW3: 2016-12-01 | BX3: 2017-01-01 | BY3: 2017-02-01 | BZ3: 2017-03-01 | CA3: 2017-04-01 | CB3: 2017-05-01 | CC3: 2017-06-01 | CD3: 2017-07-01 | CE3: 2017-08-01 | CF3: 2017-09-01 | CG3: =IF(Cover!$B$1=1,Trans!CH$550,Trans!CH$551) -> 2017-10-01 | CH3: 2017-11-01 | CI3: 2017-12-01 | CJ3: 2018-01-01 | CK3: 2018-02-01 | CL3: 2018-03-01 | CM3: 2018-04-01 | CN3: 2018-05-01 | CO3: 2018-06-01 | CP3: 2018-07-01 | CQ3: =IF(Cover!$B$1=1,Trans!CR$550,Trans!CR$551) -> 2018-08-01 | CR3: 2018-09-01 | CS3: 2018-10-01 | CT3: 2018-11-01 | CU3: 2018-12-01 | CV3: =IF(Cover!$B$1=1,Trans!CW$550,Trans!CW$551) -> 2019-01-01 | CW3: 2019-02-01 | CX3: 2019-03-01 | CY3: 2019-04-01 | CZ3: 2019-05-01 | DA3: 2019-06-01 | DB3: 2019-07-01 | DC3: 2019-08-01 | DD3: 2019-09-01 | DE3: 2019-10-01 | DF3: 2019-11-01 | DG3: 2019-12-01 | DH3: 2020-01-01 | DI3: 2020-02-01 | DJ3: 2020-03-01 | DK3: 2020-04-01 | DL3: 2020-05-01 | DM3: 2020-06-01 | DN3: 2020-07-01 | DO3: 2020-08-01 | DP3: 2020-09-01 | DQ3: 2020-10-01 | DR3: 2020-11-01 | DS3: 2020-12-01 | DT3: 2021-01-01 | DU3: 2021-02-01 | DV3: 2021-03-01 | DW3: 2021-04-01 | DX3: =IF(Cover!$B$1=1,Trans!DY$550,Trans!DY$551) -> 2021-05-01 | DY3: 2021-06-01 | DZ3: 2021-07-01 | EA3: 2021-08-01 | EB3: 2021-09-01 | EC3: 2021-10-01 | ED3: 2021-11-01 | EE3: 2021-12-01 | EF3: 2022-01-01 | EG3: 2022-02-01 | EH3: 2022-03-01 | EI3: 2022-04-01 | EJ3: 2022-05-01 | EK3: 2022-06-01 | EL3: 2022-07-01 | EM3: 2022-08-01 | EN3: 2022-09-01 | EO3: 2022-10-01 | EP3: 2022-11-01 | EQ3: 2022-12-01 | ER3: 2023-01-01 | ES3: 2023-02-01 | ET3: 2023-03-01 | EU3: 2023-04-01 | EV3: 2023-05-01 | EW3: 2023-06-01 | EX3: 2023-07-01 | EY3: 2023-08-01 | EZ3: 2023-09-01 | FA3: 2023-10-01 | FB3: 2023-11-01 | FC3: 2023-12-01 | FD3: 2024-01-01 | FE3: 2024-02-01 | FF3: 2024-03-01 | FG3: 2024-04-01 | FH3: 2024-05-01 | FI3: 2024-06-01 | FJ3: 2024-07-01 | FK3: 2024-08-01 | FL3: 2024-09-01 | FM3: 2024-10-01 | FN3: 2024-11-01 | FO3: 2024-12-01 | FP3: 2025-01-01 | FQ3: 2025-02-01 | FR3: 2025-03-01 | FS3: 2025-04-01 | FT3: 2025-05-01 | FU3: 2025-06-01 | FV3: 2025-07-01 | FW3: 2025-08-01 | FX3: =IF(Cover!$B$1=1,Trans!FY$550,Trans!FY$551) -> 2025-09-01 | FY3: 2025-10-01 | FZ3: 2025-11-01 | GA3: =IF(Cover!$B$1=1,Trans!GB$550,Trans!GB$551) -> 2025-12-01 | GB3: =IF(Cover!$B$1=1,Trans!GC$550,Trans!GC$551) -> 2026-01-01 | GC3: 2026-02-01 | GD3: 2026-03-01 | GE3: 2026-04-01 | GF3: 2026-05-01 | GG3: =IF(Cover!$B$1=1,Trans!GH$550,Trans!GH$551) -> 2026-06-01 | GH3: =IF(Cover!$B$1=1,Trans!GI$550,Trans!GI$551) -> 2026-07-01
AZ4: =WORKDAY(DATE(YEAR(AZ3),MONTH(AZ3)+1,1),-1) -> 2015-01-30 | BA4: 2015-02-27 | BB4: 2015-03-31 | BC4: 2015-04-30 | BD4: 2015-05-29 | BE4: 2015-06-30 | BF4: =WORKDAY(DATE(YEAR(BF3),MONTH(BF3)+1,1),-1) -> 2015-07-31 | BG4: =WORKDAY(DATE(YEAR(BG3),MONTH(BG3)+1,1),-1) -> 2015-08-31 | BH4: 2015-09-30 | BI4: 2015-10-30 | BJ4: 2015-11-30 | BK4: 2015-12-30 | BL4: 2016-01-29 | BM4: 2016-02-29 | BN4: 2016-03-31 | BO4: 2016-04-29 | BP4: 2016-05-31 | BQ4: 2016-06-30 | BR4: =WORKDAY(DATE(YEAR(BR3),MONTH(BR3)+1,1),-1) -> 2016-07-29 | BS4: =WORKDAY(DATE(YEAR(BS3),MONTH(BS3)+1,1),-1) -> 2016-08-31 | BT4: 2016-09-30 | BU4: 2016-10-31 | BV4: 2016-11-30 | BW4: 2016-12-29 | BX4: 2017-01-30 | BY4: 2017-02-24 | BZ4: 2017-03-29 | CA4: 2017-04-26 | CB4: 2017-05-31 | CC4: 2017-06-30 | CD4: 2017-07-31 | CE4: 2017-08-31 | CF4: 2017-09-29 | CG4: 2017-10-31 | CH4: 2017-11-30 | CI4: 2017-12-28 | CJ4: 2018-01-30 | CK4: 2018-02-27 | CL4: 2018-03-29 | CM4: 2018-04-27 | CN4: 2018-05-30 | CO4: 2018-06-28 | CP4: 2018-07-30 | CQ4: =WORKDAY(DATE(YEAR(CQ3),MONTH(CQ3)+1,1),-2) -> 2018-08-30 | CR4: 2018-09-27 | CS4: 2018-10-30 | CT4: 2018-11-29 | CU4: 2018-12-28 | CV4: =WORKDAY(DATE(YEAR(CV3),MONTH(CV3)+1,1),-2) -> 2019-01-30 | CW4: 2019-02-27 | CX4: 2019-03-29 | CY4: 2019-04-30 | CZ4: 2019-05-31 | DA4: 2019-06-28 | DB4: 2019-07-31 | DC4: 2019-08-30 | DD4: 2019-09-30 | DE4: 2019-10-31 | DG4: 2019-12-30 | DH4: 2020-01-31 | DI4: 2020-02-28 | DJ4: 2020-03-31 | DK4: 2020-04-30 | DL4: 2020-05-29 | DM4: 2020-06-30 | DN4: 2020-07-31 | DO4: 2020-08-31 | DP4: 2020-09-30 | DQ4: 2020-10-30 | DR4: 2020-11-30 | DS4: 2020-12-30 | DT4: 2021-01-29 | DU4: 2021-02-26 | DV4: 2021-03-31 | DW4: 2021-04-30 | DX4: 2021-05-31 | DY4: 2021-06-30 | DZ4: 2021-07-30 | EA4: 2021-08-31 | EB4: 2021-09-30 | EC4: 2021-10-31 | ED4: 2021-11-30 | EE4: 2021-12-30 | EF4: 2022-01-31 | EG4: 2022-02-25 | EH4: 2022-03-31 | EI4: 2022-04-29 | EJ4: 2022-05-31 | EK4: 2022-06-30 | EL4: 2022-07-29 | EM4: 2022-08-31 | EN4: 2022-09-30 | EO4: 2022-10-31 | EP4: 2022-11-30 | EQ4: 2022-12-29 | ER4: 2023-01-31 | ES4: 2023-02-28 | ET4: 2023-02-28 | EU4: 2023-04-28 | EV4: 2023-05-31 | EW4: 2023-06-30 | EX4: 2023-07-31 | EY4: 2023-08-31 | EZ4: 2023-09-29 | FA4: 2023-10-31 | FB4: 2023-11-30 | FC4: 2023-12-28 | FD4: 2024-01-31 | FE4: 2024-02-29 | FF4: 2024-03-28 | FG4: 2024-04-30 | FH4: 2024-05-31 | FI4: 2024-06-28 | FJ4: 2024-07-31 | FK4: 2024-08-30 | FL4: 2024-09-30 | FM4: 2024-10-31 | FN4: 2024-11-29 | FO4: 2024-12-30 | FP4: 2025-01-31 | FQ4: 2025-02-28 | FR4: 2025-03-31 | FS4: 2025-04-30 | FT4: 2025-05-30 | FU4: 2025-06-30 | FV4: 2025-07-31 | FW4: 2025-07-31 | FX4: 2025-07-31 | FY4: 2025-07-31 | FZ4: 2025-07-31 | GA4: 2025-07-31 | GB4: 2025-07-31 | GC4: 2025-07-31 | GD4: 2025-07-31 | GE4: 2025-07-31 | GF4: 2025-07-31 | GG4: 2025-07-31 | GH4: 2025-07-31
B5: =IF(Cover!$B$1=1,Trans!A210,Trans!B210) -> Valor da Cota - Dez/10 | D5: 100 | E5: 100 | F5: 100 | G5: 100 | H5: 100 | I5: 100 | J5: 100 | K5: 100 | L5: 100 | M5: 100 | N5: 100 | O5: 100 | P5: 100 | Q5: 100 | R5: 100 | S5: 100 | T5: 100 | U5: 100 | V5: 100 | W5: 100 | X5: 100 | Y5: 100 | Z5: 100 | AA5: 100 | AB5: 100 | AC5: 100 | AD5: 100 | AE5: 100 | AF5: 100 | AG5: 100 | AH5: 100 | AI5: 100 | AJ5: 100 | AK5: 100 | AL5: 100 | AM5: 100 | AN5: 100 | AO5: 100 | AP5: 100 | AQ5: 100 | AR5: 100 | AS5: 100 | AT5: 100 | AU5: 100 | AV5: 100 | AW5: 100 | AX5: 100 | AY5: 100 | AZ5: 100 | BA5: 100 | BB5: 100 | BC5: 100 | BD5: 100 | BE5: 100 | BF5: 100 | BG5: 100 | BH5: 100 | BI5: 100 | BJ5: 100 | BK5: 100 | BL5: 100 | BM5: 100 | BN5: 100 | BO5: 100 | BP5: 100 | BQ5: 100 | BR5: 100 | BS5: 100 | BT5: 100 | BU5: 100 | BV5: 100 | BW5: 100 | BX5: 100 | BY5: 100 | BZ5: 100 | CA5: 100 | CB5: 100 | CC5: 100 | CD5: 100 | CE5: 100 | CF5: 100 | CG5: 100 | CH5: 100 | CI5: 100 | CJ5: 100 | CK5: 100 | CL5: 100 | CM5: 100 | CN5: 100 | CO5: 100 | CP5: 100 | CQ5: 100 | CR5: 100 | CS5: 100 | CT5: 100 | CU5: 100 | CV5: 100 | CW5: 100 | CX5: 100 | CY5: 100 | CZ5: 100 | DA5: 100 | DB5: 100 | DC5: 100 | DD5: 100 | DE5: 100 | DF5: 100 | DG5: 100 | DH5: 100 | DI5: 100 | DJ5: 100 | DK5: 100 | DL5: 100 | DM5: 100 | DN5: 100 | DO5: 100 | DP5: 100 | DQ5: 100 | DR5: 100 | DS5: 100 | DT5: 100 | DU5: 100 | DV5: 100 | DW5: 100 | DX5: 100 | DY5: 100 | DZ5: 100 | EA5: 100 | EB5: 100 | EC5: 100 | ED5: 100 | EE5: 100 | EF5: 100 | EG5: 100 | EH5: 100 | EI5: 100 | EJ5: 100 | EK5: 100 | EL5: 100 | EM5: 100 | EN5: 100 | EO5: 100 | EP5: 100 | EQ5: 100 | ER5: 100 | ES5: 100 | ET5: 100 | EU5: 100 | EV5: 100 | EW5: 100 | EX5: 100 | EY5: 100 | EZ5: 100 | FA5: 100 | FB5: 100 | FC5: 100 | FD5: 100 | FE5: 100 | FF5: 100 | FG5: 100 | FH5: 100 | FI5: 100 | FJ5: 100 | FK5: 100 | FL5: 100 | FM5: 100 | FN5: 100 | FO5: 100 | FP5: 100 | FQ5: 100 | FR5: 100 | FS5: 100 | FT5: 100 | FU5: 100 | FV5: 100 | FW5: 100 | FX5: 100 | FY5: 100 | FZ5: 100 | GA5: 100 | GB5: 100 | GC5: 100 | GD5: 100 | GE5: 100 | GF5: 100 | GG5: 100 | GH5: 100
B6: =IF(Cover!$B$1=1,Trans!A211,Trans!B211) -> Valor da Cota no Mercado* | D6: =D33 -> 100.3 | E6: 100 | F6: 100.9 | G6: 100.95 | H6: 100.61 | I6: 103.4 | J6: 106 | K6: 119 | L6: 114.9 | M6: 111 | N6: 114 | O6: 128 | P6: 129.99 | Q6: 119 | R6: 114.9 | S6: 111 | T6: 114 | U6: 128 | V6: 153 | W6: 153.49 | X6: 152.5 | Y6: 153.9 | Z6: 154.18 | AA6: 155.1 | AB6: 158 | AC6: 154.5 | AD6: 149.65 | AE6: 142 | AF6: 147.5 | AG6: 138.31 | AH6: 133.5 | AI6: 122 | AJ6: 132.99 | AK6: 137.8 | AL6: 137.2 | AM6: =AM33 -> 133.85 | AN6: 122.4 | AO6: 126.15 | AP6: 128.12 | AQ6: 125.49 | AR6: 124.44 | AS6: 122.64 | AT6: 120.41 | AU6: 117.98 | AV6: 118.31 | AW6: 113.01 | AX6: 106.3 | AY6: 109.1 | AZ6: =AZ33 -> 107.61 | BA6: 107.02 | BB6: 103.19 | BC6: 106.3 | BD6: 105 | BE6: 106.9 | BF6: 109.01 | BG6: 106.85 | BH6: 101 | BI6: 105.27 | BJ6: 100.15 | BK6: 93.45 | BL6: 80.76 | BM6: 89.71 | BN6: 103.74 | BO6: 105.35 | BP6: 85.02 | BQ6: 88.65 | BR6: =BR33 -> 95.3 | BS6: 94.98 | BT6: 97.6 | BU6: 97 | BV6: 94.1 | BW6: 95.5 | BX6: 96.2 | BY6: 107 | BZ6: 104.85 | CA6: 101.49 | CB6: 102.5 | CC6: 100.9 | CD6: 90.5 | CE6: 91 | CF6: 95.35 | CG6: 101 | CH6: 100.8 | CI6: 106 | CJ6: 105.3 | CK6: 107.7 | CL6: 107.44 | CM6: 103.8 | CN6: 90.87 | CO6: 88.71 | CP6: 89.2 | CQ6: 90.75 | CR6: 96.98 | CS6: 100 | CT6: 102.04 | CU6: 103.41 | CV6: 102.25 | CW6: 105.3 | CX6: 96.49 | CY6: 92.8 | CZ6: 90.43 | DA6: 96.51 | DB6: 97.13 | DC6: 94.4 | DD6: 90.8 | DE6: 92.48 | DF6: 99.49 | DG6: 117.7 | DH6: 114.96 | DI6: 109 | DJ6: 89.31 | DK6: 92.36 | DL6: 90.6 | DM6: 92.41 | DN6: 91 | DO6: 87.08 | DP6: 91 | DQ6: 86.5 | DR6: 87.53 | DS6: 88.74 | DT6: 89.9 | DU6: 86.91 | DV6: 82 | DW6: 85.46 | DX6: =DX33 -> 82.9 | DY6: 81 | DZ6: 81.01 | EA6: 77.83 | EB6: 73.79 | EC6: 67.22 | ED6: 63.9 | EE6: 72.69 | EF6: 71.07 | EG6: 68.84 | EH6: 67.49 | EI6: 69.7 | EJ6: 67.67 | EK6: 61.89 | EL6: 56.85 | EM6: 70.4 | EN6: 69.79 | EO6: 66.55 | EP6: 58.27 | EQ6: 59.22 | ER6: 57.1 | ES6: 52.9 | ET6: 52.78 | EU6: 55.85 | EV6: 58.59 | EW6: 66.79 | EX6: 67.77 | EY6: 61 | EZ6: 59.39 | FA6: 53.85 | FB6: 59.83 | FC6: 59.3 | FD6: 61.09 | FE6: 59.7 | FF6: 57.76 | FG6: 55.4 | FH6: 55.2 | FI6: 51.02 | FJ6: 49.99 | FK6: 50.2 | FL6: 47.74 | FM6: 43.5 | FN6: 42.58 | FO6: 41.56 | FP6: 39.94 | FQ6: 39.47 | FR6: 40 | FS6: 42.56 | FT6: 43.86 | FU6: 42.25 | FV6: 41.79 | FW6: 41.79 | FX6: 43.59 | FY6: 40.76 | FZ6: 42.38 | GA6: 45.95 | GB6: 49.73 | GC6: 48.45 | GD6: 46.76 | GE6: 47.28 | GF6: 44.82 | GG6: 41.96 | GH6: =GH33 -> 40.33
B7: =IF(Cover!$B$1=1,Trans!A212,Trans!B212) -> Quantidade de Cotas | D7: 11000000 | E7: 11000000 | F7: 11000000 | G7: 11000000 | H7: 11000000 | I7: 11000000 | J7: 11000000 | K7: 11000000 | L7: 11000000 | M7: 11000000 | N7: 11000000 | O7: 11000000 | P7: 11000000 | Q7: 11000000 | R7: 11000000 | S7: 11000000 | T7: 11000000 | U7: 11000000 | V7: 11000000 | W7: 11000000 | X7: 11000000 | Y7: 11000000 | Z7: 11000000 | AA7: 11000000 | AB7: 11000000 | AC7: 19224537 | AD7: 19224537 | AE7: 19224537 | AF7: 19224537 | AG7: 19224537 | AH7: 19224537 | AI7: 19224537 | AJ7: 19224537 | AK7: 19224537 | AL7: 19224537 | AM7: 19224537 | AN7: 19224537 | AO7: 19224537 | AP7: 19224537 | AQ7: 19224537 | AR7: 19224537 | AS7: 19224537 | AT7: 19224537 | AU7: 19224537 | AV7: 19224537 | AW7: 19224537 | AX7: 19224537 | AY7: 19224537 | AZ7: 19224537 | BA7: 19224537 | BB7: 19224537 | BC7: 19224537 | BD7: 19224537 | BE7: 19224537 | BF7: 19224537 | BG7: 19224537 | BH7: 19224537 | BI7: 19224537 | BJ7: 19224537 | BK7: 19224537 | BL7: 19224537 | BM7: 19224537 | BN7: 19224537 | BO7: 19224537 | BP7: 19224537 | BQ7: 19224537 | BR7: 19224537 | BS7: 19224537 | BT7: 19224537 | BU7: 19224537 | BV7: 19224537 | BW7: 19224537 | BX7: 19224537 | BY7: 19224537 | BZ7: 19224537 | CA7: 19224537 | CB7: 19224537 | CC7: 19224537 | CD7: 19224537 | CE7: 19224537 | CF7: 19224537 | CG7: 19224537 | CH7: 19224537 | CI7: 19224537 | CJ7: 19224537 | CK7: 19224537 | CL7: 19224537 | CM7: 19224537 | CN7: 19224537 | CO7: 19224537 | CP7: 19224537 | CQ7: 19224537 | CR7: 19224537 | CS7: 19224537 | CT7: 19224537 | CU7: 19224537 | CV7: 19224537 | CW7: 19224537 | CX7: 19224537 | CY7: 19224537 | CZ7: 19224537 | DA7: 19224537 | DB7: 19224537 | DC7: 19224537 | DD7: 19224537 | DE7: 19224537 | DF7: 22918202 | DG7: 22918202 | DH7: 22918202 | DI7: 22918202 | DJ7: 22918202 | DK7: 22918202 | DL7: 22918202 | DM7: 22918202 | DN7: 26638202 | DO7: 26638202 | DP7: 26638202 | DQ7: 26638202 | DR7: 26638202 | DS7: 26638202 | DT7: 26638202 | DU7: 26638202 | DV7: 26638202 | DW7: 26638202 | DX7: 26638202 | DY7: 26638202 | DZ7: 26638202 | EA7: 26638202 | EB7: 26638202 | EC7: 26638202 | ED7: 26638202 | EE7: 26638202 | EF7: 26638202 | EG7: 26638202 | EH7: 26638202 | EI7: 26638202 | EJ7: 26638202 | EK7: 26638202 | EL7: 26638202 | EM7: 26638202 | EN7: 26638202 | EO7: 26638202 | EP7: 26638202 | EQ7: 26638202 | ER7: 26638202 | ES7: 26638202 | ET7: 26638202 | EU7: 26638202 | EV7: 26638202 | EW7: 26638202 | EX7: 26638202 | EY7: 26638202 | EZ7: 26638202 | FA7: 26638202 | FB7: 26638202 | FC7: 26638202 | FD7: 26638202 | FE7: 26638202 | FF7: 26638202 | FG7: 26638202 | FH7: 26638202 | FI7: 26638202 | FJ7: 26638202 | FK7: 26638202 | FL7: 26638202 | FM7: 26638202 | FN7: 26638202 | FO7: 26638202 | FP7: 26638202 | FQ7: 26638202 | FR7: 26638202 | FS7: 26638202 | FT7: 26638202 | FU7: 26638202 | FV7: 26638202 | FW7: 26638202 | FX7: 26638202 | FY7: 26638202 | FZ7: 26638202 | GA7: 26638202 | GB7: 26638202 | GC7: 26638202 | GD7: 26638202 | GE7: 26638202 | GF7: 26638202 | GG7: 26638202 | GH7: 26638202
B8: =IF(Cover!$B$1=1,Trans!A213,Trans!B213) -> Valor de Mercado do Fundo* | D8: =D6*D7 -> 1103300000 | E8: 1100000000 | F8: 1109900000 | G8: 1110450000 | H8: 1106710000 | I8: 1137400000 | J8: 1166000000 | K8: 1309000000 | L8: 1263900000 | M8: 1221000000 | N8: 1254000000 | O8: 1408000000 | P8: 1429890000 | Q8: 1309000000 | R8: 1263900000 | S8: 1221000000 | T8: 1254000000 | U8: 1408000000 | V8: 1683000000 | W8: 1688390000 | X8: 1677500000 | Y8: 1692900000 | Z8: 1695980000 | AA8: 1706100000 | AB8: 1738000000 | AC8: 2970190966 | AD8: 2876951962 | AE8: 2729884254 | AF8: 2835619208 | AG8: 2658945712 | AH8: 2566475690 | AI8: 2345393514 | AJ8: 2556671176 | AK8: 2649141199 | AL8: =AL6*AL7 -> 2637606476 | AM8: 2573204277 | AN8: 2353083329 | AO8: 2425175343 | AP8: 2463047680 | AQ8: 2412487148 | AR8: 2392301384 | AS8: 2357697218 | AT8: 2314826500 | AU8: 2268110875 | AV8: 2274454972 | AW8: 2172564926 | AX8: 2043568283 | AY8: =AY6*AY7 -> 2097396987 | AZ8: 2068752427 | BA8: 2057409950 | BB8: 1983779973 | BC8: 2043568283 | BD8: 2018576385 | BE8: =BE6*BE7 -> 2055103005 | BF8: =BF6*BF7 -> 2095666778 | BG8: =BG6*BG7 -> 2054141778 | BH8: 1941678237 | BI8: 2023767010 | BJ8: 1925337381 | BK8: 1796532983 | BL8: 1552573608 | BM8: 1724633214 | BN8: 1994353468 | BO8: 2025304973 | BP8: 1634470136 | BQ8: 1704255205 | BR8: =BR6*BR7 -> 1832098376 | BS8: 1825946524 | BT8: 1876314811 | BU8: 1864780089 | BV8: 1809028932 | BW8: 1835943284 | BX8: 1849400459 | BY8: 2057025459 | BZ8: 2015692704 | CA8: 1951098260 | CB8: 1970515042 | CC8: 1939755783 | CD8: 1739820598 | CE8: 1749432867 | CF8: 1833059603 | CG8: 1941678237 | CH8: 1937833330 | CI8: 2037800922 | CJ8: 2024343746 | CK8: 2070482635 | CL8: 2065484255 | CM8: 1995506941 | CN8: 1746933677 | CO8: 1705408677 | CP8: 1714828700 | CQ8: 1744626733 | CR8: 1864395598 | CS8: 1922453700 | CT8: 1961671755 | CU8: 1988009371 | CV8: 1965708908 | CW8: 2024343746 | CX8: 1854975575 | CY8: 1784037034 | CZ8: 1738474881 | DA8: 1855360066 | DB8: 1867279279 | DC8: 1814796293 | DD8: 1745587960 | DE8: 1777885182 | DF8: 2280131917 | DG8: 2697472375 | DH8: 2634676502 | DI8: 2498084018 | DJ8: 2046824621 | DK8: 2116725137 | DL8: 2076389101 | DM8: 2117871047 | DN8: 2424076382 | DO8: 2319654630 | DP8: 2424076382 | DQ8: 2304204473 | DR8: 2331641821 | DS8: 2363874045 | DT8: 2394774360 | DU8: 2315126136 | DV8: 2184332564 | DW8: 2276500743 | DX8: =DX6*DX7 -> 2208306946 | DY8: 2157694362 | DZ8: 2157960744 | EA8: 2073251262 | EB8: 1965632926 | EC8: 1790619938 | ED8: 1702181108 | EE8: 1936330903 | EF8: 1893177016 | EG8: 1833773826 | EH8: 1797812253 | EI8: 1856682679 | EJ8: 1802607129 | EK8: 1648638322 | EL8: 1514381784 | EM8: 1875329421 | EN8: 1859080118 | EO8: 1772772343 | EP8: 1552208031 | EQ8: 1577514322 | ER8: 1521041334 | ES8: 1409160886 | ET8: 1405964302 | EU8: 1487743582 | EV8: 1560732255 | EW8: 1779165512 | EX8: 1805270950 | EY8: 1624930322 | EZ8: 1582042817 | FA8: 1434467178 | FB8: 1593763626 | FC8: 1579645379 | FD8: 1627327760 | FE8: 1590300659 | FF8: 1538622548 | FG8: 1475756391 | FH8: 1470428750 | FI8: 1359081066 | FJ8: 1331643718 | FK8: 1337237740 | FL8: 1271707763 | FM8: 1158761787 | FN8: 1134254641 | FO8: 1107083675 | FP8: 1063929788 | FQ8: 1051409833 | FR8: 1065528080 | FS8: 1133721877 | FT8: 1168351540 | FU8: 1125464034 | FV8: 1113210462 | FW8: 1113210462 | FX8: 1161159225 | FY8: 1085773114 | FZ8: 1128927001 | GA8: 1224025382 | GB8: 1324717785 | GC8: 1290620887 | GD8: 1245602326 | GE8: 1259454191 | GF8: 1193924214 | GG8: 1117738956 | GH8: =GH6*GH7 -> 1074318687
B9: =IF(Cover!$B$1=1,Trans!A215,Trans!B215) -> Valor Total Negociado no mês | D9: 3357351.77 | E9: 20524379.42 | F9: 15557339.33 | G9: 2833241.87 | H9: 3286735.13 | I9: 3560262.94 | J9: 4995847.17 | K9: 6306912.82 | L9: 5773258.92 | M9: 1583945.39 | N9: 4648414.32 | O9: 68061937.31 | P9: 3180087.45 | Q9: 6306912.82 | R9: 5773258.92 | S9: 1583945.39 | T9: 4648414.32 | U9: 68061937.31 | V9: 8896659.13 | W9: 10365480.03 | X9: 5285223.61 | Y9: 35389050.53 | Z9: 39874032.08 | AA9: 57932328.81 | AB9: 61041129.59 | AC9: 127396231 | AD9: 145153753.1 | AE9: 142537764.2 | AF9: 214142244.4 | AG9: 109354416.9 | AH9: 81447701.05 | AI9: 100867267.2 | AJ9: 103276077 | AK9: 92710909.98 | AL9: 72311631.38 | AM9: 73780775.51 | AN9: =+SUMIF(BRCR11!$A:$A,'Desempenho - Performance'!AN3,BRCR11!$G:$G) -> 102840211.3 | AO9: =+SUMIF(BRCR11!$A:$A,'Desempenho - Performance'!AO3,BRCR11!$G:$G) -> 85060274.18 | AP9: =+SUMIF(BRCR11!$A:$A,'Desempenho - Performance'!AP3,BRCR11!$G:$G) -> 68055843.57 | AQ9: =+SUMIF(BRCR11!$A:$A,'Desempenho - Performance'!AQ3,BRCR11!$G:$G) -> 56688531.81 | AR9: =+SUMIF(BRCR11!$A:$A,'Desempenho - Performance'!AR3,BRCR11!$G:$G) -> 69399525.75 | AS9: =+SUMIF(BRCR11!$A:$A,'Desempenho - Performance'!AS3,BRCR11!$G:$G) -> 52342727.47 | AT9: =+SUMIF(BRCR11!$A:$A,'Desempenho - Performance'!AT3,BRCR11!$G:$G) -> 63090323.83 | AU9: =+SUMIF(BRCR11!$A:$A,'Desempenho - Performance'!AU3,BRCR11!$G:$G) -> 65238860.31 | AV9: =+SUMIF(BRCR11!$A:$A,'Desempenho - Performance'!AV3,BRCR11!$G:$G) -> 75437103 | AW9: =+SUMIF(BRCR11!$A:$A,'Desempenho - Performance'!AW3,BRCR11!$G:$G) -> 69033460.35 | AX9: =+SUMIF(BRCR11!$A:$A,'Desempenho - Performance'!AX3,BRCR11!$G:$G) -> 69612771.54 | AY9: =+SUMIF(BRCR11!$A:$A,'Desempenho - Performance'!AY3,BRCR11!$G:$G) -> 85237235.23 | AZ9: =+SUMIF(BRCR11!$A:$A,'Desempenho - Performance'!AZ3,BRCR11!$G:$G) -> 45361011.3 | BA9: =+SUMIF(BRCR11!$A:$A,'Desempenho - Performance'!BA3,BRCR11!$G:$G) -> 63019785.59 | BB9: =+SUMIF(BRCR11!$A:$A,'Desempenho - Performance'!BB3,BRCR11!$G:$G) -> 127676360.4 | BC9: =+SUMIF(BRCR11!$A:$A,'Desempenho - Performance'!BC3,BRCR11!$G:$G) -> 59162147.54 | BD9: =+SUMIF(BRCR11!$A:$A,'Desempenho - Performance'!BD3,BRCR11!$G:$G) -> 52785731.05 | BE9: =+SUMIF(BRCR11!$A:$A,'Desempenho - Performance'!BE3,BRCR11!$G:$G) -> 87875150.4 | BF9: =+SUMIF(BRCR11!$A:$A,'Desempenho - Performance'!BF3,BRCR11!$G:$G) -> 47447904.22 | BG9: =+SUMIF(BRCR11!$A:$A,'Desempenho - Performance'!BG3,BRCR11!$G:$G) -> 46193369.34 | BH9: 50878123.51 | BI9: 38872951.04 | BJ9: 60712992.97 | BK9: 275297252.3 | BL9: 79602008.45 | BM9: 50775701.89 | BN9: 51292512.02 | BO9: 84742932.86 | BP9: 132948742.5 | BQ9: 57921171 | BR9: =+SUMIF(BRCR11!$A:$A,'Desempenho - Performance'!BR3,BRCR11!$G:$G) -> 63552193.33 | BS9: 78883655.47 | BT9: 45023750.18 | BU9: 66442553.45 | BV9: 67654709.17 | BW9: 41803157.7 | BX9: 62071674.59 | BY9: 68984586.49 | BZ9: 71081967.31 | CA9: 47453828.84 | CB9: 64704152.41 | CC9: 68688981.56 | CD9: 69324288.9 | CE9: 63956791.71 | CF9: 66749242.28 | CG9: 69998680.15 | CH9: 58775350.74 | CI9: 260304584.7 | CJ9: 57216099.02 | CK9: 67916654.4 | CL9: 66792586.99 | CM9: 58006051.86 | CN9: 70368599.51 | CO9: 49072547.66 | CP9: 46906647.71 | CQ9: 69281239.41 | CR9: 74710736.52 | CS9: 69632518.42 | CT9: 52603066.82 | CU9: 33347235.76 | CV9: 53643488.99 | CW9: 46706915.29 | CX9: 75478320.62 | CY9: 58647625.83 | CZ9: 60035539.58 | DA9: 78047096.33 | DB9: 65488437.6 | DC9: 75882459.25 | DD9: 109634238.7 | DE9: 124991493.6 | DF9: 143805011.9 | DG9: 219150250.1 | DH9: 127246970.6 | DI9: 128086612.5 | DJ9: 202457449.6 | DK9: 92918641.11 | DL9: 48529477.35 | DM9: 97451996.95 | DN9: 191330347.6 | DO9: 132320526.8 | DP9: 96707671.27 | DQ9: 97637687.53 | DR9: 68306745.16 | DS9: 86786021.3 | DT9: 230670211.1 | DU9: 64692222.08 | DV9: 81675168.33 | DW9: 55987720.12 | DX9: =+SUMIF(BRCR11!$A:$A,'Desempenho - Performance'!DX3,BRCR11!$G:$G) -> 52294794.45 | DY9: 62213835.02 | DZ9: 50269972.34 | EA9: 43440077.99 | EB9: 44485170.43 | EC9: 47199423.73 | ED9: 52584415.26 | EE9: 41432223.37 | EF9: 42916507 | EG9: 35431238.99 | EH9: 46313885.4 | EI9: 41233667.22 | EJ9: 37614307.89 | EK9: 34462916.98 | EL9: 44875856.87 | EM9: 59742868.6 | EN9: 51092148.09 | EO9: 36969041.3 | EP9: 35159272.08 | EQ9: 32620388.31 | ER9: 34798956.64 | ES9: 26057169.1 | ET9: 29519725.97 | EU9: 23501421.66 | EV9: 35738137.88 | EW9: 38187510.53 | EX9: 36751641.57 | EY9: 44751583.82 | EZ9: 38426891.54 | FA9: 27623108.07 | FB9: 41905785.2 | FC9: 53549968.13 | FD9: 39425058.67 | FE9: 32321021.16 | FF9: 36746590.27 | FG9: 36855632.37 | FH9: 38516597.58 | FI9: 34296626.59 | FJ9: 34996796.48 | FK9: 25414312.21 | FL9: 32296690.64 | FM9: 33321095.48 | FN9: 29436463.66 | FO9: 36553648.68 | FP9: 28943619.32 | FQ9: 31806119.09 | FR9: 29146014.6 | FS9: 28787435.16 | FT9: 23675860.94 | FU9: 27984633.27 | FV9: 25335831.89 | FW9: 15221245.64 | FX9: 41825572.86 | FY9: 56391945.78 | FZ9: 36000111.42 | GA9: 54363470.52 | GB9: 56582295.08 | GC9: 44755921.01 | GD9: 28922954.09 | GE9: 26646395.8 | GF9: 57475022.33 | GG9: 26586687.14 | GH9: =+SUMIF(BRCR11!$A:$A,'Desempenho - Performance'!GH3,BRCR11!$G:$G) -> 22794444.52
B10: =IF(Cover!$B$1=1,Trans!A216,Trans!B216) -> % do Fundo Negociado | D10: =D9/D6/3670000 -> 0.00912073526 | E10: 0.05592473956 | F10: 0.04201245826 | G10: 0.007647355221 | H10: 0.008901383116 | I10: 0.009382000907 | J10: 0.01284213452 | K10: 0.01444121727 | L10: 0.01369099281 | M10: 0.003888222967 | N10: 0.01111050796 | O10: 0.1448866172 | P10: 0.006665965397 | Q10: 0.01444121727 | R10: 0.01369099281 | S10: 0.003888222967 | T10: 0.01111050796 | U10: 0.1448866172 | V10: 0.01584416863 | W10: 0.01840107811 | X10: 0.009443379837 | Y10: 0.06265622521 | Z10: 0.02351090937 | AA10: 0.03395599836 | AB10: =AB9/AB6/AB$7 -> 0.03512147848 | AC10: =AC9/AC6/AC$7 -> 0.04289159601 | AD10: 0.05045400653 | AE10: 0.052213849 | AF10: 0.07551868876 | AG10: 0.04112698368 | AH10: 0.03173523185 | AI10: 0.04300654306 | AJ10: 0.04039474375 | AK10: 0.0349965906 | AL10: =AL9/AL6/AL$7 -> 0.0274156255 | AM10: 0.02867272379 | AN10: 0.04370444941 | AO10: 0.03507386567 | AP10: 0.02763074548 | AQ10: 0.0234979622 | AR10: 0.02900952455 | AS10: 0.02220078434 | AT10: 0.02725488231 | AU10: 0.02876352343 | AV10: 0.03316711208 | AW10: 0.03177509657 | AX10: =AX9/AX6/AX$7 -> 0.03406432372 | AY10: 0.04063953356 | AZ10: 0.02192674711 | BA10: 0.03063064101 | BB10: 0.06436014184 | BC10: 0.02895041386 | BD10: 0.02614997948 | BE10: 0.04275948708 | BF10: 0.02264095834 | BG10: 0.02248791677 | BH10: 0.02620316927 | BI10: 0.01920821461 | BJ10: 0.03153369045 | BK10: 0.153238073 | BL10: 0.0512710045 | BM10: 0.02944144962 | BN10: 0.02571886721 | BO10: 0.04184206033 | BP10: 0.08134057611 | BQ10: 0.034 | BR10: =BR9/BR6/BR$7 -> 0.03468819915 | BS10: 0.04320151462 | BT10: 0.0239958401 | BU10: 0.03563023535 | BV10: 0.03739835665 | BW10: 0.02276930779 | BX10: 0.03356313354 | BY10: 0.03353608784 | BZ10: 0.03526428763 | CA10: 0.02432159867 | CB10: 0.03283616263 | CC10: 0.03541114925 | CD10: 0.0398456536 | CE10: 0.03655858588 | CF10: 0.03641411451 | CG10: 0.03605060757 | CH10: 0.03033044682 | CI10: 0.1277379855 | CJ10: 0.02826402341 | CK10: 0.03280232988 | CL10: 0.0323374951 | CM10: 0.02906832879 | CN10: 0.0402812084 | CO10: 0.02877465578 | CP10: 0.02735354715 | CQ10: 0.03971121049 | CR10: 0.04007236264 | CS10: 0.03622064782 | CT10: 0.02681542754 | CU10: 0.01677418439 | CV10: 0.02728964027 | CW10: 0.02307262064 | CX10: 0.04068965739 | CY10: 0.03287354731 | CZ10: 0.03453345242 | DA10: 0.04206574118 | DB10: 0.0350715816 | DC10: 0.04181321041 | DD10: 0.06280648197 | DE10: 0.07030346779 | DF10: 0.06306872461 | DG10: 0.08124281534 | DH10: 0.04829699985 | DI10: 0.05127394097 | DJ10: 0.09891294426 | DK10: 0.043897358 | DL10: 0.02337205359 | DM10: 0.04601413155 | DN10: 0.07892917443 | DO10: 0.05704320165 | DP10: 0.03989464688 | DQ10: 0.04237370801 | DR10: 0.02929555669 | DS10: 0.03671347104 | DT10: 0.09632231535 | DU10: 0.02794328183 | DV10: 0.03739136141 | DW10: 0.02459376317 | DX10: =DX9/DX6/DX$7 -> 0.0236809446 | DY10: 0.02883347897 | DZ10: 0.02329512827 | EA10: 0.0209526355 | EB10: 0.02263147399 | EC10: 0.02635926403 | ED10: 0.03089237392 | EE10: 0.02139728457 | EF10: 0.02266904079 | EG10: 0.01932148801 | EH10: 0.02576124694 | EI10: 0.02220824683 | EJ10: 0.0208666144 | EK10: 0.02090386747 | EL10: 0.02963311983 | EM10: 0.03185726622 | EN10: 0.02748248857 | EO10: 0.0208538008 | EP10: 0.02265113399 | EQ10: 0.02067834684 | ER10: 0.02287837671 | ES10: 0.01849126623 | ET10: 0.02099607077 | EU10: 0.01579668832 | EV10: 0.0228983144 | EW10: 0.02146372009 | EX10: 0.02035796432 | EY10: 0.0275406171 | EZ10: 0.02428941311 | FA10: 0.01925670277 | FB10: 0.02629360121 | FC10: 0.03389999354 | FD10: 0.02422687035 | FE10: 0.02032384315 | FF10: 0.0238827842 | FG10: 0.02497406252 | FH10: 0.0261941271 | FI10: 0.02523515885 | FJ10: 0.02628090082 | FK10: 0.01900508148 | FL10: 0.02539631476 | FM10: 0.02875577695 | FN10: 0.02595225322 | FO10: 0.03301796377 | FP10: 0.02720444493 | FQ10: 0.03025092413 | FR10: 0.02735358659 | FS10: 0.02539197288 | FT10: 0.02026432981 | FU10: 0.02486497339 | FV10: 0.02275924703 | FW10: 0.01367328656 | FX10: 0.03602053186 | FY10: 0.05193713592 | FZ10: 0.0318887859 | GA10: 0.0444136791 | GB10: 0.0427127164 | GC10: 0.03467782171 | GD10: 0.02322005467 | GE10: 0.02115709805 | GF10: 0.04813959016 | GG10: 0.02378613271 | GH10: =GH9/GH6/GH$7 -> 0.02121758171
B11: =IF(Cover!$B$1=1,Trans!A217,Trans!B217) -> % do Fundo Negociado desde 2015 | GH11: =SUM($AZ$10:GH10) -> 4.800101933
B12: =IF(Cover!$B$1=1,Trans!A218,Trans!B218) -> Valor Distribuído por Cota | D12: 0.5 | E12: 0.5 | F12: 0.5 | G12: 0.5 | H12: 0.5 | I12: 0.5 | J12: 0.5 | K12: =8/12 -> 0.6666666667 | L12: =8/12 -> 0.6666666667 | M12: =8/12 -> 0.6666666667 | N12: =8/12 -> 0.6666666667 | O12: =8/12 -> 0.6666666667 | P12: =10/12 -> 0.8333333333 | Q12: 0.6666666667 | R12: 0.6666666667 | S12: 0.6666666667 | T12: 0.6666666667 | U12: 0.6666666667 | V12: =10/12 -> 0.8333333333 | W12: 0.8333333333 | X12: 0.8333333333 | Y12: 0.8333333333 | Z12: 0.8333333333 | AA12: 0.8333333333 | AB12: =11.52/12 -> 0.96 | AC12: 0.96 | AD12: 0.96 | AE12: 0.96 | AF12: 0.96 | AG12: 0.96 | AH12: 0.96 | AI12: 0.96 | AJ12: 0.96 | AK12: 0.96 | AL12: 0.96 | AM12: =11.52/12 -> 0.96 | AN12: =12.12/12 -> 1.01 | AO12: 1.01 | AP12: 1.01 | AQ12: 1.01 | AR12: 1.01 | AS12: 1.01 | AT12: 1.01 | AU12: 1.01 | AV12: 1.01 | AW12: 1.01 | AX12: =12.12/12 -> 1.01 | AY12: 1.01 | AZ12: 1.01 | BA12: 1.01 | BB12: 1.01 | BC12: 1.01 | BD12: 1.01 | BE12: 1.01 | BF12: 1.01 | BG12: 1.01 | BH12: 1.01 | BI12: 1.01 | BJ12: 1.01 | BK12: 1.01 | BL12: 1.01 | BM12: 1.01 | BN12: 1.01 | BO12: 1.01 | BP12: 20.80674297 | BQ12: 0.85 | BR12: 0.99 | BS12: 0.8001 | BT12: 0.8001 | BU12: 0.78 | BV12: 0.75 | BW12: 0.74 | BX12: 0.74 | BY12: 0.9638 | BZ12: 0.76 | CA12: 0.67 | CB12: 0.66 | CC12: 0.57 | CD12: 0.42 | CE12: 0.3467 | CF12: 0.3234916508 | CG12: 0.4293427228 | CH12: 0.4170000001 | CI12: 0.49 | CJ12: 0.449376359 | CK12: 0.49555111 | CL12: 0.35 | CM12: 0.3063578702 | CN12: 0.2677300192 | CO12: 0.35 | CP12: 0.35 | CQ12: 0.39 | CR12: 0.35 | CS12: 0.3467 | CT12: 0.35 | CU12: 0.35 | CV12: 0.35 | CW12: 0.41 | CX12: 10.98 | CY12: 0.41 | CZ12: 1.03 | DA12: 0.45 | DB12: 0.39 | DC12: 0.4 | DD12: 0.41 | DE12: 0.5 | DF12: 0.55 | DG12: 0.56 | DH12: 0.56 | DI12: 0.5945 | DJ12: 0.56 | DK12: 0.49 | DL12: 0.43 | DM12: 0.43 | DN12: 0.43 | DO12: 0.4616 | DP12: 0.4625 | DQ12: 0.4475 | DR12: 0.4709 | DS12: 0.499 | DT12: 0.5 | DU12: 0.4902 | DV12: 0.48 | DW12: 0.46 | DX12: 0.46 | DY12: 0.46 | DZ12: 0.46 | EA12: 0.46 | EB12: 0.46 | EC12: 0.46 | ED12: 0.46 | EE12: 0.5 | EF12: 0.5 | EG12: 0.5 | EH12: 0.5 | EI12: 0.5 | EJ12: 0.5 | EK12: 0.47 | EL12: 0.47 | EM12: 0.47 | EN12: 0.47 | EO12: 0.47 | EP12: 0.47 | EQ12: 0.5 | ER12: 0.47 | ES12: 0.47 | ET12: 0.46 | EU12: 0.46 | EV12: 0.45 | EW12: 0.45 | EX12: 0.45 | EY12: 0.45 | EZ12: 0.41 | FA12: 0.41 | FB12: 0.41 | FC12: 0.41 | FD12: 0.41 | FE12: 0.41 | FF12: 0.41 | FG12: 0.5 | FH12: 0.5 | FI12: 0.5 | FJ12: 0.5 | FK12: 0.5 | FL12: 0.5 | FM12: 0.5 | FN12: 0.5 | FO12: 0.5 | FP12: 0.5 | FQ12: 0.48 | FR12: 0.45 | FS12: 0.45 | FT12: 0.45 | FU12: 0.41 | FV12: 0.41 | FW12: 0.41 | FX12: 0.41 | FY12: 0.41 | FZ12: 0.41 | GA12: 0.41 | GB12: 0.41 | GC12: 0.41 | GD12: 0.41 | GE12: 0.41 | GF12: 0.41 | GG12: 0.41 | GH12: 0.41
BQ14: 0.7924
B16: =IF(Cover!$B$1=1,Trans!A222,Trans!B222) -> Retorno do Cotista** desde dez-10 | GH16: =((VLOOKUP(GH4,BRCR11!$B$11:$L$3631,11,0))/100)-1 -> 1.058851632
B17: =IF(Cover!$B$1=1,Trans!A223,Trans!B223) -> Retorno do Cotista** últimos 24 meses | GH17: =((VLOOKUP(GH4,BRCR11!$B$11:$L$3631,11,0))/(VLOOKUP(EOMONTH(EDATE(GH4,-24),0),BRCR11!$B$11:$L$3631,11))-1) -> -0.1874898282
B18: =IF(Cover!$B$1=1,Trans!A224,Trans!B224) -> Retorno do Cotista** últimos 12 meses | GH18: =((VLOOKUP(GH4,BRCR11!$B$11:$L$3631,11,0))/(VLOOKUP(EOMONTH(EDATE(GH4,-12),0),BRCR11!$B$11:$L$3631,11))-1) -> -0.05643499038
B19: =IF(Cover!$B$1=1,Trans!A225,Trans!B225) -> TIR do Cotista** desde dez/10 | GH19: =XIRR(BRCR11!$J$11:$J$3631,BRCR11!$B$11:$B$3631,0) -> 1.423235029
B20: =IF(Cover!$B$1=1,Trans!A226,Trans!B226) -> % do CDI desde dez-10 | GH20: =GH16/Graficos!$C$4 -> 0.3166562661
B21: =IF(Cover!$B$1=1,Trans!A227,Trans!B227) -> % do CDI desde últimos 24 meses | GH21: =GH17/Graficos!$C$5 -> -0.6440495941
B22: =IF(Cover!$B$1=1,Trans!A228,Trans!B228) -> % do CDI desde últimos 12 meses | GH22: =GH18/Graficos!$C$6 -> -0.3836198053
B24: =IF(Cover!$B$1=1,Trans!A232,Trans!B232) -> * Valor no Fechamento do mês | D24: =+Trans!E550 -> 40544 | E24: =+Trans!F550 -> 40575 | F24: =+Trans!G550 -> 40603 | G24: =+Trans!H550 -> 40634 | H24: =+Trans!I550 -> 40664 | I24: =+Trans!J550 -> 40695 | J24: =+Trans!K550 -> 40725 | K24: =+Trans!L550 -> 40756 | L24: =+Trans!M550 -> 40787 | M24: =+Trans!N550 -> 40817 | N24: =+Trans!O550 -> 40848 | O24: =+Trans!P550 -> 40878 | P24: =+Trans!Q550 -> 40909 | Q24: 40756 | R24: 40787 | S24: 40817 | T24: 40848 | U24: 40878 | V24: =+Trans!W550 -> 41091 | W24: 41122 | X24: 41153 | Y24: 41183 | Z24: 41214 | AA24: 41244 | AB24: =+Trans!AC550 -> 41275 | AC24: =+Trans!AD550 -> 41306 | AD24: =+Trans!AE550 -> 41334 | AE24: =+Trans!AF550 -> 41365 | AF24: =+Trans!AG550 -> 41395 | AG24: =+Trans!AH550 -> 41426 | AH24: =+Trans!AI550 -> 41456 | AI24: =+Trans!AJ550 -> 41487 | AJ24: =+Trans!AK550 -> 41518 | AK24: =+Trans!AL550 -> 41548 | AL24: =+Trans!AM550 -> 41579 | AM24: =+Trans!AN550 -> 41609 | AN24: =+Trans!AO550 -> 41640 | AO24: =+Trans!AP550 -> 41671 | AP24: =+Trans!AQ550 -> 41699 | AQ24: =+Trans!AR550 -> 41730 | AR24: =+Trans!AS550 -> 41760 | AS24: =+Trans!AT550 -> 41791 | AT24: =+Trans!AU550 -> 41821 | AU24: =+Trans!AV550 -> 41852 | AV24: =+Trans!AW550 -> 41883 | AW24: =+Trans!AX550 -> 41913 | AX24: =+Trans!AY550 -> 41944 | AY24: =+Trans!AZ550 -> 41974 | AZ24: =+Trans!BA550 -> 42005 | BA24: =+Trans!BB550 -> 42036 | BB24: =+Trans!BC550 -> 42064 | BC24: =+Trans!BD550 -> 42095 | BD24: =+Trans!BE550 -> 42125 | BE24: =+Trans!BF550 -> 42156 | BF24: =+Trans!BG550 -> 42186 | BG24: =+Trans!BH550 -> 42217 | BH24: =+Trans!BI550 -> 42248
B25: =IF(Cover!$B$1=1,Trans!A233,Trans!B233) -> ** Para o cotista que adquiriu cotas do Fundo em cada oferta pública, considerando distribuições de rendimento e valor do fechamento da cota no mês
B27: =IF(Cover!$B$1=1,Trans!A234,Trans!B234) -> Análise da Rentabilidade do Cotista*
D28: =IF(Cover!$B$1=1,Trans!E$550,Trans!E$551) -> 2011-01-01 | E28: =IF(Cover!$B$1=1,Trans!F$550,Trans!F$551) -> 2011-02-01 | F28: =IF(Cover!$B$1=1,Trans!G$550,Trans!G$551) -> 2011-03-01 | G28: =IF(Cover!$B$1=1,Trans!H$550,Trans!H$551) -> 2011-04-01 | H28: =IF(Cover!$B$1=1,Trans!I$550,Trans!I$551) -> 2011-05-01 | I28: =IF(Cover!$B$1=1,Trans!J$550,Trans!J$551) -> 2011-06-01 | J28: =IF(Cover!$B$1=1,Trans!K$550,Trans!K$551) -> 2011-07-01 | K28: =IF(Cover!$B$1=1,Trans!L$550,Trans!L$551) -> 2011-08-01 | L28: =IF(Cover!$B$1=1,Trans!M$550,Trans!M$551) -> 2011-09-01 | M28: =IF(Cover!$B$1=1,Trans!N$550,Trans!N$551) -> 2011-10-01 | N28: =IF(Cover!$B$1=1,Trans!O$550,Trans!O$551) -> 2011-11-01 | O28: =IF(Cover!$B$1=1,Trans!P$550,Trans!P$551) -> 2011-12-01 | P28: =IF(Cover!$B$1=1,Trans!Q$550,Trans!Q$551) -> 2012-01-01 | Q28: 2011-08-01 | R28: 2011-09-01 | S28: 2011-10-01 | T28: 2011-11-01 | U28: 2011-12-01 | V28: =IF(Cover!$B$1=1,Trans!W$550,Trans!W$551) -> 2012-07-01 | W28: 2012-08-01 | X28: 2012-09-01 | Y28: 2012-10-01 | Z28: 2012-11-01 | AA28: 2012-12-01 | AB28: =IF(Cover!$B$1=1,Trans!AC$550,Trans!AC$551) -> 2013-01-01 | AC28: =IF(Cover!$B$1=1,Trans!AD$550,Trans!AD$551) -> 2013-02-01 | AD28: =IF(Cover!$B$1=1,Trans!AE$550,Trans!AE$551) -> 2013-03-01 | AE28: =IF(Cover!$B$1=1,Trans!AF$550,Trans!AF$551) -> 2013-04-01 | AF28: =IF(Cover!$B$1=1,Trans!AG$550,Trans!AG$551) -> 2013-05-01 | AG28: =IF(Cover!$B$1=1,Trans!AH$550,Trans!AH$551) -> 2013-06-01 | AH28: =IF(Cover!$B$1=1,Trans!AI$550,Trans!AI$551) -> 2013-07-01 | AI28: =IF(Cover!$B$1=1,Trans!AJ$550,Trans!AJ$551) -> 2013-08-01 | AJ28: =IF(Cover!$B$1=1,Trans!AK$550,Trans!AK$551) -> 2013-09-01 | AK28: =IF(Cover!$B$1=1,Trans!AL$550,Trans!AL$551) -> 2013-10-01 | AL28: =IF(Cover!$B$1=1,Trans!AM$550,Trans!AM$551) -> 2013-11-01 | AM28: =IF(Cover!$B$1=1,Trans!AN$550,Trans!AN$551) -> 2013-12-01 | AN28: =IF(Cover!$B$1=1,Trans!AO$550,Trans!AO$551) -> 2014-01-01 | AO28: =IF(Cover!$B$1=1,Trans!AP$550,Trans!AP$551) -> 2014-02-01 | AP28: =IF(Cover!$B$1=1,Trans!AQ$550,Trans!AQ$551) -> 2014-03-01 | AQ28: =IF(Cover!$B$1=1,Trans!AR$550,Trans!AR$551) -> 2014-04-01 | AR28: =IF(Cover!$B$1=1,Trans!AS$550,Trans!AS$551) -> 2014-05-01 | AS28: =IF(Cover!$B$1=1,Trans!AT$550,Trans!AT$551) -> 2014-06-01 | AT28: =IF(Cover!$B$1=1,Trans!AU$550,Trans!AU$551) -> 2014-07-01 | AU28: =IF(Cover!$B$1=1,Trans!AV$550,Trans!AV$551) -> 2014-08-01 | AV28: =IF(Cover!$B$1=1,Trans!AW$550,Trans!AW$551) -> 2014-09-01 | AW28: =IF(Cover!$B$1=1,Trans!AX$550,Trans!AX$551) -> 2014-10-01 | AX28: =IF(Cover!$B$1=1,Trans!AY$550,Trans!AY$551) -> 2014-11-01 | AY28: =IF(Cover!$B$1=1,Trans!AZ$550,Trans!AZ$551) -> 2014-12-01 | AZ28: =IF(Cover!$B$1=1,Trans!BA$550,Trans!BA$551) -> 2015-01-01 | BA28: =IF(Cover!$B$1=1,Trans!BB$550,Trans!BB$551) -> 2015-02-01 | BB28: =IF(Cover!$B$1=1,Trans!BC$550,Trans!BC$551) -> 2015-03-01 | BC28: =IF(Cover!$B$1=1,Trans!BD$550,Trans!BD$551) -> 2015-04-01 | BD28: =IF(Cover!$B$1=1,Trans!BE$550,Trans!BE$551) -> 2015-05-01 | BE28: =IF(Cover!$B$1=1,Trans!BF$550,Trans!BF$551) -> 2015-06-01 | BF28: =IF(Cover!$B$1=1,Trans!BG$550,Trans!BG$551) -> 2015-07-01 | BG28: =IF(Cover!$B$1=1,Trans!BH$550,Trans!BH$551) -> 2015-08-01 | BH28: =IF(Cover!$B$1=1,Trans!BI$550,Trans!BI$551) -> 2015-09-01 | BI28: =IF(Cover!$B$1=1,Trans!BJ$550,Trans!BJ$551) -> 2015-10-01 | BJ28: =IF(Cover!$B$1=1,Trans!BK$550,Trans!BK$551) -> 2015-11-01 | BK28: =IF(Cover!$B$1=1,Trans!BL$550,Trans!BL$551) -> 2015-12-01 | BL28: 2016-01-01 | BM28: 2016-02-01 | BN28: 2016-03-01 | BO28: 2016-04-01 | BP28: 2016-05-01 | BQ28: =IF(Cover!$B$1=1,Trans!BR$550,Trans!BR$551) -> 2016-06-01 | BR28: =IF(Cover!$B$1=1,Trans!BS$550,Trans!BS$551) -> 2016-07-01 | BS28: =IF(Cover!$B$1=1,Trans!BT$550,Trans!BT$551) -> 2016-08-01 | BT28: 2016-09-01 | BU28: 2016-10-01 | BV28: 2016-11-01 | BW28: 2016-12-01 | BX28: 2017-01-01 | BY28: 2017-02-01 | BZ28: 2017-03-01 | CA28: 2017-04-01 | CB28: 2017-05-01 | CC28: 2017-06-01 | CD28: 2017-07-01 | CE28: 2017-08-01 | CF28: 2017-09-01 | CG28: =IF(Cover!$B$1=1,Trans!CH$550,Trans!CH$551) -> 2017-10-01 | CH28: 2017-11-01 | CI28: 2017-12-01 | CJ28: 2018-01-01 | CK28: 2018-02-01 | CL28: 2018-03-01 | CM28: 2018-04-01 | CN28: 2018-05-01 | CO28: 2018-06-01 | CP28: 2018-07-01 | CQ28: 2018-08-01 | CR28: 2018-09-01 | CS28: 2018-10-01 | CT28: 2018-11-01 | CU28: 2018-12-01 | CV28: =IF(Cover!$B$1=1,Trans!CW$550,Trans!CW$551) -> 2019-01-01 | CW28: 2019-02-01 | CX28: 2019-03-01 | CY28: 2019-04-01 | CZ28: 2019-05-01 | DA28: 2019-06-01 | DB28: 2019-07-01 | DC28: 2019-08-01 | DD28: 2019-09-01 | DE28: 2019-10-01 | DF28: 2019-11-01 | DG28: 2019-12-01 | DH28: 2020-01-01 | DI28: 2020-02-01 | DJ28: 2020-03-01 | DK28: 2020-04-01 | DL28: 2020-05-01 | DM28: 2020-06-01 | DN28: 2020-07-01 | DO28: 2020-08-01 | DP28: 2020-09-01 | DQ28: 2020-10-01 | DR28: 2020-11-01 | DS28: 2020-12-01 | DT28: 2021-01-01 | DU28: 2021-02-01 | DV28: 2021-03-01 | DW28: =IF(Cover!$B$1=1,Trans!DX$550,Trans!DX$551) -> 2021-04-01 | DX28: =IF(Cover!$B$1=1,Trans!DY$550,Trans!DY$551) -> 2021-05-01 | DY28: 2021-06-01 | DZ28: 2021-07-01 | EA28: 2021-08-01 | EB28: 2021-09-01 | EC28: 2021-10-01 | ED28: 2021-11-01 | EE28: 2021-12-01 | EF28: 2022-01-01 | EG28: 2022-02-01 | EH28: 2022-03-01 | EI28: 2022-04-01 | EJ28: 2022-05-01 | EK28: 2022-06-01 | EL28: 2022-07-01 | EM28: 2022-08-01 | EN28: 2022-09-01 | EO28: 2022-10-01 | EP28: 2022-11-01 | EQ28: 2022-12-01 | ER28: 2023-01-01 | ES28: 2023-02-01 | ET28: 2023-03-01 | EU28: 2023-04-01 | EV28: 2023-05-01 | EW28: 2023-06-01 | EX28: 2023-07-01 | EY28: 2023-08-01 | EZ28: 2023-09-01 | FA28: 2023-10-01 | FB28: 2023-11-01 | FC28: 2023-12-01 | FD28: 2024-01-01 | FE28: 2024-02-01 | FF28: 2024-03-01 | FG28: 2024-04-01 | FH28: 2024-05-01 | FI28: 2024-06-01 | FJ28: 2024-07-01 | FK28: 2024-08-01 | FL28: 2024-09-01 | FM28: 2024-10-01 | FN28: 2024-11-01 | FO28: 2024-12-01 | FP28: 2025-01-01 | FQ28: 2025-02-01 | FR28: 2025-03-01 | FS28: 2025-04-01 | FT28: 2025-05-01 | FU28: 2025-06-01 | FV28: 2025-07-01 | FW28: 2025-08-01 | FX28: =IF(Cover!$B$1=1,Trans!FY$550,Trans!FY$551) -> 2025-09-01 | FY28: 2025-10-01 | FZ28: 2025-11-01 | GA28: =IF(Cover!$B$1=1,Trans!GB$550,Trans!GB$551) -> 2025-12-01 | GB28: =IF(Cover!$B$1=1,Trans!GC$550,Trans!GC$551) -> 2026-01-01 | GC28: 2026-02-01 | GD28: 2026-03-01 | GE28: 2026-04-01 | GF28: 2026-05-01 | GG28: =IF(Cover!$B$1=1,Trans!GH$550,Trans!GH$551) -> 2026-06-01 | GH28: =IF(Cover!$B$1=1,Trans!GI$550,Trans!GI$551) -> 2026-07-01 | GJ28: =IF(Cover!$B$1=1,Trans!D213,Trans!D214) -> Acumulado 2011 | GK28: =IF(Cover!$B$1=1,Trans!D213,Trans!D214) -> Acumulado 2011 | GL28: =IF(Cover!$B$1=1,Trans!D213,Trans!D214) -> Acumulado 2011 | GM28: =IF(Cover!$B$1=1,Trans!E213,Trans!E214) -> Acumulado 2012 | GN28: =IF(Cover!$B$1=1,Trans!F213,Trans!F214) -> Acumulado 2013 | GO28: =IF(Cover!$B$1=1,Trans!G213,Trans!G214) -> Acumulado 2014 | GP28: =IF(Cover!$B$1=1,Trans!H213,Trans!H214) -> Acumulado 2015 | GQ28: =IF(Cover!$B$1=1,Trans!I213,Trans!I214) -> Acumulado 2016 | GR28: =IF(Cover!$B$1=1,Trans!J213,Trans!J214) -> Acumulado 2017 | GS28: =IF(Cover!$B$1=1,Trans!K213,Trans!K214) -> Acumulado 2018 | GT28: =IF(Cover!$B$1=1,Trans!L213,Trans!L214) -> Acumulado 2019 | GU28: =IF(Cover!$B$1=1,Trans!M213,Trans!M214) -> Acumulado 2020 | GV28: =IF(Cover!$B$1=1,Trans!N213,Trans!N214) -> Acumulado 2021 | GW28: =IF(Cover!$B$1=1,Trans!O213,Trans!O214) -> Acumulado 2022 | GX28: =IF(Cover!$B$1=1,Trans!P213,Trans!P214) -> Acumulado 2023 | GY28: =IF(Cover!$B$1=1,Trans!Q213,Trans!Q214) -> Acumulado 2024 | GZ28: =IF(Cover!$B$1=1,Trans!R213,Trans!R214) -> Acumulado 2025 | HA28: =IF(Cover!$B$1=1,Trans!S213,Trans!S214) -> Acumulado 2026
B29: Data de pagamento da distribuição | D29: 2011-01-14 | E29: 2011-02-14 | F29: 2011-03-16 | G29: 2011-04-14 | H29: 2011-05-13 | I29: 2011-06-14 | J29: 2011-07-14 | K29: 2011-08-12 | L29: 2011-09-15 | M29: 2011-10-17 | N29: 2011-11-16 | O29: 2011-12-14 | P29: 2012-01-13 | Q29: 2011-08-12 | R29: 2011-09-15 | S29: 2011-10-17 | T29: 2011-11-16 | U29: 2011-12-14 | V29: 2012-07-16 | W29: 2012-08-14 | X29: 2012-09-17 | Y29: 2012-10-15 | Z29: 2012-11-16 | AA29: 2012-12-14 | AB29: 2013-01-15 | AC29: 2013-02-18 | AD29: 2013-03-14 | AE29: 2013-04-12 | AF29: 2013-05-15 | AG29: 2013-06-14 | AH29: 2013-07-15 | AI29: 2013-08-14 | AJ29: 2013-09-13 | AK29: 2013-10-14 | AL29: 2013-11-14 | AM29: 2013-12-13 | AN29: 2014-01-15 | AO29: 2014-02-14 | AP29: 2014-03-18 | AQ29: 2014-04-14 | AR29: 2014-05-15 | AS29: 2014-06-16 | AT29: 2014-07-15 | AU29: 2014-08-14 | AV29: 2014-09-12 | AW29: 2014-10-14 | AX29: 2014-11-14 | AY29: 2014-12-12 | AZ29: 2015-01-08 | BA29: 2015-02-06 | BB29: 2015-03-06 | BC29: 2015-04-08 | BD29: 2015-05-08 | BE29: 2015-06-08 | BF29: 2015-07-07 | BG29: 2015-08-07 | BH29: 2015-09-08 | BI29: 2015-10-07 | BJ29: 2015-11-09 | BK29: 2015-12-07 | BL29: 2016-01-08 | BM29: 2016-02-05 | BN29: 2016-03-07 | BO29: 2016-04-07 | BP29: 2016-05-06 | BQ29: 2016-06-07 | BR29: 2016-07-07 | BS29: 2016-08-05 | BT29: 2016-09-08 | BU29: 2016-10-07 | BV29: 2016-11-08 | BW29: 2016-12-07 | BX29: 2017-01-06 | BY29: 2017-02-07 | BZ29: 2017-03-07 | CA29: 2017-04-07 | CB29: 2017-05-08 | CC29: 2017-06-07 | CD29: 2017-07-07 | CE29: 2017-08-07 | CF29: 2017-09-08 | CG29: 2017-10-06 | CH29: 2017-11-08 | CI29: 2017-12-07 | CJ29: 2018-01-08 | CK29: 2018-02-07 | CL29: 2018-03-07 | CM29: 2018-04-06 | CN29: 2018-05-08 | CO29: 2018-06-07 | CP29: 2018-07-06 | CQ29: 2018-08-07 | CR29: 2018-09-10 | CS29: 2018-10-05 | CT29: 2018-11-08 | CU29: 2018-12-07 | CV29: 2019-01-08 | CW29: 2019-02-14 | CX29: 2019-03-18 | CY29: 2019-04-12 | CZ29: 2019-05-15 | DA29: 2019-06-14 | DB29: 2019-07-15 | DC29: 2019-08-14 | DD29: 2019-09-13 | DE29: 2019-10-14 | DF29: 2019-11-14 | DG29: 2019-12-13 | DH29: 2020-01-15 | DI29: 2020-02-14 | DJ29: 2020-03-13 | DK29: 2020-04-15 | DL29: 2020-05-15 | DM29: 2020-06-15 | DN29: 2020-07-14 | DO29: 2020-08-14 | DP29: 2020-09-15 | DQ29: 2020-10-15 | DR29: 2020-11-16 | DS29: 2020-12-14 | DT29: 2021-01-15 | DU29: 2021-02-12 | DV29: 2021-03-12 | DW29: 2021-04-15 | DX29: 2021-05-12 | DY29: 2021-06-15 | DZ29: 2021-07-15 | EA29: 2021-08-13 | EB29: 2021-09-15 | EC29: 2021-10-15 | ED29: 2021-11-16 | EE29: 2021-12-14 | EF29: 2022-01-14 | EG29: 2022-02-14 | EH29: 2022-03-15 | EI29: 2022-04-14 | EJ29: 2022-05-13 | EK29: 2022-06-14 | EL29: 2022-07-14 | EM29: 2022-08-12 | EN29: 2022-09-15 | EO29: 2022-10-17 | EP29: 2022-11-16 | EQ29: 2022-12-14 | ER29: 2023-01-13 | ES29: 2023-02-14 | ET29: 2023-03-14 | EU29: 2023-04-17 | EV29: 2023-05-15 | EW29: 2023-06-15 | EX29: 2023-07-14 | EY29: 2023-08-14 | EZ29: 2023-09-15 | FA29: 2023-10-16 | FB29: 2023-11-16 | FC29: 2023-12-14 | FD29: 2024-01-15 | FE29: 2024-02-16 | FF29: 2024-03-14 | FG29: 2024-04-12 | FH29: 2024-05-15 | FI29: 2024-06-14 | FJ29: 2024-07-12 | FK29: 2024-08-14 | FL29: 2024-09-13 | FM29: 2024-10-14 | FN29: 2024-11-14 | FO29: 2024-12-13 | FP29: 2025-01-15 | FQ29: 2025-02-14 | FR29: 2025-03-18 | FS29: 2025-04-14 | FT29: 2025-05-15 | FU29: 2025-06-13 | FV29: 2025-07-14 | FW29: 2025-08-14 | FX29: 2025-09-12 | FY29: 2025-10-14 | FZ29: 2025-11-14 | GA29: 2025-12-12 | GB29: 2026-01-15 | GC29: 2026-01-15 | GD29: 2026-01-15 | GE29: 2026-01-15 | GF29: 2026-01-15 | GG29: 2026-01-15 | GH29: 2026-01-15
D30: =+EOMONTH(D28,0) -> 2011-01-31 | E30: =+EOMONTH(E28,0) -> 2011-02-28 | F30: 2011-03-31 | G30: 2011-04-30 | H30: 2011-05-31 | I30: 2011-06-30 | J30: 2011-07-31 | K30: 2011-08-31 | L30: 2011-09-30 | M30: 2011-10-31 | N30: 2011-11-30 | O30: 2011-12-31 | P30: 2012-01-31 | Q30: 2011-08-31 | R30: 2011-09-30 | S30: 2011-10-31 | T30: 2011-11-30 | U30: 2011-12-31 | V30: 2012-07-31 | W30: 2012-08-31 | X30: 2012-09-30 | Y30: 2012-10-31 | Z30: 2012-11-30 | AA30: 2012-12-31 | AB30: 2013-01-31 | AC30: 2013-02-28 | AD30: 2013-03-31 | AE30: 2013-04-30 | AF30: 2013-05-31 | AG30: 2013-06-30 | AH30: 2013-07-31 | AI30: 2013-08-31 | AJ30: 2013-09-30 | AK30: =+EOMONTH(AK28,0) -> 2013-10-31 | AL30: =+EOMONTH(AL28,0) -> 2013-11-30 | AM30: =+EOMONTH(AM28,0)-1 -> 2013-12-30 | AN30: =+EOMONTH(AN28,0) -> 2014-01-31 | AO30: =+EOMONTH(AO28,0) -> 2014-02-28 | AP30: =+EOMONTH(AP28,0) -> 2014-03-31 | AQ30: =+EOMONTH(AQ28,0) -> 2014-04-30 | AR30: 2014-05-31 | AS30: 2014-06-30 | AT30: 2014-07-31 | AU30: 2014-08-31 | AV30: 2014-09-30 | AW30: 2014-10-31 | AX30: 2014-11-30 | AY30: 2014-12-30 | AZ30: 2015-01-30 | BA30: 2015-02-27 | BB30: 2015-03-31 | BC30: 2015-04-30 | BD30: 2015-05-31 | BE30: 2015-06-30 | BF30: 2015-07-31 | BG30: 2015-08-31 | BH30: 2015-09-30 | BI30: 2015-10-30 | BJ30: 2015-11-30 | BK30: 2015-12-30 | BL30: 2016-01-29 | BM30: 2016-02-29 | BN30: 2016-03-31 | BO30: 2016-04-29 | BP30: 2016-05-31 | BQ30: 2016-06-30 | BR30: 2016-07-29 | BS30: 2016-08-31 | BT30: 2016-09-30 | BU30: 2016-10-31 | BV30: 2016-11-30 | BW30: 2016-12-29 | BX30: 2017-01-31 | BY30: 2017-02-28 | BZ30: 2017-03-30 | CA30: 2017-04-28 | CB30: 2017-05-31 | CC30: 2017-06-30 | CD30: 2017-07-31 | CE30: 2017-08-31 | CF30: 2017-09-29 | CG30: 2017-10-31 | CH30: 2017-11-30 | CI30: 2017-12-28 | CJ30: 2018-01-31 | CK30: 2018-02-28 | CL30: 2018-03-30 | CM30: 2018-04-30 | CN30: 2018-05-30 | CO30: 2018-06-29 | CP30: 2018-07-31 | CQ30: 2018-08-31 | CR30: 2018-09-28 | CS30: 2018-10-31 | CT30: 2018-11-30 | CU30: 2018-12-28 | CV30: 2019-01-31 | CW30: 2019-02-28 | CX30: 2019-03-29 | CY30: 2019-04-30 | CZ30: 2019-05-31 | DA30: 2019-06-28 | DB30: 2019-07-31 | DC30: 2019-08-30 | DD30: 2019-09-30 | DE30: 2019-10-31 | DF30: 2019-11-29 | DG30: 2019-12-30 | DH30: 2020-01-31 | DI30: 2020-02-28 | DJ30: 2020-03-31 | DK30: 2020-04-30 | DL30: 2020-05-29 | DM30: 2020-06-30 | DN30: 2020-07-31 | DO30: 2020-08-31 | DP30: 2020-09-30 | DQ30: 2020-10-30 | DR30: 2020-11-30 | DS30: 2020-12-30 | DT30: 2021-01-29 | DU30: 2021-02-26 | DV30: 2021-03-31 | DW30: 2021-04-30 | DX30: 2021-05-31 | DY30: 2021-06-30 | DZ30: 2021-07-30 | EA30: 2021-08-31 | EB30: 2021-09-30 | EC30: 2021-10-29 | ED30: 2021-11-30 | EE30: 2021-12-30 | EF30: 2022-01-31 | EG30: 2022-02-28 | EH30: 2022-03-31 | EI30: 2022-04-29 | EJ30: 2022-05-31 | EK30: 2022-06-30 | EL30: 2022-07-29 | EM30: 2022-08-31 | EN30: 2022-09-30 | EO30: 2022-10-31 | EP30: 2022-11-30 | EQ30: 2022-12-29 | ER30: 2023-01-31 | ES30: 2023-02-28 | ET30: 2023-03-31 | EU30: 2023-04-28 | EV30: 2023-05-31 | EW30: 2023-06-30 | EX30: 2023-07-31 | EY30: 2023-08-31 | EZ30: 2023-09-29 | FA30: 2023-10-31 | FB30: 2023-11-30 | FC30: 2023-12-28 | FD30: 2024-01-31 | FE30: 2024-02-29 | FF30: 2024-03-28 | FG30: 2024-04-30 | FH30: 2024-05-31 | FI30: 2024-06-28 | FJ30: 2024-07-31 | FK30: 2024-08-30 | FL30: 2024-09-30 | FM30: 2024-10-31 | FN30: 2024-11-30 | FO30: 2024-12-30 | FP30: 2025-01-31 | FQ30: 2025-02-28 | FR30: 2025-03-31 | FS30: 2025-04-30 | FT30: 2025-05-30 | FU30: 2025-06-30 | FV30: 2025-07-31 | FW30: 2025-08-31 | FX30: =+EOMONTH(FX28,0) -> 2025-09-30 | FY30: 2025-10-31 | FZ30: 2025-11-30 | GA30: 2025-12-31 | GB30: 2026-01-31 | GC30: 2026-02-28 | GD30: 2026-03-31 | GE30: 2026-04-30 | GF30: 2026-05-31 | GG30: =+EOMONTH(GG28,0) -> 2026-06-30 | GH30: =+EOMONTH(GH28,0) -> 2026-07-31
B31: =IF(Cover!$B$1=1,Trans!A235,Trans!B235) -> Valor de Abertura | D31: =-INDEX(BRCR11!$D$11:$D$2740,MATCH(D$28,BRCR11!$A$11:$A$2740,0)-1,) -> -101 | E31: =-INDEX(BRCR11!$D$11:$D$2740,MATCH(E$28,BRCR11!$A$11:$A$2740,0)-1,) -> -100.3 | F31: =-INDEX(BRCR11!$D$11:$D$2740,MATCH(F$28,BRCR11!$A$11:$A$2740,0)-1,) -> -100 | G31: =-INDEX(BRCR11!$D$11:$D$2740,MATCH(G$28,BRCR11!$A$11:$A$2740,0)-1,) -> -100.9 | H31: =-INDEX(BRCR11!$D$11:$D$2740,MATCH(H$28,BRCR11!$A$11:$A$2740,0)-1,) -> -100.95 | I31: =-INDEX(BRCR11!$D$11:$D$2740,MATCH(I$28,BRCR11!$A$11:$A$2740,0)-1,) -> -100.61 | J31: =-INDEX(BRCR11!$D$11:$D$2740,MATCH(J$28,BRCR11!$A$11:$A$2740,0)-1,) -> -103.4 | K31: =-INDEX(BRCR11!$D$11:$D$2740,MATCH(K$28,BRCR11!$A$11:$A$2740,0)-1,) -> -106 | L31: =-INDEX(BRCR11!$D$11:$D$2740,MATCH(L$28,BRCR11!$A$11:$A$2740,0)-1,) -> -119 | M31: =-INDEX(BRCR11!$D$11:$D$2740,MATCH(M$28,BRCR11!$A$11:$A$2740,0)-1,) -> -114.9 | N31: =-INDEX(BRCR11!$D$11:$D$2740,MATCH(N$28,BRCR11!$A$11:$A$2740,0)-1,) -> -111 | O31: =-INDEX(BRCR11!$D$11:$D$2740,MATCH(O$28,BRCR11!$A$11:$A$2740,0)-1,) -> -114 | P31: =-INDEX(BRCR11!$D$11:$D$2740,MATCH(P$28,BRCR11!$A$11:$A$2740,0)-1,) -> -128 | Q31: -106 | R31: -119 | S31: -114.9 | T31: -111 | U31: -114 | V31: =-INDEX(BRCR11!$D$11:$D$2740,MATCH(V$28,BRCR11!$A$11:$A$2740,0)-1,) -> -154.5 | W31: -153 | X31: -153.49 | Y31: -152.5 | Z31: -153.9 | AA31: -154.18 | AB31: =-INDEX(BRCR11!$D$11:$D$2740,MATCH(AB$28,BRCR11!$A$11:$A$2740,0)-1,) -> -155.1 | AC31: =-INDEX(BRCR11!$D$11:$D$2740,MATCH(AC$28,BRCR11!$A$11:$A$2740,0)-1,) -> -158 | AD31: =-INDEX(BRCR11!$D$11:$D$2740,MATCH(AD$28,BRCR11!$A$11:$A$2740,0)-1,) -> -154.5 | AE31: =-INDEX(BRCR11!$D$11:$D$2740,MATCH(AE$28,BRCR11!$A$11:$A$2740,0)-1,) -> -149.65 | AF31: =-INDEX(BRCR11!$D$11:$D$2740,MATCH(AF$28,BRCR11!$A$11:$A$2740,0)-1,) -> -142 | AG31: =-INDEX(BRCR11!$D$11:$D$2740,MATCH(AG$28,BRCR11!$A$11:$A$2740,0)-1,) -> -147.5 | AH31: =-INDEX(BRCR11!$D$11:$D$2740,MATCH(AH$28,BRCR11!$A$11:$A$2740,0)-1,) -> -138.31 | AI31: =-INDEX(BRCR11!$D$11:$D$2740,MATCH(AI$28,BRCR11!$A$11:$A$2740,0)-1,) -> -133.5 | AJ31: =-INDEX(BRCR11!$D$11:$D$2740,MATCH(AJ$28,BRCR11!$A$11:$A$2740,0)-1,) -> -122 | AK31: =-INDEX(BRCR11!$D$11:$D$2740,MATCH(AK$28,BRCR11!$A$11:$A$2740,0)-1,) -> -132.99 | AL31: =-INDEX(BRCR11!$D$11:$D$2740,MATCH(AL$28,BRCR11!$A$11:$A$2740,0)-1,) -> -137.8 | AM31: =-INDEX(BRCR11!$D$11:$D$2740,MATCH(AM$28,BRCR11!$A$11:$A$2740,0)-1,) -> -137.2 | AN31: =-INDEX(BRCR11!$D$11:$D$2740,MATCH(AN$28,BRCR11!$A$11:$A$2740,0)-1,) -> -133.85 | AO31: =-INDEX(BRCR11!$D$11:$D$2740,MATCH(AO$28,BRCR11!$A$11:$A$2740,0)-1,) -> -122.4 | AP31: =-INDEX(BRCR11!$D$11:$D$2740,MATCH(AP$28,BRCR11!$A$11:$A$2740,0)-1,) -> -126.15 | AQ31: =-INDEX(BRCR11!$D$11:$D$2740,MATCH(AQ$28,BRCR11!$A$11:$A$2740,0)-1,) -> -128.12 | AR31: =-INDEX(BRCR11!$D$11:$D$2740,MATCH(AR$28,BRCR11!$A$11:$A$2740,0)-1,) -> -125.49 | AS31: =-INDEX(BRCR11!$D$11:$D$2740,MATCH(AS$28,BRCR11!$A$11:$A$2740,0)-1,) -> -124.44 | AT31: =-INDEX(BRCR11!$D$11:$D$2740,MATCH(AT$28,BRCR11!$A$11:$A$2740,0)-1,) -> -122.64 | AU31: =-INDEX(BRCR11!$D$11:$D$2740,MATCH(AU$28,BRCR11!$A$11:$A$2740,0)-1,) -> -120.41 | AV31: =-INDEX(BRCR11!$D$11:$D$2740,MATCH(AV$28,BRCR11!$A$11:$A$2740,0)-1,) -> -117.98 | AW31: =-INDEX(BRCR11!$D$11:$D$2740,MATCH(AW$28,BRCR11!$A$11:$A$2740,0)-1,) -> -118.31 | AX31: =-INDEX(BRCR11!$D$11:$D$2740,MATCH(AX$28,BRCR11!$A$11:$A$2740,0)-1,) -> -113.01 | AY31: =-INDEX(BRCR11!$D$11:$D$2740,MATCH(AY$28,BRCR11!$A$11:$A$2740,0)-1,) -> -106.3 | AZ31: =-INDEX(BRCR11!$D$11:$D$2740,MATCH(AZ$28,BRCR11!$A$11:$A$2740,0)-1,) -> -109.1 | BA31: =-INDEX(BRCR11!$D$11:$D$2740,MATCH(BA$28,BRCR11!$A$11:$A$2740,0)-1,) -> -107.61 | BB31: =-INDEX(BRCR11!$D$11:$D$2740,MATCH(BB$28,BRCR11!$A$11:$A$2740,0)-1,) -> -107.02 | BC31: =-INDEX(BRCR11!$D$11:$D$2740,MATCH(BC$28,BRCR11!$A$11:$A$2740,0)-1,) -> -103.19 | BD31: =-INDEX(BRCR11!$D$11:$D$2740,MATCH(BD$28,BRCR11!$A$11:$A$2740,0)-1,) -> -106.3 | BE31: =-INDEX(BRCR11!$D$11:$D$2740,MATCH(BE$28,BRCR11!$A$11:$A$2740,0)-1,) -> -105 | BF31: =-INDEX(BRCR11!$D$11:$D$2740,MATCH(BF$28,BRCR11!$A$11:$A$2740,0)-1,) -> -106.9 | BG31: =-INDEX(BRCR11!$D$11:$D$2740,MATCH(BG$28,BRCR11!$A$11:$A$2740,0)-1,) -> -109.01 | BH31: =-INDEX(BRCR11!$D$11:$D$2740,MATCH(BH$28,BRCR11!$A$11:$A$2740,0)-1,) -> -106.85 | BI31: =-INDEX(BRCR11!$D$11:$D$2740,MATCH(BI$28,BRCR11!$A$11:$A$2740,0)-1,) -> -101 | BJ31: -105.27 | BK31: -100.15 | BL31: -93.45 | BM31: -80.76 | BN31: -89.71 | BO31: -103.74 | BP31: -105.35 | BQ31: =-INDEX(BRCR11!$D$11:$D$2740,MATCH(BQ$28,BRCR11!$A$11:$A$2740,0)-1,) -> -85.02 | BR31: =-INDEX(BRCR11!$D$11:$D$2740,MATCH(BR$28,BRCR11!$A$11:$A$2740,0)-1,) -> -88.65 | BS31: =-INDEX(BRCR11!$D$11:$D$2740,MATCH(BS$28,BRCR11!$A$11:$A$2740,0)-1,) -> -95.3 | BT31: -94.98 | BU31: -97.6 | BV31: -97 | BW31: -94.1 | BX31: -95.5 | BY31: -96.2 | BZ31: -107 | CA31: -105.25 | CB31: -101.49 | CC31: -102.5 | CD31: -100.9 | CE31: -90.5 | CF31: -91 | CG31: =-INDEX(BRCR11!$D$11:$D$2740,MATCH(CG$28,BRCR11!$A$11:$A$2740,0)-1,) -> -95.35 | CH31: -101 | CI31: -100.8 | CJ31: -106 | CK31: -105.3 | CL31: -107.7 | CM31: -107.44 | CN31: -103.8 | CO31: -90.87 | CP31: -88.71 | CQ31: -89.2 | CR31: -90.75 | CS31: -96.98 | CT31: -100 | CU31: -102.04 | CV31: -103.41 | CW31: -102.25 | CX31: -105.3 | CY31: -96.49 | CZ31: -92.8 | DA31: -90.43 | DB31: -96.51 | DC31: -97.13 | DD31: -94.4 | DE31: -90.8 | DF31: -92.48 | DG31: -99.49 | DH31: -117.7 | DI31: -114.96 | DJ31: -109 | DK31: -89.31 | DL31: -92.36 | DM31: -90.6 | DN31: -92.41 | DO31: -91 | DP31: -87.08 | DQ31: -91 | DR31: -86.5 | DS31: -87.53 | DT31: -88.74 | DU31: -89.9 | DV31: -86.91 | DW31: =-INDEX(BRCR11!$D$11:$D$2740,MATCH(DW$28,BRCR11!$A$11:$A$2740,0)-1,) -> -82 | DX31: =-INDEX(BRCR11!$D$11:$D$2740,MATCH(DX$28,BRCR11!$A$11:$A$2740,0)-1,) -> -85.46 | DY31: -82.9 | DZ31: -81 | EA31: -81.01 | EB31: -77.83 | EC31: -73.79 | ED31: -67.22 | EE31: -63.9 | EF31: -72.69 | EG31: -71.07 | EH31: -68.84 | EI31: -67.49 | EJ31: -69.7 | EK31: -67.67 | EL31: -61.89 | EM31: -56.85 | EN31: -70.4 | EO31: -69.79 | EP31: -66.55 | EQ31: -58.27 | ER31: -59.22 | ES31: -57.1 | ET31: -52.9 | EU31: -52.78 | EV31: -55.85 | EW31: -58.59 | EX31: -66.79 | EY31: -67.77 | EZ31: -61 | FA31: -59.39 | FB31: -53.85 | FC31: -59.83 | FD31: -59.3 | FE31: -61.09 | FF31: -59.7 | FG31: -57.76 | FH31: -55.4 | FI31: -55.2 | FJ31: -51.02 | FK31: -49.99 | FL31: -50.2 | FM31: -47.74 | FN31: -43.5 | FO31: -42.58 | FP31: -41.56 | FQ31: -39.94 | FR31: -39.47 | FS31: -40 | FT31: -42.56 | FU31: -43.86 | FV31: -42.25 | FW31: -41.79 | FX31: -41.3 | FY31: -43.59 | FZ31: -40.76 | GA31: -42.38 | GB31: -45.95 | GC31: -49.73 | GD31: -48.45 | GE31: -46.76 | GF31: -47.28 | GG31: =-INDEX(BRCR11!$D:$D,MATCH(GG$28,BRCR11!$A:$A,0)-1,) -> -44.82 | GH31: =-INDEX(BRCR11!$D:$D,MATCH(GH$28,BRCR11!$A:$A,0)-1,) -> -41.96
B32: =IF(Cover!$B$1=1,Trans!A236,Trans!B236) -> Distribuição por cota | D32: =D12 -> 0.5 | E32: 0.5 | F32: 0.5 | G32: 0.5 | H32: 0.5 | I32: 0.5 | J32: 0.5 | K32: 0.6666666667 | L32: 0.6666666667 | M32: 0.6666666667 | N32: 0.6666666667 | O32: 0.6666666667 | P32: 0.8333333333 | Q32: 0.6666666667 | R32: 0.6666666667 | S32: 0.6666666667 | T32: 0.6666666667 | U32: 0.6666666667 | V32: 0.8333333333 | W32: 0.8333333333 | X32: 0.8333333333 | Y32: 0.8333333333 | Z32: 0.8333333333 | AA32: 0.8333333333 | AB32: 0.96 | AC32: 0.96 | AD32: 0.96 | AE32: 0.96 | AF32: 0.96 | AG32: 0.96 | AH32: 0.96 | AI32: 0.96 | AJ32: 0.96 | AK32: 0.96 | AL32: 0.96 | AM32: 0.96 | AN32: 1.01 | AO32: 1.01 | AP32: 1.01 | AQ32: 1.01 | AR32: =AR12 -> 1.01 | AS32: 1.01 | AT32: 1.01 | AU32: 1.01 | AV32: 1.01 | AW32: 1.01 | AX32: =AX12 -> 1.01 | AY32: 1.01 | AZ32: 1.01 | BA32: 1.01 | BB32: 1.01 | BC32: 1.01 | BD32: 1.01 | BE32: 1.01 | BF32: 1.01 | BG32: 1.01 | BH32: 1.01 | BI32: 1.01 | BJ32: 1.01 | BK32: 1.01 | BL32: 1.01 | BM32: 1.01 | BN32: 1.01 | BO32: 1.01 | BP32: 20.80674297 | BQ32: =BQ12 -> 0.85 | BR32: =BR12 -> 0.99 | BS32: =BS12 -> 0.8001 | BT32: 0.8001 | BU32: 0.78 | BV32: 0.75 | BW32: 0.74 | BX32: 0.74 | BY32: 0.9638 | BZ32: 0.76 | CA32: 0.67 | CB32: 0.66 | CC32: 0.57 | CD32: 0.42 | CE32: 0.3467 | CF32: 0.3234916508 | CG32: 0.4293427228 | CH32: 0.4170000001 | CI32: 0.49 | CJ32: 0.449376359 | CK32: 0.49555111 | CL32: 0.35 | CM32: 0.3063578702 | CN32: 0.2677300192 | CO32: 0.35 | CP32: 0.35 | CQ32: 0.39 | CR32: 0.35 | CS32: 0.3467 | CT32: 0.35 | CU32: 0.35 | CV32: 0.35 | CW32: 0.41 | CX32: =0.41+10.57 -> 10.98 | CY32: 0.41 | CZ32: =0.43+0.5976 -> 1.0276 | DA32: 0.45 | DB32: 0.39 | DC32: 0.4 | DD32: 0.41 | DE32: 0.5 | DF32: 0.55 | DG32: 0.56 | DH32: 0.56 | DI32: 0.5945 | DJ32: 0.56 | DK32: 0.49 | DL32: 0.43 | DM32: 0.43 | DN32: 0.43 | DO32: 0.4616 | DP32: 0.4625 | DQ32: 0.4475 | DR32: 0.4709 | DS32: 0.499 | DT32: 0.5 | DU32: 0.4902 | DV32: 0.48 | DW32: 0.46 | DX32: =DX12 -> 0.46 | DY32: 0.46 | DZ32: 0.46 | EA32: 0.46 | EB32: 0.46 | EC32: 0.46 | ED32: 0.46 | EE32: 0.5 | EF32: 0.5 | EG32: 0.5 | EH32: 0.5 | EI32: 0.5 | EJ32: 0.5 | EK32: 0.47 | EL32: 0.47 | EM32: 0.47 | EN32: 0.47 | EO32: 0.47 | EP32: 0.47 | EQ32: 0.5 | ER32: 0.47 | ES32: 0.47 | ET32: 0.46 | EU32: 0.46 | EV32: 0.45 | EW32: 0.45 | EX32: 0.45 | EY32: 0.45 | EZ32: 0.41 | FA32: 0.41 | FB32: 0.41 | FC32: 0.41 | FD32: 0.41 | FE32: 0.41 | FF32: 0.41 | FG32: 0.5 | FH32: 0.5 | FI32: 0.5 | FJ32: 0.5 | FK32: 0.5 | FL32: 0.5 | FM32: 0.5 | FN32: 0.5 | FO32: 0.5 | FP32: 0.5 | FQ32: 0.48 | FR32: 0.45 | FS32: 0.45 | FT32: 0.45 | FU32: 0.41 | FV32: 0.41 | FW32: 0.41 | FX32: 0.41 | FY32: 0.41 | FZ32: 0.41 | GA32: 0.41 | GB32: 0.41 | GC32: 0.41 | GD32: 0.41 | GE32: 0.41 | GF32: 0.41 | GG32: 0.41 | GH32: 0.41
B33: =IF(Cover!$B$1=1,Trans!A237,Trans!B237) -> Valor de Fechamento | D33: =INDEX(BRCR11!$D$11:$D$2740,MATCH(D$30,BRCR11!$B$11:$B$2740),) -> 100.3 | E33: =INDEX(BRCR11!$D$11:$D$2740,MATCH(E$30,BRCR11!$B$11:$B$2740),) -> 100 | F33: =INDEX(BRCR11!$D$11:$D$2740,MATCH(F$30,BRCR11!$B$11:$B$2740),) -> 100.9 | G33: =INDEX(BRCR11!$D$11:$D$2740,MATCH(G$30,BRCR11!$B$11:$B$2740),) -> 100.95 | H33: =INDEX(BRCR11!$D$11:$D$2740,MATCH(H$30,BRCR11!$B$11:$B$2740),) -> 100.61 | I33: =INDEX(BRCR11!$D$11:$D$2740,MATCH(I$30,BRCR11!$B$11:$B$2740),) -> 103.4 | J33: =INDEX(BRCR11!$D$11:$D$2740,MATCH(J$30,BRCR11!$B$11:$B$2740),) -> 106 | K33: =INDEX(BRCR11!$D$11:$D$2740,MATCH(K$30,BRCR11!$B$11:$B$2740),) -> 119 | L33: =INDEX(BRCR11!$D$11:$D$2740,MATCH(L$30,BRCR11!$B$11:$B$2740),) -> 114.9 | M33: =INDEX(BRCR11!$D$11:$D$2740,MATCH(M$30,BRCR11!$B$11:$B$2740),) -> 111 | N33: =INDEX(BRCR11!$D$11:$D$2740,MATCH(N$30,BRCR11!$B$11:$B$2740),) -> 114 | O33: =INDEX(BRCR11!$D$11:$D$2740,MATCH(O$30,BRCR11!$B$11:$B$2740),) -> 128 | P33: =INDEX(BRCR11!$D$11:$D$2740,MATCH(P$30,BRCR11!$B$11:$B$2740),) -> 129.99 | Q33: 119 | R33: 114.9 | S33: 111 | T33: 114 | U33: 128 | V33: =INDEX(BRCR11!$D$11:$D$2740,MATCH(V$30,BRCR11!$B$11:$B$2740),) -> 153 | W33: 153.49 | X33: 152.5 | Y33: 153.9 | Z33: 154.18 | AA33: 155.1 | AB33: =INDEX(BRCR11!$D$11:$D$2740,MATCH(AB$30,BRCR11!$B$11:$B$2740),) -> 158 | AC33: =INDEX(BRCR11!$D$11:$D$2740,MATCH(AC$30,BRCR11!$B$11:$B$2740),) -> 154.5 | AD33: =INDEX(BRCR11!$D$11:$D$2740,MATCH(AD$30,BRCR11!$B$11:$B$2740),) -> 149.65 | AE33: =INDEX(BRCR11!$D$11:$D$2740,MATCH(AE$30,BRCR11!$B$11:$B$2740),) -> 142 | AF33: =INDEX(BRCR11!$D$11:$D$2740,MATCH(AF$30,BRCR11!$B$11:$B$2740),) -> 147.5 | AG33: =INDEX(BRCR11!$D$11:$D$2740,MATCH(AG$30,BRCR11!$B$11:$B$2740),) -> 138.31 | AH33: =INDEX(BRCR11!$D$11:$D$2740,MATCH(AH$30,BRCR11!$B$11:$B$2740),) -> 133.5 | AI33: =INDEX(BRCR11!$D$11:$D$2740,MATCH(AI$30,BRCR11!$B$11:$B$2740),) -> 122 | AJ33: =INDEX(BRCR11!$D$11:$D$2740,MATCH(AJ$30,BRCR11!$B$11:$B$2740),) -> 132.99 | AK33: =INDEX(BRCR11!$D$11:$D$2740,MATCH(AK$30,BRCR11!$B$11:$B$2740),) -> 137.8 | AL33: =INDEX(BRCR11!$D$11:$D$2740,MATCH(AL$30,BRCR11!$B$11:$B$2740),) -> 137.2 | AM33: =INDEX(BRCR11!$D$11:$D$2740,MATCH(AM$30,BRCR11!$B$11:$B$2740),) -> 133.85 | AN33: =INDEX(BRCR11!$D$11:$D$2740,MATCH(AN$30,BRCR11!$B$11:$B$2740),) -> 122.4 | AO33: =INDEX(BRCR11!$D$11:$D$2740,MATCH(AO$30,BRCR11!$B$11:$B$2740),) -> 126.15 | AP33: =INDEX(BRCR11!$D$11:$D$2740,MATCH(AP$30,BRCR11!$B$11:$B$2740),) -> 128.12 | AQ33: =INDEX(BRCR11!$D$11:$D$2740,MATCH(AQ$30,BRCR11!$B$11:$B$2740),) -> 125.49 | AR33: =INDEX(BRCR11!$D$11:$D$2740,MATCH(AR$30,BRCR11!$B$11:$B$2740),) -> 124.44 | AS33: =INDEX(BRCR11!$D$11:$D$2740,MATCH(AS$30,BRCR11!$B$11:$B$2740),) -> 122.64 | AT33: =INDEX(BRCR11!$D$11:$D$2740,MATCH(AT$30,BRCR11!$B$11:$B$2740),) -> 120.41 | AU33: =INDEX(BRCR11!$D$11:$D$2740,MATCH(AU$30,BRCR11!$B$11:$B$2740),) -> 117.98 | AV33: =INDEX(BRCR11!$D$11:$D$2740,MATCH(AV$30,BRCR11!$B$11:$B$2740),) -> 118.31 | AW33: =INDEX(BRCR11!$D$11:$D$2740,MATCH(AW$30,BRCR11!$B$11:$B$2740),) -> 113.01 | AX33: =INDEX(BRCR11!$D$11:$D$2740,MATCH(AX$30,BRCR11!$B$11:$B$2740),) -> 106.3 | AY33: =INDEX(BRCR11!$D$11:$D$2740,MATCH(AY$30,BRCR11!$B$11:$B$2740),) -> 109.1 | AZ33: =INDEX(BRCR11!$D$11:$D$2740,MATCH(AZ$30,BRCR11!$B$11:$B$2740),) -> 107.61 | BA33: =INDEX(BRCR11!$D$11:$D$2740,MATCH(BA$30,BRCR11!$B$11:$B$2740),) -> 107.02 | BB33: =INDEX(BRCR11!$D$11:$D$2740,MATCH(BB$30,BRCR11!$B$11:$B$2740),) -> 103.19 | BC33: =INDEX(BRCR11!$D$11:$D$2740,MATCH(BC$30,BRCR11!$B$11:$B$2740),) -> 106.3 | BD33: =INDEX(BRCR11!$D$11:$D$2740,MATCH(BD$30,BRCR11!$B$11:$B$2740),) -> 105 | BE33: =INDEX(BRCR11!$D$11:$D$2740,MATCH(BE$30,BRCR11!$B$11:$B$2740),) -> 106.9 | BF33: =INDEX(BRCR11!$D$11:$D$2740,MATCH(BF$30,BRCR11!$B$11:$B$2740),) -> 109.01 | BG33: =INDEX(BRCR11!$D$11:$D$2740,MATCH(BG$30,BRCR11!$B$11:$B$2740),) -> 106.85 | BH33: =INDEX(BRCR11!$D$11:$D$2740,MATCH(BH$30,BRCR11!$B$11:$B$2740),) -> 101 | BI33: =INDEX(BRCR11!$D$11:$D$2740,MATCH(BI$30,BRCR11!$B$11:$B$2740),) -> 105.27 | BJ33: 100.15 | BK33: 93.45 | BL33: 80.76 | BM33: 89.71 | BN33: 103.74 | BO33: 105.35 | BP33: 85.02 | BQ33: =INDEX(BRCR11!$D$11:$D$2740,MATCH(BQ$30,BRCR11!$B$11:$B$2740),) -> 88.65 | BR33: =INDEX(BRCR11!$D$11:$D$2740,MATCH(BR$30,BRCR11!$B$11:$B$2740),) -> 95.3 | BS33: =INDEX(BRCR11!$D$11:$D$2740,MATCH(BS$30,BRCR11!$B$11:$B$2740),) -> 94.98 | BT33: 97.6 | BU33: 97 | BV33: 94.1 | BW33: 95.5 | BX33: 96.2 | BY33: 107 | BZ33: 104.85 | CA33: 101.49 | CB33: 102.5 | CC33: 100.9 | CD33: 90.5 | CE33: 91 | CF33: 95.35 | CG33: =INDEX(BRCR11!$D$11:$D$2740,MATCH(CG$30,BRCR11!$B$11:$B$2740),) -> 101 | CH33: 100.8 | CI33: 106 | CJ33: 105.3 | CK33: 107.7 | CL33: 107.44 | CM33: 103.8 | CN33: 90.87 | CO33: 88.71 | CP33: 89.2 | CQ33: 90.75 | CR33: 96.98 | CS33: 100 | CT33: 102.04 | CU33: 103.41 | CV33: 102.25 | CW33: 105.3 | CX33: 96.49 | CY33: 92.8 | CZ33: 90.43 | DA33: 96.51 | DB33: 97.13 | DC33: 94.4 | DD33: 90.8 | DE33: 92.48 | DF33: 99.49 | DG33: 117.7 | DH33: 114.96 | DI33: 109 | DJ33: 89.31 | DK33: 92.36 | DL33: 90.6 | DM33: 92.41 | DN33: 91 | DO33: 87.08 | DP33: 91 | DQ33: 86.5 | DR33: 87.53 | DS33: 88.74 | DT33: 89.9 | DU33: 86.91 | DV33: 82 | DW33: =INDEX(BRCR11!$D$11:$D$2740,MATCH(DW$30,BRCR11!$B$11:$B$2740),) -> 85.46 | DX33: =INDEX(BRCR11!$D$11:$D$2740,MATCH(DX$30,BRCR11!$B$11:$B$2740),) -> 82.9 | DY33: 81 | DZ33: 81.01 | EA33: 77.83 | EB33: 73.79 | EC33: 67.22 | ED33: 63.9 | EE33: 72.69 | EF33: 71.07 | EG33: 68.84 | EH33: 67.49 | EI33: 69.7 | EJ33: 67.67 | EK33: 61.89 | EL33: 56.85 | EM33: 70.4 | EN33: 69.79 | EO33: 66.55 | EP33: 58.27 | EQ33: 59.22 | ER33: 57.1 | ES33: 52.9 | ET33: 52.78 | EU33: 55.85 | EV33: 58.59 | EW33: 66.79 | EX33: 67.77 | EY33: 61 | EZ33: 59.39 | FA33: 53.85 | FB33: 59.83 | FC33: 59.3 | FD33: 61.09 | FE33: 59.7 | FF33: 57.76 | FG33: 55.4 | FH33: 55.2 | FI33: 51.02 | FJ33: 49.99 | FK33: 50.2 | FL33: 47.74 | FM33: 43.5 | FN33: 42.58 | FO33: 41.56 | FP33: 39.94 | FQ33: 39.47 | FR33: 40 | FS33: 42.56 | FT33: 43.86 | FU33: 42.25 | FV33: 41.79 | FW33: 41.79 | FX33: 43.59 | FY33: 40.76 | FZ33: 42.38 | GA33: 45.95 | GB33: 49.73 | GC33: 48.45 | GD33: 46.76 | GE33: 47.28 | GF33: 44.82 | GG33: =INDEX(BRCR11!$D:$D,MATCH(GG$30,BRCR11!$B:$B),) -> 41.96 | GH33: =INDEX(BRCR11!$D:$D,MATCH(GH$30,BRCR11!$B:$B),) -> 40.33
B34: =IF(Cover!$B$1=1,Trans!A238,Trans!B238) -> XTIR | D34: =(1+XIRR(D31:D33,D28:D30,1%))^((D30-D28)/365)-1 -> -0.001985771007 | E34: 0.001999182772 | F34: 0.01403496546 | G34: 0.005465867203 | H34: 0.001589665869 | I34: 0.03278978286 | J34: 0.03006250469 | K34: 0.1294348228 | L34: -0.02893598301 | M34: -0.02821739813 | N34: 0.03312827758 | O34: 0.1290714157 | P34: 0.02214341002 | Q34: 0.1294348228 | R34: -0.02893598301 | S34: -0.02821739813 | T34: 0.03312827758 | U34: 0.1290714157 | V34: -0.004326675688 | W34: 0.008675964738 | X34: -0.001023187448 | Y34: 0.0146874683 | Z34: 0.007253059082 | AA34: 0.01140684028 | AB34: 0.02496912065 | AC34: -0.0161123932 | AD34: -0.02526745446 | AE34: -0.04488457986 | AF34: 0.04565586081 | AG34: -0.05600029473 | AH34: -0.02794013385 | AI34: -0.07928014134 | AJ34: 0.09839586196 | AK34: 0.0435632698 | AL34: 0.002622556365 | AM34: -0.01749183352 | AN34: -0.0783189389 | AO34: 0.03905444665 | AP34: 0.02370436639 | AQ34: -0.01269978993 | AR34: =(1+XIRR(AR31:AR33,AR28:AR30,1%))^((AR30-AR28)/365)-1 -> -0.0003201246988 | AS34: -0.006373455365 | AT34: -0.009991803885 | AU34: -0.01184950887 | AV34: 0.01141839886 | AW34: -0.03643836075 | AX34: -0.05069087865 | AY34: =(1+XIRR(AY31:AY33,AY28:AY30,1%))^((AY30-AY28)/365)-1 -> 0.03605314775 | AZ34: -0.004430767509 | BA34: 0.00393278559 | BB34: -0.02655956124 | BC34: 0.04022359143 | BD34: -0.002748152893 | BE34: =(1+XIRR(BE31:BE33,BE28:BE30,1%))^((BE30-BE28)/365)-1 -> 0.02791732547 | BF34: =(1+XIRR(BF31:BF33,BF28:BF30,1%))^((BF30-BF28)/365)-1 -> 0.02940778695 | BG34: =(1+XIRR(BG31:BG33,BG28:BG30,1%))^((BG30-BG28)/365)-1 -> -0.01062835409 | BH34: =(1+XIRR(BH31:BH33,BH28:BH30,1%))^((BH30-BH28)/365)-1 -> -0.04562616111 | BI34: =(1+XIRR(BI31:BI33,BI28:BI30,1%))^((BI30-BI28)/365)-1 -> 0.05269290621 | BJ34: -0.03931713012 | BK34: -0.05727566843 | BL34: -0.1260251795 | BM34: 0.1246532442 | BN34: 0.1691506537 | BO34: 0.02544960065 | BP34: 0.00541637308 | BQ34: =(1+XIRR(BQ31:BQ33,BQ28:BQ30,1%))^((BQ30-BQ28)/365)-1 -> 0.0531123551 | BR34: =(1+XIRR(BR31:BR33,BR28:BR30,1%))^((BR30-BR28)/365)-1 -> 0.08693757772 | BS34: =(1+XIRR(BS31:BS33,BS28:BS30,1%))^((BS30-BS28)/365)-1 -> 0.005074687516 | BT34: 0.03624992373 | BU34: 0.001856126773 | BV34: -0.02229608355 | BW34: 0.02288280951 | BX34: 0.01517640855 | BY34: 0.1232325621 | BZ34: -0.01116584082 | CA34: -0.0267583757 | CB34: 0.01959052976 | CC34: -0.01009334294 | CD34: -0.09787000441 | CE34: 0.009384535289 | CF34: 0.05175904796 | CG34: =(1+XIRR(CG31:CG33,CG28:CG30,1%))^((CG30-CG28)/365)-1 -> 0.06399707133 | CH34: 0.001456266876 | CI34: 0.0551734982 | CJ34: -0.003341400826 | CK34: 0.0261512968 | CL34: 0.0008070745354 | CM34: -0.03073475536 | CN34: -0.1215391183 | CO34: -0.02003130664 | CP34: 0.009467619249 | CQ34: 0.02132963563 | CR34: 0.0726533954 | CS34: 0.03482305011 | CT34: 0.02396344472 | CU34: 0.01690113951 | CV34: -0.007853294727 | CW34: 0.03390856585 | CX34: -0.07989739187 | CY34: -0.03408364205 | CZ34: -0.02117082365 | DA34: 0.07193450039 | DB34: 0.01048778535 | DC34: -0.0240433964 | DD34: -0.03398332078 | DE34: 0.02408357323 | DF34: 0.08200388627 | DG34: 0.1892641771 | DH34: -0.01856899072 | DI34: -0.04709319067 | DJ34: -0.1760682041 | DK34: 0.03974895853 | DL34: -0.0144338954 | DM34: 0.02478454571 | DN34: -0.01063301488 | DO34: -0.03811487561 | DP34: 0.05046427137 | DQ34: -0.04464778285 | DR34: 0.01740023708 | DS34: 0.01958607082 | DT34: 0.01875893544 | DU34: -0.0278921508 | DV34: -0.05115291536 | DW34: =(1+XIRR(DW31:DW33,DW28:DW30,1%))^((DW30-DW28)/365)-1 -> 0.04794241511 | DX34: =(1+XIRR(DX31:DX33,DX28:DX30,1%))^((DX30-DX28)/365)-1 -> -0.02465734119 | DY34: -0.01742053644 | DZ34: 0.005819539854 | EA34: -0.03369167408 | EB34: -0.04614034883 | EC34: -0.08306707658 | ED34: -0.04268948184 | EE34: 0.1459943944 | EF34: -0.01546839343 | EG34: -0.02443185478 | EH34: -0.01239562912 | EI34: 0.04031262307 | EJ34: -0.02204653431 | EK34: -0.07877645485 | EL34: -0.07414772876 | EM34: 0.2478585322 | EN34: -0.001995530719 | EO34: -0.0398169924 | EP34: -0.1177699133 | EQ34: 0.02499841475 | ER34: -0.02799627995 | ES34: -0.06560858318 | ET34: 0.006459003602 | EU34: 0.06711512471 | EV34: 0.05736056013 | EW34: 0.1482052376 | EX34: 0.02149206782 | EY34: -0.0936163407 | EZ34: -0.01973879675 | FA34: -0.08668417143 | FB34: 0.1190879472 | FC34: -0.0020128385 | FD34: 0.03723562728 | FE34: -0.0160922668 | FF34: -0.02572030574 | FG34: -0.03237726387 | FH34: 0.005441320741 | FI34: -0.06698653369 | FJ34: -0.0104530874 | FK34: 0.01428140002 | FL34: -0.03927503869 | FM34: -0.07881709052 | FN34: -0.009716928705 | FO34: -0.01229717179 | FP34: -0.02712414666 | FQ34: 0.0002519455814 | FR34: 0.02495139484 | FS34: 0.07571224157 | FT34: 0.04134230857 | FU34: -0.02751140779 | FV34: -0.001189977624 | FW34: 0.009865691345 | FX34: 0.0664665727 | FY34: -0.05581852965 | FZ34: 0.0506422086 | GA34: 0.09448150269 | GB34: 0.09161311577 | GC34: -0.01773136714 | GD34: -0.02697823897 | GE34: 0.02055926514 | GF34: -0.044992099 | GG34: =(1+XIRR(GG31:GG33,GG28:GG30,1%))^((GG30-GG28)/365)-1 -> -0.05728455744 | GH34: =(1+XIRR(GH31:GH33,GH28:GH30,1%))^((GH30-GH28)/365)-1 -> -0.0308950002 | GJ34: =(((1+D34)*(1+E34)*(1+F34)*(1+G34)*(1+H34)*(1+I34)*(1+J34)*(1+K34)*(1+L34)*(1+M34)*(1+N34)*(1+O34))-1) -> 0.3506521857 | GK34: =(((1+D34)*(1+E34)*(1+F34)*(1+G34)*(1+H34)*(1+I34)*(1+J34)*(1+K34)*(1+L34)*(1+M34)*(1+N34)*(1+O34))-1) -> 0.3506521857 | GL34: =(((1+D34)*(1+E34)*(1+F34)*(1+G34)*(1+H34)*(1+I34)*(1+J34)*(1+K34)*(1+L34)*(1+M34)*(1+N34)*(1+O34))-1) -> 0.3506521857 | GM34: =(((1+P34)*(1+Q34)*(1+R34)*(1+S34)*(1+T34)*(1+U34)*(1+V34)*(1+W34)*(1+X34)*(1+Y34)*(1+Z34)*(1+AA34))-1) -> 0.3179119001 | GN34: =((1+AB34)*(1+AC34)*(1+AD34)*(1+AE34)*(1+AF34)*(1+AG34)*(1+AH34)*(1+AI34)*(1+AJ34)*(1+AK34)*(1+AL34)*(1+AM34))-1 -> -0.06345194587 | GO34: =((1+AN34)*(1+AO34)*(1+AP34)*(1+AQ34)*(1+AR34)*(1+AS34)*(1+AT34)*(1+AU34)*(1+AV34)*(1+AW34)*(1+AX34)*(1+AY34)-1) -> -0.0984520937 | GP34: =((1+AZ34)*(1+BA34)*(1+BB34)*(1+BC34)*(1+BE34)*(1+BD34)*(1+BE34)*(1+BF34)*(1+BG34)*(1+BH34)*(1+BJ34)*(1+BK34)*(1+BI34)-1) -> -0.01175345943 | GQ34: =((1+BL34)*(1+BM34)*(1+BN34)*(1+BO34)*(1+BP34)*(1+BQ34)*(1+BR34)*(1+BS34)*(1+BT34)*(1+BU34)*(1+BV34)*(1+BW34)-1) -> 0.4152366384 | GR34: =((1+BY34)*(1+BX34)*(1+BZ34)*(1+CA34)*(1+CB34)*(1+CC34)*(1+CD34)*(1+CE34)*(1+CF34)*(1+CG34)*(1+CH34)*(1+CI34)-1) -> 0.1926518822 | GS34: =((1+CJ34)*(1+CK34)*(1+CL34)*(1+CM34)*(1+CN34)*(1+CO34)*(1+CP34)*(1+CQ34)*(1+CR34)*(1+CS34)*(1+CT34)*(1+CU34)-1) -> 0.01772975255 | GT34: =((1+CV34)*(1+CW34)*(1+CX34)*(1+CY34)*(1+CZ34)*(1+DA34)*(1+DB34)*(1+DD34)*(1+DC34)*(1+DE34)*(1+DF34)*(1+DG34)-1) -> 0.2008747789 | GU34: =((1+DH34)*(1+DI34)*(1+DJ34)*(1+DK34)*(1+DL34)*(1+DM34)*(1+DN34)*(1+DO34)*(1+DP34)*(1+DQ34)*(1+DR34)*(1+DS34)-1) -> -0.1983414269 | GV34: =((1+DT34)*(1+DU34)*(1+DV34)*(1+DW34)*(1+DX34)*(1+DY34)*(1+DZ34)*(1+EA34)*(1+EB34)*(1+EC34)*(1+EE34)*(1+ED34)-1) -> -0.1198887181 | GW34: =((1+EF34)*(1+EH34)*(1+EG34)*(1+EI34)*(1+EJ34)*(1+EK34)*(1+EL34)*(1+EM34)*(1+EN34)*(1+EO34)*(1+EP34)*(1+EQ34)-1) -> -0.1099467826 | GX34: =((1+ES34)*(1+ET34)*(1+ER34)*(1+EU34)*(1+EV34)*(1+EW34)*(1+EX34)*(1+EZ34)*(1+EY34)*(1+FA34)*(1+FC34)*(1+FB34)-1) -> 0.09634136489 | GY34: =((1+FD34)*(1+FE34)*(1+FF34)*(1+FG34)*(1+FI34)*(1+FH34)*(1+FJ34)*(1+FL34)*(1+FK34)*(1+FM34)*(1+FN34)*(1+FO34)-1) -> -0.2158636169 | GZ34: =(1+FP34)*(1+FR34)*(1+FQ34)*(1+FS34)*(1+FT34)*(1+FU34)-1*(1+FV34)*(1+FW34)*(1+FX34)*(1+FY34)*(1+FZ34)*(1+GA34)-1 -> -1.0813821 | HA34: =(1+GG34)*(1+GH34)-1 -> -0.08640975122
B35: =IF(Cover!$B$1=1,Trans!A239,Trans!B239) -> Valor de Fechamento com distribuição | D35: =INDEX(BRCR11!$L$11:$L$2294,MATCH(D$37,BRCR11!$A$11:$A$2294,1),) -> 100.8002494 | E35: =INDEX(BRCR11!$L$11:$L$2294,MATCH(E$37,BRCR11!$A$11:$A$2294,1),) -> 101.0022539 | F35: =INDEX(BRCR11!$L$11:$L$2294,MATCH(F$37,BRCR11!$A$11:$A$2294,1),) -> 102.4233911 | G35: =INDEX(BRCR11!$L$11:$L$2294,MATCH(G$37,BRCR11!$A$11:$A$2294,1),) -> 102.9860049 | H35: =INDEX(BRCR11!$L$11:$L$2294,MATCH(H$37,BRCR11!$A$11:$A$2294,1),) -> 103.1490291 | I35: =INDEX(BRCR11!$L$11:$L$2294,MATCH(I$37,BRCR11!$A$11:$A$2294,1),) -> 106.5394327 | J35: =INDEX(BRCR11!$L$11:$L$2294,MATCH(J$37,BRCR11!$A$11:$A$2294,1),) -> 109.7532338 | K35: =INDEX(BRCR11!$L$11:$L$2294,MATCH(K$37,BRCR11!$A$11:$A$2294,1),) -> 123.9792226 | L35: =INDEX(BRCR11!$L$11:$L$2294,MATCH(L$37,BRCR11!$A$11:$A$2294,1),) -> 120.4041361 | M35: =INDEX(BRCR11!$L$11:$L$2294,MATCH(M$37,BRCR11!$A$11:$A$2294,1),) -> 116.9958878 | N35: =INDEX(BRCR11!$L$11:$L$2294,MATCH(N$37,BRCR11!$A$11:$A$2294,1),) -> 120.8774862 | O35: =INDEX(BRCR11!$L$11:$L$2294,MATCH(O$37,BRCR11!$A$11:$A$2294,1),) -> 136.4681904 | P35: =INDEX(BRCR11!$L$11:$L$2294,MATCH(P$37,BRCR11!$A$11:$A$2294,1),) -> 139.4633251 | Q35: 123.9792226 | R35: 120.4041361 | S35: 116.9958878 | T35: 120.8774862 | U35: 136.4681904 | V35: =INDEX(BRCR11!$L$11:$L$2294,MATCH(V$37,BRCR11!$A$11:$A$2294,1),) -> 170.0363331 | W35: 171.5190736 | X35: 171.3395787 | Y35: 173.8529185 | Z35: 175.1164408 | AA35: 177.1181753 | AB35: =INDEX(BRCR11!$L$11:$L$2294,MATCH(AB$37,BRCR11!$A$11:$A$2294,1),) -> 181.8950566 | AC35: =INDEX(BRCR11!$L$11:$L$2294,MATCH(AC$37,BRCR11!$A$11:$A$2294,1),) -> 178.9293405 | AD35: =INDEX(BRCR11!$L$11:$L$2294,MATCH(AD$37,BRCR11!$A$11:$A$2294,1),) -> 174.3918029 | AE35: =INDEX(BRCR11!$L$11:$L$2294,MATCH(AE$37,BRCR11!$A$11:$A$2294,1),) -> 166.5530014 | AF35: =INDEX(BRCR11!$L$11:$L$2294,MATCH(AF$37,BRCR11!$A$11:$A$2294,1),) -> 174.1636394 | AG35: =INDEX(BRCR11!$L$11:$L$2294,MATCH(AG$37,BRCR11!$A$11:$A$2294,1),) -> 164.4169093 | AH35: =INDEX(BRCR11!$L$11:$L$2294,MATCH(AH$37,BRCR11!$A$11:$A$2294,1),) -> 159.8090972 | AI35: =INDEX(BRCR11!$L$11:$L$2294,MATCH(AI$37,BRCR11!$A$11:$A$2294,1),) -> 147.0965969 | AJ35: =INDEX(BRCR11!$L$11:$L$2294,MATCH(AJ$37,BRCR11!$A$11:$A$2294,1),) -> 161.5784214 | AK35: =INDEX(BRCR11!$L$11:$L$2294,MATCH(AK$37,BRCR11!$A$11:$A$2294,1),) -> 168.6108578 | AL35: =INDEX(BRCR11!$L$11:$L$2294,MATCH(AL$37,BRCR11!$A$11:$A$2294,1),) -> 169.0319008 | AM35: =INDEX(BRCR11!$L$11:$L$2294,MATCH(AM$37,BRCR11!$A$11:$A$2294,1),) -> 166.1004379 | AN35: =INDEX(BRCR11!$L$11:$L$2294,MATCH(AN$37,BRCR11!$A$11:$A$2294,1),) -> 153.0280805 | AO35: =INDEX(BRCR11!$L$11:$L$2294,MATCH(AO$37,BRCR11!$A$11:$A$2294,1),) -> 159.078041 | AP35: =INDEX(BRCR11!$L$11:$L$2294,MATCH(AP$37,BRCR11!$A$11:$A$2294,1),) -> 162.8670528 | AQ35: =INDEX(BRCR11!$L$11:$L$2294,MATCH(AQ$37,BRCR11!$A$11:$A$2294,1),) -> 160.7924318 | AR35: =INDEX(BRCR11!$L$11:$L$2294,MATCH(AR$37,BRCR11!$A$11:$A$2294,1),) -> 160.7186974 | AS35: =INDEX(BRCR11!$L$11:$L$2294,MATCH(AS$37,BRCR11!$A$11:$A$2294,1),) -> 159.6800324 | AT35: =INDEX(BRCR11!$L$11:$L$2294,MATCH(AT$37,BRCR11!$A$11:$A$2294,1),) -> 158.085261 | AU35: =INDEX(BRCR11!$L$11:$L$2294,MATCH(AU$37,BRCR11!$A$11:$A$2294,1),) -> 156.2155821 | AV35: =INDEX(BRCR11!$L$11:$L$2294,MATCH(AV$37,BRCR11!$A$11:$A$2294,1),) -> 157.9822139 | AW35: =INDEX(BRCR11!$L$11:$L$2294,MATCH(AW$37,BRCR11!$A$11:$A$2294,1),) -> 152.2167609 | AX35: =INDEX(BRCR11!$L$11:$L$2294,MATCH(AX$37,BRCR11!$A$11:$A$2294,1),) -> 144.4887275 | AY35: =INDEX(BRCR11!$L$11:$L$2740,MATCH(AY$37,BRCR11!$A$11:$A$2740,1),) -> 149.7348086 | AZ35: =INDEX(BRCR11!$L$11:$L$2740,MATCH(AZ$37,BRCR11!$A$11:$A$2740,1),) -> 149.060995 | BA35: =INDEX(BRCR11!$L$11:$L$2740,MATCH(BA$37,BRCR11!$A$11:$A$2740,1),) -> 149.6162303 | BB35: =INDEX(BRCR11!$L$11:$L$2740,MATCH(BB$37,BRCR11!$A$11:$A$2740,1),) -> 145.6753173 | BC35: =INDEX(BRCR11!$L$11:$L$2740,MATCH(BC$37,BRCR11!$A$11:$A$2740,1),) -> 151.5056886 | BD35: =INDEX(BRCR11!$L$11:$L$2740,MATCH(BD$37,BRCR11!$A$11:$A$2740,1),) -> 151.0897616 | BE35: =INDEX(BRCR11!$L$11:$L$2740,MATCH(BE$37,BRCR11!$A$11:$A$2740,1),) -> 155.3065116 | BF35: =INDEX(BRCR11!$L$11:$L$2740,MATCH(BF$37,BRCR11!$A$11:$A$2740,1),) -> 159.8262377 | BG35: =INDEX(BRCR11!$L$11:$L$2740,MATCH(BG$37,BRCR11!$A$11:$A$2740,1),) -> 158.1286016 | BH35: =INDEX(BRCR11!$L$11:$L$2740,MATCH(BH$37,BRCR11!$A$11:$A$2740,1),) -> 150.8914363 | BI35: =INDEX(BRCR11!$L$11:$L$2740,MATCH(BI$37,BRCR11!$A$11:$A$2740,1),) -> 158.8200974 | BJ35: 152.5476028 | BK35: 143.7872475 | BL35: 125.6880718 | BM35: 141.2131746 | BN35: 165.0334076 | BO35: 169.2874955 | BP35: 170.2262142 | BQ35: =INDEX(BRCR11!$L$11:$L$2740,MATCH(BQ$37,BRCR11!$A$11:$A$2740,1),) -> 179.2443973 | BR35: =INDEX(BRCR11!$L$11:$L$2740,MATCH(BR$37,BRCR11!$A$11:$A$2740,1),) -> 194.8948465 | BS35: =INDEX(BRCR11!$L$11:$L$2740,MATCH(BS$37,BRCR11!$A$11:$A$2740,1),) -> 195.8394564 | BT35: 202.9438317 | BU35: 203.3221362 | BV35: 198.7694552 | BW35: 203.3268528 | BX35: 206.3917417 | BY35: 231.8390832 | BZ35: 229.6885722 | CA35: 222.954792 | CB35: 226.6345916 | CC35: 223.0968809 | CD35: 202.063286 | CE35: 203.941597 | CF35: 214.411079 | CG35: =INDEX(BRCR11!$L$11:$L$2740,MATCH(CG$37,BRCR11!$A$11:$A$2740,1),) -> 228.0963834 | CH35: 228.5950977 | CI35: 241.5256594 | CJ35: 240.9521712 | CK35: 247.60701 | CL35: 247.8334078 | CM35: 240.1251262 | CN35: 210.7643711 | CO35: 206.5714045 | CP35: 208.4790538 | CQ35: 213.0332441 | CR35: 228.4910459 | CS35: 236.4717396 | CT35: 242.1432645 | CU35: 246.2478939 | CV35: 244.2976175 | CW35: 252.5828936 | CX35: 258.0404172 | CY35: 249.2421778 | CZ35: 245.6741247 | DA35: 263.4771128 | DB35: 266.2238279 | DC35: 259.8071498 | DD35: 251.0079904 | DE35: 257.0568734 | DF35: 278.1781711 | DG35: 330.9070994 | DH35: 324.7038978 | DI35: 309.4696798 | DJ35: 254.893596 | DK35: 265.055231 | DL35: 261.2253178 | DM35: 270.2124694 | DN35: 267.3357967 | DO35: 257.1358496 | DP35: 270.087017 | DQ35: 257.9930172 | DR35: 262.4631825 | DS35: 267.6267119 | DT35: 272.6099037 | DU35: 264.9933903 | DV35: 251.4426074 | DW35: =INDEX(BRCR11!$L$11:$L$2740,MATCH(DW$37,BRCR11!$A$11:$A$2740,1),) -> 263.4844086 | DX35: =INDEX(BRCR11!$L$11:$L$2740,MATCH(DX$37,BRCR11!$A$11:$A$2740,1),) -> 256.984792 | DY35: 252.4858514 | DZ35: 253.9628506 | EA35: 245.413153 | EB35: 234.1388073 | EC35: 214.6628036 | ED35: 205.5145577 | EE35: 235.484135 | EF35: 231.8597036 | EG35: 226.1997734 | EH35: 223.4259879 | EI35: 232.3798351 | EJ35: 227.2830127 | EK35: 209.333836 | EL35: 193.8180331 | EM35: 240.0138879 | EN35: 241.4937493 | EO35: 231.8853775 | EP35: 204.4624078 | EQ35: 209.5749173 | ER35: 203.6553047 | ES35: 190.2708968 | ET35: 191.3950629 | EU35: 204.3053188 | EV35: 216.0129183 | EW35: 248.1377169 | EX35: 253.3939517 | EY35: 229.6229736 | EZ35: 225.0297067 | FA35: 205.474212 | FB35: 230.0112796 | FC35: 229.5422792 | FD35: 238.0784408 | FE35: 234.2727042 | FF35: 228.2198447 | FG35: 235.136068 | FH35: 234.2872013 | FI35: 220.4857622 | FJ35: 218.199235 | FK35: 221.2810315 | FL35: 212.5642985 | FM35: 195.8568878 | FN35: 191.7146272 | FO35: 191.6054235 | FP35: 186.4150401 | FQ35: 186.4691171 | FR35: 191.109639 | FS35: 205.6305281 | FT35: 214.1531952 | FU35: 208.1514273 | FV35: 205.8851632 | FW35: 205.8851632 | FX35: 212.7036001 | FY35: 200.8107024 | FZ35: 208.7918932 | GA35: =INDEX(BRCR11!$L$11:$L$4061,MATCH(GA$37,BRCR11!$A$11:$A$4061,1),) -> 226.380073 | GB35: =INDEX(BRCR11!$L$11:$L$4061,MATCH(GB$37,BRCR11!$A$11:$A$4061,1),) -> 245.0028516 | GC35: 238.6967255 | GD35: 230.3706684 | GE35: =INDEX(BRCR11!$L$11:$L$4000,MATCH(GE$37,BRCR11!$A$11:$A$4000,1),) -> 232.9325321 | GF35: =INDEX(BRCR11!$L$11:$L$4000,MATCH(GF$37,BRCR11!$A$11:$A$4000,1),) -> 220.8129461 | GG35: =INDEX(BRCR11!$L$11:$L$4000,MATCH(GG$37,BRCR11!$A$11:$A$4000,1),) -> 206.7226956 | GH35: =INDEX(BRCR11!$L$11:$L$4000,MATCH(GH$37,BRCR11!$A$11:$A$4000,1),) -> 206.7226956 | GJ35: =O35/BRCR11!L16-1 -> 0.3511702019 | GK35: =O35/BRCR11!L16-1 -> 0.3511702019 | GL35: =O35/BRCR11!L16-1 -> 0.3511702019 | GM35: =AA35/BRCR11!L265-1 -> 0.2978715027 | GN35: =AM35/AA35-1 -> -0.06220557239 | GO35: =AY35/AM35-1 -> -0.09852851393 | GP35: =BK35/$AY35-1 -> -0.03972063063 | GQ35: =BW35/$BK35-1 -> 0.4140812646 | GR35: =CI35/$BW35-1 -> 0.1878689709 | GS35: =CU35/$CI35-1 -> 0.01955168837 | GT35: =DG35/$CU35-1 -> 0.3437966686 | GU35: =DS35/$DG35-1 -> -0.1912330911 | GV35: =EE35/$DS35-1 -> -0.1201022749 | GW35: =EQ35/$EE35-1 -> -0.1100253216 | GX35: =FC35/$EQ35-1 -> 0.09527553258 | GY35: =FO35/$FC35-1 -> -0.1652717566 | GZ35: =GB35/$FO35-1 -> 0.2786843249 | HA35: =GH35/$GA35-1 -> -0.08683351469
B36: =IF(Cover!$B$1=1,Trans!A240,Trans!B240) -> CDI | D36: 0.008587881063 | E36: 0.008423932828 | F36: 0.009170171064 | G36: 0.008379052784 | H36: 0.009854810984 | I36: 0.009515934147 | J36: 0.009657066727 | K36: 0.01072420745 | L36: 0.009416111454 | M36: 0.008824981629 | N36: 0.008587228451 | O36: 0.009064319435 | P36: 0.009266188588 | Q36: 0.01072420745 | R36: 0.009416111454 | S36: 0.008824981629 | T36: 0.008587228451 | U36: 0.009064319435 | V36: 0.006774479569 | W36: 0.006882264806 | X36: 0.005372568152 | Y36: 0.00608290597 | Z36: 0.005446044522 | AA36: 0.005076219351 | AB36: 0.0059 | AC36: 0.004815761416 | AD36: 0.005377092696 | AE36: 0.006008408491 | AF36: 0.005848961891 | AG36: 0.005919437364 | AH36: 0.0071 | AI36: 0.0069 | AJ36: 0.007 | AK36: 0.0080113 | AL36: 0.0071 | AM36: 0.0078 | AN36: 0.0083795639 | AO36: 0.007826727296 | AP36: 0.007826727296 | AQ36: 0.0081455162 | AR36: 0.008582934703 | AS36: 0.00817407087 | AT36: 0.009404268 | AU36: 0.008595287 | AV36: 0.009005839 | AW36: 0.00944798376 | AX36: 0.00837855481 | AY36: 0.009558402511 | AZ36: 0.009293461242 | BA36: 0.008185 | BB36: 0.01036123931 | BC36: 0.009482748665 | BD36: 0.009838 | BE36: 0.010667 | BF36: 0.01177315988 | BG36: 0.01054473383 | BH36: 0.011 | BI36: =+Graficos!$C$9 -> 0.01215218482 | BJ36: 0.011 | BK36: 0.01108225114 | BL36: 0.01054929541 | BM36: 0.0100148576 | BN36: 0.012 | BO36: 0.01054472738 | BP36: 0.01107487211 | BQ36: =+Graficos!$C$9 -> 0.01215218482 | BR36: =+Graficos!$C$9 -> 0.01215218482 | BS36: =+Graficos!$C$9 -> 0.01215218482 | BT36: 0.01107486963 | BU36: 0.01047438093 | BV36: 0.01036887871 | BW36: 0.01070501006 | BX36: 0.01084565495 | BY36: 0.01050415481 | BZ36: 0.01050415481 | CA36: 0.007852954121 | CB36: 0.009255549144 | CC36: 0.008080622681 | CD36: 0.007971533025 | CE36: 0.008014523472 | CF36: 0.006377187925 | CG36: =+Graficos!$C$9 -> 0.01215218482 | CH36: 0.005674522941 | CI36: 0.005110788219 | CJ36: 0.005833859727 | CK36: 0.004649271474 | CL36: 0.005315569132 | CM36: 0.005315569132 | CN36: 0.005175127164 | CO36: 0.00517512914 | CP36: 0.00517512914 | CQ36: 0.005669393386 | CR36: 0.004681107414 | CS36: 0.005430479586 | CT36: 0.0049355836 | CU36: 0.004688224569 | CV36: 0.005430478613 | CW36: 0.0049355845 | CX36: 0.004688226183 | CY36: 0.005183004123 | CZ36: 0.005430480554 | DA36: 0.004688230299 | DB36: 0.005678019621 | DC36: 0.005035899187 | DD36: 0.004637568843 | DE36: 0.004811643576 | DF36: 0.003803831295 | DG36: 0.003575474502 | DH36: 0.003766237249 | DI36: 0.002937274437 | DJ36: 0.003383698152 | DK36: 0.002849262145 | DL36: 0.002358073613 | DM36: 0.002123279373 | DN36: 0.001943390367 | DO36: 0.001598928754 | DP36: 0.001569709668 | DQ36: 0.001569708895 | DR36: 0.001494907093 | DS36: 0.001569712936 | DT36: 0.001569708985 | DU36: 0.001345315699 | DV36: 0.002010878936 | DW36: =+Graficos!$C$9 -> 0.01215218482 | DX36: =+Graficos!$C$9 -> 0.01215218482 | DY36: 0.003077750009 | DZ36: 0.003556165667 | EA36: 0.004279455257 | EB36: 0.00441991653 | EC36: 0.00441991653 | ED36: 0.005867540147 | EE36: 0.007340846391 | EF36: 0.007322756187 | EG36: 0.007550334728 | EH36: 0.009270514318 | EI36: 0.008343248381 | EJ36: 0.01034597416 | EK36: 0.01015322894 | EL36: 0.0103485265 | EM36: 0.0103485265 | EN36: 0.01071982949 | EO36: 0.01071982949 | EP36: 0.01020676721 | EQ36: 0.01071982833 | ER36: 0.01174674082 | ES36: 0.009181419017 | ET36: 0.01174673773 | EU36: 0.009181416631 | EV36: 0.01123315875 | EW36: 0.01071983067 | EX36: 0.01071983233 | EY36: 0.0113750632 | EZ36: 0.009729097709 | FA36: 0.009729097709 | FB36: 0.009729097709 | FC36: 0.009729097709 | FD36: 0.01010857568 | FE36: 0.008002082092 | FF36: 0.008316767108 | FG36: 0.008316767108 | FH36: 0.008324331117 | FI36: 0.007883287543 | FJ36: 0.007883287543 | FK36: 0.008675025407 | FL36: 0.008351484677 | FM36: 0.008351484677 | FN36: 0.007929948687 | FO36: 0.008855201138 | FP36: 0.01013205656 | FQ36: 0.01013205656 | FR36: 0.01013205656 | FS36: 0.01013205656 | FT36: 0.01138779924 | FU36: 0.01097055035 | FV36: 0.01275734023 | FW36: 0.01164157713 | FX36: 0.03161131788 | FY36: 0.03161131788 | FZ36: 0.01052637596 | GA36: 0.01108415275 | GB36: 0.02341867475 | GC36: 0.009413731589 | GD36: 0.0115628775 | GE36: 0.01090062542 | GF36: 0.0107342596 | GG36: =+Graficos!$C$9 -> 0.01215218482 | GH36: =+Graficos!$C$9 -> 0.01215218482 | GJ36: =(((1+D36)*(1+E36)*(1+F36)*(1+G36)*(1+H36)*(1+I36)*(1+J36)*(1+K36)*(1+L36)*(1+M36)*(1+N36)*(1+O36))-1) -> 0.1159433764 | GK36: =(((1+D36)*(1+E36)*(1+F36)*(1+G36)*(1+H36)*(1+I36)*(1+J36)*(1+K36)*(1+L36)*(1+M36)*(1+N36)*(1+O36))-1) -> 0.1159433764 | GL36: =(((1+D36)*(1+E36)*(1+F36)*(1+G36)*(1+H36)*(1+I36)*(1+J36)*(1+K36)*(1+L36)*(1+M36)*(1+N36)*(1+O36))-1) -> 0.1159433764 | GM36: =(((1+P36)*(1+Q36)*(1+R36)*(1+S36)*(1+T36)*(1+U36)*(1+V36)*(1+W36)*(1+X36)*(1+Y36)*(1+Z36)*(1+AA36))-1) -> 0.09543402053 | GN36: =((1+AB36)*(1+AC36)*(1+AD36)*(1+AE36)*(1+AF36)*(1+AG36)*(1+AH36)*(1+AI36)*(1+AJ36)*(1+AK36)*(1+AL36)*(1+AM36))-1 -> 0.08060898288 | GO36: =((1+AN36)*(1+AO36)*(1+AP36)*(1+AQ36)*(1+AR36)*(1+AS36)*(1+AT36)*(1+AU36)*(1+AV36)*(1+AW36)*(1+AX36)*(1+AY36)-1) -> 0.1083601048 | GP36: =((1+AZ36)*(1+BA36)*(1+BB36)*(1+BC36)*(1+BE36)*(1+BD36)*(1+BE36)*(1+BF36)*(1+BG36)*(1+BH36)*(1+BJ36)*(1+BK36)*(1+BI36)-1) -> 0.1449182081 | GQ36: =((1+BL36)*(1+BM36)*(1+BN36)*(1+BO36)*(1+BP36)*(1+BQ36)*(1+BR36)*(1+BS36)*(1+BT36)*(1+BU36)*(1+BV36)*(1+BW36)-1) -> 0.1417081183 | GR36: =((1+BY36)*(1+BX36)*(1+BZ36)*(1+CA36)*(1+CB36)*(1+CC36)*(1+CD36)*(1+CE36)*(1+CF36)*(1+CG36)*(1+CH36)*(1+CI36)-1) -> 0.1072550798 | GS36: =((1+CJ36)*(1+CK36)*(1+CL36)*(1+CM36)*(1+CN36)*(1+CO36)*(1+CP36)*(1+CQ36)*(1+CR36)*(1+CS36)*(1+CT36)*(1+CU36)-1) -> 0.06383872717 | GT36: =((1+CV36)*(1+CW36)*(1+CX36)*(1+CY36)*(1+CZ36)*(1+DA36)*(1+DB36)*(1+DD36)*(1+DC36)*(1+DE36)*(1+DF36)*(1+DG36)-1) -> 0.05945759203 | GU36: =((1+DH36)*(1+DI36)*(1+DJ36)*(1+DK36)*(1+DL36)*(1+DM36)*(1+DN36)*(1+DO36)*(1+DP36)*(1+DQ36)*(1+DR36)*(1+DS36)-1) -> 0.02750141181 | GV36: =((1+DT36)*(1+DU36)*(1+DV36)*(1+DW36)*(1+DX36)*(1+DY36)*(1+DZ36)*(1+EA36)*(1+EB36)*(1+EC36)*(1+ED36)*(1+EE36)-1) -> 0.06391725081 | GW36: =((1+EF36)*(1+EH36)*(1+EG36)*(1+EI36)*(1+EJ36)*(1+EK36)*(1+EL36)*(1+EM36)*(1+EN36)*(1+EO36)*(1+EP36)*(1+EQ36)-1) -> 0.1224158875 | GX36: =((1+ES36)*(1+ER36)*(1+ET36)*(1+EU36)*(1+EV36)*(1+EW36)*(1+EX36)*(1+EY36)*(1+EZ36)*(1+FA36)*(1+FC36)*(1+FB36)-1) -> 0.1322093089 | GY36: =((1+FD36)*(1+FE36)*(1+FF36)*(1+FG36)*(1+FH36)*(1+FI36)*(1+FJ36)*(1+FK36)*(1+FL36)*(1+FM36)*(1+FN36)*(1+FO36)-1) -> 0.1058049745 | GZ36: =(1+FP36)*(1+FR36)*(1+FQ36)*(1+FS36)*(1+FT36)*(1+FU36)-1*(1+FV36)*(1+FW36)*(1+FX36)*(1+FY36)*(1+FZ36)*(1+GA36)-1 -> -1.049479215 | HA36: =(1+GG36)*(1+GH36)-1 -> 0.02445204523
D37: 2011-01-01 | E37: 2011-02-01 | F37: 2011-03-01 | G37: 2011-04-01 | H37: 2011-05-01 | I37: 2011-06-01 | J37: 2011-07-01 | K37: 2011-08-01 | L37: 2011-09-01 | M37: 2011-10-01 | N37: 2011-11-01 | O37: 2011-12-01 | P37: 2012-01-01 | Q37: 2011-08-01 | R37: 2011-09-01 | S37: 2011-10-01 | T37: 2011-11-01 | U37: 2011-12-01 | V37: 2012-07-01 | W37: 2012-08-01 | X37: 2012-09-01 | Y37: 2012-10-01 | Z37: 2012-11-01 | AA37: 2012-12-01 | AB37: 2013-01-01 | AC37: 2013-02-01 | AD37: 2013-03-01 | AE37: 2013-04-01 | AF37: 2013-05-01 | AG37: 2013-06-01 | AH37: 2013-07-01 | AI37: 2013-08-01 | AJ37: 2013-09-01 | AK37: 2013-10-01 | AL37: 2013-11-01 | AM37: 2013-12-01 | AN37: 2014-01-01 | AO37: 2014-02-01 | AP37: 2014-03-01 | AQ37: 2014-04-01 | AR37: 2014-05-01 | AS37: 2014-06-01 | AT37: =+EDATE(AS37,1) -> 2014-07-01 | AU37: 2014-08-01 | AV37: =+EDATE(AU37,1) -> 2014-09-01 | AW37: 2014-10-01 | AX37: 2014-11-01 | AY37: 2014-12-01 | AZ37: 2015-01-01 | BA37: 2015-02-01 | BB37: 2015-03-01 | BC37: 2015-04-01 | BD37: 2015-05-01 | BE37: 2015-06-01 | BF37: 2015-07-01 | BG37: 2015-08-01 | BH37: 2015-09-01 | BI37: 2015-10-01 | BJ37: 2015-11-01 | BK37: 2015-12-01 | BL37: 2016-01-01 | BM37: 2016-02-01 | BN37: 2016-03-01 | BO37: 2016-04-01 | BP37: 2016-05-01 | BQ37: =+EDATE(BP37,1) -> 2016-06-01 | BR37: =+EDATE(BQ37,1) -> 2016-07-01 | BS37: =+EDATE(BR37,1) -> 2016-08-01 | BT37: 2016-09-01 | BU37: 2016-10-01 | BV37: 2016-11-01 | BW37: 2016-12-01 | BX37: 2017-01-01 | BY37: 2017-02-01 | BZ37: 2017-03-01 | CA37: 2017-04-01 | CB37: 2017-05-01 | CC37: 2017-06-01 | CD37: 2017-07-01 | CE37: 2017-08-01 | CF37: 2017-09-01 | CG37: =+EDATE(CF37,1) -> 2017-10-01 | CH37: 2017-11-01 | CI37: 2017-12-01 | CJ37: 2018-01-01 | CK37: 2018-02-01 | CL37: 2018-03-01 | CM37: 2018-04-01 | CN37: 2018-05-01 | CO37: 2018-06-01 | CP37: 2018-07-01 | CQ37: =+EDATE(CP37,1) -> 2018-08-01 | CR37: 2018-09-01 | CS37: 2018-10-01 | CT37: 2018-11-01 | CU37: 2018-12-01 | CV37: =+EDATE(CU37,1) -> 2019-01-01 | CW37: 2019-02-01 | CX37: 2019-03-01 | CY37: 2019-04-01 | CZ37: 2019-05-01 | DA37: 2019-06-01 | DB37: 2019-07-01 | DC37: 2019-08-01 | DD37: 2019-09-01 | DE37: 2019-10-01 | DF37: 2019-11-01 | DG37: 2019-12-01 | DH37: 2020-01-01 | DI37: 2020-02-01 | DJ37: 2020-03-01 | DK37: 2020-04-01 | DL37: 2020-05-01 | DM37: 2020-06-01 | DN37: 2020-07-01 | DO37: 2020-08-01 | DP37: 2020-09-01 | DQ37: 2020-10-01 | DR37: 2020-11-01 | DS37: 2020-12-01 | DT37: 2021-01-01 | DU37: 2021-02-01 | DV37: 2021-03-01 | DW37: =+EDATE(DV37,1) -> 2021-04-01 | DX37: =+EDATE(DW37,1) -> 2021-05-01 | DY37: 2021-06-01 | DZ37: 2021-07-01 | EA37: 2021-08-01 | EB37: 2021-09-01 | EC37: 2021-10-01 | ED37: 2021-11-01 | EE37: 2021-12-01 | EF37: 2022-01-01 | EG37: 2022-02-01 | EH37: 2022-03-01 | EI37: 2022-04-01 | EJ37: 2022-05-01 | EK37: 2022-06-01 | EL37: 2022-07-01 | EM37: 2022-08-01 | EN37: 2022-09-01 | EO37: 2022-10-01 | EP37: 2022-11-01 | EQ37: 2022-12-01 | ER37: 2023-01-01 | ES37: 2023-02-01 | ET37: 2023-03-01 | EU37: 2023-04-01 | EV37: 2023-05-01 | EW37: 2023-06-01 | EX37: 2023-07-01 | EY37: 2023-08-01 | EZ37: 2023-09-01 | FA37: 2023-10-01 | FB37: 2023-11-01 | FC37: 2023-12-01 | FD37: 2024-01-01 | FE37: 2024-02-01 | FF37: 2024-03-01 | FG37: 2024-04-01 | FH37: 2024-05-01 | FI37: 2024-06-01 | FJ37: 2024-07-01 | FK37: 2024-08-01 | FL37: 2024-09-01 | FM37: 2024-10-01 | FN37: 2024-11-01 | FO37: 2024-12-01 | FP37: 2025-01-01 | FQ37: 2025-02-01 | FR37: 2025-03-01 | FS37: 2025-04-01 | FT37: 2025-05-01 | FU37: 2025-06-01 | FV37: 2025-07-01 | FW37: 2025-08-01 | FX37: 2025-09-01 | FY37: 2025-10-01 | FZ37: 2025-11-01 | GA37: =+EDATE(FZ37,1) -> 2025-12-01 | GB37: 2026-01-01 | GC37: 2026-02-01 | GD37: 2026-03-01 | GE37: 2026-04-01 | GF37: 2026-05-01 | GG37: =+EDATE(GF37,1) -> 2026-06-01 | GH37: =+EDATE(GG37,1) -> 2026-07-01
B38: =IF(Cover!$B$1=1,Trans!A241,Trans!B241) -> * Considera a valorização da cota no período (Valor de Fechamento do último dia de M / Valor de Fechamento do último dia de M-1) + Rendimento recebido pelo cotista no mês M.
B40: =IF(Cover!$B$1=1,Trans!A242,Trans!B242) -> Volume Médio Diário Negociado
D41: =IF(Cover!$B$1=1,Trans!E$355,Trans!E$355) -> jan-11 | E41: =IF(Cover!$B$1=1,Trans!F$355,Trans!F$355) -> fev-11 | F41: =IF(Cover!$B$1=1,Trans!G$355,Trans!G$355) -> mar-11 | G41: =IF(Cover!$B$1=1,Trans!H$355,Trans!H$355) -> abr-11 | H41: =IF(Cover!$B$1=1,Trans!I$355,Trans!I$355) -> mai-11 | I41: =IF(Cover!$B$1=1,Trans!J$355,Trans!J$355) -> jun-11 | J41: =IF(Cover!$B$1=1,Trans!K$355,Trans!K$355) -> jul-11 | K41: =IF(Cover!$B$1=1,Trans!L$355,Trans!L$355) -> ago-11 | L41: =IF(Cover!$B$1=1,Trans!M$355,Trans!M$355) -> set-11 | M41: =IF(Cover!$B$1=1,Trans!N$355,Trans!N$355) -> out-11 | N41: =IF(Cover!$B$1=1,Trans!O$355,Trans!O$355) -> nov-11 | O41: =IF(Cover!$B$1=1,Trans!P$355,Trans!P$355) -> dez-11 | P41: =IF(Cover!$B$1=1,Trans!Q$355,Trans!Q$355) -> jan-12 | Q41: ago-11 | R41: set-11 | S41: out-11 | T41: nov-11 | U41: dez-11 | V41: =IF(Cover!$B$1=1,Trans!W$355,Trans!W$355) -> jul-12 | W41: ago-12 | X41: set-12 | Y41: out-12 | Z41: nov-12 | AA41: dez-12 | AB41: =IF(Cover!$B$1=1,Trans!AC$355,Trans!AC$355) -> jan-13 | AC41: =IF(Cover!$B$1=1,Trans!AD$355,Trans!AD$355) -> fev-13 | AD41: =IF(Cover!$B$1=1,Trans!AE$355,Trans!AE$355) -> mar-13 | AE41: =IF(Cover!$B$1=1,Trans!AF$355,Trans!AF$355) -> abr-13 | AF41: =IF(Cover!$B$1=1,Trans!AG$355,Trans!AG$355) -> mai-13 | AG41: =IF(Cover!$B$1=1,Trans!AH$355,Trans!AH$355) -> jun-13 | AH41: =IF(Cover!$B$1=1,Trans!AI$355,Trans!AI$355) -> jul-13 | AI41: =IF(Cover!$B$1=1,Trans!AJ$355,Trans!AJ$355) -> ago-13 | AJ41: =IF(Cover!$B$1=1,Trans!AK$355,Trans!AK$355) -> set-13 | AK41: =IF(Cover!$B$1=1,Trans!AL$355,Trans!AL$355) -> out-13 | AL41: =IF(Cover!$B$1=1,Trans!AM$355,Trans!AM$355) -> nov-13 | AM41: =IF(Cover!$B$1=1,Trans!AN$355,Trans!AN$355) -> dez-13 | AN41: =IF(Cover!$B$1=1,Trans!AO$355,Trans!AO$355) -> jan-14 | AO41: =IF(Cover!$B$1=1,Trans!AP$355,Trans!AP$355) -> fev-14 | AP41: =IF(Cover!$B$1=1,Trans!AQ$355,Trans!AQ$355) -> mar-14 | AQ41: =IF(Cover!$B$1=1,Trans!AR$355,Trans!AR$355) -> abr-14 | AR41: =IF(Cover!$B$1=1,Trans!AS$355,Trans!AS$355) -> mai-14 | AS41: =IF(Cover!$B$1=1,Trans!AT$355,Trans!AT$355) -> jun-14 | AT41: =IF(Cover!$B$1=1,Trans!AU$355,Trans!AU$355) -> jul-14 | AU41: =IF(Cover!$B$1=1,Trans!AV$355,Trans!AV$355) -> ago-14 | AV41: =IF(Cover!$B$1=1,Trans!AW$355,Trans!AW$355) -> set-14 | AW41: =IF(Cover!$B$1=1,Trans!AX$355,Trans!AX$355) -> out-14 | AX41: =IF(Cover!$B$1=1,Trans!AY$355,Trans!AY$355) -> nov-14 | AY41: =IF(Cover!$B$1=1,Trans!AZ$355,Trans!AZ$355) -> dez-14 | AZ41: =IF(Cover!$B$1=1,Trans!BA$355,Trans!BA$355) -> jan-15 | BA41: =IF(Cover!$B$1=1,Trans!BB$355,Trans!BB$355) -> fev-15 | BB41: =IF(Cover!$B$1=1,Trans!BC$355,Trans!BC$355) -> mar-15 | BC41: =IF(Cover!$B$1=1,Trans!BD$355,Trans!BD$355) -> abr-15 | BD41: =IF(Cover!$B$1=1,Trans!BE$355,Trans!BE$355) -> mai-15 | BE41: =IF(Cover!$B$1=1,Trans!BF$355,Trans!BF$355) -> jun-15 | BF41: =IF(Cover!$B$1=1,Trans!BG$355,Trans!BG$355) -> jul-15 | BG41: =IF(Cover!$B$1=1,Trans!BH$355,Trans!BH$355) -> ago-15 | BH41: =IF(Cover!$B$1=1,Trans!BI$355,Trans!BI$355) -> set-15 | BI41: =IF(Cover!$B$1=1,Trans!BJ$355,Trans!BJ$355) -> out-15 | BJ41: nov-15 | BK41: =IF(Cover!$B$1=1,Trans!BL$355,Trans!BL$355) -> dez-15 | BL41: jan-16 | BM41: fev-16 | BN41: mar-16 | BO41: abr-16 | BP41: mai-16 | BQ41: =IF(Cover!$B$1=1,Trans!BR$355,Trans!BR$355) -> jun-16 | BR41: =IF(Cover!$B$1=1,Trans!BS$355,Trans!BS$355) -> jul-16 | BS41: =IF(Cover!$B$1=1,Trans!BT$355,Trans!BT$355) -> ago-16 | BT41: set-16 | BU41: out-16 | BV41: nov-16 | BW41: dez-16 | BX41: jan-17 | BY41: fev-17 | BZ41: mar-17 | CA41: abr-17 | CB41: mai-17 | CC41: jun-17 | CD41: jul-17 | CE41: ago-17 | CF41: set-17 | CG41: =IF(Cover!$B$1=1,Trans!CH$355,Trans!CH$355) -> out-17 | CH41: nov-17 | CI41: dez-17 | CJ41: jan-18 | CK41: fev-18 | CL41: mar-18 | CM41: abr-18 | CN41: mai-18 | CO41: jun-18 | CP41: jul-18 | CQ41: ago-18 | CR41: set-18 | CS41: out-18 | CT41: nov-18 | CU41: dez-18 | CV41: =IF(Cover!$B$1=1,Trans!CW$355,Trans!CW$355) -> jan-19 | CW41: fev-19 | CX41: mar-19 | CY41: abr-19 | CZ41: mai-19 | DA41: jun-19 | DB41: jul-19 | DC41: ago-19 | DD41: set-19 | DE41: out-19 | DF41: nov-19 | DG41: dez-19 | DH41: jan-20 | DI41: fev-20 | DJ41: mar-20 | DK41: abr-20 | DL41: mai-20 | DM41: jun-20 | DN41: jul-20 | DO41: ago-20 | DP41: set-20 | DQ41: out-20 | DR41: nov-20 | DS41: dez-20 | DT41: jan-21 | DU41: fev-21 | DV41: mar-21 | DW41: =IF(Cover!$B$1=1,Trans!DX$355,Trans!DX$355) -> abr-21 | DX41: =IF(Cover!$B$1=1,Trans!DY$355,Trans!DY$355) -> mai-21 | DY41: jun-21 | DZ41: jul-21 | EA41: ago-21 | EB41: set-21 | EC41: out-21 | ED41: nov-21 | EE41: dez-21 | EF41: jan-22 | EG41: fev-22 | EH41: mar-22 | EI41: abr-22 | EJ41: mai-22 | EK41: jun-22 | EL41: jul-22 | EM41: ago-22 | EN41: set-22 | EO41: out-22 | EP41: nov-22 | EQ41: dez-22 | ER41: jan-23 | ES41: fev-23 | ET41: mar-23 | EU41: abr-23 | EV41: mai-23 | EW41: jun-23 | EX41: jul-23 | EY41: ago-23 | EZ41: set-23 | FA41: out-23 | FB41: nov-23 | FC41: dez-23 | FD41: jan-24 | FE41: fev-24 | FF41: mar-24 | FG41: abr-24 | FH41: mai-24 | FI41: jun-24 | FJ41: jul-24 | FK41: ago-24 | FL41: set-24 | FM41: out-24 | FN41: nov-24 | FO41: dez-24 | FP41: jan-25 | FQ41: fev-25 | FR41: mar-25 | FS41: abr-25 | FT41: mai-25 | FU41: jun-25 | FV41: jul-25 | FW41: ago-25 | FX41: =IF(Cover!$B$1=1,Trans!FY$355,Trans!FY$355) -> set-25 | FY41: oct-25 | FZ41: nov-25 | GA41: =IF(Cover!$B$1=1,Trans!GB$355,Trans!GB$355) -> dez-25 | GB41: =IF(Cover!$B$1=1,Trans!GC$355,Trans!GC$355) -> jan-26 | GC41: fev-26 | GD41: mar-26 | GE41: abr-26 | GF41: mai-26 | GG41: =IF(Cover!$B$1=1,Trans!GH$355,Trans!GH$355) -> jun-26 | GH41: =IF(Cover!$B$1=1,Trans!GI$355,Trans!GI$355) -> jul-26
B42: =IF(Cover!$B$1=1,Trans!A243,Trans!B243) -> Volume (milhões) | D42: =D9/1000000 -> 3.35735177 | E42: 20.52437942 | F42: 15.55733933 | G42: 2.83324187 | H42: 3.28673513 | I42: 3.56026294 | J42: 4.99584717 | K42: 6.30691282 | L42: 5.77325892 | M42: 1.58394539 | N42: 4.64841432 | O42: 68.06193731 | P42: 3.18008745 | Q42: 6.30691282 | R42: 5.77325892 | S42: 1.58394539 | T42: 4.64841432 | U42: 68.06193731 | V42: 8.89665913 | W42: 10.36548003 | X42: 5.28522361 | Y42: 35.38905053 | Z42: 39.87403208 | AA42: 57.93232881 | AB42: 61.04112959 | AC42: =AC9/1000000 -> 127.396231 | AD42: =AD9/1000000 -> 145.1537531 | AE42: =AE9/1000000 -> 142.5377642 | AF42: 214.1422444 | AG42: 109.3544169 | AH42: 81.44770105 | AI42: 100.8672672 | AJ42: 103.276077 | AK42: 92.71090998 | AL42: 72.31163138 | AM42: 73.78077551 | AN42: 102.8402113 | AO42: 85.06027418 | AP42: 68.05584357 | AQ42: 56.68853181 | AR42: 69.39952575 | AS42: 52.34272747 | AT42: 63.09032383 | AU42: 65.23886031 | AV42: =AV9/1000000 -> 75.437103 | AW42: 69.03346035 | AX42: 69.61277154 | AY42: 85.23723523 | AZ42: 45.3610113 | BA42: 63.01978559 | BB42: =BB9/1000000 -> 127.6763604 | BC42: 59.16214754 | BD42: 52.78573105 | BE42: 87.8751504 | BF42: 47.44790422 | BG42: 46.19336934 | BH42: 50.87812351 | BI42: 38.87295104 | BJ42: 60.71299297 | BK42: 275.2972523 | BL42: 79.60200845 | BM42: 50.77570189 | BN42: 51.29251202 | BO42: 84.74293286 | BP42: 132.9487425 | BQ42: =BQ9/1000000 -> 57.921171 | BR42: =BR9/1000000 -> 63.55219333 | BS42: =BS9/1000000 -> 78.88365547 | BT42: 45.02375018 | BU42: 66.44255345 | BV42: 67.65470917 | BW42: 41.8031577 | BX42: 62.07167459 | BY42: 68.98458649 | BZ42: 71.08196731 | CA42: 47.45382884 | CB42: 64.70415241 | CC42: 68.68898156 | CD42: 69.3242889 | CE42: 63.95679171 | CF42: 66.74924228 | CG42: =CG9/1000000 -> 69.99868015 | CH42: 58.77535074 | CI42: 260.3045847 | CJ42: 57.21609902 | CK42: 67.9166544 | CL42: 66.79258699 | CM42: 58.00605186 | CN42: 70.36859951 | CO42: 49.07254766 | CP42: 46.90664771 | CQ42: 69.28123941 | CR42: 74.71073652 | CS42: 69.63251842 | CT42: 52.60306682 | CU42: 33.34723576 | CV42: 53.64348899 | CW42: 46.70691529 | CX42: 75.47832062 | CY42: 58.64762583 | CZ42: 60.03553958 | DA42: 78.04709633 | DB42: 65.4884376 | DC42: 75.88245925 | DD42: 109.6342387 | DE42: 124.9914936 | DF42: 143.8050119 | DG42: 219.1502501 | DH42: 127.2469706 | DI42: 128.0866125 | DJ42: 202.4574496 | DK42: 92.91864111 | DL42: 48.52947735 | DM42: 97.45199695 | DN42: 191.3303476 | DO42: 132.3205268 | DP42: 96.70767127 | DQ42: 97.63768753 | DR42: 68.30674516 | DS42: 86.7860213 | DT42: 230.6702111 | DU42: 64.69222208 | DV42: 81.67516833 | DW42: =DW9/1000000 -> 55.98772012 | DX42: =DX9/1000000 -> 52.29479445 | DY42: 62.21383502 | DZ42: 50.26997234 | EA42: 43.44007799 | EB42: 44.48517043 | EC42: 47.19942373 | ED42: 52.58441526 | EE42: 41.43222337 | EF42: 42.916507 | EG42: 35.43123899 | EH42: 46.3138854 | EI42: 41.23366722 | EJ42: 37.61430789 | EK42: 34.46291698 | EL42: 44.87585687 | EM42: 59.7428686 | EN42: 51.09214809 | EO42: 36.9690413 | EP42: 35.15927208 | EQ42: 32.62038831 | ER42: 34.79895664 | ES42: 26.0571691 | ET42: 29.51972597 | EU42: 23.50142166 | EV42: 35.73813788 | EW42: 38.18751053 | EX42: 36.75164157 | EY42: 44.75158382 | EZ42: 38.42689154 | FA42: 27.62310807 | FB42: 41.9057852 | FC42: 53.54996813 | FD42: 39.42505867 | FE42: 32.32102116 | FF42: 36.74659027 | FG42: 36.85563237 | FH42: 38.51659758 | FI42: 34.29662659 | FJ42: 34.99679648 | FK42: 25.41431221 | FL42: 32.29669064 | FM42: 33.3 | FN42: 29.43646366 | FO42: 36.55364868 | FP42: 28.94361932 | FQ42: 31.80611909 | FR42: 29.1460146 | FS42: 28.78743516 | FT42: 23.67586094 | FU42: 27.98463327 | FV42: 25.33583189 | FW42: 15.22124564 | FX42: 41.82557286 | FY42: 56.39194578 | FZ42: 36.00011142 | GA42: 54.36347052 | GB42: 56.58229508 | GC42: 44.75592101 | GD42: 28.92295409 | GE42: 26.6463958 | GF42: 57.47502233 | GG42: =GG9/1000000 -> 26.58668714 | GH42: =GH9/1000000 -> 22.79444452
B43: =IF(Cover!$B$1=1,Trans!A244,Trans!B244) -> Dias úteis | D43: 20 | E43: 20 | F43: 21 | G43: 20 | H43: 22 | I43: 21 | J43: 21 | K43: 23 | L43: 21 | M43: 20 | N43: 20 | O43: 21 | P43: 21 | Q43: 23 | R43: 21 | S43: 20 | T43: 20 | U43: 21 | V43: 20 | W43: 23 | X43: 19 | Y43: 22 | Z43: 20 | AA43: 19 | AB43: 19 | AC43: =COUNT(BRCR11!$A$533:$A$550) -> 18 | AD43: 20 | AE43: 22 | AF43: 21 | AG43: 20 | AH43: 22 | AI43: 22 | AJ43: 21 | AK43: 23 | AL43: 19 | AM43: 19 | AN43: 22 | AO43: 20 | AP43: 19 | AQ43: 20 | AR43: 21 | AS43: 19 | AT43: 22 | AU43: 21 | AV43: 22 | AW43: 23 | AX43: 19 | AY43: 20 | AZ43: 22 | BA43: 18 | BB43: 22 | BC43: 20 | BD43: 20 | BE43: 21 | BF43: 22 | BG43: 21 | BH43: 21 | BI43: =+BRCR11!$D$5 -> 23 | BJ43: 21 | BK43: 20 | BL43: 19 | BM43: 19 | BN43: 22 | BO43: 20 | BP43: 21 | BQ43: =+BRCR11!$D$5 -> 23 | BR43: =+BRCR11!$D$5 -> 23 | BS43: =+BRCR11!$D$5 -> 23 | BT43: 21 | BU43: 20 | BV43: 20 | BW43: 21 | BX43: 21 | BY43: 18 | BZ43: 23 | CA43: 18 | CB43: 22 | CC43: 21 | CD43: 21 | CE43: 23 | CF43: 20 | CG43: 21 | CH43: 19 | CI43: 19 | CJ43: 21 | CK43: 18 | CL43: 21 | CM43: 21 | CN43: 21 | CO43: 21 | CP43: 21 | CQ43: 23 | CR43: 19 | CS43: 22 | CT43: 19 | CU43: 18 | CV43: 21 | CW43: 20 | CX43: 19 | CY43: 21 | CZ43: 22 | DA43: 19 | DB43: 22 | DC43: 22 | DD43: 21 | DE43: 23 | DF43: 19 | DG43: 19 | DH43: 22 | DI43: 18 | DJ43: 22 | DK43: 20 | DL43: 20 | DM43: 21 | DN43: 23 | DO43: 21 | DP43: 21 | DQ43: 21 | DR43: 20 | DS43: 20 | DT43: 19 | DU43: 18 | DV43: 23 | DW43: =+BRCR11!$D$5 -> 23 | DX43: =+BRCR11!$D$5 -> 23 | DY43: 21 | DZ43: 21 | EA43: 22 | EB43: 21 | EC43: 20 | ED43: 20 | EE43: 21 | EF43: 21 | EG43: 19 | EH43: 22 | EI43: 19 | EJ43: 22 | EK43: 21 | EL43: 21 | EM43: 23 | EN43: 21 | EO43: 20 | EP43: 20 | EQ43: 21 | ER43: 22 | ES43: 18 | ET43: 23 | EU43: 18 | EV43: 22 | EW43: 21 | EX43: 21 | EY43: 23 | EZ43: 20 | FA43: 21 | FB43: 20 | FC43: 19 | FD43: 22 | FE43: 19 | FF43: 20 | FG43: 22 | FH43: 21 | FI43: 20 | FJ43: 23 | FK43: 22 | FL43: 21 | FM43: 23 | FN43: 19 | FO43: 19 | FP43: 22 | FQ43: 20 | FR43: 19 | FS43: 20 | FT43: 21 | FU43: 20 | FV43: 23 | FW43: 21 | FX43: 19 | FY43: 23 | FZ43: 19 | GA43: 19 | GB43: 21 | GC43: 18 | GD43: 22 | GE43: 20 | GF43: 20 | GG43: =+BRCR11!$D$5 -> 23 | GH43: =+BRCR11!$D$5 -> 23
B44: =IF(Cover!$B$1=1,Trans!A245,Trans!B245) -> Volume Médio Diário de Negociação (R$ mi) | D44: =D9/D43/1000000 -> 0.1678675885 | E44: 1.026218971 | F44: 0.7408256824 | G44: 0.1416620935 | H44: 0.1493970514 | I44: 0.1695363305 | J44: 0.2378974843 | K44: 0.2742136009 | L44: 0.2749170914 | M44: 0.0791972695 | N44: 0.232420716 | O44: 3.241044634 | P44: 0.1514327357 | Q44: 0.2742136009 | R44: 0.2749170914 | S44: 0.0791972695 | T44: 0.232420716 | U44: 3.241044634 | V44: 0.4448329565 | W44: 0.4506730448 | X44: 0.2781696637 | Y44: 1.608593206 | Z44: 1.993701604 | AA44: 3.049069937 | AB44: 3.212691031 | AC44: =AC9/AC43/1000000 -> 7.07756839 | AD44: =AD9/AD43/1000000 -> 7.257687653 | AE44: =AE9/AE43/1000000 -> 6.478989283 | AF44: =AF9/AF43/1000000 -> 10.19724973 | AG44: 5.467720846 | AH44: 3.70216823 | AI44: 4.58487578 | AJ44: 4.917908429 | AK44: 4.03090913 | AL44: 3.805875336 | AM44: 3.883198711 | AN44: 4.674555059 | AO44: 4.253013709 | AP44: 3.581886504 | AQ44: 2.834426591 | AR44: 3.304739321 | AS44: 2.754880393 | AT44: 2.867741992 | AU44: 3.106612396 | AV44: 3.428959227 | AW44: =AW9/AW43/1000000 -> 3.001454798 | AX44: 3.663830081 | AY44: 4.261861761 | AZ44: 2.06186415 | BA44: 3.501099199 | BB44: 5.803470929 | BC44: =BC9/BC43/1000000 -> 2.958107377 | BD44: 2.639286552 | BE44: 4.184530971 | BF44: 2.156722919 | BG44: 2.199684254 | BH44: 2.422767786 | BI44: 1.690128306 | BJ44: 2.891094903 | BK44: 13.76486262 | BL44: 4.189579392 | BM44: 2.672405363 | BN44: 2.331477819 | BO44: 4.237146643 | BP44: 6.330892499 | BQ44: =BQ9/BQ43/1000000 -> 2.518311783 | BR44: =BR9/BR43/1000000 -> 2.76313884 | BS44: =BS9/BS43/1000000 -> 3.429724151 | BT44: 2.143988104 | BU44: 3.322127673 | BV44: 3.382735459 | BW44: 1.990626557 | BX44: 2.955794028 | BY44: 3.832477027 | BZ44: 3.090520318 | CA44: 2.636323824 | CB44: 2.941097837 | CC44: 3.270903884 | CD44: 3.301156614 | CE44: 2.780730074 | CF44: 3.337462114 | CG44: =CG9/CG43/1000000 -> 3.333270483 | CH44: 3.093439513 | CI44: 13.7002413 | CJ44: 2.724576144 | CK44: 3.773147467 | CL44: 3.18059938 | CM44: 2.762192946 | CN44: 3.350885691 | CO44: 2.336787984 | CP44: 2.233649891 | CQ44: 3.0122278 | CR44: 3.932144027 | CS44: 3.165114474 | CT44: 2.768582464 | CU44: 1.852624209 | CV44: 2.554451857 | CW44: 2.335345765 | CX44: 3.972543191 | CY44: 2.792744087 | CZ44: 2.728888163 | DA44: 4.107741912 | DB44: 2.976747164 | DC44: 3.449202693 | DD44: 5.220678034 | DE44: 5.434412766 | DF44: 7.568684839 | DG44: 11.53422369 | DH44: 5.78395321 | DI44: 7.115922915 | DJ44: 9.202611345 | DK44: 4.645932056 | DL44: 2.426473867 | DM44: 4.640571283 | DN44: 8.318710764 | DO44: 6.300977468 | DP44: 4.605127203 | DQ44: 4.649413692 | DR44: 3.415337258 | DS44: 4.339301065 | DT44: 12.14053743 | DU44: 3.594012338 | DV44: 3.551094275 | DW44: =DW9/DW43/1000000 -> 2.434248701 | DX44: =DX9/DX43/1000000 -> 2.273686715 | DY44: 2.962563572 | DZ44: 2.393808207 | EA44: 1.974549 | EB44: 2.118341449 | EC44: 2.359971187 | ED44: 2.629220763 | EE44: 1.972963018 | EF44: 2.04364319 | EG44: 1.864802052 | EH44: 2.105176609 | EI44: 2.170193012 | EJ44: 1.709741268 | EK44: 1.641091285 | EL44: 2.136945565 | EM44: 2.597516026 | EN44: 2.432959433 | EO44: 1.848452065 | EP44: 1.757963604 | EQ44: 1.553351824 | ER44: 1.581770756 | ES44: 1.447620506 | ET44: 1.283466347 | EU44: 1.305634537 | EV44: 1.624460813 | EW44: 1.818452882 | EX44: 1.75007817 | EY44: 1.945721036 | EZ44: 1.921344577 | FA44: 1.315386099 | FB44: 2.09528926 | FC44: 2.818419375 | FD44: 1.792048121 | FE44: 1.701106377 | FF44: 1.837329514 | FG44: 1.675256017 | FH44: 1.834123694 | FI44: 1.71483133 | FJ44: 1.521599847 | FK44: 1.15519601 | FL44: 1.53793765 | FM44: 1.5 | FN44: 1.5 | FO44: 1.923876246 | FP44: 1.31561906 | FQ44: 1.590305955 | FR44: 1.534000768 | FS44: 1.439371758 | FT44: 1.12742195 | FU44: 1.399231663 | FV44: 1.101557908 | FW44: 0.724821221 | FX44: 2.20134594 | FY44: 2.45182373 | FZ44: 1.894742706 | GA44: 2.861235291 | GB44: 2.694395004 | GC44: 2.486440056 | GD44: 1.314679731 | GE44: 1.33231979 | GF44: 2.873751116 | GG44: =GG9/GG43/1000000 -> 1.155942919 | GH44: =GH9/GH43/1000000 -> 0.9910628052
B47: =IF(Cover!$B$1=1,Trans!A112,Trans!B112) -> Valor Patrimônial do Fundo
C48: =IF(Cover!$B$1=1,Trans!D113,Trans!D114) -> dez-10 | D48: =IF(Cover!$B$1=1,Trans!E$355,Trans!E$355) -> jan-11 | E48: =IF(Cover!$B$1=1,Trans!F$355,Trans!F$355) -> fev-11 | F48: =IF(Cover!$B$1=1,Trans!G$355,Trans!G$355) -> mar-11 | G48: =IF(Cover!$B$1=1,Trans!H$355,Trans!H$355) -> abr-11 | H48: =IF(Cover!$B$1=1,Trans!I$355,Trans!I$355) -> mai-11 | I48: =IF(Cover!$B$1=1,Trans!J$355,Trans!J$355) -> jun-11 | J48: =IF(Cover!$B$1=1,Trans!K$355,Trans!K$355) -> jul-11 | K48: =IF(Cover!$B$1=1,Trans!L$355,Trans!L$355) -> ago-11 | L48: =IF(Cover!$B$1=1,Trans!M$355,Trans!M$355) -> set-11 | M48: =IF(Cover!$B$1=1,Trans!N$355,Trans!N$355) -> out-11 | N48: =IF(Cover!$B$1=1,Trans!O$355,Trans!O$355) -> nov-11 | O48: =IF(Cover!$B$1=1,Trans!P$355,Trans!P$355) -> dez-11 | P48: =IF(Cover!$B$1=1,Trans!Q$355,Trans!Q$355) -> jan-12 | Q48: ago-11 | R48: set-11 | S48: out-11 | T48: nov-11 | U48: dez-11 | V48: =IF(Cover!$B$1=1,Trans!W$355,Trans!W$355) -> jul-12 | W48: ago-12 | X48: set-12 | Y48: out-12 | Z48: nov-12 | AA48: dez-12 | AB48: =IF(Cover!$B$1=1,Trans!AC$355,Trans!AC$355) -> jan-13 | AC48: =IF(Cover!$B$1=1,Trans!AD$355,Trans!AD$355) -> fev-13 | AD48: =IF(Cover!$B$1=1,Trans!AE$355,Trans!AE$355) -> mar-13 | AE48: =IF(Cover!$B$1=1,Trans!AF$355,Trans!AF$355) -> abr-13 | AF48: =IF(Cover!$B$1=1,Trans!AG$355,Trans!AG$355) -> mai-13 | AG48: =IF(Cover!$B$1=1,Trans!AH$355,Trans!AH$355) -> jun-13 | AH48: =IF(Cover!$B$1=1,Trans!AI$355,Trans!AI$355) -> jul-13 | AI48: =IF(Cover!$B$1=1,Trans!AJ$355,Trans!AJ$355) -> ago-13 | AJ48: =IF(Cover!$B$1=1,Trans!AK$355,Trans!AK$355) -> set-13 | AK48: =IF(Cover!$B$1=1,Trans!AL$355,Trans!AL$355) -> out-13 | AL48: =IF(Cover!$B$1=1,Trans!AM$355,Trans!AM$355) -> nov-13 | AM48: =IF(Cover!$B$1=1,Trans!AN$355,Trans!AN$355) -> dez-13 | AN48: =IF(Cover!$B$1=1,Trans!AO$355,Trans!AO$355) -> jan-14 | AO48: =IF(Cover!$B$1=1,Trans!AP$355,Trans!AP$355) -> fev-14 | AP48: =IF(Cover!$B$1=1,Trans!AQ$355,Trans!AQ$355) -> mar-14 | AQ48: =IF(Cover!$B$1=1,Trans!AR$355,Trans!AR$355) -> abr-14 | AR48: =IF(Cover!$B$1=1,Trans!AS$355,Trans!AS$355) -> mai-14 | AS48: =IF(Cover!$B$1=1,Trans!AT$355,Trans!AT$355) -> jun-14 | AT48: =IF(Cover!$B$1=1,Trans!AU$355,Trans!AU$355) -> jul-14 | AU48: =IF(Cover!$B$1=1,Trans!AV$355,Trans!AV$355) -> ago-14 | AV48: =IF(Cover!$B$1=1,Trans!AW$355,Trans!AW$355) -> set-14 | AW48: =IF(Cover!$B$1=1,Trans!AX$355,Trans!AX$355) -> out-14 | AX48: =IF(Cover!$B$1=1,Trans!AY$355,Trans!AY$355) -> nov-14 | AY48: =IF(Cover!$B$1=1,Trans!AZ$355,Trans!AZ$355) -> dez-14 | AZ48: =IF(Cover!$B$1=1,Trans!BA$355,Trans!BA$355) -> jan-15 | BA48: =IF(Cover!$B$1=1,Trans!BB$355,Trans!BB$355) -> fev-15 | BB48: =IF(Cover!$B$1=1,Trans!BC$355,Trans!BC$355) -> mar-15 | BC48: =IF(Cover!$B$1=1,Trans!BD$355,Trans!BD$355) -> abr-15 | BD48: =IF(Cover!$B$1=1,Trans!BE$355,Trans!BE$355) -> mai-15 | BE48: =IF(Cover!$B$1=1,Trans!BF$355,Trans!BF$355) -> jun-15 | BF48: =IF(Cover!$B$1=1,Trans!BG$355,Trans!BG$355) -> jul-15 | BG48: =IF(Cover!$B$1=1,Trans!BH$355,Trans!BH$355) -> ago-15 | BH48: =IF(Cover!$B$1=1,Trans!BI$355,Trans!BI$355) -> set-15 | BI48: =IF(Cover!$B$1=1,Trans!BJ$355,Trans!BJ$355) -> out-15 | BJ48: =IF(Cover!$B$1=1,Trans!BK$355,Trans!BK$355) -> nov-15 | BK48: =IF(Cover!$B$1=1,Trans!BL$355,Trans!BL$355) -> dez-15 | BL48: jan-16 | BM48: fev-16 | BN48: mar-16 | BO48: abr-16 | BP48: mai-16 | BQ48: =IF(Cover!$B$1=1,Trans!BR$355,Trans!BR$355) -> jun-16 | BR48: =IF(Cover!$B$1=1,Trans!BS$355,Trans!BS$355) -> jul-16 | BS48: =IF(Cover!$B$1=1,Trans!BT$355,Trans!BT$355) -> ago-16 | BT48: set-16 | BU48: out-16 | BV48: nov-16 | BW48: dez-16 | BX48: jan-17 | BY48: fev-17 | BZ48: mar-17 | CA48: abr-17 | CB48: mai-17 | CC48: jun-17 | CD48: jul-17 | CE48: ago-17 | CF48: =IF(Cover!$B$1=1,Trans!CG$355,Trans!CG$355) -> set-17 | CG48: =IF(Cover!$B$1=1,Trans!CH$355,Trans!CH$355) -> out-17 | CH48: nov-17 | CI48: dez-17 | CJ48: =IF(Cover!$B$1=1,Trans!CK$355,Trans!CK$355) -> jan-18 | CK48: fev-18 | CL48: mar-18 | CM48: abr-18 | CN48: mai-18 | CO48: =IF(Cover!$B$1=1,Trans!CP$355,Trans!CP$355) -> jun-18 | CP48: jul-18 | CQ48: =IF(Cover!$B$1=1,Trans!CR$355,Trans!CR$355) -> ago-18 | CR48: set-18 | CS48: out-18 | CT48: nov-18 | CU48: dez-18 | CV48: =IF(Cover!$B$1=1,Trans!CW$355,Trans!CW$355) -> jan-19 | CW48: fev-19 | CX48: mar-19 | CY48: abr-19 | CZ48: mai-19 | DA48: =IF(Cover!$B$1=1,Trans!DB$355,Trans!DB$355) -> jun-19 | DB48: jul-19 | DC48: ago-19 | DD48: set-19 | DE48: out-19 | DF48: =IF(Cover!$B$1=1,Trans!DG$355,Trans!DG$355) -> nov-19 | DG48: dez-19 | DH48: jan-20 | DI48: fev-20 | DJ48: mar-20 | DK48: abr-20 | DL48: mai-20 | DM48: jun-20 | DN48: =IF(Cover!$B$1=1,Trans!DO$355,Trans!DO$355) -> jul-20 | DO48: ago-20 | DP48: set-20 | DQ48: out-20 | DR48: nov-20 | DS48: dez-20 | DT48: jan-21 | DU48: fev-21 | DV48: mar-21 | DW48: =IF(Cover!$B$1=1,Trans!DX$355,Trans!DX$355) -> abr-21 | DX48: =IF(Cover!$B$1=1,Trans!DY$355,Trans!DY$355) -> mai-21 | DY48: jun-21 | DZ48: jul-21 | EA48: ago-21 | EB48: set-21 | EC48: out-21 | ED48: nov-21 | EE48: dez-21 | EF48: jan-22 | EG48: fev-22 | EH48: mar-22 | EI48: abr-22 | EJ48: mai-22 | EK48: jun-22 | EL48: jul-22 | EM48: ago-22 | EN48: set-22 | EO48: out-22 | EP48: nov-22 | EQ48: dez-22 | ER48: jan-23 | ES48: fev-23 | ET48: mar-23 | EU48: abr-23 | EV48: mai-23 | EW48: jun-23 | EX48: jul-23 | EY48: ago-23 | EZ48: set-23 | FA48: out-23 | FB48: nov-23 | FC48: dez-23 | FD48: jan-24 | FE48: fev-24 | FF48: mar-24 | FG48: abr-24 | FH48: mai-24 | FI48: jun-24 | FJ48: jul-24 | FK48: ago-24 | FL48: set-24 | FM48: out-24 | FN48: nov-24 | FO48: dez-24 | FP48: jan-25 | FQ48: fev-25 | FR48: mar-25 | FS48: abr-25 | FT48: mai-25 | FU48: jun-25 | FV48: jul-25 | FW48: ago-25 | FX48: =IF(Cover!$B$1=1,Trans!FY$355,Trans!FY$355) -> set-25 | FY48: oct-25 | FZ48: nov-25 | GA48: =IF(Cover!$B$1=1,Trans!GB$355,Trans!GB$355) -> dez-25 | GB48: =IF(Cover!$B$1=1,Trans!GC$355,Trans!GC$355) -> jan-26 | GC48: =IF(Cover!$B$1=1,Trans!GD$355,Trans!GD$355) -> fev-26 | GD48: =IF(Cover!$B$1=1,Trans!GE$355,Trans!GE$355) -> mar-26 | GE48: abr-26 | GF48: mai-26 | GG48: =IF(Cover!$B$1=1,Trans!GH$355,Trans!GH$355) -> jun-26 | GH48: =IF(Cover!$B$1=1,Trans!GI$355,Trans!GI$355) -> jul-26
B49: =IF(Cover!$B$1=1,Trans!A115,Trans!B115) -> Valor Patrimônial do Fundo (R$) | C49: 1138196350 | D49: 1141705927 | E49: 1141207572 | F49: 1208248969 | G49: 1206156098 | H49: 1615888155 | I49: 1617963247 | J49: 1610629403 | K49: 1623064595 | L49: 1623826941 | M49: 1624425193 | N49: 1701094885 | O49: 1703641058 | P49: 1715437736 | Q49: 1623064595 | R49: 1623826941 | S49: 1624425193 | T49: 1701094885 | U49: 1703641058 | V49: 1788232870 | W49: 1786740605 | X49: 1792762909 | Y49: 1793258898 | Z49: 1940495552 | AA49: 1936868993 | AB49: 1934826319 | AC49: 3158046222 | AD49: 3160484292 | AE49: 3154719138 | AF49: 3294039405 | AG49: 3289538925 | AH49: 3289671366 | AI49: 3288830732 | AJ49: 3286938 | AK49: 3280713.949 | AL49: 3261502 | AM49: 3259555 | AN49: 3255256 | AO49: 3259383 | AP49: 3258303 | AQ49: 3266677 | AR49: 3202456 | AS49: 3199369 | AT49: 3189271 | AU49: 3186770 | AV49: 3181901 | AW49: 3179261 | AX49: 3161522 | AY49: 3158314 | AZ49: 3154591 | BA49: 3151011 | BB49: 3144475.44 | BC49: 3144755 | BD49: 3032710 | BE49: 3025885 | BF49: 3023219 | BG49: 3012465 | BH49: 3004943 | BI49: 2998113 | BJ49: 2872924 | BK49: 2910724 | BL49: 2898594 | BM49: 2892041 | BN49: 2828361 | BO49: 2813757 | BP49: =+'BalançoConsolidado-BalanceSheet'!$H$66 -> 2150228 | BQ49: 2272795 | BR49: 2278399 | BS49: 2271151 | BT49: 2269596 | BU49: 2270161 | BV49: 2105097 | BW49: 2099230 | BX49: 2102263 | BY49: 2099008 | BZ49: 2104618 | CA49: 2104239 | CB49: 2068391 | CC49: 2067360 | CD49: 2067131 | CE49: 2068133 | CF49: 2079990 | CG49: 2074236 | CH49: 2394373 | CI49: 2392428 | CJ49: 2397143 | CK49: 2399033 | CL49: 2401646 | CM49: 2403939 | CN49: 2413967 | CO49: 2407030 | CP49: 2407256 | CQ49: 2407578 | CR49: 2407854 | CS49: 2413512 | CT49: 2420821 | CU49: 2421012 | CV49: 2429117 | CW49: 2072834 | CX49: 2078330 | CY49: 2079159 | CZ49: 2114566 | DA49: 2128396 | DB49: 2135067 | DC49: 2132045 | DD49: 2114231 | DE49: 2115619 | DF49: 2534983 | DG49: 2535612 | DH49: 2532711 | DI49: 2525046 | DJ49: 2511368 | DK49: 2512025 | DL49: 2516508 | DM49: 2519274 | DN49: 2830423 | DO49: 2827904 | DP49: 2829153 | DQ49: 2828789 | DR49: 2866277 | DS49: 2871282 | DT49: 2865991 | DU49: 2863712 | DV49: 2860889 | DW49: 2861920 | DX49: 2871539.794 | DY49: 2872016.394 | DZ49: 2868741 | EA49: 2864064 | EB49: 2857508 | EC49: 2853541 | ED49: 2828514 | EE49: 2820481 | EF49: 2809345 | EG49: 2800946 | EH49: 2792345 | EI49: 2784020 | EJ49: 2703974 | EK49: 2693877 | EL49: 2689411 | EM49: 2680103 | EN49: 2674943 | EO49: 2669609 | EP49: 2673023 | EQ49: 2665358 | ER49: 2653592 | ES49: 2645028 | ET49: 2636539 | EU49: 2629400 | EV49: 2677591 | EW49: 2680640 | EX49: 2680792 | EY49: 2661290 | EZ49: 2652436 | FA49: 2675099 | FB49: 2661586 | FC49: 2625180 | FD49: 2643255 | FE49: 2647566 | FF49: 2652677 | FG49: 2438934 | FH49: 2389257 | FI49: 2361806 | FJ49: 2384244 | FK49: 2379410 | FL49: 2375456 | FM49: 2368970 | FN49: 2311478 | FO49: 2296023 | FP49: 2316664 | FQ49: 2312044 | FR49: 2312844 | FS49: 2308062 | FT49: 2262436 | FU49: 2263416 | FV49: 2264212.812 | FW49: 2269839.087 | FX49: 2265810.069 | FY49: 2266280 | FZ49: 2316569 | GA49: 2290341 | GB49: 2289215 | GC49: 2286456 | GD49: 2282827 | GE49: 2281549 | GF49: 2152302 | GG49: =+'BalançoConsolidado-BalanceSheet'!$H$66 -> 2150228
B50: =IF(Cover!$B$1=1,Trans!A116,Trans!B116) -> Valor Patrimônial do Fundo (R$ / cota) | C50: =C49/D7 -> 103.4723954 | D50: =D49/D7 -> 103.7914479 | E50: 103.7461429 | F50: 109.8408154 | G50: 109.6505544 | H50: 146.8989232 | I50: 147.0875679 | J50: 146.4208549 | K50: 147.5513269 | L50: 147.620631 | M50: 147.6750175 | N50: 154.6449896 | O50: 154.8764599 | P50: 155.9488851 | Q50: 147.5513269 | R50: 147.620631 | S50: 147.6750175 | T50: 154.6449896 | U50: 154.8764599 | V50: 162.5666245 | W50: 162.4309641 | X50: 162.9784463 | Y50: 163.0235362 | Z50: 176.4086865 | AA50: 176.0789994 | AB50: 175.8933018 | AC50: 164.27164 | AD50: =AD49/AD7 -> 164.3984608 | AE50: 164.0985756 | AF50: 171.3455781 | AG50: 171.1114772 | AH50: 171.1183664 | AI50: 171.0746393 | AJ50: 170.9761853 | AK50: =(AK49*1000)/AK7 -> 170.6524297 | AL50: 169.6530845 | AM50: 169.5518077 | AN50: 169.3281872 | AO50: 169.5428608 | AP50: 169.4866826 | AQ50: =(AQ49*1000)/AQ7 -> 169.9222717 | AR50: =(AR49*1000)/AR7 -> 166.5816971 | AS50: =(AS49*1000)/AS7 -> 166.4211211 | AT50: =(AT49*1000)/AT7 -> 165.8958549 | AU50: =(AU49*1000)/AU7 -> 165.7657607 | AV50: =(AV49*1000)/AV7 -> 165.5124906 | AW50: 165.3751661 | AX50: 164.4524391 | AY50: 164.285569 | AZ50: 164.0919102 | BA50: 163.9056899 | BB50: 163.5657306 | BC50: 163.5802724 | BD50: 157.7520437 | BE50: =(BE49*1000)/BE7 -> 157.3970286 | BF50: =(BF49*1000)/BF7 -> 157.2583517 | BG50: =(BG49*1000)/BG7 -> 156.6989624 | BH50: 156.3076916 | BI50: 155.9524164 | BJ50: 149.4404781 | BK50: 151.41 | BL50: 150.78 | BM50: 150.4348843 | BN50: 147.1224509 | BO50: 146.3627967 | BP50: 118.3351776 | BQ50: 118.2236534 | BR50: 118.5151559 | BS50: 118.1381377 | BT50: 118.0572515 | BU50: 118.086641 | BV50: 109.5005305 | BW50: 109.1953476 | BX50: 109.3531147 | BY50: 109.1837998 | BZ50: 109.4756144 | CA50: 109.4559 | CB50: 107.5911997 | CC50: 107.5375703 | CD50: 107.5256585 | CE50: 107.5777794 | CF50: 108.1945433 | CG50: 107.8952383 | CH50: 124.5477589 | CI50: 124.4465862 | CJ50: 124.6918456 | CK50: 124.7901575 | CL50: 124.9260775 | CM50: 125.0453522 | CN50: 125.5669772 | CO50: 125.2061363 | CP50: 125.2178921 | CQ50: 125.2346415 | CR50: 125.2489982 | CS50: 125.5433096 | CT50: 125.9235008 | CU50: 125.933436 | CV50: 126.3550326 | CW50: 107.8223106 | CX50: 108.1081953 | CY50: 108.1513172 | CZ50: 109.9930781 | DA50: 110.7124713 | DB50: 111.0594757 | DC50: 110.9022808 | DD50: 109.9756525 | DE50: 110.0478519 | DF50: 110.6100295 | DG50: 110.637475 | DH50: 110.5108944 | DI50: 110.176444 | DJ50: 109.5796258 | DK50: 109.608293 | DL50: 109.8039017 | DM50: 109.9245918 | DN50: 106.254281 | DO50: 106.1597175 | DP50: 106.2066051 | DQ50: 106.1929405 | DR50: 107.6002427 | DS50: 107.7881307 | DT50: 107.5895062 | DU50: 107.5039524 | DV50: 107.3979768 | DW50: 107.4366806 | DX50: 107.7978083 | DY50: 107.8157 | DZ50: 107.6927414 | EA50: 107.5171665 | EB50: 107.2710538 | EC50: 107.1221323 | ED50: 106.182617 | EE50: 105.8810576 | EF50: 105.4630114 | EG50: 105.1477123 | EH50: 104.8248301 | EI50: 104.5123091 | EJ50: 101.5073765 | EK50: 101.1283344 | EL50: 100.9606805 | EM50: 100.6112575 | EN50: 100.4175507 | EO50: 100.217312 | EP50: 100.3454738 | EQ50: 100.0577291 | ER50: 99.61603264 | ES50: 99.29453947 | ET50: 98.97586181 | EU50: 98.70786324 | EV50: 100.5169568 | EW50: 100.6314165 | EX50: 100.6371226 | EY50: 99.90501611 | EZ50: 99.57263632 | FA50: 100.423407 | FB50: 99.91612797 | FC50: 98.54944414 | FD50: 99.22798093 | FE50: 99.38981617 | FF50: 99.58168348 | FG50: 91.55775604 | FH50: 89.69287792 | FI50: 88.66236543 | FJ50: 89.50468954 | FK50: 89.32322084 | FL50: 89.1747874 | FM50: 88.9313025 | FN50: 86.77304872 | FO50: 86.19286692 | FP50: 86.96773153 | FQ50: 86.7942964 | FR50: 86.82432846 | FS50: 86.64481184 | FT50: 84.93200855 | FU50: =(FU49*1000)/FU7 -> 84.96879782 | FV50: =(FV49*1000)/FV7 -> 84.99871018 | FW50: 85.20992096 | FX50: 85.05867134 | FY50: 85.07631258 | FZ50: 86.96416522 | GA50: 85.97956424 | GB50: 85.93729412 | GC50: 85.83372106 | GD50: 85.69748814 | GE50: 85.64951193 | GF50: 85.93729412 | GG50: =(GC49*1000)/GC7 -> 85.83372106
B51: =IF(Cover!$B$1=1,Trans!A117,Trans!B117) -> Valor da cota no IPO (R$ / cota) | C51: 100 | D51: 100 | E51: 100 | F51: 100 | G51: 100 | H51: 100 | I51: 100 | J51: 100 | K51: 100 | L51: 100 | M51: 100 | N51: 100 | O51: 100 | P51: 100 | Q51: 100 | R51: 100 | S51: 100 | T51: 100 | U51: 100 | V51: 100 | W51: 100 | X51: 100 | Y51: 100 | Z51: 100 | AA51: 100 | AB51: 100 | AC51: 100 | AD51: 100 | AE51: 100 | AF51: 100 | AG51: 100 | AH51: 100 | AI51: 100 | AJ51: 100 | AK51: 100 | AL51: 100 | AM51: 100 | AN51: 100 | AO51: 100 | AP51: 100 | AQ51: 100 | AR51: 100 | AS51: 100 | AT51: 100 | AU51: 100 | AV51: 100 | AW51: 100 | AX51: 100 | AY51: 100 | AZ51: 100 | BA51: 100 | BB51: 100 | BC51: 100 | BD51: 100 | BE51: 100 | BF51: 100 | BG51: 100 | BH51: 100 | BI51: 100 | BJ51: 100 | BK51: 100 | BL51: 100 | BM51: 100 | BN51: 100 | BO51: 100 | BP51: 100 | BQ51: 100 | BR51: 100 | BS51: 100 | BT51: 100 | BU51: 100 | BV51: 100 | BW51: 100 | BX51: 100 | BY51: 100 | BZ51: 100 | CA51: 100 | CB51: 100 | CC51: 100 | CD51: 100 | CE51: 100 | CF51: 100 | CG51: 100 | CH51: 100 | CI51: 100 | CJ51: 100 | CK51: 100 | CL51: 100 | CM51: 100 | CN51: 100 | CO51: 100 | CP51: 100 | CQ51: 100 | CR51: 100 | CS51: 100 | CT51: 100 | CU51: 100 | CV51: 100 | CW51: 100 | CX51: 100 | CY51: 100 | CZ51: 100 | DA51: 100 | DB51: 100 | DC51: 100 | DD51: 100 | DE51: 100 | DF51: 100 | DG51: 100 | DH51: 100 | DI51: 100 | DJ51: 100 | DK51: 100 | DL51: 100 | DM51: 100 | DN51: 100 | DO51: 100 | DP51: 100 | DQ51: 100 | DR51: 100 | DS51: 100 | DT51: 100 | DU51: 100 | DV51: 100 | DW51: 100 | DX51: 100 | DY51: 100 | DZ51: 100 | EA51: 100 | EB51: 100 | EC51: 100 | ED51: 100 | EE51: 100 | EF51: 100 | EG51: 100 | EH51: 100 | EI51: 100 | EJ51: 100 | EK51: 100 | EL51: 100 | EM51: 100 | EN51: 100 | EO51: 100 | EP51: 100 | EQ51: 100 | ER51: 100 | ES51: 100 | ET51: 100 | EU51: 100 | EV51: 100 | EW51: 100 | EX51: 100 | EY51: 100 | EZ51: 100 | FA51: 100 | FB51: 100 | FC51: 100 | FD51: 100 | FE51: 100 | FF51: 100 | FG51: 100 | FH51: 100 | FI51: 100 | FJ51: 100 | FK51: 100 | FL51: 100 | FM51: 100 | FN51: 100 | FO51: 100 | FP51: 100 | FQ51: 100 | FR51: 100 | FS51: 100 | FT51: 100 | FU51: 100 | FV51: 100 | FW51: 100 | FX51: 100 | FY51: 100 | FZ51: 100 | GA51: 100 | GB51: 100 | GC51: 100 | GD51: 100 | GE51: 100 | GF51: 100 | GG51: 100
B52: =IF(Cover!$B$1=1,Trans!A118,Trans!B118) -> Valor da cota no Follow-on (R$ / cota) | C52: 0 | D52: 0 | E52: 0 | F52: 0 | G52: 0 | H52: 0 | I52: 0 | J52: 0 | K52: 0 | L52: 0 | M52: 0 | N52: 0 | O52: 0 | P52: 0 | Q52: 0 | R52: 0 | S52: 0 | T52: 0 | U52: 0 | V52: 0 | W52: 0 | X52: 0 | Y52: 154 | Z52: 154 | AA52: 154 | AB52: 154 | AC52: 154 | AD52: 154 | AE52: 154 | AF52: 154 | AG52: 154 | AH52: 154 | AI52: 154 | AJ52: 154 | AK52: 154 | AL52: 154 | AM52: 154 | AN52: 154 | AO52: 154 | AP52: 154 | AQ52: 154 | AR52: 154 | AS52: 154 | AT52: 154 | AU52: 154 | AV52: 154 | AW52: 154 | AX52: 154 | AY52: 154 | AZ52: 154 | BA52: 154 | BB52: 154 | BC52: 154 | BD52: 154 | BE52: 154 | BF52: 154 | BG52: 154 | BH52: 154 | BI52: 154 | BJ52: 154 | BK52: 154 | BL52: 154 | BM52: 154 | BN52: 154 | BO52: 154 | BP52: 154 | BQ52: 154 | BR52: 154 | BS52: 154 | BT52: 154 | BU52: 154 | BV52: 154 | BW52: 154 | BX52: 154 | BY52: 154 | BZ52: 154 | CA52: 154 | CB52: 154 | CC52: 154 | CD52: 154 | CE52: 154 | CF52: 154 | CG52: 154 | CH52: 154 | CI52: 154 | CJ52: 154 | CK52: 154 | CL52: 154 | CM52: 154 | CN52: 154 | CO52: 154 | CP52: 154 | CQ52: 154 | CR52: 154 | CS52: 154 | CT52: 154 | CU52: 154 | CV52: 154 | CW52: 154 | CX52: 154 | CY52: 154 | CZ52: 154 | DA52: 154 | DB52: 154 | DC52: 154 | DD52: 154 | DE52: 154 | DF52: 92 | DG52: 92 | DH52: 92 | DI52: 92 | DJ52: 92 | DK52: 92 | DL52: 92 | DM52: 92 | DN52: 86.63 | DO52: 86.63 | DP52: 86.63 | DQ52: 86.63 | DR52: 86.63 | DS52: 86.63 | DT52: 86.63 | DU52: 86.63 | DV52: 86.63 | DW52: 86.63 | DX52: 86.63 | DY52: 86.63 | DZ52: 86.63 | EA52: 86.63 | EB52: 86.63 | EC52: 86.63 | ED52: 86.63 | EE52: 86.63 | EF52: 86.63 | EG52: 86.63 | EH52: 86.63 | EI52: 86.63 | EJ52: 86.63 | EK52: 86.63 | EL52: 86.63 | EM52: 86.63 | EN52: 86.63 | EO52: 86.63 | EP52: 86.63 | EQ52: 86.63 | ER52: 86.63 | ES52: 86.63 | ET52: 86.63 | EU52: 86.63 | EV52: 86.63 | EW52: 86.63 | EX52: 86.63 | EY52: 86.63 | EZ52: 86.63 | FA52: 86.63 | FB52: 86.63 | FC52: 86.63 | FD52: 86.63 | FE52: 86.63 | FF52: 86.63 | FG52: 86.63 | FH52: 86.63 | FI52: 86.63 | FJ52: 86.63 | FK52: 86.63 | FL52: 86.63 | FM52: 86.63 | FN52: 86.63 | FO52: 86.63 | FP52: 86.63 | FQ52: 86.63 | FR52: 86.63 | FS52: 86.63 | FT52: 86.63 | FU52: 86.63 | FV52: 86.63 | FW52: 86.63 | FX52: 86.63 | FY52: 86.63 | FZ52: 86.63 | GA52: 86.63 | GB52: 86.63 | GC52: 86.63 | GD52: 86.63 | GE52: 86.63 | GF52: 86.63 | GG52: 86.63

Sheet Divida - Debt
B1: ='Desempenho - Performance'!B1 -> Fundo Imobiliário BTG Pactual Corporate Office Fund – BRCR11
B2: =IF(Cover!$B$1=1,Trans!A254,Trans!B254) -> Demonstrativo das Obrigações existentes no Fundo*
H3: =IF(Cover!$B$1=1,Trans!D$355,Trans!D$355) -> dez-10 | I3: =IF(Cover!$B$1=1,Trans!E$355,Trans!E$355) -> jan-11 | J3: =IF(Cover!$B$1=1,Trans!F$355,Trans!F$355) -> fev-11 | K3: =IF(Cover!$B$1=1,Trans!G$355,Trans!G$355) -> mar-11 | L3: =IF(Cover!$B$1=1,Trans!H$355,Trans!H$355) -> abr-11 | M3: =IF(Cover!$B$1=1,Trans!I$355,Trans!I$355) -> mai-11 | N3: =IF(Cover!$B$1=1,Trans!J$355,Trans!J$355) -> jun-11 | O3: =IF(Cover!$B$1=1,Trans!K$355,Trans!K$355) -> jul-11 | P3: =IF(Cover!$B$1=1,Trans!L$355,Trans!L$355) -> ago-11 | Q3: =IF(Cover!$B$1=1,Trans!M$355,Trans!M$355) -> set-11 | R3: =IF(Cover!$B$1=1,Trans!N$355,Trans!N$355) -> out-11 | S3: =IF(Cover!$B$1=1,Trans!O$355,Trans!O$355) -> nov-11 | T3: =IF(Cover!$B$1=1,Trans!P$355,Trans!P$355) -> dez-11 | U3: =IF(Cover!$B$1=1,Trans!Q$355,Trans!Q$355) -> jan-12 | V3: =IF(Cover!$B$1=1,Trans!R$355,Trans!R$355) -> fev-12 | W3: =IF(Cover!$B$1=1,Trans!S$355,Trans!S$355) -> mar-12 | X3: =IF(Cover!$B$1=1,Trans!T$355,Trans!T$355) -> abr-12 | Y3: =IF(Cover!$B$1=1,Trans!U$355,Trans!U$355) -> mai-12 | Z3: =IF(Cover!$B$1=1,Trans!V$355,Trans!V$355) -> jun-12 | AA3: =IF(Cover!$B$1=1,Trans!W$355,Trans!W$355) -> jul-12 | AB3: =IF(Cover!$B$1=1,Trans!X$355,Trans!X$355) -> ago-12 | AC3: =IF(Cover!$B$1=1,Trans!Y$355,Trans!Y$355) -> set-12 | AD3: =IF(Cover!$B$1=1,Trans!Z$355,Trans!Z$355) -> out-12 | AE3: =IF(Cover!$B$1=1,Trans!AA$355,Trans!AA$355) -> nov-12 | AF3: =IF(Cover!$B$1=1,Trans!AB$355,Trans!AB$355) -> dez-12 | AG3: =IF(Cover!$B$1=1,Trans!AC$355,Trans!AC$355) -> jan-13 | AH3: =IF(Cover!$B$1=1,Trans!AD$355,Trans!AD$355) -> fev-13 | AI3: =IF(Cover!$B$1=1,Trans!AE$355,Trans!AE$355) -> mar-13 | AJ3: =IF(Cover!$B$1=1,Trans!AF$355,Trans!AF$355) -> abr-13 | AK3: =IF(Cover!$B$1=1,Trans!AG$355,Trans!AG$355) -> mai-13 | AL3: =IF(Cover!$B$1=1,Trans!AH$355,Trans!AH$355) -> jun-13 | AM3: =IF(Cover!$B$1=1,Trans!AI$355,Trans!AI$355) -> jul-13 | AN3: =IF(Cover!$B$1=1,Trans!AJ$355,Trans!AJ$355) -> ago-13 | AO3: =IF(Cover!$B$1=1,Trans!AK$355,Trans!AK$355) -> set-13 | AP3: =IF(Cover!$B$1=1,Trans!AL$355,Trans!AL$355) -> out-13 | AQ3: =IF(Cover!$B$1=1,Trans!AM$355,Trans!AM$355) -> nov-13 | AR3: =IF(Cover!$B$1=1,Trans!AN$355,Trans!AN$355) -> dez-13 | AS3: =IF(Cover!$B$1=1,Trans!AO$355,Trans!AO$355) -> jan-14 | AT3: =IF(Cover!$B$1=1,Trans!AP$355,Trans!AP$355) -> fev-14 | AU3: =IF(Cover!$B$1=1,Trans!AQ$355,Trans!AQ$355) -> mar-14 | AV3: =IF(Cover!$B$1=1,Trans!AR$355,Trans!AR$355) -> abr-14 | AW3: =IF(Cover!$B$1=1,Trans!AS$355,Trans!AS$355) -> mai-14 | AX3: =IF(Cover!$B$1=1,Trans!AT$355,Trans!AT$355) -> jun-14 | AY3: =IF(Cover!$B$1=1,Trans!AU$355,Trans!AU$355) -> jul-14 | AZ3: =IF(Cover!$B$1=1,Trans!AV$355,Trans!AV$355) -> ago-14 | BA3: =IF(Cover!$B$1=1,Trans!AW$355,Trans!AW$355) -> set-14 | BB3: =IF(Cover!$B$1=1,Trans!AX$355,Trans!AX$355) -> out-14 | BC3: =IF(Cover!$B$1=1,Trans!AY$355,Trans!AY$355) -> nov-14 | BD3: =IF(Cover!$B$1=1,Trans!AZ$355,Trans!AZ$355) -> dez-14 | BE3: =IF(Cover!$B$1=1,Trans!BA$355,Trans!BA$355) -> jan-15 | BF3: =IF(Cover!$B$1=1,Trans!BB$355,Trans!BB$355) -> fev-15 | BG3: =IF(Cover!$B$1=1,Trans!BC$355,Trans!BC$355) -> mar-15 | BH3: =IF(Cover!$B$1=1,Trans!BD$355,Trans!BD$355) -> abr-15 | BI3: =IF(Cover!$B$1=1,Trans!BE$355,Trans!BE$355) -> mai-15 | BJ3: =IF(Cover!$B$1=1,Trans!BF$355,Trans!BF$355) -> jun-15 | BK3: =IF(Cover!$B$1=1,Trans!BG$355,Trans!BG$355) -> jul-15 | BL3: =IF(Cover!$B$1=1,Trans!BH$355,Trans!BH$355) -> ago-15 | BM3: =IF(Cover!$B$1=1,Trans!BI$355,Trans!BI$355) -> set-15 | BN3: =IF(Cover!$B$1=1,Trans!BJ$355,Trans!BJ$355) -> out-15 | BO3: =IF(Cover!$B$1=1,Trans!BK$355,Trans!BK$355) -> nov-15 | BP3: dez-15 | BQ3: =IF(Cover!$B$1=1,Trans!BM$355,Trans!BM$355) -> jan-16 | BR3: =IF(Cover!$B$1=1,Trans!BN$355,Trans!BN$355) -> fev-16 | BS3: =IF(Cover!$B$1=1,Trans!BO$355,Trans!BO$355) -> mar-16 | BT3: =IF(Cover!$B$1=1,Trans!BP$355,Trans!BP$355) -> abr-16 | BU3: mai-16 | BV3: =IF(Cover!$B$1=1,Trans!BR$355,Trans!BR$355) -> jun-16 | BW3: =IF(Cover!$B$1=1,Trans!BS$355,Trans!BS$355) -> jul-16 | BX3: =IF(Cover!$B$1=1,Trans!BT$355,Trans!BT$355) -> ago-16 | BY3: =IF(Cover!$B$1=1,Trans!BU$355,Trans!BU$355) -> set-16 | BZ3: out-16 | CA3: nov-16 | CB3: dez-16 | CC3: jan-17 | CD3: fev-17 | CE3: mar-17 | CF3: abr-17 | CG3: mai-17 | CH3: jun-17 | CI3: jul-17 | CJ3: ago-17 | CK3: set-17 | CL3: =IF(Cover!$B$1=1,Trans!CH$355,Trans!CH$355) -> out-17 | CM3: nov-17 | CN3: dez-17 | CO3: jan-18 | CP3: fev-18 | CQ3: mar-18 | CR3: abr-18 | CS3: mai-18 | CT3: jun-18 | CU3: jul-18 | CV3: ago-18 | CW3: =IF(Cover!$B$1=1,Trans!CS$355,Trans!CS$355) -> set-18 | CX3: out-18 | CY3: =IF(Cover!$B$1=1,Trans!CU$355,Trans!CU$355) -> nov-18 | CZ3: dez-18 | DA3: jan-19 | DB3: =IF(Cover!$B$1=1,Trans!CX$355,Trans!CX$355) -> fev-19 | DC3: mar-19 | DD3: =IF(Cover!$B$1=1,Trans!CZ$355,Trans!CZ$355) -> abr-19 | DE3: =IF(Cover!$B$1=1,Trans!DA$355,Trans!DA$355) -> mai-19 | DF3: =IF(Cover!$B$1=1,Trans!DB$355,Trans!DB$355) -> jun-19 | DG3: jul-19 | DH3: ago-19 | DI3: set-19 | DJ3: out-19 | DK3: nov-19 | DL3: dez-19 | DM3: =IF(Cover!$B$1=1,Trans!DI$355,Trans!DI$355) -> jan-20 | DN3: fev-20 | DO3: =IF(Cover!$B$1=1,Trans!DK$355,Trans!DK$355) -> mar-20 | DP3: abr-20 | DQ3: mai-20 | DR3: jun-20 | DS3: jul-20 | DT3: ago-20 | DU3: =IF(Cover!$B$1=1,Trans!DQ$355,Trans!DQ$355) -> set-20 | DV3: out-20 | DW3: =IF(Cover!$B$1=1,Trans!DS$355,Trans!DS$355) -> nov-20 | DX3: dez-20 | DY3: jan-21 | DZ3: =IF(Cover!$B$1=1,Trans!DV$355,Trans!DV$355) -> fev-21 | EA3: mar-21 | EB3: abr-21 | EC3: mai-21 | ED3: jun-21 | EE3: jul-21 | EF3: ago-21 | EG3: set-21 | EH3: out-21 | EI3: nov-21 | EJ3: =IF(Cover!$B$1=1,Trans!EF$355,Trans!EF$355) -> dez-21 | EK3: jan-22 | EL3: fev-22 | EM3: =IF(Cover!$B$1=1,Trans!EI$355,Trans!EI$355) -> mar-22 | EN3: abr-22 | EO3: =IF(Cover!$B$1=1,Trans!EK$355,Trans!EK$355) -> mai-22 | EP3: jun-22 | EQ3: jul-22 | ER3: ago-22 | ES3: set-22 | ET3: out-22 | EU3: =IF(Cover!$B$1=1,Trans!EQ$355,Trans!EQ$355) -> nov-22 | EV3: dez-22 | EW3: =IF(Cover!$B$1=1,Trans!ES$355,Trans!ES$355) -> jan-23 | EX3: fev-23 | EY3: =IF(Cover!$B$1=1,Trans!EU$355,Trans!EU$355) -> mar-23 | EZ3: =IF(Cover!$B$1=1,Trans!EV$355,Trans!EV$355) -> abr-23 | FA3: =IF(Cover!$B$1=1,Trans!EW$355,Trans!EW$355) -> mai-23 | FB3: =IF(Cover!$B$1=1,Trans!EX$355,Trans!EX$355) -> jun-23 | FC3: =IF(Cover!$B$1=1,Trans!EY$355,Trans!EY$355) -> jul-23 | FD3: =IF(Cover!$B$1=1,Trans!EZ$355,Trans!EZ$355) -> ago-23 | FE3: =IF(Cover!$B$1=1,Trans!FA$355,Trans!FA$355) -> set-23 | FF3: =IF(Cover!$B$1=1,Trans!FB$355,Trans!FB$355) -> out-23 | FG3: =IF(Cover!$B$1=1,Trans!FC$355,Trans!FC$355) -> nov-23 | FH3: =IF(Cover!$B$1=1,Trans!FD$355,Trans!FD$355) -> dez-23 | FI3: =IF(Cover!$B$1=1,Trans!FE$355,Trans!FE$355) -> jan-24 | FJ3: =IF(Cover!$B$1=1,Trans!FF$355,Trans!FF$355) -> fev-24 | FK3: =IF(Cover!$B$1=1,Trans!FG$355,Trans!FG$355) -> mar-24 | FL3: =IF(Cover!$B$1=1,Trans!FH$355,Trans!FH$355) -> abr-24 | FM3: =IF(Cover!$B$1=1,Trans!FI$355,Trans!FI$355) -> mai-24 | FN3: =IF(Cover!$B$1=1,Trans!FJ$355,Trans!FJ$355) -> jun-24 | FO3: jul-24 | FP3: ago-24 | FQ3: set-24 | FR3: out-24 | FS3: nov-24 | FT3: dez-24 | FU3: =IF(Cover!$B$1=1,Trans!FQ$355,Trans!FQ$355) -> jan-25 | FV3: fev-25 | FW3: mar-25 | FX3: abr-25 | FY3: mai-25 | FZ3: jun-25 | GA3: =IF(Cover!$B$1=1,Trans!FW$355,Trans!FW$355) -> jul-25 | GB3: =IF(Cover!$B$1=1,Trans!FX$355,Trans!FX$355) -> ago-25 | GC3: set-25 | GD3: out-25 | GE3: nov-25 | GF3: dez-25 | GG3: jan-26 | GH3: fev-26 | GI3: mar-26 | GJ3: =IF(Cover!$B$1=1,Trans!GF$355,Trans!GF$355) -> abr-26 | GK3: =IF(Cover!$B$1=1,Trans!GG$355,Trans!GG$355) -> mai-26 | GL3: =IF(Cover!$B$1=1,Trans!GH$355,Trans!GH$355) -> jun-26
C4: =IF(Cover!$B$1=1,Trans!A256,Trans!B256) -> Descrição | D4: =IF(Cover!$B$1=1,Trans!A283,Trans!B283) -> Valor Contratado | E4: =IF(Cover!$B$1=1,Trans!A284,Trans!B284) -> Data Início | F4: =IF(Cover!$B$1=1,Trans!A296,Trans!B296) -> Prazo (anos) | G4: =IF(Cover!$B$1=1,Trans!A307,Trans!B307) -> Taxa | H4: =IF(Cover!$B$1=1,Trans!A327,Trans!B327) -> Saldo Devedor - Evolução mês a mês
B5: 1) | C5: =IF(Cover!$B$1=1,Trans!A257,Trans!B257) -> Aquisição ELDORADO | D5: 140000000 | E5: =IF(Cover!$B$1=1,Trans!A285,Trans!B285) -> mai-09 | F5: =IF(Cover!$B$1=1,Trans!A297,Trans!B297) -> 10 | G5: =IF(Cover!$B$1=1,Trans!A312,Trans!B312) -> TR + 8,55% aa | H5: -129309237.6 | I5: -128697229.9 | J5: -127910873.3 | K5: -127282781.9 | L5: -126506773.5 | M5: -125943767.3 | N5: -125285681.7 | O5: -125409787.8 | P5: -125731154.2 | Q5: -127282781.9 | R5: -126506773.5 | S5: -125943767.3 | T5: -125285681.7 | U5: -125409787.8 | V5: -126251294 | W5: -126409994.8 | X5: -126364432.7 | Y5: -126509698.2 | Z5: -126437056.5 | AA5: -126574766.7 | AB5: -126619833.8 | AC5: -126498505 | AD5: -126619833.8 | AE5: -126458087.8 | AF5: -126538935 | AG5: -126579378 | AH5: -126417683.6 | AI5: -126538935 | AJ5: =-126579377.95 -> -126579378 | AK5: -126579378 | AL5: -278503675.7 | AM5: -278877925.3 | AN5: -278862392.6 | AO5: -278667297.7 | AP5: -279088143 | AQ5: -278921464.7 | AR5: -279306721 | AS5: -278332468.8 | AT5: -276942125.7 | AU5: -275905620.5 | AV5: -274925549.2 | AW5: -273608813 | AX5: -272597367.1 | AY5: -271717720.1 | AZ5: -270418658.1 | BA5: -269392606.4 | BB5: -268344326.7 | BC5: -266957621 | BD5: -265966168.2 | BE5: -264577795.7 | BF5: -263188544.3 | BG5: -262363220 | BH5: -261134866.7 | BI5: -259923719.4 | BJ5: -259027720.2 | BK5: -258128841.7 | BL5: -257098972.6 | BM5: -254444701 | BN5: -253727005 | BO5: -252203054.4 | BP5: -251462071 | BQ5: -249908415 | BR5: -248642370.3 | BS5: -247806955.2 | BT5: -246207456 | BU5: -245156694 | BV5: -244396690.3 | BW5: -243280004.7 | BX5: -242006526.8 | BY5: -240776036.8 | BZ5: -239449647.5 | CA5: -238186995.3 | CB5: -236924993.2 | CC5: -235268417.5 | CD5: -233708897.8 | CE5: -231928373.5 | CF5: -230448733.5 | CG5: -228675729.4 | CH5: -227046538.6 | CI5: -225274339.7 | CJ5: -223414310.6 | CK5: -221538610 | CL5: -219649905.3 | CM5: -217743661.6 | CN5: -215821969.9 | CO5: -213884705.1 | CP5: -211931740.9 | CQ5: -209962950.3 | CR5: -207978204.7 | CS5: -205977375.1 | CT5: -203960331.1 | CU5: -201926941.2 | CV5: -199877072.9 | CW5: -197810592.8 | CX5: -195727366.3 | CY5: -193627257.6 | CZ5: -191510129.8 | DA5: -189375845.2 | DB5: 0 | DC5: 0 | DD5: 0 | DE5: 0 | DF5: 0 | DG5: 0 | DH5: 0 | DI5: 0 | DJ5: 0 | DK5: 0 | DL5: 0 | DM5: 0 | DN5: 0 | DO5: 0 | DP5: 0 | DQ5: 0 | DR5: 0 | DS5: 0 | DT5: 0 | DU5: 0 | DV5: 0 | DW5: 0 | DX5: 0 | DY5: 0 | DZ5: 0 | EA5: 0 | EB5: 0 | EC5: 0 | ED5: 0 | EE5: 0 | EF5: 0 | EG5: 0 | EH5: 0 | EI5: 0 | EJ5: 0 | EK5: 0 | EL5: 0 | EM5: 0 | EN5: 0 | EO5: 0 | EP5: 0 | EQ5: 0 | ER5: 0 | ES5: 0 | ET5: 0 | EU5: 0 | EV5: 0 | EW5: 0 | EX5: 0 | EY5: 0 | EZ5: 0 | FA5: 0 | FB5: 0 | FC5: 0 | FD5: 0 | FE5: 0 | FF5: 0 | FG5: 0 | FH5: 0 | FI5: 0 | FJ5: 0 | FK5: 0 | FL5: 0 | FM5: 0 | FN5: 0 | FO5: 0 | FP5: 0 | FQ5: 0 | FR5: 0 | FS5: 0 | FT5: 0 | FU5: 0 | FV5: 0 | FW5: 0 | FX5: 0 | FY5: 0 | FZ5: 0 | GA5: 0 | GB5: 0 | GC5: 0 | GD5: 0 | GE5: 0 | GF5: 0 | GG5: 0 | GH5: 0 | GI5: 0 | GJ5: 0 | GK5: 0 | GL5: 0
B6: 2) | C6: =IF(Cover!$B$1=1,Trans!A258,Trans!B258) -> Aquisição BFC (60%) | D6: 92496866.4 | E6: =IF(Cover!$B$1=1,Trans!A286,Trans!B286) -> mar-10 | F6: =IF(Cover!$B$1=1,Trans!A298,Trans!B298) -> 5 | G6: =IF(Cover!$B$1=1,Trans!A319,Trans!B319) -> TR + 10,05% aa | H6: -82457152.26 | I6: -81227105.83 | J6: -79886853.71 | K6: -78639198.34 | L6: -77350521.92 | M6: -76092819.53 | N6: -76169452.19 | O6: -76280576.52 | P6: -76412172.08 | Q6: -78639198.34 | R6: -77350521.92 | S6: -76092819.53 | T6: -76169452.19 | U6: -76280576.52 | V6: -76738245.36 | W6: -76812367.75 | X6: -76771449.78 | Y6: -76836422.58 | Z6: -76783602.95 | AA6: -76846933.98 | AB6: -76294645.21 | AC6: -75717984.22 | AD6: -75155746.73 | AE6: -74569326.45 | AF6: -73998208.44 | AG6: -73422044.1 | AH6: -72784007.4 | AI6: -72196166.39 | AJ6: -71585751.95 | AK6: -70989526.91 | AL6: -70370035.58 | AM6: -69774916.82 | AN6: -69177470.56 | AO6: -68556342.9 | AP6: 0 | AQ6: 0 | AR6: 0 | AS6: 0 | AT6: 0 | AU6: 0 | AV6: 0 | AW6: 0 | AX6: 0 | AY6: 0 | AZ6: 0 | BA6: 0 | BB6: 0 | BC6: 0 | BD6: 0 | BE6: 0 | BF6: 0 | BG6: 0 | BH6: 0 | BI6: 0 | BJ6: 0 | BK6: 0 | BL6: 0 | BM6: 0 | BN6: 0 | BO6: 0 | BP6: 0 | BQ6: 0 | BR6: 0 | BS6: 0 | BT6: 0 | BU6: 0 | BV6: 0 | BW6: 0 | BX6: 0 | BY6: 0 | BZ6: 0 | CA6: 0 | CB6: 0 | CC6: 0 | CD6: 0 | CE6: 0 | CF6: 0 | CG6: 0 | CH6: 0 | CI6: 0 | CJ6: 0 | CK6: 0 | CL6: 0 | CM6: 0 | CN6: 0 | CO6: 0 | CP6: 0 | CQ6: 0 | CR6: 0 | CS6: 0 | CT6: 0 | CU6: 0 | CV6: 0 | CW6: 0 | CX6: 0 | CY6: 0 | CZ6: 0 | DA6: 0 | DB6: 0 | DC6: 0 | DD6: 0 | DE6: 0 | DF6: 0 | DG6: 0 | DH6: 0 | DI6: 0 | DJ6: 0 | DK6: 0 | DL6: 0 | DM6: 0 | DN6: 0 | DO6: 0 | DP6: 0 | DQ6: 0 | DR6: 0 | DS6: 0 | DT6: 0 | DU6: 0 | DV6: 0 | DW6: 0 | DX6: 0 | DY6: 0 | DZ6: 0 | EA6: 0 | EB6: 0 | EC6: 0 | ED6: 0 | EE6: 0 | EF6: 0 | EG6: 0 | EH6: 0 | EI6: 0 | EJ6: 0 | EK6: 0 | EL6: 0 | EM6: 0 | EN6: 0 | EO6: 0 | EP6: 0 | EQ6: 0 | ER6: 0 | ES6: 0 | ET6: 0 | EU6: 0 | EV6: 0 | EW6: 0 | EX6: 0 | EY6: 0 | EZ6: 0 | FA6: 0 | FB6: 0 | FC6: 0 | FD6: 0 | FE6: 0 | FF6: 0 | FG6: 0 | FH6: 0 | FI6: 0 | FJ6: 0 | FK6: 0 | FL6: 0 | FM6: 0 | FN6: 0 | FO6: 0 | FP6: 0 | FQ6: 0 | FR6: 0 | FS6: 0 | FT6: 0 | FU6: 0 | FV6: 0 | FW6: 0 | FX6: 0 | FY6: 0 | FZ6: 0 | GA6: 0 | GB6: 0 | GC6: 0 | GD6: 0 | GE6: 0 | GF6: 0 | GG6: 0 | GH6: 0 | GI6: 0 | GJ6: 0 | GK6: 0 | GL6: 0
B7: 3) | C7: =IF(Cover!$B$1=1,Trans!A259,Trans!B259) -> Securitização BCFund - CRI | D7: 114851076.2 | E7: =IF(Cover!$B$1=1,Trans!A287,Trans!B287) -> fev-10 | F7: =IF(Cover!$B$1=1,Trans!A299,Trans!B299) -> 5 | G7: =IF(Cover!$B$1=1,Trans!A320,Trans!B320) -> IGP-M + 8,25% aa | H7: -99924603.64 | I7: -94287895.52 | J7: -90103890.93 | K7: -87562925.55 | L7: -84555254.9 | M7: -81492496.53 | N7: -78028262.42 | O7: -58368752.81 | P7: -55722239.9 | Q7: -87562925.55 | R7: -84555254.9 | S7: -81492496.53 | T7: -78028262.42 | U7: -58368752.81 | V7: -39449461.78 | W7: -35595505.79 | X7: -32538019.36 | Y7: -28311419.31 | Z7: -26510665.76 | AA7: -24792019.61 | AB7: -23058824.46 | AC7: -21416189.72 | AD7: 0 | AE7: 0 | AF7: 0 | AG7: 0 | AH7: 0 | AI7: 0 | AJ7: 0 | AK7: 0 | AL7: 0 | AM7: 0 | AN7: 0 | AO7: 0 | AP7: 0 | AQ7: 0 | AR7: 0 | AS7: 0 | AT7: 0 | AU7: 0 | AV7: 0 | AW7: 0 | AX7: 0 | AY7: 0 | AZ7: 0 | BA7: 0 | BB7: 0 | BC7: 0 | BD7: 0 | BE7: 0 | BF7: 0 | BG7: 0 | BH7: 0 | BI7: 0 | BJ7: 0 | BK7: 0 | BL7: 0 | BM7: 0 | BN7: 0 | BO7: 0 | BP7: 0 | BQ7: 0 | BR7: 0 | BS7: 0 | BT7: 0 | BU7: 0 | BV7: 0 | BW7: 0 | BX7: 0 | BY7: 0 | BZ7: 0 | CA7: 0 | CB7: 0 | CC7: 0 | CD7: 0 | CE7: 0 | CF7: 0 | CG7: 0 | CH7: 0 | CI7: 0 | CJ7: 0 | CK7: 0 | CL7: 0 | CM7: 0 | CN7: 0 | CO7: 0 | CP7: 0 | CQ7: 0 | CR7: 0 | CS7: 0 | CT7: 0 | CU7: 0 | CV7: 0 | CW7: 0 | CX7: 0 | CY7: 0 | CZ7: 0 | DA7: 0 | DB7: 0 | DC7: 0 | DD7: 0 | DE7: 0 | DF7: 0 | DG7: 0 | DH7: 0 | DI7: 0 | DJ7: 0 | DK7: 0 | DL7: 0 | DM7: 0 | DN7: 0 | DO7: 0 | DP7: 0 | DQ7: 0 | DR7: 0 | DS7: 0 | DT7: 0 | DU7: 0 | DV7: 0 | DW7: 0 | DX7: 0 | DY7: 0 | DZ7: 0 | EA7: 0 | EB7: 0 | EC7: 0 | ED7: 0 | EE7: 0 | EF7: 0 | EG7: 0 | EH7: 0 | EI7: 0 | EJ7: 0 | EK7: 0 | EL7: 0 | EM7: 0 | EN7: 0 | EO7: 0 | EP7: 0 | EQ7: 0 | ER7: 0 | ES7: 0 | ET7: 0 | EU7: 0 | EV7: 0 | EW7: 0 | EX7: 0 | EY7: 0 | EZ7: 0 | FA7: 0 | FB7: 0 | FC7: 0 | FD7: 0 | FE7: 0 | FF7: 0 | FG7: 0 | FH7: 0 | FI7: 0 | FJ7: 0 | FK7: 0 | FL7: 0 | FM7: 0 | FN7: 0 | FO7: 0 | FP7: 0 | FQ7: 0 | FR7: 0 | FS7: 0 | FT7: 0 | FU7: 0 | FV7: 0 | FW7: 0 | FX7: 0 | FY7: 0 | FZ7: 0 | GA7: 0 | GB7: 0 | GC7: 0 | GD7: 0 | GE7: 0 | GF7: 0 | GG7: 0 | GH7: 0 | GI7: 0 | GJ7: 0 | GK7: 0 | GL7: 0
B8: 4) | C8: =IF(Cover!$B$1=1,Trans!A260,Trans!B260) -> Securitização Prime - BFC | D8: 102000000 | E8: =IF(Cover!$B$1=1,Trans!A288,Trans!B288) -> out-10 | F8: =IF(Cover!$B$1=1,Trans!A300,Trans!B300) -> 9.666666667 | G8: =IF(Cover!$B$1=1,Trans!A321,Trans!B321) -> TR + 10,2% aa | H8: -102910487.7 | I8: -102492335 | J8: -101978726.1 | K8: -101375914.6 | L8: -101072291.4 | M8: -100555838.6 | N8: -100079478.1 | O8: -99657197.24 | P8: -99238910.92 | Q8: -101375914.6 | R8: -101072291.4 | S8: -100555838.6 | T8: -100079478.1 | U8: -99657197.24 | V8: -96132381.85 | W8: -95560205.64 | X8: -94972546.94 | Y8: -94404784.25 | Z8: -93759756.88 | AA8: -93143717.11 | AB8: -92513702.86 | AC8: -91851172.28 | AD8: -91205993.76 | AE8: -90532041.97 | AF8: -89867102.98 | AG8: -89206368.44 | AH8: -88468267.23 | AI8: -87794968.63 | AJ8: -87092472.95 | AK8: -86407973.01 | AL8: -85685127.55 | AM8: -85002022.69 | AN8: -84316956.24 | AO8: -83585613.03 | AP8: 0 | AQ8: 0 | AR8: 0 | AS8: 0 | AT8: 0 | AU8: 0 | AV8: 0 | AW8: 0 | AX8: 0 | AY8: 0 | AZ8: 0 | BA8: 0 | BB8: 0 | BC8: 0 | BD8: 0 | BE8: 0 | BF8: 0 | BG8: 0 | BH8: 0 | BI8: 0 | BJ8: 0 | BK8: 0 | BL8: 0 | BM8: 0 | BN8: 0 | BO8: 0 | BP8: 0 | BQ8: 0 | BR8: 0 | BS8: 0 | BT8: 0 | BU8: 0 | BV8: 0 | BW8: 0 | BX8: 0 | BY8: 0 | BZ8: 0 | CA8: 0 | CB8: 0 | CC8: 0 | CD8: 0 | CE8: 0 | CF8: 0 | CG8: 0 | CH8: 0 | CI8: 0 | CJ8: 0 | CK8: 0 | CL8: 0 | CM8: 0 | CN8: 0 | CO8: 0 | CP8: 0 | CQ8: 0 | CR8: 0 | CS8: 0 | CT8: 0 | CU8: 0 | CV8: 0 | CW8: 0 | CX8: 0 | CY8: 0 | CZ8: 0 | DA8: 0 | DB8: 0 | DC8: 0 | DD8: 0 | DE8: 0 | DF8: 0 | DG8: 0 | DH8: 0 | DI8: 0 | DJ8: 0 | DK8: 0 | DL8: 0 | DM8: 0 | DN8: 0 | DO8: 0 | DP8: 0 | DQ8: 0 | DR8: 0 | DS8: 0 | DT8: 0 | DU8: 0 | DV8: 0 | DW8: 0 | DX8: 0 | DY8: 0 | DZ8: 0 | EA8: 0 | EB8: 0 | EC8: 0 | ED8: 0 | EE8: 0 | EF8: 0 | EG8: 0 | EH8: 0 | EI8: 0 | EJ8: 0 | EK8: 0 | EL8: 0 | EM8: 0 | EN8: 0 | EO8: 0 | EP8: 0 | EQ8: 0 | ER8: 0 | ES8: 0 | ET8: 0 | EU8: 0 | EV8: 0 | EW8: 0 | EX8: 0 | EY8: 0 | EZ8: 0 | FA8: 0 | FB8: 0 | FC8: 0 | FD8: 0 | FE8: 0 | FF8: 0 | FG8: 0 | FH8: 0 | FI8: 0 | FJ8: 0 | FK8: 0 | FL8: 0 | FM8: 0 | FN8: 0 | FO8: 0 | FP8: 0 | FQ8: 0 | FR8: 0 | FS8: 0 | FT8: 0 | FU8: 0 | FV8: 0 | FW8: 0 | FX8: 0 | FY8: 0 | FZ8: 0 | GA8: 0 | GB8: 0 | GC8: 0 | GD8: 0 | GE8: 0 | GF8: 0 | GG8: 0 | GH8: 0 | GI8: 0 | GJ8: 0 | GK8: 0 | GL8: 0
B9: 5) | C9: =IF(Cover!$B$1=1,Trans!A261,Trans!B261) -> Aquisição BURITY | D9: 35000000 | E9: =IF(Cover!$B$1=1,Trans!A289,Trans!B289) -> abr-11 | F9: =IF(Cover!$B$1=1,Trans!A301,Trans!B301) -> 10 | G9: =IF(Cover!$B$1=1,Trans!A322,Trans!B322) -> IGP-M + 8,6% aa | H9: 0 | I9: 0 | J9: 0 | K9: 0 | L9: -35000000 | M9: -35517862.53 | N9: -35328776.35 | O9: -35094122.27 | P9: -34989635.18 | Q9: 0 | R9: -35000000 | S9: -35517862.53 | T9: -35328776.35 | U9: -35094122.27 | V9: -34433954.93 | W9: -34331634.94 | X9: -34347416.45 | Y9: -34482870.1 | Z9: -34519060.72 | AA9: -34697740.01 | AB9: -34957082.92 | AC9: -35098944.22 | AD9: -35004068.82 | AE9: -34759047.55 | AF9: -34684875.96 | AG9: -34448372.51 | AH9: 0 | AI9: 0 | AJ9: 0 | AK9: 0 | AL9: 0 | AM9: 0 | AN9: 0 | AO9: 0 | AP9: 0 | AQ9: 0 | AR9: 0 | AS9: 0 | AT9: 0 | AU9: 0 | AV9: 0 | AW9: 0 | AX9: 0 | AY9: 0 | AZ9: 0 | BA9: 0 | BB9: 0 | BC9: 0 | BD9: 0 | BE9: 0 | BF9: 0 | BG9: 0 | BH9: 0 | BI9: 0 | BJ9: 0 | BK9: 0 | BL9: 0 | BM9: 0 | BN9: 0 | BO9: 0 | BP9: 0 | BQ9: 0 | BR9: 0 | BS9: 0 | BT9: 0 | BU9: 0 | BV9: 0 | BW9: 0 | BX9: 0 | BY9: 0 | BZ9: 0 | CA9: 0 | CB9: 0 | CC9: 0 | CD9: 0 | CE9: 0 | CF9: 0 | CG9: 0 | CH9: 0 | CI9: 0 | CJ9: 0 | CK9: 0 | CL9: 0 | CM9: 0 | CN9: 0 | CO9: 0 | CP9: 0 | CQ9: 0 | CR9: 0 | CS9: 0 | CT9: 0 | CU9: 0 | CV9: 0 | CW9: 0 | CX9: 0 | CY9: 0 | CZ9: 0 | DA9: 0 | DB9: 0 | DC9: 0 | DD9: 0 | DE9: 0 | DF9: 0 | DG9: 0 | DH9: 0 | DI9: 0 | DJ9: 0 | DK9: 0 | DL9: 0 | DM9: 0 | DN9: 0 | DO9: 0 | DP9: 0 | DQ9: 0 | DR9: 0 | DS9: 0 | DT9: 0 | DU9: 0 | DV9: 0 | DW9: 0 | DX9: 0 | DY9: 0 | DZ9: 0 | EA9: 0 | EB9: 0 | EC9: 0 | ED9: 0 | EE9: 0 | EF9: 0 | EG9: 0 | EH9: 0 | EI9: 0 | EJ9: 0 | EK9: 0 | EL9: 0 | EM9: 0 | EN9: 0 | EO9: 0 | EP9: 0 | EQ9: 0 | ER9: 0 | ES9: 0 | ET9: 0 | EU9: 0 | EV9: 0 | EW9: 0 | EX9: 0 | EY9: 0 | EZ9: 0 | FA9: 0 | FB9: 0 | FC9: 0 | FD9: 0 | FE9: 0 | FF9: 0 | FG9: 0 | FH9: 0 | FI9: 0 | FJ9: 0 | FK9: 0 | FL9: 0 | FM9: 0 | FN9: 0 | FO9: 0 | FP9: 0 | FQ9: 0 | FR9: 0 | FS9: 0 | FT9: 0 | FU9: 0 | FV9: 0 | FW9: 0 | FX9: 0 | FY9: 0 | FZ9: 0 | GA9: 0 | GB9: 0 | GC9: 0 | GD9: 0 | GE9: 0 | GF9: 0 | GG9: 0 | GH9: 0 | GI9: 0 | GJ9: 0 | GK9: 0 | GL9: 0
B10: 6) | C10: =IF(Cover!$B$1=1,Trans!A262,Trans!B262) -> Securitização Hicham II | D10: 13269106.44 | E10: =IF(Cover!$B$1=1,Trans!A290,Trans!B290) -> jun-11 | F10: =IF(Cover!$B$1=1,Trans!A302,Trans!B302) -> 8 | G10: =IF(Cover!$B$1=1,Trans!A323,Trans!B323) -> IPCA + 8,74% aa | H10: 0 | I10: 0 | J10: 0 | K10: 0 | L10: 0 | M10: 0 | N10: 0 | O10: -13257010.09 | P10: -13163755.15 | Q10: 0 | R10: 0 | S10: 0 | T10: 0 | U10: -13257010.09 | V10: -13041837.26 | W10: -12981752.32 | X10: -12948283.15 | Y10: -12901467.76 | Z10: -12808412.41 | AA10: -12754401.57 | AB10: -12699663.89 | AC10: -12655184.09 | AD10: -12627239.26 | AE10: -12583327.86 | AF10: -12571677.75 | AG10: -12563608.17 | AH10: -12510853.05 | AI10: -12470226.91 | AJ10: -12412940.68 | AK10: -12346432.83 | AL10: -12254663.77 | AM10: -11956578.98 | AN10: -12045051.71 | AO10: -11956020.97 | AP10: -11798549.83 | AQ10: -11829522.7 | AR10: -11806660.05 | AS10: -11745600.99 | AT10: -11674378.78 | AU10: -11658293.78 | AV10: -11597269.88 | AW10: -11519692.7 | AX10: -11421450.67 | AY10: -11290730.97 | AZ10: 0 | BA10: 0 | BB10: 0 | BC10: 0 | BD10: 0 | BE10: 0 | BF10: 0 | BG10: 0 | BH10: 0 | BI10: 0 | BJ10: 0 | BK10: 0 | BL10: 0 | BM10: 0 | BN10: 0 | BO10: 0 | BP10: 0 | BQ10: 0 | BR10: 0 | BS10: 0 | BT10: 0 | BU10: 0 | BV10: 0 | BW10: 0 | BX10: 0 | BY10: 0 | BZ10: 0 | CA10: 0 | CB10: 0 | CC10: 0 | CD10: 0 | CE10: 0 | CF10: 0 | CG10: 0 | CH10: 0 | CI10: 0 | CJ10: 0 | CK10: 0 | CL10: 0 | CM10: 0 | CN10: 0 | CO10: 0 | CP10: 0 | CQ10: 0 | CR10: 0 | CS10: 0 | CT10: 0 | CU10: 0 | CV10: 0 | CW10: 0 | CX10: 0 | CY10: 0 | CZ10: 0 | DA10: 0 | DB10: 0 | DC10: 0 | DD10: 0 | DE10: 0 | DF10: 0 | DG10: 0 | DH10: 0 | DI10: 0 | DJ10: 0 | DK10: 0 | DL10: 0 | DM10: 0 | DN10: 0 | DO10: 0 | DP10: 0 | DQ10: 0 | DR10: 0 | DS10: 0 | DT10: 0 | DU10: 0 | DV10: 0 | DW10: 0 | DX10: 0 | DY10: 0 | DZ10: 0 | EA10: 0 | EB10: 0 | EC10: 0 | ED10: 0 | EE10: 0 | EF10: 0 | EG10: 0 | EH10: 0 | EI10: 0 | EJ10: 0 | EK10: 0 | EL10: 0 | EM10: 0 | EN10: 0 | EO10: 0 | EP10: 0 | EQ10: 0 | ER10: 0 | ES10: 0 | ET10: 0 | EU10: 0 | EV10: 0 | EW10: 0 | EX10: 0 | EY10: 0 | EZ10: 0 | FA10: 0 | FB10: 0 | FC10: 0 | FD10: 0 | FE10: 0 | FF10: 0 | FG10: 0 | FH10: 0 | FI10: 0 | FJ10: 0 | FK10: 0 | FL10: 0 | FM10: 0 | FN10: 0 | FO10: 0 | FP10: 0 | FQ10: 0 | FR10: 0 | FS10: 0 | FT10: 0 | FU10: 0 | FV10: 0 | FW10: 0 | FX10: 0 | FY10: 0 | FZ10: 0 | GA10: 0 | GB10: 0 | GC10: 0 | GD10: 0 | GE10: 0 | GF10: 0 | GG10: 0 | GH10: 0 | GI10: 0 | GJ10: 0 | GK10: 0 | GL10: 0
B11: 7) | C11: =IF(Cover!$B$1=1,Trans!A263,Trans!B263) -> Aquisição Sia Sul, Gen. Polidoro e Beneditinos | D11: 299705000 | E11: =IF(Cover!$B$1=1,Trans!A291,Trans!B291) -> dez-12 | F11: =IF(Cover!$B$1=1,Trans!A303,Trans!B303) -> 17 | G11: =IF(Cover!$B$1=1,Trans!A324,Trans!B324) -> IGP-M + 7,0% aa | H11: 0 | I11: 0 | J11: 0 | K11: 0 | L11: 0 | M11: 0 | N11: 0 | O11: 0 | P11: 0 | Q11: 0 | R11: 0 | S11: 0 | T11: 0 | U11: 0 | V11: 0 | W11: 0 | X11: 0 | Y11: 0 | Z11: 0 | AA11: 0 | AB11: 0 | AC11: 0 | AD11: 0 | AE11: 0 | AF11: -302116815.6 | AG11: -303953339.8 | AH11: -304528065 | AI11: -305415806.6 | AJ11: -305937247.2 | AK11: -306149778.2 | AL11: -307594417.6 | AM11: -309118804.8 | AN11: -309752210 | AO11: -312889341 | AP11: -316655788.9 | AQ11: -318335167.7 | AR11: 0 | AS11: 0 | AT11: 0 | AU11: 0 | AV11: 0 | AW11: 0 | AX11: 0 | AY11: 0 | AZ11: 0 | BA11: 0 | BB11: 0 | BC11: 0 | BD11: 0 | BE11: 0 | BF11: 0 | BG11: 0 | BH11: 0 | BI11: 0 | BJ11: 0 | BK11: 0 | BL11: 0 | BM11: 0 | BN11: 0 | BO11: 0 | BP11: 0 | BQ11: 0 | BR11: 0 | BS11: 0 | BT11: 0 | BU11: 0 | BV11: 0 | BW11: 0 | BX11: 0 | BY11: 0 | BZ11: 0 | CA11: 0 | CB11: 0 | CC11: 0 | CD11: 0 | CE11: 0 | CF11: 0 | CG11: 0 | CH11: 0 | CI11: 0 | CJ11: 0 | CK11: 0 | CL11: 0 | CM11: 0 | CN11: 0 | CO11: 0 | CP11: 0 | CQ11: 0 | CR11: 0 | CS11: 0 | CT11: 0 | CU11: 0 | CV11: 0 | CW11: 0 | CX11: 0 | CY11: 0 | CZ11: 0 | DA11: 0 | DB11: 0 | DC11: 0 | DD11: 0 | DE11: 0 | DF11: 0 | DG11: 0 | DH11: 0 | DI11: 0 | DJ11: 0 | DK11: 0 | DL11: 0 | DM11: 0 | DN11: 0 | DO11: 0 | DP11: 0 | DQ11: 0 | DR11: 0 | DS11: 0 | DT11: 0 | DU11: 0 | DV11: 0 | DW11: 0 | DX11: 0 | DY11: 0 | DZ11: 0 | EA11: 0 | EB11: 0 | EC11: 0 | ED11: 0 | EE11: 0 | EF11: 0 | EG11: 0 | EH11: 0 | EI11: 0 | EJ11: 0 | EK11: 0 | EL11: 0 | EM11: 0 | EN11: 0 | EO11: 0 | EP11: 0 | EQ11: 0 | ER11: 0 | ES11: 0 | ET11: 0 | EU11: 0 | EV11: 0 | EW11: 0 | EX11: 0 | EY11: 0 | EZ11: 0 | FA11: 0 | FB11: 0 | FC11: 0 | FD11: 0 | FE11: 0 | FF11: 0 | FG11: 0 | FH11: 0 | FI11: 0 | FJ11: 0 | FK11: 0 | FL11: 0 | FM11: 0 | FN11: 0 | FO11: 0 | FP11: 0 | FQ11: 0 | FR11: 0 | FS11: 0 | FT11: 0 | FU11: 0 | FV11: 0 | FW11: 0 | FX11: 0 | FY11: 0 | FZ11: 0 | GA11: 0 | GB11: 0 | GC11: 0 | GD11: 0 | GE11: 0 | GF11: 0 | GG11: 0 | GH11: 0 | GI11: 0 | GJ11: 0 | GK11: 0 | GL11: 0
B12: 8) | C12: =IF(Cover!$B$1=1,Trans!A264,Trans!B264) -> Aquisição Cenesp | D12: 13300000 | E12: =IF(Cover!$B$1=1,Trans!A292,Trans!B292) -> jul-13 | F12: 1 | G12: =IF(Cover!$B$1=1,Trans!A325,Trans!B325) -> Fluxo pré-fixado | H12: 0 | I12: 0 | J12: 0 | K12: 0 | L12: 0 | M12: 0 | N12: 0 | O12: 0 | P12: 0 | Q12: 0 | R12: 0 | S12: 0 | T12: 0 | U12: 0 | V12: 0 | W12: 0 | X12: 0 | Y12: 0 | Z12: 0 | AA12: 0 | AB12: 0 | AC12: 0 | AD12: 0 | AE12: 0 | AF12: 0 | AG12: 0 | AH12: 0 | AI12: 0 | AJ12: 0 | AK12: 0 | AL12: 0 | AM12: -13301281.32 | AN12: -13410026.65 | AO12: -13402488.77 | AP12: -13408567.41 | AQ12: -13409321.35 | AR12: -13406588.32 | AS12: 0 | AT12: 0 | AU12: 0 | AV12: 0 | AW12: 0 | AX12: 0 | AY12: 0 | AZ12: 0 | BA12: 0 | BB12: 0 | BC12: 0 | BD12: 0 | BE12: 0 | BF12: 0 | BG12: 0 | BH12: 0 | BI12: 0 | BJ12: 0 | BK12: 0 | BL12: 0 | BM12: 0 | BN12: 0 | BO12: 0 | BP12: 0 | BQ12: 0 | BR12: 0 | BS12: 0 | BT12: 0 | BU12: 0 | BV12: 0 | BW12: 0 | BX12: 0 | BY12: 0 | BZ12: 0 | CA12: 0 | CB12: 0 | CC12: 0 | CD12: 0 | CE12: 0 | CF12: 0 | CG12: 0 | CH12: 0 | CI12: 0 | CJ12: 0 | CK12: 0 | CL12: 0 | CM12: 0 | CN12: 0 | CO12: 0 | CP12: 0 | CQ12: 0 | CR12: 0 | CS12: 0 | CT12: 0 | CU12: 0 | CV12: 0 | CW12: 0 | CX12: 0 | CY12: 0 | CZ12: 0 | DA12: 0 | DB12: 0 | DC12: 0 | DD12: 0 | DE12: 0 | DF12: 0 | DG12: 0 | DH12: 0 | DI12: 0 | DJ12: 0 | DK12: 0 | DL12: 0 | DM12: 0 | DN12: 0 | DO12: 0 | DP12: 0 | DQ12: 0 | DR12: 0 | DS12: 0 | DT12: 0 | DU12: 0 | DV12: 0 | DW12: 0 | DX12: 0 | DY12: 0 | DZ12: 0 | EA12: 0 | EB12: 0 | EC12: 0 | ED12: 0 | EE12: 0 | EF12: 0 | EG12: 0 | EH12: 0 | EI12: 0 | EJ12: 0 | EK12: 0 | EL12: 0 | EM12: 0 | EN12: 0 | EO12: 0 | EP12: 0 | EQ12: 0 | ER12: 0 | ES12: 0 | ET12: 0 | EU12: 0 | EV12: 0 | EW12: 0 | EX12: 0 | EY12: 0 | EZ12: 0 | FA12: 0 | FB12: 0 | FC12: 0 | FD12: 0 | FE12: 0 | FF12: 0 | FG12: 0 | FH12: 0 | FI12: 0 | FJ12: 0 | FK12: 0 | FL12: 0 | FM12: 0 | FN12: 0 | FO12: 0 | FP12: 0 | FQ12: 0 | FR12: 0 | FS12: 0 | FT12: 0 | FU12: 0 | FV12: 0 | FW12: 0 | FX12: 0 | FY12: 0 | FZ12: 0 | GA12: 0 | GB12: 0 | GC12: 0 | GD12: 0 | GE12: 0 | GF12: 0 | GG12: 0 | GH12: 0 | GI12: 0 | GJ12: 0 | GK12: 0 | GL12: 0
B13: 9) | C13: =IF(Cover!$B$1=1,Trans!A265,Trans!B265) -> Aquisição BFC (40%) | D13: 250000000 | E13: =IF(Cover!$B$1=1,Trans!A293,Trans!B293) -> out-13 | F13: 12 | G13: =IF(Cover!$B$1=1,Trans!A313,Trans!B313) -> TR + 7,71% aa | H13: 0 | I13: 0 | J13: 0 | K13: 0 | L13: 0 | M13: 0 | N13: 0 | O13: 0 | P13: 0 | Q13: 0 | R13: 0 | S13: 0 | T13: 0 | U13: 0 | V13: 0 | W13: 0 | X13: 0 | Y13: 0 | Z13: 0 | AA13: 0 | AB13: 0 | AC13: 0 | AD13: 0 | AE13: 0 | AF13: 0 | AG13: 0 | AH13: 0 | AI13: 0 | AJ13: 0 | AK13: 0 | AL13: 0 | AM13: 0 | AN13: 0 | AO13: 0 | AP13: -250000000 | AQ13: -247843498.7 | AR13: -247735967.5 | AS13: -247534115.2 | AT13: -247155958.1 | AU13: -246861154.5 | AV13: -246786292.9 | AW13: -246635933 | AX13: -246502958.9 | AY13: -246404365.2 | AZ13: -246281225.5 | BA13: -246263989.2 | BB13: -246133343.5 | BC13: -245867321 | BD13: -245862928.4 | BE13: -245611948.8 | BF13: -245311096 | BG13: -245424555.5 | BH13: -245200498.4 | BI13: -245224732.8 | BJ13: -245271389.4 | BK13: -245658983.2 | BL13: -245314309.7 | BM13: -244452625 | BN13: -244108531 | BO13: -244479933.1 | BP13: -244505306.8 | BQ13: -244555505 | BR13: -244396420.6 | BS13: -244847961.4 | BT13: -244450804 | BU13: -244450381 | BV13: -244578135 | BW13: -244642141.2 | BX13: -244722383.5 | BY13: -244775239.4 | BZ13: -244647314.6 | CA13: -244646408.7 | CB13: -244697714.4 | CC13: -244266276.3 | CD13: -244286880.1 | CE13: -244198451.8 | CF13: -243755842.9 | CG13: -243635501.3 | CH13: -243398613.9 | CI13: -243045834.5 | CJ13: -242609964.3 | CK13: -242149341 | CL13: -241685281.8 | CM13: -241217761.9 | CN13: -240746755.2 | CO13: =CN13 -> -240746755.2 | CP13: =CO13 -> -240746755.2 | CQ13: -239311416.4 | CR13: -238825929 | CS13: -238336831.1 | CT13: -237844094.8 | CU13: -237352848.7 | CV13: -236853304.3 | CW13: -236350033.4 | CX13: -235842469.6 | CY13: -235071358.7 | CZ13: -234815984.1 | DA13: -234591253.1 | DB13: 0 | DC13: 0 | DD13: 0 | DE13: 0 | DF13: 0 | DG13: 0 | DH13: 0 | DI13: 0 | DJ13: 0 | DK13: 0 | DL13: 0 | DM13: 0 | DN13: 0 | DO13: 0 | DP13: 0 | DQ13: 0 | DR13: 0 | DS13: 0 | DT13: 0 | DU13: 0 | DV13: 0 | DW13: 0 | DX13: 0 | DY13: 0 | DZ13: 0 | EA13: 0 | EB13: 0 | EC13: 0 | ED13: 0 | EE13: 0 | EF13: 0 | EG13: 0 | EH13: 0 | EI13: 0 | EJ13: 0 | EK13: 0 | EL13: 0 | EM13: 0 | EN13: 0 | EO13: 0 | EP13: 0 | EQ13: 0 | ER13: 0 | ES13: 0 | ET13: 0 | EU13: 0 | EV13: 0 | EW13: 0 | EX13: 0 | EY13: 0 | EZ13: 0 | FA13: 0 | FB13: 0 | FC13: 0 | FD13: 0 | FE13: 0 | FF13: 0 | FG13: 0 | FH13: 0 | FI13: 0 | FJ13: 0 | FK13: 0 | FL13: 0 | FM13: 0 | FN13: 0 | FO13: 0 | FP13: 0 | FQ13: 0 | FR13: 0 | FS13: 0 | FT13: 0 | FU13: 0 | FV13: 0 | FW13: 0 | FX13: 0 | FY13: 0 | FZ13: 0 | GA13: 0 | GB13: 0 | GC13: 0 | GD13: 0 | GE13: 0 | GF13: 0 | GG13: 0 | GH13: 0 | GI13: 0 | GJ13: 0 | GK13: 0 | GL13: 0
B14: 10) | C14: Aquisição Cidade Jardim | D14: 120000000 | E14: jul-17 | F14: 6 | G14: IPCA + 6,55% aa | H14: 0 | I14: 0 | J14: 0 | K14: 0 | L14: 0 | M14: 0 | N14: 0 | O14: 0 | P14: 0 | Q14: 0 | R14: 0 | S14: 0 | T14: 0 | U14: 0 | V14: 0 | W14: 0 | X14: 0 | Y14: 0 | Z14: 0 | AA14: 0 | AB14: 0 | AC14: 0 | AD14: 0 | AE14: 0 | AF14: 0 | AG14: 0 | AH14: 0 | AI14: 0 | AJ14: 0 | AK14: 0 | AL14: 0 | AM14: 0 | AN14: 0 | AO14: 0 | AP14: 0 | AQ14: 0 | AR14: 0 | AS14: 0 | AT14: 0 | AU14: 0 | AV14: 0 | AW14: 0 | AX14: 0 | AY14: 0 | AZ14: 0 | BA14: 0 | BB14: 0 | BC14: 0 | BD14: 0 | BE14: 0 | BF14: 0 | BG14: 0 | BH14: 0 | BI14: 0 | BJ14: 0 | BK14: 0 | BL14: 0 | BM14: 0 | BN14: 0 | BO14: 0 | BP14: 0 | BQ14: 0 | BR14: 0 | BS14: 0 | BT14: 0 | BU14: 0 | BV14: 0 | BW14: 0 | BX14: 0 | BY14: 0 | BZ14: 0 | CA14: 0 | CB14: 0 | CC14: 0 | CD14: 0 | CE14: 0 | CF14: 0 | CG14: 0 | CH14: 0 | CI14: 0 | CJ14: 0 | CK14: 0 | CL14: 0 | CM14: 0 | CN14: 0 | CO14: 0 | CP14: 0 | CQ14: 0 | CR14: 0 | CS14: 0 | CT14: 0 | CU14: 0 | CV14: 0 | CW14: 0 | CX14: 0 | CY14: 0 | CZ14: 0 | DA14: 0 | DB14: -120000000 | DC14: -120000000 | DD14: -120000000 | DE14: -120000000 | DF14: -120000000 | DG14: -120000000 | DH14: -120000000 | DI14: -120000000 | DJ14: -120000000 | DK14: -120000000 | DL14: -120000000 | DM14: -120000000 | DN14: -120000000 | DO14: -120000000 | DP14: -120000000 | DQ14: -120000000 | DR14: -120000000 | DS14: -120000000 | DT14: -120000000 | DU14: -120000000 | DV14: -120000000 | DW14: -120000000 | DX14: -120000000 | DY14: -120000000 | DZ14: -120000000 | EA14: -120000000 | EB14: -120000000 | EC14: -120000000 | ED14: -120000000 | EE14: -120000000 | EF14: -120000000 | EG14: -120000000 | EH14: -120000000 | EI14: -120000000 | EJ14: -120000000 | EK14: -120000000 | EL14: -120000000 | EM14: -120000000 | EN14: -120000000 | EO14: -120000000 | EP14: -120000000 | EQ14: -120000000 | ER14: -120000000 | ES14: -120000000 | ET14: -120000000 | EU14: -120000000 | EV14: -120000000 | EW14: -120000000 | EX14: -120000000 | EY14: -120000000 | EZ14: -120000000 | FA14: -120000000 | FB14: -120000000 | FC14: -120000000 | FD14: -120000000 | FE14: 0 | FF14: 0 | FG14: 0 | FH14: 0 | FI14: 0 | FJ14: 0 | FK14: 0 | FL14: 0 | FM14: 0 | FN14: 0 | FO14: 0 | FP14: 0 | FQ14: 0 | FR14: 0 | FS14: 0 | FT14: 0 | FU14: 0 | FV14: 0 | FW14: 0 | FX14: 0 | FY14: 0 | FZ14: 0 | GA14: 0 | GB14: 0 | GC14: 0 | GD14: 0 | GE14: 0 | GF14: 0 | GG14: 0 | GH14: 0 | GI14: 0 | GJ14: 0 | GK14: 0 | GL14: 0
B15: 11) | C15: =IF(Cover!$B$1=1,Trans!A267,Trans!B267) -> Aquisição Diamond Tower | D15: 486000000 | E15: =IF(Cover!$B$1=1,Trans!A295,Trans!B295) -> jul-20 | F15: =IF(Cover!$B$1=1,Trans!A304,Trans!B304) -> 5 | G15: =IF(Cover!$B$1=1,Trans!A315,Trans!B315) -> CDI + 2,09% aa | H15: 0 | I15: 0 | J15: 0 | K15: 0 | L15: 0 | M15: 0 | N15: 0 | O15: 0 | P15: 0 | Q15: 0 | R15: 0 | S15: 0 | T15: 0 | U15: 0 | V15: 0 | W15: 0 | X15: 0 | Y15: 0 | Z15: 0 | AA15: 0 | AB15: 0 | AC15: 0 | AD15: 0 | AE15: 0 | AF15: 0 | AG15: 0 | AH15: 0 | AI15: 0 | AJ15: 0 | AK15: 0 | AL15: 0 | AM15: 0 | AN15: 0 | AO15: 0 | AP15: 0 | AQ15: 0 | AR15: 0 | AS15: 0 | AT15: 0 | AU15: 0 | AV15: 0 | AW15: 0 | AX15: 0 | AY15: 0 | AZ15: 0 | BA15: 0 | BB15: 0 | BC15: 0 | BD15: 0 | BE15: 0 | BF15: 0 | BG15: 0 | BH15: 0 | BI15: 0 | BJ15: 0 | BK15: 0 | BL15: 0 | BM15: 0 | BN15: 0 | BO15: 0 | BP15: 0 | BQ15: 0 | BR15: 0 | BS15: 0 | BT15: 0 | BU15: 0 | BV15: 0 | BW15: 0 | BX15: 0 | BY15: 0 | BZ15: 0 | CA15: 0 | CB15: 0 | CC15: 0 | CD15: 0 | CE15: 0 | CF15: 0 | CG15: 0 | CH15: 0 | CI15: 0 | CJ15: 0 | CK15: 0 | CL15: 0 | CM15: 0 | CN15: 0 | CO15: 0 | CP15: 0 | CQ15: 0 | CR15: 0 | CS15: 0 | CT15: 0 | CU15: 0 | CV15: 0 | CW15: 0 | CX15: 0 | CY15: 0 | CZ15: 0 | DA15: 0 | DB15: 0 | DC15: 0 | DD15: 0 | DE15: 0 | DF15: 0 | DG15: 0 | DH15: 0 | DI15: 0 | DJ15: 0 | DK15: 0 | DL15: 0 | DM15: 0 | DN15: 0 | DO15: 0 | DP15: 0 | DQ15: 0 | DR15: 0 | DS15: -486000000 | DT15: -486000000 | DU15: -486000000 | DV15: -486000000 | DW15: -486000000 | DX15: -486000000 | DY15: -486000000 | DZ15: -486000000 | EA15: -486000000 | EB15: -486000000 | EC15: -486000000 | ED15: -486000000 | EE15: -489468812.8 | EF15: -493041468.3 | EG15: -496623782.6 | EH15: -500373867.5 | EI15: -504685854.8 | EJ15: -510138609.6 | EK15: -515349483.6 | EL15: -520560919 | EM15: -526948254 | EN15: -532724660.7 | EO15: -539836004.7 | EP15: -546872985.5 | EQ15: -550466616.6 | ER15: -554455606.5 | ES15: -558157084.7 | ET15: -561727619.1 | EU15: -565342932.4 | EV15: -569372162.6 | EW15: -573457008.4 | EX15: -576841056.5 | EY15: -581220722.5 | EZ15: -584692339.9 | FA15: -588988651.1 | FB15: -593144982.4 | FC15: -600957606.2 | FD15: -609419066.2 | FE15: -616815501.9 | FF15: -620911333.4 | FG15: -624774992.9 | FH15: -628609975.6 | FI15: -628609975.6 | FJ15: -628587582.2 | FK15: -351215346.6 | FL15: -71939230.73 | FM15: -71972742.66 | FN15: -71972742.66 | FO15: -71972742.66 | FP15: -71972742.66 | FQ15: -71972742.66 | FR15: -71974034.78 | FS15: -71976609.03 | FT15: -71981725.9 | FU15: -71984261.39 | FV15: -71986796.96 | FW15: -71991825.09 | FX15: -71990760.69 | FY15: -71993257.43 | FZ15: -90017047.66 | GA15: -90017047.58 | GB15: -89960728.56 | GC15: -90017047.58 | GD15: -90017047.58 | GE15: -90017047.58 | GF15: -89904444.52 | GG15: -89904444.52 | GH15: -89904444.52 | GI15: -89904444.52 | GJ15: -89904444.52 | GK15: -89904444.52 | GL15: -89904444.52
B16: 12) | C16: =IF(Cover!$B$1=1,Trans!A268,Trans!B268) -> Aquisição Torre Almirante | D16: 95000000 | E16: dez-21 | F16: =IF(Cover!$B$1=1,Trans!A305,Trans!B305) -> 12 | G16: =IF(Cover!$B$1=1,Trans!A316,Trans!B316) -> CDI + 2,6% aa | H16: 0 | I16: 0 | J16: 0 | K16: 0 | L16: 0 | M16: 0 | N16: 0 | O16: 0 | P16: 0 | Q16: 0 | R16: 0 | S16: 0 | T16: 0 | U16: 0 | V16: 0 | W16: 0 | X16: 0 | Y16: 0 | Z16: 0 | AA16: 0 | AB16: 0 | AC16: 0 | AD16: 0 | AE16: 0 | AF16: 0 | AG16: 0 | AH16: 0 | AI16: 0 | AJ16: 0 | AK16: 0 | AL16: 0 | AM16: 0 | AN16: 0 | AO16: 0 | AP16: 0 | AQ16: 0 | AR16: 0 | AS16: 0 | AT16: 0 | AU16: 0 | AV16: 0 | AW16: 0 | AX16: 0 | AY16: 0 | AZ16: 0 | BA16: 0 | BB16: 0 | BC16: 0 | BD16: 0 | BE16: 0 | BF16: 0 | BG16: 0 | BH16: 0 | BI16: 0 | BJ16: 0 | BK16: 0 | BL16: 0 | BM16: 0 | BN16: 0 | BO16: 0 | BP16: 0 | BQ16: 0 | BR16: 0 | BS16: 0 | BT16: 0 | BU16: 0 | BV16: 0 | BW16: 0 | BX16: 0 | BY16: 0 | BZ16: 0 | CA16: 0 | CB16: 0 | CC16: 0 | CD16: 0 | CE16: 0 | CF16: 0 | CG16: 0 | CH16: 0 | CI16: 0 | CJ16: 0 | CK16: 0 | CL16: 0 | CM16: 0 | CN16: 0 | CO16: 0 | CP16: 0 | CQ16: 0 | CR16: 0 | CS16: 0 | CT16: 0 | CU16: 0 | CV16: 0 | CW16: 0 | CX16: 0 | CY16: 0 | CZ16: 0 | DA16: 0 | DB16: 0 | DC16: 0 | DD16: 0 | DE16: 0 | DF16: 0 | DG16: 0 | DH16: 0 | DI16: 0 | DJ16: 0 | DK16: 0 | DL16: 0 | DM16: 0 | DN16: 0 | DO16: 0 | DP16: 0 | DQ16: 0 | DR16: 0 | DS16: 0 | DT16: 0 | DU16: 0 | DV16: 0 | DW16: 0 | DX16: 0 | DY16: 0 | DZ16: 0 | EA16: 0 | EB16: 0 | EC16: 0 | ED16: 0 | EE16: 0 | EF16: 0 | EG16: 0 | EH16: 0 | EI16: 0 | EJ16: -95299245.63 | EK16: -96202648.93 | EL16: -97106262.87 | EM16: -98219340.06 | EN16: -99230656.58 | EO16: -100475090.6 | EP16: -101708983.5 | EQ16: -102981551 | ER16: -104426483.4 | ES16: -105771919.2 | ET16: -107069398.7 | EU16: -108382794.7 | EV16: -109846145.9 | EW16: -111329254.6 | EX16: -112557589.6 | EY16: -114146871.3 | EZ16: -115406293.9 | FA16: -116964474.6 | FB16: -118471450.5 | FC16: -118399251.3 | FD16: -118454864.4 | FE16: -118374347 | FF16: -118370187.7 | FG16: -118421490.9 | FH16: -118277086.1 | FI16: -118340872.4 | FJ16: -118326117.8 | FK16: -68102928.17 | FL16: -68100492.44 | FM16: -68164202.88 | FN16: -68096824.74 | FO16: -68130505.53 | FP16: -68164202.88 | FQ16: -68100492.44 | FR16: -68160002.15 | FS16: -68098712.06 | FT16: -68113236.75 | FU16: -68227125.14 | FV16: -68127633 | FW16: -68182268.7 | FX16: -68141909.5 | FY16: -68236882.47 | FZ16: -68151945.64 | GA16: -68241602.04 | GB16: -68197053.87 | GC16: -68108044.14 | GD16: -68108044.14 | GE16: -68108044.14 | GF16: -67886029.27 | GG16: -67178928.39 | GH16: -66471802.99 | GI16: -66104565.42 | GJ16: -65764675.95 | GK16: -65764675.95 | GL16: -65764675.95
B17: 13) | C17: =IF(Cover!$B$1=1,Trans!A268,Trans!B268) -> Aquisição Torre Almirante | D17: 150000000 | E17: dez-21 | F17: =IF(Cover!$B$1=1,Trans!A306,Trans!B306) -> 15 | G17: =IF(Cover!$B$1=1,Trans!A317,Trans!B317) -> IPCA + 7,1% aa | H17: 0 | I17: 0 | J17: 0 | K17: 0 | L17: 0 | M17: 0 | N17: 0 | O17: 0 | P17: 0 | Q17: 0 | R17: 0 | S17: 0 | T17: 0 | U17: 0 | V17: 0 | W17: 0 | X17: 0 | Y17: 0 | Z17: 0 | AA17: 0 | AB17: 0 | AC17: 0 | AD17: 0 | AE17: 0 | AF17: 0 | AG17: 0 | AH17: 0 | AI17: 0 | AJ17: 0 | AK17: 0 | AL17: 0 | AM17: 0 | AN17: 0 | AO17: 0 | AP17: 0 | AQ17: 0 | AR17: 0 | AS17: 0 | AT17: 0 | AU17: 0 | AV17: 0 | AW17: 0 | AX17: 0 | AY17: 0 | AZ17: 0 | BA17: 0 | BB17: 0 | BC17: 0 | BD17: 0 | BE17: 0 | BF17: 0 | BG17: 0 | BH17: 0 | BI17: 0 | BJ17: 0 | BK17: 0 | BL17: 0 | BM17: 0 | BN17: 0 | BO17: 0 | BP17: 0 | BQ17: 0 | BR17: 0 | BS17: 0 | BT17: 0 | BU17: 0 | BV17: 0 | BW17: 0 | BX17: 0 | BY17: 0 | BZ17: 0 | CA17: 0 | CB17: 0 | CC17: 0 | CD17: 0 | CE17: 0 | CF17: 0 | CG17: 0 | CH17: 0 | CI17: 0 | CJ17: 0 | CK17: 0 | CL17: 0 | CM17: 0 | CN17: 0 | CO17: 0 | CP17: 0 | CQ17: 0 | CR17: 0 | CS17: 0 | CT17: 0 | CU17: 0 | CV17: 0 | CW17: 0 | CX17: 0 | CY17: 0 | CZ17: 0 | DA17: 0 | DB17: 0 | DC17: 0 | DD17: 0 | DE17: 0 | DF17: 0 | DG17: 0 | DH17: 0 | DI17: 0 | DJ17: 0 | DK17: 0 | DL17: 0 | DM17: 0 | DN17: 0 | DO17: 0 | DP17: 0 | DQ17: 0 | DR17: 0 | DS17: 0 | DT17: 0 | DU17: 0 | DV17: 0 | DW17: 0 | DX17: 0 | DY17: 0 | DZ17: 0 | EA17: 0 | EB17: 0 | EC17: 0 | ED17: 0 | EE17: 0 | EF17: 0 | EG17: 0 | EH17: 0 | EI17: 0 | EJ17: -150760516.9 | EK17: -152937097.3 | EL17: -154679330.2 | EM17: -156860969.1 | EN17: -159388489.8 | EO17: -162796736.3 | EP17: -165137331.2 | EQ17: -166919214.6 | ER17: -168347110.6 | ES17: -168331493.2 | ET17: -168701380.7 | EU17: -169634686.9 | EV17: -171568191.2 | EW17: -173416711 | EX17: -175193635.6 | EY17: -177626901.3 | EZ17: -179701373.8 | FA17: -182129814.2 | FB17: -184053035.3 | FC17: -184225158.1 | FD17: -184258966.9 | FE17: -184486851.4 | FF17: -184025338.7 | FG17: -184059745.8 | FH17: -183946222 | FI17: -184227990.3 | FJ17: -184106390.6 | FK17: -103902490.7 | FL17: -103720882.1 | FM17: -103868137.8 | FN17: -103798393 | FO17: -103769321.4 | FP17: -103861936.1 | FQ17: -103662635.9 | FR17: -103864022.3 | FS17: -103799503.2 | FT17: -103761492.3 | FU17: -103929399.5 | FV17: -103689273.9 | FW17: -104112967.7 | FX17: -103816963.5 | FY17: -103852407 | FZ17: -103710954.2 | GA17: -103780897.9 | GB17: -103744187.1 | GC17: -103513956.1 | GD17: -103513956.1 | GE17: -103513956.1 | GF17: -103351044.2 | GG17: -102809959.3 | GH17: -102265125.1 | GI17: -102297146.5 | GJ17: -101717535.1 | GK17: -101717535.1 | GL17: -101717535.1
